Workbook

Sheet notes (hidden)
H2: =SUM(H3:H8) -> 0
C3: 600 | D3: 24 | E3: 600 | F3: 1000 | G3: =IF(Form!$D$4=D3,1,0) -> 0 | H3: =IF(G3=1,IF(OR(E3>Form!M$5,F3<Form!M$5),1,0),0) -> 0
C4: 800 | D4: 30 | E4: 800 | F4: 1200 | G4: =IF(Form!$D$4=D4,1,0) -> 0 | H4: =IF(G4=1,IF(OR(E4>Form!M$5,F4<Form!M$5),1,0),0) -> 0
C5: 1000 | D5: 36 | E5: 1000 | F5: 1400 | G5: =IF(Form!$D$4=D5,1,0) -> 0 | H5: =IF(G5=1,IF(OR(E5>Form!M$5,F5<Form!M$5),1,0),0) -> 0
C6: 1200 | D6: 42 | E6: 1200 | F6: 1600 | G6: =IF(Form!$D$4=D6,1,0) -> 0 | H6: =IF(G6=1,IF(OR(E6>Form!M$5,F6<Form!M$5),1,0),0) -> 0
C7: 1400 | D7: 48 | E7: 1400 | F7: 1800 | G7: =IF(Form!$D$4=D7,1,0) -> 0 | H7: =IF(G7=1,IF(OR(E7>Form!M$5,F7<Form!M$5),1,0),0) -> 0
C8: 1600 | D8: 60 | E8: 1600 | F8: 2000 | G8: =IF(Form!$D$4=D8,1,0) -> 0 | H8: =IF(G8=1,IF(OR(E8>Form!M$5,F8<Form!M$5),1,0),0) -> 0
C9: 1800
C10: 2000
D13: Total
B14: =Form!M5+Form!M6 -> 0 | E14: =E31 -> 0 | F14: =F31 -> 0 | G14: 0 | H14: 0 | I14: 0 | J14: 0 | K14: 0 | L14: =SUM(E14:K14) -> 0 | P14: 58
E15: =Form!C27 -> 65 | F15: =Form!E27 -> 75 | G15: =Form!G27 -> 85 | H15: =Form!I27 -> 90 | I15: =Form!K27 -> 95 | J15: =Form!M27 -> 105 | K15: =Form!O27 -> 115
A16: =C16+D16 -> 0 | B16: =P16 -> 0 | C16: =Form!A31 -> 0 | D16: =Form!B31 -> 0 | E16: =Form!C31 -> 0 | F16: =Form!E31 -> 0 | G16: =Form!G31 -> 0 | H16: =Form!I31 -> 0 | I16: =Form!K31 -> 0 | J16: =Form!M31 -> 0 | K16: =Form!O31 -> 0 | L16: =Form!$M$5+Form!M$6 -> 0 | M16: =IF(C16+D16=Form!M$5+Form!M$6,1,0) -> 1 | N16: =IF(A16<L16,1,0) -> 0 | O16: =IF(A16>L16,2,0) -> 0 | P16: =IF(AND(N16=1,N17=0),1,0)+IF(AND(O15=0,O16=2),2,0) -> 0
A17: =C17+D17 -> 0 | B17: =P17 -> 0 | C17: =C16 -> 0 | D17: =Form!B32 -> 0 | E17: =Form!C32 -> 0 | F17: =Form!E32 -> 0 | G17: =Form!G32 -> 0 | H17: =Form!I32 -> 0 | I17: =Form!K32 -> 0 | J17: =Form!M32 -> 0 | K17: =Form!O32 -> 0 | L17: =Form!$M$5+Form!M$6 -> 0 | M17: =IF(C17+D17=Form!M$5+Form!M$6,1,0) -> 1 | N17: =IF(A17<L17,1,0) -> 0 | O17: =IF(A17>L17,2,0) -> 0 | P17: =IF(AND(N17=1,N18=0),1,0)+IF(AND(O16=0,O17=2),2,0) -> 0
A18: 0 | B18: 0 | C18: =C17 -> 0 | D18: =Form!B33 -> 0 | E18: =Form!C33 -> 0 | F18: =Form!E33 -> 0 | G18: =Form!G33 -> 0 | H18: =Form!I33 -> 0 | I18: =Form!K33 -> 0 | J18: =Form!M33 -> 0 | K18: =Form!O33 -> 0 | L18: =Form!$M$5+Form!M$6 -> 0 | M18: =IF(C18+D18=Form!M$5+Form!M$6,1,0) -> 1 | N18: 0 | O18: =IF(A18>L18,2,0) -> 0 | P18: =IF(AND(N18=1,N19=0),1,0)+IF(AND(O17=0,O18=2),2,0) -> 0
A19: 0 | B19: 0 | C19: =C18 -> 0 | D19: =Form!B34 -> 0 | E19: =Form!C34 -> 0 | F19: =Form!E34 -> 0 | G19: =Form!G34 -> 0 | H19: =Form!I34 -> 0 | I19: =Form!K34 -> 0 | J19: =Form!M34 -> 0 | K19: =Form!O34 -> 0 | L19: =Form!$M$5+Form!M$6 -> 0 | M19: =IF(C19+D19=Form!M$5+Form!M$6,1,0) -> 1 | N19: 0 | O19: =IF(A19>L19,2,0) -> 0 | P19: =IF(AND(N19=1,N20=0),1,0)+IF(AND(O18=0,O19=2),2,0) -> 0
A20: 0 | B20: 0 | C20: =Form!A35 -> 0 | D20: =Form!B35 -> 0 | E20: =Form!C35 -> 0 | F20: =Form!E35 -> 0 | G20: =Form!G35 -> 0 | H20: =Form!I35 -> 0 | I20: =Form!K35 -> 0 | J20: =Form!M35 -> 0 | K20: =Form!O35 -> 0 | L20: =Form!$M$5+Form!M$6 -> 0 | M20: =IF(C20+D20=Form!M$5+Form!M$6,1,0) -> 1 | N20: 0 | O20: =IF(A20>L20,2,0) -> 0 | P20: =IF(AND(N20=1,N21=0),1,0)+IF(AND(O19=0,O20=2),2,0) -> 0
A21: 0 | B21: 0 | C21: =C20 -> 0 | D21: =Form!B36 -> 0 | E21: =Form!C36 -> 0 | F21: =Form!E36 -> 0 | G21: =Form!G36 -> 0 | H21: =Form!I36 -> 0 | I21: =Form!K36 -> 0 | J21: =Form!M36 -> 0 | K21: =Form!O36 -> 0 | L21: =Form!$M$5+Form!M$6 -> 0 | M21: =IF(C21+D21=Form!M$5+Form!M$6,1,0) -> 1 | N21: 0 | O21: =IF(A21>L21,2,0) -> 0 | P21: =IF(AND(N21=1,N22=0),1,0)+IF(AND(O20=0,O21=2),2,0) -> 0
A22: 0 | B22: 0 | C22: =C21 -> 0 | D22: =Form!B37 -> 0 | E22: =Form!C37 -> 0 | F22: =Form!E37 -> 0 | G22: =Form!G37 -> 0 | H22: =Form!I37 -> 0 | I22: =Form!K37 -> 0 | J22: =Form!M37 -> 0 | K22: =Form!O37 -> 0 | L22: =Form!$M$5+Form!M$6 -> 0 | M22: =IF(C22+D22=Form!M$5+Form!M$6,1,0) -> 1 | N22: 0 | O22: 0 | P22: 0
A23: 0 | B23: 0 | C23: =C22 -> 0 | D23: =Form!B38 -> 0 | E23: =Form!C38 -> 0 | F23: =Form!E38 -> 0 | G23: =Form!G38 -> 0 | H23: =Form!I38 -> 0 | I23: =Form!K38 -> 0 | J23: =Form!M38 -> 0 | K23: =Form!O38 -> 0 | L23: =Form!$M$5+Form!M$6 -> 0 | M23: =IF(C23+D23=Form!M$5+Form!M$6,1,0) -> 1 | N23: 0 | O23: 0 | P23: 0
A24: 0 | B24: 0 | C24: =Form!A39 -> 0 | D24: =Form!B39 -> 0 | E24: =Form!C39 -> 0 | F24: =Form!E39 -> 0 | G24: =Form!G39 -> 0 | H24: =Form!I39 -> 0 | I24: =Form!K39 -> 0 | J24: =Form!M39 -> 0 | K24: =Form!O39 -> 0 | L24: =Form!$M$5+Form!M$6 -> 0 | M24: =IF(C24+D24=Form!M$5+Form!M$6,1,0) -> 1 | N24: 0 | O24: 0 | P24: 0
A25: 0 | B25: 0 | C25: =C24 -> 0 | D25: =Form!B40 -> 0 | E25: =Form!C40 -> 0 | F25: =Form!E40 -> 0 | G25: =Form!G40 -> 0 | H25: =Form!I40 -> 0 | I25: =Form!K40 -> 0 | J25: =Form!M40 -> 0 | K25: =Form!O40 -> 0 | L25: =Form!$M$5+Form!M$6 -> 0 | M25: =IF(C25+D25=Form!M$5+Form!M$6,1,0) -> 1 | N25: 0 | O25: 0 | P25: 0
A26: 0 | B26: 0 | C26: =C25 -> 0 | D26: =Form!B41 -> 0 | E26: =Form!C41 -> 0 | F26: =Form!E41 -> 0 | G26: =Form!G41 -> 0 | H26: =Form!I41 -> 0 | I26: =Form!K41 -> 0 | J26: =Form!M41 -> 0 | K26: =Form!O41 -> 0 | L26: =Form!$M$5+Form!M$6 -> 0 | M26: =IF(C26+D26=Form!M$5+Form!M$6,1,0) -> 1 | N26: 0 | O26: 0 | P26: 0
A27: 0 | B27: 0 | C27: =C26 -> 0 | D27: =Form!B42 -> 0 | E27: =Form!C42 -> 0 | F27: =Form!E42 -> 0 | G27: =Form!G42 -> 0 | H27: =Form!I42 -> 0 | I27: =Form!K42 -> 0 | J27: =Form!M42 -> 0 | K27: =Form!O42 -> 0 | L27: =Form!$M$5+Form!M$6 -> 0 | M27: =IF(C27+D27=Form!M$5+Form!M$6,1,0) -> 1 | N27: 0 | O27: 0 | P27: 0
A28: 0 | B28: =SUM(B16:B27) -> 0
F29: =IF(AND(F15>Form!$M$4,E15<Form!$M$4),2,0) -> 0 | G29: =IF(AND(G15>Form!$M$4,F15<Form!$M$4),2,0) -> 0 | H29: =IF(AND(H15>Form!$M$4,G15<Form!$M$4),2,0) -> 0 | I29: =IF(AND(I15>Form!$M$4,H15<Form!$M$4),2,0) -> 0 | J29: =IF(AND(J15>Form!$M$4,I15<Form!$M$4),2,0) -> 0 | K29: =IF(AND(K15>Form!$M$4,J15<Form!$M$4),2,0) -> 0
C30: =HLOOKUP(1,E14:K15,2,FALSE) ->  | E30: =IF(F29=2,1,0) -> 0 | F30: =IF(G29=2,1,0) -> 0 | G30: 0 | H30: 0 | I30: 0 | J30: 0 | K30: 0
C31: =HLOOKUP(2,E14:K15,2,FALSE) ->  | E31: =SUM(E29:E30) -> 0 | F31: 0 | G31: 0 | H31: 0 | I31: 0 | J31: 0 | K31: 0
B32: =(VLOOKUP(1,B14:K27,3,FALSE)) ->  | C32: =IF(ISERROR(B32),0,B32) -> 0 | E32: =(C34-C35)/(C32-C33)*(Form!$M$6-C33)+C35 ->  | F32: =(C36-C37)/(C32-C33)*(Form!M6-C33)+C37 -> 
B33: =VLOOKUP(2,B14:K27,3,FALSE) ->  | C33: =IF(ISERROR(B33),0,B33) -> 0 | E33: =IF(AND(B28=0,L14=3),VLOOKUP(Form!$M$5+Form!$M$6,notes!A14:K27,MATCH(1,notes!A14:K14,FALSE),FALSE),0) -> 0 | F33: =IF(AND(B28=0,L14=3),VLOOKUP(Form!$M$5+Form!$M$6,notes!A14:K27,MATCH(2,notes!A14:K14,FALSE),FALSE),0) -> 0 | I33: exactly
B34: =VLOOKUP(1,B14:K27,MATCH(1,B14:K14,FALSE),FALSE) ->  | C34: =MIN(B34,B36) ->  | E34: =IF(ISERROR(E32),E33,E32) -> 0 | F34: =IF(ISERROR(F32),F33,F32) -> 0 | I34: x | J34: y | K34: err1 | L34: err2 | M34: err3 | N34: ans
B35: =VLOOKUP(2,B14:K27,MATCH(1,B14:K14,FALSE),FALSE) ->  | C35: =MAX(B35,B37) ->  | E35: =MIN(E34:F34) -> 0 | F35: =MAX(E34:F34) -> 0 | I35: y | J35: y | K35: =IF(ISERROR(VLOOKUP(Form!$M$5+Form!$M$6,notes!A15:K27,MATCH(Form!$M$4,notes!A15:K15,FALSE),FALSE)),0,VLOOKUP(Form!$M$5+Form!$M$6,notes!A15:K27,MATCH(Form!$M$4,notes!A15:K15,FALSE),FALSE)) -> 0 | N35: =SUM(K35:M35) -> 0
B36: =VLOOKUP(1,B14:K27,MATCH(2,B14:K14,FALSE),FALSE) ->  | C36: =MAX(B36,B34) ->  | E36: =(E35-F35)/(C31-C30)*(Form!$M$4-C30)+F35 ->  | I36: y | J36: n | N36: =SUM(K36:M36) -> 0
B37: =VLOOKUP(2,B14:K27,MATCH(2,B14:K14,FALSE),FALSE) ->  | C37: =MIN(B35,B37) ->  | I37: n | J37: n | K37: =IF(OR(E36>100000,E36<=0),0,E36) ->  | L37: =IF(K37<>0,0,MIN(E32:F32)) ->  | M37: =IF(AND(L37=0,K37=0),C34,0) ->  | N37: =SUM(K37:M37) -> 
N38: =IF(ISERROR(N37),N35,N37) -> 0
A41: sens | E41: =E58 -> 0 | F41: =F58 -> 0 | G41: 0 | H41: 0 | I41: 0 | J41: 0 | K41: 0 | L41: =SUM(E41:K41) -> 0
E42: =E15 -> 65 | F42: =F15 -> 75 | G42: 85 | H42: 90 | I42: 95 | J42: 105 | K42: 115
A43: =C43+D43 -> 0 | B43: =P43 -> 0 | C43: =C16 -> 0 | D43: =D16 -> 0 | E43: =Form!D31 -> 0 | F43: =Form!F31 -> 0 | G43: =Form!H31 -> 0 | H43: =Form!J31 -> 0 | I43: =Form!L31 -> 0 | J43: =Form!N31 -> 0 | K43: =Form!P31 -> 0 | L43: =Form!$M$5+Form!M$6 -> 0 | M43: =IF(C43+D43=Form!M$5+Form!M$6,1,0) -> 1 | N43: =IF(A43<L43,1,0) -> 0 | O43: =IF(A43>L43,2,0) -> 0 | P43: =IF(AND(N43=1,N44=0),1,0)+IF(AND(O42=0,O43=2),2,0) -> 0
A44: =C44+D44 -> 0 | B44: =P44 -> 0 | C44: =C17 -> 0 | D44: =D17 -> 0 | E44: =Form!D32 -> 0 | F44: =Form!F32 -> 0 | G44: =Form!H32 -> 0 | H44: =Form!J32 -> 0 | I44: =Form!L32 -> 0 | J44: =Form!N32 -> 0 | K44: =Form!P32 -> 0 | L44: =Form!$M$5+Form!M$6 -> 0 | M44: =IF(C44+D44=Form!M$5+Form!M$6,1,0) -> 1 | N44: =IF(A44<L44,1,0) -> 0 | O44: =IF(A44>L44,2,0) -> 0 | P44: =IF(AND(N44=1,N45=0),1,0)+IF(AND(O43=0,O44=2),2,0) -> 0
A45: =C45+D45 -> 0 | B45: 0 | C45: 0 | D45: 0 | E45: =Form!D33 -> 0 | F45: =Form!F33 -> 0 | G45: =Form!H33 -> 0 | H45: =Form!J33 -> 0 | I45: =Form!L33 -> 0 | J45: =Form!N33 -> 0 | K45: =Form!P33 -> 0 | L45: =Form!$M$5+Form!M$6 -> 0 | M45: =IF(C45+D45=Form!M$5+Form!M$6,1,0) -> 1 | N45: 0 | O45: =IF(A45>L45,2,0) -> 0 | P45: =IF(AND(N45=1,N46=0),1,0)+IF(AND(O44=0,O45=2),2,0) -> 0
A46: 0 | B46: 0 | C46: 0 | D46: 0 | E46: =Form!D34 -> 0 | F46: =Form!F34 -> 0 | G46: =Form!H34 -> 0 | H46: =Form!J34 -> 0 | I46: =Form!L34 -> 0 | J46: =Form!N34 -> 0 | K46: =Form!P34 -> 0 | L46: =Form!$M$5+Form!M$6 -> 0 | M46: =IF(C46+D46=Form!M$5+Form!M$6,1,0) -> 1 | N46: 0 | O46: =IF(A46>L46,2,0) -> 0 | P46: =IF(AND(N46=1,N47=0),1,0)+IF(AND(O45=0,O46=2),2,0) -> 0
A47: 0 | B47: 0 | C47: 0 | D47: 0 | E47: =Form!D35 -> 0 | F47: =Form!F35 -> 0 | G47: =Form!H35 -> 0 | H47: =Form!J35 -> 0 | I47: =Form!L35 -> 0 | J47: =Form!N35 -> 0 | K47: =Form!P35 -> 0 | L47: =Form!$M$5+Form!M$6 -> 0 | M47: =IF(C47+D47=Form!M$5+Form!M$6,1,0) -> 1 | N47: 0 | O47: =IF(A47>L47,2,0) -> 0 | P47: =IF(AND(N47=1,N48=0),1,0)+IF(AND(O46=0,O47=2),2,0) -> 0
A48: 0 | B48: 0 | C48: 0 | D48: 0 | E48: =Form!D36 -> 0 | F48: =Form!F36 -> 0 | G48: =Form!H36 -> 0 | H48: =Form!J36 -> 0 | I48: =Form!L36 -> 0 | J48: =Form!N36 -> 0 | K48: =Form!P36 -> 0 | L48: =Form!$M$5+Form!M$6 -> 0 | M48: =IF(C48+D48=Form!M$5+Form!M$6,1,0) -> 1 | N48: 0 | O48: =IF(A48>L48,2,0) -> 0 | P48: =IF(AND(N48=1,N49=0),1,0)+IF(AND(O47=0,O48=2),2,0) -> 0
A49: 0 | B49: 0 | C49: 0 | D49: 0 | E49: =Form!D37 -> 0 | F49: =Form!F37 -> 0 | G49: =Form!H37 -> 0 | H49: =Form!J37 -> 0 | I49: =Form!L37 -> 0 | J49: =Form!N37 -> 0 | K49: =Form!P37 -> 0 | L49: =Form!$M$5+Form!M$6 -> 0 | M49: =IF(C49+D49=Form!M$5+Form!M$6,1,0) -> 1 | N49: 0 | O49: 0 | P49: 0
A50: 0 | B50: 0 | C50: 0 | D50: 0 | E50: =Form!D38 -> 0 | F50: =Form!F38 -> 0 | G50: =Form!H38 -> 0 | H50: =Form!J38 -> 0 | I50: =Form!L38 -> 0 | J50: =Form!N38 -> 0 | K50: =Form!P38 -> 0 | L50: =Form!$M$5+Form!M$6 -> 0 | M50: =IF(C50+D50=Form!M$5+Form!M$6,1,0) -> 1 | N50: 0 | O50: 0 | P50: 0
A51: 0 | B51: 0 | C51: 0 | D51: 0 | E51: =Form!D39 -> 0 | F51: =Form!F39 -> 0 | G51: =Form!H39 -> 0 | H51: =Form!J39 -> 0 | I51: =Form!L39 -> 0 | J51: =Form!N39 -> 0 | K51: =Form!P39 -> 0 | L51: =Form!$M$5+Form!M$6 -> 0 | M51: =IF(C51+D51=Form!M$5+Form!M$6,1,0) -> 1 | N51: 0 | O51: 0 | P51: 0
A52: 0 | B52: 0 | C52: 0 | D52: 0 | E52: =Form!D40 -> 0 | F52: =Form!F40 -> 0 | G52: =Form!H40 -> 0 | H52: =Form!J40 -> 0 | I52: =Form!L40 -> 0 | J52: =Form!N40 -> 0 | K52: =Form!P40 -> 0 | L52: =Form!$M$5+Form!M$6 -> 0 | M52: =IF(C52+D52=Form!M$5+Form!M$6,1,0) -> 1 | N52: 0 | O52: 0 | P52: 0
A53: 0 | B53: 0 | C53: 0 | D53: 0 | E53: =Form!D41 -> 0 | F53: =Form!F41 -> 0 | G53: =Form!H41 -> 0 | H53: =Form!J41 -> 0 | I53: =Form!L41 -> 0 | J53: =Form!N41 -> 0 | K53: =Form!P41 -> 0 | L53: =Form!$M$5+Form!M$6 -> 0 | M53: =IF(C53+D53=Form!M$5+Form!M$6,1,0) -> 1 | N53: 0 | O53: 0 | P53: 0
A54: 0 | B54: 0 | C54: 0 | D54: 0 | E54: =Form!D42 -> 0 | F54: =Form!F42 -> 0 | G54: =Form!H42 -> 0 | H54: =Form!J42 -> 0 | I54: =Form!L42 -> 0 | J54: =Form!N42 -> 0 | K54: =Form!P42 -> 0 | L54: =Form!$M$5+Form!M$6 -> 0 | M54: =IF(C54+D54=Form!M$5+Form!M$6,1,0) -> 1 | N54: 0 | O54: 0 | P54: 0
A55: 0 | B55: =SUM(B43:B54) -> 0
F56: =IF(AND(F42>Form!$M$4,E42<Form!$M$4),2,0) -> 0 | G56: =IF(AND(G42>Form!$M$4,F42<Form!$M$4),2,0) -> 0 | H56: =IF(AND(H42>Form!$M$4,G42<Form!$M$4),2,0) -> 0 | I56: =IF(AND(I42>Form!$M$4,H42<Form!$M$4),2,0) -> 0 | J56: =IF(AND(J42>Form!$M$4,I42<Form!$M$4),2,0) -> 0 | K56: =IF(AND(K42>Form!$M$4,J42<Form!$M$4),2,0) -> 0
C57: =HLOOKUP(1,E41:K42,2,FALSE) ->  | E57: =IF(F56=2,1,0) -> 0 | F57: =IF(G56=2,1,0) -> 0 | G57: 0 | H57: 0 | I57: 0 | J57: 0 | K57: 0
C58: =HLOOKUP(2,E41:K42,2,FALSE) ->  | E58: =SUM(E56:E57) -> 0 | F58: 0 | G58: 0 | H58: 0 | I58: 0 | J58: 0 | K58: 0
B59: =(VLOOKUP(1,B41:K54,3,FALSE)) ->  | C59: =IF(ISERROR(B59),0,B59) -> 0 | E59: =(C61-C62)/(C59-C60)*(Form!$M$6-C60)+C62 ->  | F59: =(C63-C64)/(C59-C60)*(Form!M6-C60)+C64 -> 
B60: =VLOOKUP(2,B41:K54,3,FALSE) ->  | C60: =IF(ISERROR(B60),0,B60) -> 0 | E60: =IF(AND(B55=0,L41=3),VLOOKUP(Form!$M$5+Form!$M$6,notes!A41:K54,MATCH(1,notes!A41:K41,FALSE),FALSE),0) -> 0 | F60: =IF(AND(B55=0,L41=3),VLOOKUP(Form!$M$5+Form!$M$6,notes!A41:K54,MATCH(2,notes!A41:K41,FALSE),FALSE),0) -> 0 | I60: exactly
B61: =VLOOKUP(1,B41:K54,MATCH(1,B41:K41,FALSE),FALSE) ->  | C61: =MIN(B61,B63) ->  | E61: =IF(ISERROR(E59),E60,E59) -> 0 | F61: =IF(ISERROR(F59),F60,F59) -> 0 | I61: x | J61: y | K61: err1 | L61: err2 | M61: err3 | N61: ans
B62: =VLOOKUP(2,B41:K54,MATCH(1,B41:K41,FALSE),FALSE) ->  | C62: =MAX(B62,B64) ->  | E62: =MIN(E61:F61) -> 0 | F62: =MAX(E61:F61) -> 0 | I62: y | J62: y | K62: =IF(ISERROR(VLOOKUP(Form!$M$5+Form!$M$6,notes!A42:K54,MATCH(Form!$M$4,notes!A42:K42,FALSE),FALSE)),0,VLOOKUP(Form!$M$5+Form!$M$6,notes!A42:K54,MATCH(Form!$M$4,notes!A42:K42,FALSE),FALSE)) -> 0 | N62: =SUM(K62:M62) -> 0
B63: =VLOOKUP(1,B41:K54,MATCH(2,B41:K41,FALSE),FALSE) ->  | C63: =MAX(B63,B61) ->  | E63: =(E62-F62)/(C58-C57)*(Form!$M$4-C57)+F62 ->  | I63: y | J63: n | N63: =SUM(K63:M63) -> 0
B64: =VLOOKUP(2,B41:K54,MATCH(2,B41:K41,FALSE),FALSE) ->  | C64: =MIN(B62,B64) ->  | I64: n | J64: n | K64: =IF(OR(E63>100000,E63<=0),0,E63) ->  | L64: =IF(K64<>0,0,MIN(E59:F59)) ->  | M64: =IF(AND(L64=0,K64=0),C61,0) ->  | N64: =SUM(K64:M64) -> 
B65: =VLOOKUP(Form!M32+Form!M33,A41:K54,MATCH(2,A41:K41,FALSE),FALSE) ->  | N65: =IF(ISERROR(N64),N62,N64) -> 0

Sheet Options (hidden)
A1: 4AC13L
A2: 4AC14L
A3: 4SCU13L
A4: 4SCU14L
A5: 4SCU16L
A6: 4SCU18L

Sheet Calcs (hidden)
D1: Condenser :
D2: ADP Evaporator:
D3: Condenser Entering Air Temperature: | E3: 100 | F3: (°F) Dry Bulb, 85°F to 115°F
D4: Evaporator Air Flow: | E4: 1265 | F4: CFM
D5: Entering Evaporator Air (DB): | E5: 77.5 | F5: (°F) Dry Bulb
D6: Entering Evaporator Air (WB): | E6: 60.6 | F6: (°F) Wet Bulb, 63°F to 71°F
A9: Total
A10: 28.55 | B10: 1200 60.6
B12: Diff 200 | C12: =A10-A14 -> 0.308 | D12: Diff 1 cfm | E12: =C12/200 -> 0.00154 | F12: 1265 total | G12: =A10-(65*E12) -> 28.4499
A14: 28.242 | B14: 1400 60.6
A16: Sens
A17: 25.32 | B17: 1200 60.6
B19: Diff 200 | C19: =A17-A21 -> 0.5544 | D19: Diff 1 cfm | E19: =C19/200 -> 0.002772 | F19: 1265 Sens | G19: =A17-(65*E19) -> 25.13982
A21: 24.7656 | B21: 1400 60.6

Sheet 4AC13L_18 (hidden)
A2: 4AC13L_18
A3: Evaporator Air | C3: Condenser Entering Air Temperature ˚F
A4: 80 | B4: °F DB | C4: 65 | E4: 75 | G4: 85 | I4: 90 | K4: 95 | M4: 105 | O4: 115
A5: CFM | B5: EWB† ˚F | C5: Capacity Mbtuh | E5: Capacity Mbtuh | G5: Capacity Mbtuh | I5: Capacity Mbtuh | K5: Capacity Mbtuh | M5: Capacity Mbtuh | O5: Capacity Mbtuh
C6: Total | D6: Sens. | E6: Total | F6: Sens. | G6: Total | H6: Sens. | I6: Total | J6: Sens. | K6: Total | L6: Sens. | M6: Total | N6: Sens. | O6: Total | P6: Sens.
R7: Total Factors | Y7: Sens. % | AF7: IDB Adj | AM7: Sens Calc
A8: 500 | B8: 72 | C8: =R8*$K$13 -> 22.23529412 | D8: =IF(AM8>C8,C8,AM8) -> 11.07479428 | E8: =S8*$K$13 -> 21.17647059 | F8: =IF(AN8>E8,E8,AN8) -> 10.68939678 | G8: =T8*$K$13 -> 20.11764706 | H8: =IF(AO8>G8,G8,AO8) -> 10.30414893 | I8: =U8*$K$13 -> 19.58823529 | J8: =IF(AP8>I8,I8,AP8) -> 10.11379649 | K8: =V8*$K$13 -> 19.05882353 | L8: =IF(AQ8>K8,K8,AQ8) -> 9.91907597 | M8: =W8*$K$13 -> 18 | N8: =IF(AR8>M8,M8,AR8) -> 9.534209115 | O8: =X8*$K$13 -> 16.84491979 | P8: =IF(AS8>O8,O8,AS8) -> 9.097601205 | R8: 1.235294118 | S8: 1.176470588 | T8: 1.117647059 | U8: 1.088235294 | V8: 1.058823529 | W8: 1 | X8: 0.935828877 | Y8: 0.4980727588 | Z8: 0.5047770701 | AA8: 0.5121945376 | AB8: 0.5163199409 | AC8: 0.5204453441 | AD8: 0.5296782842 | AE8: 0.5400798176 | AF8: =IF(Y8<0.9,0.9,Y8*-3.6846+4.1276) -> 0.9 | AG8: =IF(Z8<0.9,0.9,Z8*-3.6846+4.1276) -> 0.9 | AH8: 0.9 | AI8: 0.9 | AJ8: 0.9 | AK8: 0.9 | AL8: 0.9 | AM8: =Y8*C8+($A$4-80)*AF8*$A$8/1000 -> 11.07479428 | AN8: =Z8*E8+($A$4-80)*AG8*$A$8/1000 -> 10.68939678 | AO8: =AA8*G8+($A$4-80)*AH8*$A$8/1000 -> 10.30414893 | AP8: =AB8*I8+($A$4-80)*AI8*$A$8/1000 -> 10.11379649 | AQ8: =AC8*K8+($A$4-80)*AJ8*$A$8/1000 -> 9.91907597 | AR8: =AD8*M8+($A$4-80)*AK8*$A$8/1000 -> 9.534209115 | AS8: =AE8*O8+($A$4-80)*AL8*$A$8/1000 -> 9.097601205
B9: 67 | C9: 20.69518717 | D9: 13.99424622 | E9: 19.63636364 | F9: =IF(AN9>E9,E9,AN9) -> 13.58172985 | G9: 18.57754011 | H9: =IF(AO9>G9,G9,AO9) -> 13.16953603 | I9: 18.04812834 | J9: =IF(AP9>I9,I9,AP9) -> 12.96874894 | K9: =V9*$K$13 -> 17.51871658 | L9: =IF(AQ9>K9,K9,AQ9) -> 12.75772388 | M9: 16.45989305 | N9: =IF(AR9>M9,M9,AR9) -> 12.34636787 | O9: 15.30481283 | P9: =IF(AS9>O9,O9,AS9) -> 11.86096592 | R9: 1.14973262 | S9: 1.090909091 | T9: 1.032085561 | U9: 1.002673797 | V9: 0.9732620321 | W9: 0.9144385027 | X9: 0.8502673797 | Y9: 0.6762077632 | Z9: 0.6916621681 | AA9: 0.7088955782 | AB9: 0.7185647559 | AC9: 0.7282339336 | AD9: 0.7500879765 | AE9: 0.7749827489 | AF9: =IF(Y9<0.9,0.9,Y9*-3.6846+4.1276) -> 0.9 | AG9: 0.9 | AH9: 0.9 | AI9: 0.9 | AJ9: 0.9 | AK9: 0.9 | AL9: 0.9 | AM9: =Y9*C9+($A$4-80)*AF9*$A$8/1000 -> 13.99424622 | AN9: =Z9*E9+($A$4-80)*AG9*$A$8/1000 -> 13.58172985 | AO9: =AA9*G9+($A$4-80)*AH9*$A$8/1000 -> 13.16953603 | AP9: =AB9*I9+($A$4-80)*AI9*$A$8/1000 -> 12.96874894 | AQ9: =AC9*K9+($A$4-80)*AJ9*$A$8/1000 -> 12.75772388 | AR9: =AD9*M9+($A$4-80)*AK9*$A$8/1000 -> 12.34636787 | AS9: =AE9*O9+($A$4-80)*AL9*$A$8/1000 -> 11.86096592
B10: 62 | C10: 18.96256684 | D10: 16.32938541 | E10: 18 | F10: 15.88025682 | G10: 17.03743316 | H10: 15.43093656 | I10: 16.55614973 | J10: 15.2124847 | K10: =V10*$K$13 -> 16.07486631 | L10: 14.98139037 | M10: 15.11229947 | N10: 14.53157532 | O10: 14.14973262 | P10: 14.08143683 | R10: 1.053475936 | S10: 1 | T10: 0.9465240642 | U10: 0.9197860963 | V10: 0.8930481283 | W10: 0.8395721925 | X10: 0.7860962567 | Y10: 0.8611379223 | Z10: 0.8822364901 | AA10: 0.9057078271 | AB10: 0.9188419375 | AC10: 0.9319760479 | AD10: 0.9615727475 | AE10: 0.9951733515 | AF10: 0.9 | AG10: 0.9 | AH10: 0.7904289404 | AI10: 0.7420349971 | AJ10: 0.6936410539 | AK10: 0.5845890544 | AL10: 0.4607842692 | AM10: 16.32938541 | AN10: =Z10*E10+($A$4-80)*AG10*$A$8/1000 -> 15.88025682 | AO10: =AA10*G10+($A$4-80)*AH10*$A$8/1000 -> 15.43093656 | AP10: 15.2124847 | AQ10: 14.98139037 | AR10: 14.53157532 | AS10: 14.08143683
B11: 57 | C11: 18.19251337 | D11: 18.19251337 | E11: 17.42245989 | F11: 17.42245989 | G11: 16.65240642 | H11: 16.65240642 | I11: 16.26737968 | J11: 16.26737968 | K11: =V11*$K$13 -> 15.88235294 | L11: 15.88235294 | M11: 15.11229947 | N11: 15.11229947 | O11: 14.34224599 | P11: 14.34224599 | R11: 1.010695187 | S11: 0.9679144385 | T11: 0.9251336898 | U11: 0.9037433155 | V11: 0.8823529412 | W11: 0.8395721925 | X11: 0.7967914439 | Y11: 1 | Z11: 1 | AA11: 1 | AB11: 1 | AC11: 1 | AD11: 1 | AE11: 1 | AF11: 0.443 | AG11: 0.443 | AH11: 0.443 | AI11: 0.443 | AJ11: 0.443 | AK11: 0.443 | AL11: 0.443 | AM11: 18.19251337 | AN11: =Z11*E11+($A$4-80)*AG11*$A$8/1000 -> 17.42245989 | AO11: =AA11*G11+($A$4-80)*AH11*$A$8/1000 -> 16.65240642 | AP11: =AB11*I11+($A$4-80)*AI11*$A$8/1000 -> 16.26737968 | AQ11: 15.88235294 | AR11: 15.11229947 | AS11: 14.34224599
A12: 650 | B12: 72 | C12: 23.00534759 | D12: 12.21489652 | E12: 21.85026738 | F12: 11.83608282 | G12: 20.69518717 | H12: 11.45708035 | I12: 20.11764706 | J12: 11.27131405 | K12: =V12*$K$13 -> 19.54010695 | L12: 11.07785591 | M12: 18.38502674 | N12: 10.69836802 | O12: 17.22994652 | P12: 10.31856417 | R12: 1.278074866 | S12: 1.213903743 | T12: 1.14973262 | U12: 1.117647059 | V12: 1.085561497 | W12: 1.021390374 | X12: 0.9572192513 | Y12: 0.5309590073 | Z12: 0.5416905255 | AA12: 0.5536108593 | AB12: 0.5602699966 | AC12: 0.5669291339 | AD12: 0.5819065792 | AE12: 0.5988738362 | AF12: 0.9 | AG12: 0.9 | AH12: 0.9 | AI12: 0.9 | AJ12: 0.9 | AK12: 0.9 | AL12: 0.9 | AM12: =Y12*C12+($A$4-80)*AF12*$A$12/1000 -> 12.21489652 | AN12: =Z12*E12+($A$4-80)*AG12*$A$12/1000 -> 11.83608282 | AO12: =AA12*G12+($A$4-80)*AH12*$A$12/1000 -> 11.45708035 | AP12: =AB12*I12+($A$4-80)*AI12*$A$12/1000 -> 11.27131405 | AQ12: =AC12*K12+($A$4-80)*AJ12*$A$12/1000 -> 11.07785591 | AR12: =AD12*M12+($A$4-80)*AK12*$A$12/1000 -> 10.69836802 | AS12: =AE12*O12+($A$4-80)*AL12*$A$12/1000 -> 10.31856417
B13: 67 | C13: 21.46524064 | D13: 15.52255971 | E13: 20.31016043 | F13: 15.04149645 | G13: 19.15508021 | H13: 14.56094428 | I13: 18.57754011 | J13: 14.3273603 | K13: 18 | L13: 14.08100289 | M13: 16.84491979 | N13: 13.60179977 | O13: 15.59358289 | P13: 13.04298822 | R13: 1.192513369 | S13: 1.128342246 | T13: 1.064171123 | U13: 1.032085561 | V13: 1 | W13: 0.935828877 | X13: 0.8663101604 | Y13: 0.7231486462 | Z13: 0.7405897412 | AA13: 0.7601609658 | AB13: 0.7712194521 | AC13: 0.7822779385 | AD13: 0.807471923 | AE13: 0.8364330583 | AF13: 0.9 | AG13: 0.9 | AH13: 0.9 | AI13: 0.9 | AJ13: 0.9 | AK13: 0.9 | AL13: 0.9 | AM13: =Y13*C13+($A$4-80)*AF13*$A$12/1000 -> 15.52255971 | AN13: =Z13*E13+($A$4-80)*AG13*$A$12/1000 -> 15.04149645 | AO13: =AA13*G13+($A$4-80)*AH13*$A$12/1000 -> 14.56094428 | AP13: =AB13*I13+($A$4-80)*AI13*$A$12/1000 -> 14.3273603 | AQ13: =AC13*K13+($A$4-80)*AJ13*$A$12/1000 -> 14.08100289 | AR13: =AD13*M13+($A$4-80)*AK13*$A$12/1000 -> 13.60179977 | AS13: =AE13*O13+($A$4-80)*AL13*$A$12/1000 -> 13.04298822
B14: 62 | C14: 19.63636364 | D14: 18.69838972 | E14: 18.77005348 | F14: 18.14441711 | G14: 17.90374332 | H14: 17.59074923 | I14: 17.47058824 | J14: 17.31787741 | K14: =V14*$K$13 -> 17.03743316 | L14: 17.03743316 | M14: 16.17112299 | N14: 16.17112299 | O14: 15.30481283 | P14: 15.30481283 | R14: 1.090909091 | S14: 1.042780749 | T14: 0.9946524064 | U14: 0.9705882353 | V14: 0.9465240642 | W14: 0.8983957219 | X14: 0.8502673797 | Y14: 0.9522328099 | Z14: 0.966668376 | AA14: 0.9825179527 | AB14: 0.9912589764 | AC14: 1 | AD14: 1 | AE14: 1 | AF14: 0.6190029885 | AG14: 0.5658137019 | AH14: 0.5074143514 | AI14: 0.4752071757 | AJ14: 0.443 | AK14: 0.443 | AL14: 0.443 | AM14: 18.69838972 | AN14: =Z14*E14+($A$4-80)*AG14*$A$12/1000 -> 18.14441711 | AO14: =AA14*G14+($A$4-80)*AH14*$A$12/1000 -> 17.59074923 | AP14: 17.31787741 | AQ14: 17.03743316 | AR14: 16.17112299 | AS14: 15.30481283
B15: 57 | C15: 19.63636364 | D15: 19.63636364 | E15: 18.77005348 | F15: 18.77005348 | G15: 17.90374332 | H15: 17.90374332 | I15: 17.47058824 | J15: 17.47058824 | K15: 17.03743316 | L15: 17.03743316 | M15: 16.07486631 | N15: 16.07486631 | O15: 15.20855615 | P15: 15.20855615 | R15: 1.090909091 | S15: 1.042780749 | T15: 0.9946524064 | U15: 0.9705882353 | V15: 0.9465240642 | W15: 0.8930481283 | X15: 0.8449197861 | Y15: 1 | Z15: 1 | AA15: 1 | AB15: 1 | AC15: 1 | AD15: 1 | AE15: 1 | AF15: 0.443 | AG15: 0.443 | AH15: 0.443 | AI15: 0.443 | AJ15: 0.443 | AK15: 0.443 | AL15: 0.443 | AM15: 19.63636364 | AN15: =Z15*E15+($A$4-80)*AG15*$A$12/1000 -> 18.77005348 | AO15: =AA15*G15+($A$4-80)*AH15*$A$12/1000 -> 17.90374332 | AP15: 17.47058824 | AQ15: 17.03743316 | AR15: 16.07486631 | AS15: 15.20855615
A16: 800 | B16: 72 | C16: 23.39037433 | D16: 13.38342717 | E16: 22.23529412 | F16: 13.02761292 | G16: 21.0802139 | H16: 12.67300858 | I16: 20.45454545 | J16: 12.47202036 | K16: 19.82887701 | L16: 12.260317 | M16: 18.67379679 | N16: 11.90698541 | O16: 17.42245989 | P16: 11.4919618 | R16: 1.299465241 | S16: 1.235294118 | T16: 1.171122995 | U16: 1.136363636 | V16: 1.101604278 | W16: 1.037433155 | X16: 0.9679144385 | Y16: 0.5721766989 | Z16: 0.5858979353 | AA16: 0.6011802649 | AB16: 0.6097432174 | AC16: 0.61830617 | AD16: 0.637630662 | AE16: 0.6596061559 | AF16: 0.9 | AG16: 0.9 | AH16: 0.9 | AI16: 0.9 | AJ16: 0.9 | AK16: 0.9 | AL16: 0.9 | AM16: =Y16*C16+($A$4-80)*AF16*$A$16/1000 -> 13.38342717 | AN16: =Z16*E16+($A$4-80)*AG16*$A$16/1000 -> 13.02761292 | AO16: =AA16*G16+($A$4-80)*AH16*$A$16/1000 -> 12.67300858 | AP16: =AB16*I16+($A$4-80)*AI16*$A$16/1000 -> 12.47202036 | AQ16: =AC16*K16+($A$4-80)*AJ16*$A$16/1000 -> 12.260317 | AR16: =AD16*M16+($A$4-80)*AK16*$A$16/1000 -> 11.90698541 | AS16: =AE16*O16+($A$4-80)*AL16*$A$16/1000 -> 11.4919618
B17: 67 | C17: 21.85026738 | D17: 17.12565133 | E17: 20.69518717 | F17: 16.62572472 | G17: 19.44385027 | H17: 16.04822866 | I17: 18.86631016 | J17: 15.80631627 | K17: 18.28877005 | L17: 15.55003035 | M17: 17.03743316 | N17: 14.9696413 | O17: 15.88235294 | P17: 14.47360538 | R17: 1.213903743 | S17: 1.14973262 | T17: 1.080213904 | U17: 1.048128342 | V17: 1.016042781 | W17: 0.9465240642 | X17: 0.8823529412 | Y17: 0.7837730784 | Z17: 0.8033618923 | AA17: 0.8253626949 | AB17: 0.8378064462 | AC17: 0.8502501975 | AD17: 0.8786324305 | AE17: 0.9113010792 | AF17: 0.9 | AG17: 0.9 | AH17: 0.9 | AI17: 0.9 | AJ17: 0.9 | AK17: 0.9 | AL17: 0.7698200437 | AM17: =Y17*C17+($A$4-80)*AF17*$A$16/1000 -> 17.12565133 | AN17: =Z17*E17+($A$4-80)*AG17*$A$16/1000 -> 16.62572472 | AO17: =AA17*G17+($A$4-80)*AH17*$A$16/1000 -> 16.04822866 | AP17: =AB17*I17+($A$4-80)*AI17*$A$16/1000 -> 15.80631627 | AQ17: =AC17*K17+($A$4-80)*AJ17*$A$16/1000 -> 15.55003035 | AR17: =AD17*M17+($A$4-80)*AK17*$A$16/1000 -> 14.9696413 | AS17: =AE17*O17+($A$4-80)*AL17*$A$16/1000 -> 14.47360538
B18: 62 | C18: 20.69518717 | D18: 20.69518717 | E18: 19.73262032 | F18: 19.73262032 | G18: 18.77005348 | H18: 18.77005348 | I18: 18.28877005 | J18: 18.28877005 | K18: 17.80748663 | L18: 17.80748663 | M18: 16.84491979 | N18: 16.84491979 | O18: 15.78609626 | P18: 15.78609626 | R18: 1.14973262 | S18: 1.096256684 | T18: 1.042780749 | U18: 1.016042781 | V18: 0.9893048128 | W18: 0.935828877 | X18: 0.8770053476 | Y18: 1 | Z18: 1 | AA18: 1 | AB18: 1 | AC18: 1 | AD18: 1 | AE18: 1 | AF18: 0.443 | AG18: 0.443 | AH18: 0.443 | AI18: 0.443 | AJ18: 0.443 | AK18: 0.443 | AL18: 0.443 | AM18: 20.69518717 | AN18: =Z18*E18+($A$4-80)*AG18*$A$16/1000 -> 19.73262032 | AO18: =AA18*G18+($A$4-80)*AH18*$A$16/1000 -> 18.77005348 | AP18: 18.28877005 | AQ18: 17.80748663 | AR18: 16.84491979 | AS18: 15.78609626
B19: 57 | C19: 20.69518717 | D19: 20.69518717 | E19: 19.73262032 | F19: 19.73262032 | G19: 18.77005348 | H19: 18.77005348 | I19: 18.24064171 | J19: 18.24064171 | K19: 17.71122995 | L19: 17.71122995 | M19: 16.7486631 | N19: 16.7486631 | O19: 15.78609626 | P19: 15.78609626 | R19: 1.14973262 | S19: 1.096256684 | T19: 1.042780749 | U19: 1.013368984 | V19: 0.9839572193 | W19: 0.9304812834 | X19: 0.8770053476 | Y19: 1 | Z19: 1 | AA19: 1 | AB19: 1 | AC19: 1 | AD19: 1 | AE19: 1 | AF19: 0.443 | AG19: 0.443 | AH19: 0.443 | AI19: 0.443 | AJ19: 0.443 | AK19: 0.443 | AL19: 0.443 | AM19: 20.69518717 | AN19: =Z19*E19+($A$4-80)*AG19*$A$16/1000 -> 19.73262032 | AO19: =AA19*G19+($A$4-80)*AH19*$A$16/1000 -> 18.77005348 | AP19: 18.24064171 | AQ19: 17.71122995 | AR19: 16.7486631 | AS19: 15.78609626

Sheet 4AC13L_24 (hidden)
A2: 4AC13L_24
A3: Evaporator Air | C3: Condenser Entering Air Temperature ˚F
A4: 80 | B4: °F DB | C4: 65 | E4: 75 | G4: 85 | I4: 90 | K4: 95 | M4: 105 | O4: 115
A5: CFM | B5: EWB† ˚F | C5: Capacity Mbtuh | E5: Capacity Mbtuh | G5: Capacity Mbtuh | I5: Capacity Mbtuh | K5: Capacity Mbtuh | M5: Capacity Mbtuh | O5: Capacity Mbtuh
C6: Total | D6: Sens. | E6: Total | F6: Sens. | G6: Total | H6: Sens. | I6: Total | J6: Sens. | K6: Total | L6: Sens. | M6: Total | N6: Sens. | O6: Total | P6: Sens.
R7: Total Factors | Y7: Sens. % | AF7: IDB Adj | AM7: Sens Calc
A8: 600 | B8: 72 | C8: =R8*$K$13 -> 22.04237288 | D8: =IF(AM8>C8,C8,AM8) -> 10.88504248 | E8: =S8*$K$13 -> 20.97457627 | F8: =IF(AN8>E8,E8,AN8) -> 10.49682724 | G8: =T8*$K$13 -> 19.83050847 | H8: =IF(AO8>G8,G8,AO8) -> 10.07048066 | I8: =U8*$K$13 -> 19.29661017 | J8: =IF(AP8>I8,I8,AP8) -> 9.878914592 | K8: =V8*$K$13 -> 18.76271186 | L8: =IF(AQ8>K8,K8,AQ8) -> 9.682945872 | M8: =W8*$K$13 -> 17.61864407 | N8: =IF(AR8>M8,M8,AR8) -> 9.256104052 | O8: =X8*$K$13 -> 16.55084746 | P8: =IF(AS8>O8,O8,AS8) -> 8.869445051 | R8: 1.224576271 | S8: 1.165254237 | T8: 1.101694915 | U8: 1.072033898 | V8: 1.042372881 | W8: 0.9788135593 | X8: 0.9194915254 | Y8: 0.4938235345 | Z8: 0.5004547935 | AA8: 0.5078276571 | AB8: 0.5119507782 | AC8: 0.5160738992 | AD8: 0.5253584791 | AE8: 0.5358906892 | AF8: =IF(Y8<0.9,0.9,Y8*-3.6846+4.1276) -> 0.9 | AG8: =IF(Z8<0.9,0.9,Z8*-3.6846+4.1276) -> 0.9 | AH8: 0.9 | AI8: 0.9 | AJ8: 0.9 | AK8: 0.9 | AL8: 0.9 | AM8: =Y8*C8+($A$4-80)*AF8*$A$8/1000 -> 10.88504248 | AN8: =Z8*E8+($A$4-80)*AG8*$A$8/1000 -> 10.49682724 | AO8: =AA8*G8+($A$4-80)*AH8*$A$8/1000 -> 10.07048066 | AP8: =AB8*I8+($A$4-80)*AI8*$A$8/1000 -> 9.878914592 | AQ8: =AC8*K8+($A$4-80)*AJ8*$A$8/1000 -> 9.682945872 | AR8: =AD8*M8+($A$4-80)*AK8*$A$8/1000 -> 9.256104052 | AS8: =AE8*O8+($A$4-80)*AL8*$A$8/1000 -> 8.869445051
B9: 67 | C9: 20.44067797 | D9: 13.70396856 | E9: 19.37288136 | F9: =IF(AN9>E9,E9,AN9) -> 13.23474246 | G9: 18.30508475 | H9: =IF(AO9>G9,G9,AO9) -> 12.76486202 | I9: 17.80932203 | J9: =IF(AP9>I9,I9,AP9) -> 12.56067469 | K9: =V9*$K$13 -> 17.31355932 | L9: =IF(AQ9>K9,K9,AQ9) -> 12.34860788 | M9: 16.24576271 | N9: =IF(AR9>M9,M9,AR9) -> 11.87840078 | O9: 15.1779661 | P9: =IF(AS9>O9,O9,AS9) -> 11.40726986 | R9: 1.13559322 | S9: 1.076271186 | T9: 1.016949153 | U9: 0.9894067797 | V9: 0.9618644068 | W9: 0.9025423729 | X9: 0.843220339 | Y9: 0.6704263226 | Z9: 0.6831581848 | AA9: 0.6973396843 | AB9: 0.7052865161 | AC9: 0.713233348 | AD9: 0.7311691665 | AE9: 0.751567752 | AF9: =IF(Y9<0.9,0.9,Y9*-3.6846+4.1276) -> 0.9 | AG9: 0.9 | AH9: 0.9 | AI9: 0.9 | AJ9: 0.9 | AK9: 0.9 | AL9: 0.9 | AM9: =Y9*C9+($A$4-80)*AF9*$A$8/1000 -> 13.70396856 | AN9: =Z9*E9+($A$4-80)*AG9*$A$8/1000 -> 13.23474246 | AO9: =AA9*G9+($A$4-80)*AH9*$A$8/1000 -> 12.76486202 | AP9: =AB9*I9+($A$4-80)*AI9*$A$8/1000 -> 12.56067469 | AQ9: =AC9*K9+($A$4-80)*AJ9*$A$8/1000 -> 12.34860788 | AR9: =AD9*M9+($A$4-80)*AK9*$A$8/1000 -> 11.87840078 | AS9: =AE9*O9+($A$4-80)*AL9*$A$8/1000 -> 11.40726986
B10: 62 | C10: 18.76271186 | D10: 16.35766709 | E10: 17.77118644 | F10: 15.85355852 | G10: 16.8559322 | H10: 15.41640709 | I10: 16.39830508 | J10: 15.20385156 | K10: =V10*$K$13 -> 15.94067797 | L10: 14.97979894 | M10: 15.02542373 | N10: 14.54383474 | O10: 14.11016949 | P10: 14.10864167 | R10: 1.042372881 | S10: 0.9872881356 | T10: 0.936440678 | U10: 0.9110169492 | V10: 0.8855932203 | W10: 0.8347457627 | X10: 0.7838983051 | Y10: 0.8718178486 | Z10: 0.8920934219 | AA10: 0.9145983091 | AB10: 0.9271599401 | AC10: 0.9397215711 | AD10: 0.9679483923 | AE10: 0.9998917222 | AF10: 0.9 | AG10: 0.9 | AH10: 0.7576710701 | AI10: 0.7113864847 | AJ10: 0.6651018992 | AK10: 0.5610973536 | AL10: 0.4433989605 | AM10: 16.35766709 | AN10: =Z10*E10+($A$4-80)*AG10*$A$8/1000 -> 15.85355852 | AO10: =AA10*G10+($A$4-80)*AH10*$A$8/1000 -> 15.41640709 | AP10: 15.20385156 | AQ10: 14.97979894 | AR10: 14.54383474 | AS10: 14.10864167
B11: 57 | C11: 18.15254237 | D11: 18.15254237 | E11: 17.38983051 | F11: 17.38983051 | G11: 16.62711864 | H11: 16.62711864 | I11: 16.24576271 | J11: 16.24576271 | K11: =V11*$K$13 -> 15.86440678 | L11: 15.86440678 | M11: 15.1779661 | N11: 15.1779661 | O11: 14.41525424 | P11: 14.41525424 | R11: 1.008474576 | S11: 0.9661016949 | T11: 0.9237288136 | U11: 0.9025423729 | V11: 0.8813559322 | W11: 0.843220339 | X11: 0.8008474576 | Y11: 1 | Z11: 1 | AA11: 1 | AB11: 1 | AC11: 1 | AD11: 1 | AE11: 1 | AF11: 0.443 | AG11: 0.443 | AH11: 0.443 | AI11: 0.443 | AJ11: 0.443 | AK11: 0.443 | AL11: 0.443 | AM11: 18.15254237 | AN11: =Z11*E11+($A$4-80)*AG11*$A$8/1000 -> 17.38983051 | AO11: =AA11*G11+($A$4-80)*AH11*$A$8/1000 -> 16.62711864 | AP11: =AB11*I11+($A$4-80)*AI11*$A$8/1000 -> 16.24576271 | AQ11: 15.86440678 | AR11: 15.1779661 | AS11: 14.41525424
A12: 800 | B12: 72 | C12: 23.03389831 | D12: 12.23105725 | E12: 21.81355932 | F12: 11.77413015 | G12: 20.59322034 | H12: 11.31729769 | I12: 19.98305085 | J12: 11.09230682 | K12: =V12*$K$13 -> 19.37288136 | L12: 10.86057785 | M12: 18.15254237 | N12: 10.40399345 | O12: 16.93220339 | P12: 9.947573937 | R12: 1.279661017 | S12: 1.211864407 | T12: 1.144067797 | U12: 1.110169492 | V12: 1.076271186 | W12: 1.008474576 | X12: 0.9406779661 | Y12: 0.5310024855 | Z12: 0.5397619881 | AA12: 0.54956425 | AB12: 0.5550857527 | AC12: 0.5606072555 | AD12: 0.5731424963 | AE12: 0.5874943567 | AF12: 0.9 | AG12: 0.9 | AH12: 0.9 | AI12: 0.9 | AJ12: 0.9 | AK12: 0.9 | AL12: 0.9 | AM12: =Y12*C12+($A$4-80)*AF12*$A$12/1000 -> 12.23105725 | AN12: =Z12*E12+($A$4-80)*AG12*$A$12/1000 -> 11.77413015 | AO12: =AA12*G12+($A$4-80)*AH12*$A$12/1000 -> 11.31729769 | AP12: =AB12*I12+($A$4-80)*AI12*$A$12/1000 -> 11.09230682 | AQ12: =AC12*K12+($A$4-80)*AJ12*$A$12/1000 -> 10.86057785 | AR12: =AD12*M12+($A$4-80)*AK12*$A$12/1000 -> 10.40399345 | AS12: =AE12*O12+($A$4-80)*AL12*$A$12/1000 -> 9.947573937
B13: 67 | C13: 21.3559322 | D13: 15.79573346 | E13: 20.21186441 | F13: 15.34048987 | G13: 19.1440678 | H13: 14.94428278 | I13: 18.5720339 | J13: 14.72400948 | K13: 18 | L13: 14.48979765 | M13: 16.8559322 | N13: 14.03484451 | O13: 15.71186441 | P13: 13.57932203 | R13: 1.186440678 | S13: 1.122881356 | T13: 1.063559322 | U13: 1.031779661 | V13: 1 | W13: 0.936440678 | X13: 0.8728813559 | Y13: 0.7396414876 | Z13: 0.7589844044 | AA13: 0.7806221194 | AB13: 0.7928054388 | AC13: 0.8049887583 | AD13: 0.8326353202 | AE13: 0.8642718447 | AF13: 0.9 | AG13: 0.9 | AH13: 0.9 | AI13: 0.9 | AJ13: 0.9 | AK13: 0.9 | AL13: 0.9 | AM13: =Y13*C13+($A$4-80)*AF13*$A$12/1000 -> 15.79573346 | AN13: =Z13*E13+($A$4-80)*AG13*$A$12/1000 -> 15.34048987 | AO13: =AA13*G13+($A$4-80)*AH13*$A$12/1000 -> 14.94428278 | AP13: =AB13*I13+($A$4-80)*AI13*$A$12/1000 -> 14.72400948 | AQ13: =AC13*K13+($A$4-80)*AJ13*$A$12/1000 -> 14.48979765 | AR13: =AD13*M13+($A$4-80)*AK13*$A$12/1000 -> 14.03484451 | AS13: =AE13*O13+($A$4-80)*AL13*$A$12/1000 -> 13.57932203
B14: 62 | C14: 19.52542373 | D14: 19.15894983 | E14: 18.76271186 | F14: 18.51850509 | G14: 18 | H14: 17.87795576 | I14: 17.61864407 | J14: 17.55891479 | K14: =V14*$K$13 -> 17.23728814 | L14: 17.23728814 | M14: 16.47457627 | N14: 16.47457627 | O14: 15.71186441 | P14: 15.71186441 | R14: 1.084745763 | S14: 1.042372881 | T14: 1 | U14: 0.9788135593 | V14: 0.9576271186 | W14: 0.9152542373 | X14: 0.8728813559 | Y14: 0.9812309377 | Z14: 0.9869844627 | AA14: 0.9932197644 | AB14: 0.9966098822 | AC14: 1 | AD14: 1 | AE14: 1 | AF14: 0.5121564871 | AG14: 0.4909570487 | AH14: 0.4679824561 | AI14: 0.4554912281 | AJ14: 0.443 | AK14: 0.443 | AL14: 0.443 | AM14: 19.15894983 | AN14: =Z14*E14+($A$4-80)*AG14*$A$12/1000 -> 18.51850509 | AO14: =AA14*G14+($A$4-80)*AH14*$A$12/1000 -> 17.87795576 | AP14: 17.55891479 | AQ14: 17.23728814 | AR14: 16.47457627 | AS14: 15.71186441
B15: 57 | C15: 19.83050847 | D15: 19.83050847 | E15: 18.99152542 | F15: 18.99152542 | G15: 18.07627119 | H15: 18.07627119 | I15: 17.65677966 | J15: 17.65677966 | K15: 17.23728814 | L15: 17.23728814 | M15: 16.3220339 | N15: 16.3220339 | O15: 15.48305085 | P15: 15.48305085 | R15: 1.101694915 | S15: 1.055084746 | T15: 1.004237288 | U15: 0.9809322034 | V15: 0.9576271186 | W15: 0.906779661 | X15: 0.8601694915 | Y15: 1 | Z15: 1 | AA15: 1 | AB15: 1 | AC15: 1 | AD15: 1 | AE15: 1 | AF15: 0.443 | AG15: 0.443 | AH15: 0.443 | AI15: 0.443 | AJ15: 0.443 | AK15: 0.443 | AL15: 0.443 | AM15: 19.83050847 | AN15: =Z15*E15+($A$4-80)*AG15*$A$12/1000 -> 18.99152542 | AO15: =AA15*G15+($A$4-80)*AH15*$A$12/1000 -> 18.07627119 | AP15: 17.65677966 | AQ15: 17.23728814 | AR15: 16.3220339 | AS15: 15.48305085
A16: 1000 | B16: 72 | C16: 23.49152542 | D16: 13.4650133 | E16: 22.19491525 | F16: 12.9862002 | G16: 20.97457627 | H16: 12.55165189 | I16: 20.36440678 | J16: 12.33928036 | K16: 19.75423729 | L16: 12.11775423 | M16: 18.45762712 | N16: 11.63655356 | O16: 17.23728814 | P16: 11.20290343 | R16: 1.305084746 | S16: 1.233050847 | T16: 1.165254237 | U16: 1.131355932 | V16: 1.097457627 | W16: 1.025423729 | X16: 0.9576271186 | Y16: 0.5731859917 | Z16: 0.5850979854 | AA16: 0.5984221911 | AB16: 0.6059238796 | AC16: 0.6134255681 | AD16: 0.6304468871 | AE16: 0.6499226177 | AF16: 0.9 | AG16: 0.9 | AH16: 0.9 | AI16: 0.9 | AJ16: 0.9 | AK16: 0.9 | AL16: 0.9 | AM16: =Y16*C16+($A$4-80)*AF16*$A$16/1000 -> 13.4650133 | AN16: =Z16*E16+($A$4-80)*AG16*$A$16/1000 -> 12.9862002 | AO16: =AA16*G16+($A$4-80)*AH16*$A$16/1000 -> 12.55165189 | AP16: =AB16*I16+($A$4-80)*AI16*$A$16/1000 -> 12.33928036 | AQ16: =AC16*K16+($A$4-80)*AJ16*$A$16/1000 -> 12.11775423 | AR16: =AD16*M16+($A$4-80)*AK16*$A$16/1000 -> 11.63655356 | AS16: =AE16*O16+($A$4-80)*AL16*$A$16/1000 -> 11.20290343
B17: 67 | C17: 22.19491525 | D17: 18.9564311 | E17: 20.89830508 | F17: 18.00284881 | G17: 19.60169492 | H17: 17.04942074 | I17: 18.91525424 | J17: 16.54253929 | K17: 18.22881356 | L17: 16.02911253 | M17: 16.93220339 | N17: 15.07526307 | O17: 15.63559322 | P17: 14.12156185 | R17: 1.233050847 | S17: 1.161016949 | T17: 1.088983051 | U17: 1.050847458 | V17: 1.012711864 | W17: 0.9406779661 | X17: 0.8686440678 | Y17: 0.8540889156 | Z17: 0.8614501864 | AA17: 0.8697931895 | AB17: 0.8745607692 | AC17: 0.8793283489 | AD17: 0.8903308518 | AE17: 0.9031676413 | AF17: 0.9 | AG17: 0.9 | AH17: 0.9 | AI17: 0.9 | AJ17: 0.9 | AK17: 0.9 | AL17: 0.7997885088 | AM17: =Y17*C17+($A$4-80)*AF17*$A$16/1000 -> 18.9564311 | AN17: =Z17*E17+($A$4-80)*AG17*$A$16/1000 -> 18.00284881 | AO17: =AA17*G17+($A$4-80)*AH17*$A$16/1000 -> 17.04942074 | AP17: =AB17*I17+($A$4-80)*AI17*$A$16/1000 -> 16.54253929 | AQ17: =AC17*K17+($A$4-80)*AJ17*$A$16/1000 -> 16.02911253 | AR17: =AD17*M17+($A$4-80)*AK17*$A$16/1000 -> 15.07526307 | AS17: =AE17*O17+($A$4-80)*AL17*$A$16/1000 -> 14.12156185
B18: 62 | C18: 21.05084746 | D18: 21.05084746 | E18: 20.05932203 | F18: 20.05932203 | G18: 19.06779661 | H18: 19.06779661 | I18: 18.5720339 | J18: 18.5720339 | K18: 18.07627119 | L18: 18.07627119 | M18: 17.08474576 | N18: 17.08474576 | O18: 16.16949153 | P18: 16.16949153 | R18: 1.169491525 | S18: 1.11440678 | T18: 1.059322034 | U18: 1.031779661 | V18: 1.004237288 | W18: 0.9491525424 | X18: 0.8983050847 | Y18: 1 | Z18: 1 | AA18: 1 | AB18: 1 | AC18: 1 | AD18: 1 | AE18: 1 | AF18: 0.443 | AG18: 0.443 | AH18: 0.443 | AI18: 0.443 | AJ18: 0.443 | AK18: 0.443 | AL18: 0.443 | AM18: 21.05084746 | AN18: =Z18*E18+($A$4-80)*AG18*$A$16/1000 -> 20.05932203 | AO18: =AA18*G18+($A$4-80)*AH18*$A$16/1000 -> 19.06779661 | AP18: 18.5720339 | AQ18: 18.07627119 | AR18: 17.08474576 | AS18: 16.16949153
B19: 57 | C19: 20.97457627 | D19: 20.97457627 | E19: 19.98305085 | F19: 19.98305085 | G19: 19.06779661 | H19: 19.06779661 | I19: 18.5720339 | J19: 18.5720339 | K19: 18.07627119 | L19: 18.07627119 | M19: 17.08474576 | N19: 17.08474576 | O19: 16.09322034 | P19: 16.09322034 | R19: 1.165254237 | S19: 1.110169492 | T19: 1.059322034 | U19: 1.031779661 | V19: 1.004237288 | W19: 0.9491525424 | X19: 0.8940677966 | Y19: 1 | Z19: 1 | AA19: 1 | AB19: 1 | AC19: 1 | AD19: 1 | AE19: 1 | AF19: 0.443 | AG19: 0.443 | AH19: 0.443 | AI19: 0.443 | AJ19: 0.443 | AK19: 0.443 | AL19: 0.443 | AM19: 20.97457627 | AN19: =Z19*E19+($A$4-80)*AG19*$A$16/1000 -> 19.98305085 | AO19: =AA19*G19+($A$4-80)*AH19*$A$16/1000 -> 19.06779661 | AP19: 18.5720339 | AQ19: 18.07627119 | AR19: 17.08474576 | AS19: 16.09322034

Sheet 4AC13L_30 (hidden)
A2: 4AC13L_30
A3: Evaporator Air | C3: Condenser Entering Air Temperature ˚F
A4: 80 | B4: °F DB | C4: 65 | E4: 75 | G4: 85 | I4: 90 | K4: 95 | M4: 105 | O4: 115
A5: CFM | B5: EWB† ˚F | C5: Capacity Mbtuh | E5: Capacity Mbtuh | G5: Capacity Mbtuh | I5: Capacity Mbtuh | K5: Capacity Mbtuh | M5: Capacity Mbtuh | O5: Capacity Mbtuh
C6: Total | D6: Sens. | E6: Total | F6: Sens. | G6: Total | H6: Sens. | I6: Total | J6: Sens. | K6: Total | L6: Sens. | M6: Total | N6: Sens. | O6: Total | P6: Sens.
R7: Total Factors | Y7: Sens. % | AF7: IDB Adj | AM7: Sens Calc
A8: 800 | B8: 72 | C8: =R8*$K$13 -> 22.22149837 | D8: =IF(AM8>C8,C8,AM8) -> 10.97162685 | E8: =S8*$K$13 -> 21.16612378 | F8: =IF(AN8>E8,E8,AN8) -> 10.5901024 | G8: =T8*$K$13 -> 20.05211726 | H8: =IF(AO8>G8,G8,AO8) -> 10.17930493 | I8: =U8*$K$13 -> 19.52442997 | J8: =IF(AP8>I8,I8,AP8) -> 9.990987378 | K8: =V8*$K$13 -> 18.99674267 | L8: =IF(AQ8>K8,K8,AQ8) -> 9.798369342 | M8: =W8*$K$13 -> 17.88273616 | N8: =IF(AR8>M8,M8,AR8) -> 9.387278464 | O8: =X8*$K$13 -> 16.76872964 | P8: =IF(AS8>O8,O8,AS8) -> 8.975720161 | R8: 1.234527687 | S8: 1.175895765 | T8: 1.114006515 | U8: 1.084690554 | V8: 1.055374593 | W8: 0.993485342 | X8: 0.9315960912 | Y8: 0.4937392909 | Z8: 0.5003326311 | AA8: 0.5076424 | AB8: 0.5117172381 | AC8: 0.5157920761 | AD8: 0.5249352438 | AE8: 0.5352653631 | AF8: =IF(Y8<0.9,0.9,Y8*-3.6846+4.1276) -> 0.9 | AG8: =IF(Z8<0.9,0.9,Z8*-3.6846+4.1276) -> 0.9 | AH8: 0.9 | AI8: 0.9 | AJ8: 0.9 | AK8: 0.9 | AL8: 0.9 | AM8: =Y8*C8+($A$4-80)*AF8*$A$8/1000 -> 10.97162685 | AN8: =Z8*E8+($A$4-80)*AG8*$A$8/1000 -> 10.5901024 | AO8: =AA8*G8+($A$4-80)*AH8*$A$8/1000 -> 10.17930493 | AP8: =AB8*I8+($A$4-80)*AI8*$A$8/1000 -> 9.990987378 | AQ8: =AC8*K8+($A$4-80)*AJ8*$A$8/1000 -> 9.798369342 | AR8: =AD8*M8+($A$4-80)*AK8*$A$8/1000 -> 9.387278464 | AS8: =AE8*O8+($A$4-80)*AL8*$A$8/1000 -> 8.975720161
B9: 67 | C9: 20.52117264 | D9: 13.77936084 | E9: 19.52442997 | F9: =IF(AN9>E9,E9,AN9) -> 13.39560881 | G9: 18.5276873 | H9: =IF(AO9>G9,G9,AO9) -> 13.01196776 | I9: 18.02931596 | J9: =IF(AP9>I9,I9,AP9) -> 12.82471096 | K9: =V9*$K$13 -> 17.53094463 | L9: =IF(AQ9>K9,K9,AQ9) -> 12.62845668 | M9: 16.53420195 | N9: =IF(AR9>M9,M9,AR9) -> 12.24509918 | O9: 15.53745928 | P9: =IF(AS9>O9,O9,AS9) -> 11.86192496 | R9: 1.140065147 | S9: 1.084690554 | T9: 1.029315961 | U9: 1.001628664 | V9: 0.9739413681 | W9: 0.9185667752 | X9: 0.8631921824 | Y9: 0.6714704411 | Z9: 0.6860947457 | AA9: 0.702298541 | AB9: 0.7113254318 | AC9: 0.7203523226 | AD9: 0.7405920901 | AE9: 0.7634404537 | AF9: =IF(Y9<0.9,0.9,Y9*-3.6846+4.1276) -> 0.9 | AG9: 0.9 | AH9: 0.9 | AI9: 0.9 | AJ9: 0.9 | AK9: 0.9 | AL9: 0.9 | AM9: =Y9*C9+($A$4-80)*AF9*$A$8/1000 -> 13.77936084 | AN9: =Z9*E9+($A$4-80)*AG9*$A$8/1000 -> 13.39560881 | AO9: =AA9*G9+($A$4-80)*AH9*$A$8/1000 -> 13.01196776 | AP9: =AB9*I9+($A$4-80)*AI9*$A$8/1000 -> 12.82471096 | AQ9: =AC9*K9+($A$4-80)*AJ9*$A$8/1000 -> 12.62845668 | AR9: =AD9*M9+($A$4-80)*AK9*$A$8/1000 -> 12.24509918 | AS9: =AE9*O9+($A$4-80)*AL9*$A$8/1000 -> 11.86192496
B10: 62 | C10: 18.82084691 | D10: 16.48853665 | E10: 17.88273616 | F10: 16.06114576 | G10: 17.00325733 | H10: 15.68691776 | I10: 16.53420195 | J10: 15.47940063 | K10: =V10*$K$13 -> 16.06514658 | L10: 15.25910474 | M10: 15.12703583 | N10: 14.83019769 | O10: 14.247557 | P10: 14.247557 | R10: 1.045602606 | S10: 0.993485342 | T10: 0.9446254072 | U10: 0.9185667752 | V10: 0.8925081433 | W10: 0.8403908795 | X10: 0.7915309446 | Y10: 0.8760783581 | Z10: 0.8981369307 | AA10: 0.9225830946 | AB10: 0.9362048843 | AC10: 0.949826674 | AD10: 0.9803769788 | AE10: 1 | AF10: 0.9 | AG10: 0.9 | AH10: 0.7282503296 | AI10: 0.6780594834 | AJ10: 0.6278686371 | AK10: 0.5153029841 | AL10: 0.443 | AM10: 16.48853665 | AN10: =Z10*E10+($A$4-80)*AG10*$A$8/1000 -> 16.06114576 | AO10: =AA10*G10+($A$4-80)*AH10*$A$8/1000 -> 15.68691776 | AP10: 15.47940063 | AQ10: 15.25910474 | AR10: 14.83019769 | AS10: 14.247557
B11: 57 | C11: 18.17589577 | D11: 18.17589577 | E11: 17.41368078 | F11: 17.41368078 | G11: 16.71009772 | H11: 16.71009772 | I11: 16.32899023 | J11: 16.32899023 | K11: =V11*$K$13 -> 15.94788274 | L11: 15.94788274 | M11: 15.18566775 | N11: 15.18566775 | O11: 14.48208469 | P11: 14.48208469 | R11: 1.009771987 | S11: 0.9674267101 | T11: 0.9283387622 | U11: 0.9071661238 | V11: 0.8859934853 | W11: 0.8436482085 | X11: 0.8045602606 | Y11: 1 | Z11: 1 | AA11: 1 | AB11: 1 | AC11: 1 | AD11: 1 | AE11: 1 | AF11: 0.443 | AG11: 0.443 | AH11: 0.443 | AI11: 0.443 | AJ11: 0.443 | AK11: 0.443 | AL11: 0.443 | AM11: 18.17589577 | AN11: =Z11*E11+($A$4-80)*AG11*$A$8/1000 -> 17.41368078 | AO11: =AA11*G11+($A$4-80)*AH11*$A$8/1000 -> 16.71009772 | AP11: =AB11*I11+($A$4-80)*AI11*$A$8/1000 -> 16.32899023 | AQ11: 15.94788274 | AR11: 15.18566775 | AS11: 14.48208469
A12: 1000 | B12: 72 | C12: 22.98371336 | D12: 11.97867926 | E12: 21.81107492 | F12: 11.57892861 | G12: 20.63843648 | H12: 11.17894564 | I12: 20.08143322 | J12: 10.99841112 | K12: =V12*$K$13 -> 19.52442997 | L12: 10.81115475 | M12: 18.35179153 | N12: 10.41136925 | O12: 17.17915309 | P12: 10.01129956 | R12: 1.276872964 | S12: 1.211726384 | T12: 1.146579805 | U12: 1.115635179 | V12: 1.084690554 | W12: 1.019543974 | X12: 0.9543973941 | Y12: 0.5211811978 | Z12: 0.5308738177 | AA12: 0.541656615 | AB12: 0.5476905455 | AC12: 0.553724476 | AD12: 0.5673216827 | AE12: 0.5827586207 | AF12: 0.9 | AG12: 0.9 | AH12: 0.9 | AI12: 0.9 | AJ12: 0.9 | AK12: 0.9 | AL12: 0.9 | AM12: =Y12*C12+($A$4-80)*AF12*$A$12/1000 -> 11.97867926 | AN12: =Z12*E12+($A$4-80)*AG12*$A$12/1000 -> 11.57892861 | AO12: =AA12*G12+($A$4-80)*AH12*$A$12/1000 -> 11.17894564 | AP12: =AB12*I12+($A$4-80)*AI12*$A$12/1000 -> 10.99841112 | AQ12: =AC12*K12+($A$4-80)*AJ12*$A$12/1000 -> 10.81115475 | AR12: =AD12*M12+($A$4-80)*AK12*$A$12/1000 -> 10.41136925 | AS12: =AE12*O12+($A$4-80)*AL12*$A$12/1000 -> 10.01129956
B13: 67 | C13: 21.2247557 | D13: 15.41088809 | E13: 20.11074919 | F13: 14.99447151 | G13: 19.05537459 | H13: 14.62101658 | I13: 18.5276873 | J13: 14.44092121 | K13: 18 | L13: 14.24802111 | M13: 16.94462541 | N13: 13.87557186 | O13: 15.88925081 | P13: 13.50377891 | R13: 1.179153094 | S13: 1.117263844 | T13: 1.058631922 | U13: 1.029315961 | V13: 1 | W13: 0.9413680782 | X13: 0.8827361564 | Y13: 0.7260808232 | Z13: 0.745594874 | AA13: 0.7672909555 | AB13: 0.7794238419 | AC13: 0.7915567282 | AD13: 0.8188774627 | AE13: 0.8498688246 | AF13: 0.9 | AG13: 0.9 | AH13: 0.9 | AI13: 0.9 | AJ13: 0.9 | AK13: 0.9 | AL13: 0.9 | AM13: =Y13*C13+($A$4-80)*AF13*$A$12/1000 -> 15.41088809 | AN13: =Z13*E13+($A$4-80)*AG13*$A$12/1000 -> 14.99447151 | AO13: =AA13*G13+($A$4-80)*AH13*$A$12/1000 -> 14.62101658 | AP13: =AB13*I13+($A$4-80)*AI13*$A$12/1000 -> 14.44092121 | AQ13: =AC13*K13+($A$4-80)*AJ13*$A$12/1000 -> 14.24802111 | AR13: =AD13*M13+($A$4-80)*AK13*$A$12/1000 -> 13.87557186 | AS13: =AE13*O13+($A$4-80)*AL13*$A$12/1000 -> 13.50377891
B14: 62 | C14: 19.3485342 | D14: 18.43537831 | E14: 18.58631922 | F14: 17.97696055 | G14: 17.82410423 | H14: 17.51910507 | I14: 17.41368078 | J14: 17.2646927 | K14: =V14*$K$13 -> 17.00325733 | L14: 17.00325733 | M14: 16.24104235 | N14: 16.24104235 | O14: 15.47882736 | P14: 15.47882736 | R14: 1.074918567 | S14: 1.03257329 | T14: 0.990228013 | U14: 0.9674267101 | V14: 0.9446254072 | W14: 0.9022801303 | X14: 0.8599348534 | Y14: 0.9528049057 | Z14: 0.9672146666 | AA14: 0.9828883875 | AB14: 0.9914441937 | AC14: 1 | AD14: 1 | AE14: 1 | AF14: 0.6168950443 | AG14: 0.5638008394 | AH14: 0.5060494475 | AI14: 0.4745247237 | AJ14: 0.443 | AK14: 0.443 | AL14: 0.443 | AM14: 18.43537831 | AN14: =Z14*E14+($A$4-80)*AG14*$A$12/1000 -> 17.97696055 | AO14: =AA14*G14+($A$4-80)*AH14*$A$12/1000 -> 17.51910507 | AP14: 17.2646927 | AQ14: 17.00325733 | AR14: 16.24104235 | AS14: 15.47882736
B15: 57 | C15: 19.46579805 | D15: 19.46579805 | E15: 18.64495114 | F15: 18.64495114 | G15: 17.82410423 | H15: 17.82410423 | I15: 17.41368078 | J15: 17.41368078 | K15: 17.00325733 | L15: 17.00325733 | M15: 16.18241042 | N15: 16.18241042 | O15: 15.3029316 | P15: 15.3029316 | R15: 1.081433225 | S15: 1.035830619 | T15: 0.990228013 | U15: 0.9674267101 | V15: 0.9446254072 | W15: 0.8990228013 | X15: 0.8501628664 | Y15: 1 | Z15: 1 | AA15: 1 | AB15: 1 | AC15: 1 | AD15: 1 | AE15: 1 | AF15: 0.443 | AG15: 0.443 | AH15: 0.443 | AI15: 0.443 | AJ15: 0.443 | AK15: 0.443 | AL15: 0.443 | AM15: 19.46579805 | AN15: =Z15*E15+($A$4-80)*AG15*$A$12/1000 -> 18.64495114 | AO15: =AA15*G15+($A$4-80)*AH15*$A$12/1000 -> 17.82410423 | AP15: 17.41368078 | AQ15: 17.00325733 | AR15: 16.18241042 | AS15: 15.3029316
A16: 1200 | B16: 72 | C16: 23.45276873 | D16: 13.00255209 | E16: 22.22149837 | F16: 12.55742927 | G16: 20.99022801 | H16: 12.11229395 | I16: 20.37459283 | J16: 11.89385264 | K16: 19.75895765 | L16: 11.66714381 | M16: 18.5276873 | N16: 11.22197589 | O16: 17.29641694 | P16: 10.77678639 | R16: 1.302931596 | S16: 1.234527687 | T16: 1.166123779 | U16: 1.131921824 | V16: 1.09771987 | W16: 1.029315961 | X16: 0.9609120521 | Y16: 0.5544143739 | Z16: 0.5651027244 | AA16: 0.5770444202 | AB16: 0.5837590343 | AC16: 0.5904736483 | AD16: 0.6056868141 | AE16: 0.6230646746 | AF16: 0.9 | AG16: 0.9 | AH16: 0.9 | AI16: 0.9 | AJ16: 0.9 | AK16: 0.9 | AL16: 0.9 | AM16: =Y16*C16+($A$4-80)*AF16*$A$16/1000 -> 13.00255209 | AN16: =Z16*E16+($A$4-80)*AG16*$A$16/1000 -> 12.55742927 | AO16: =AA16*G16+($A$4-80)*AH16*$A$16/1000 -> 12.11229395 | AP16: =AB16*I16+($A$4-80)*AI16*$A$16/1000 -> 11.89385264 | AQ16: =AC16*K16+($A$4-80)*AJ16*$A$16/1000 -> 11.66714381 | AR16: =AD16*M16+($A$4-80)*AK16*$A$16/1000 -> 11.22197589 | AS16: =AE16*O16+($A$4-80)*AL16*$A$16/1000 -> 10.77678639
B17: 67 | C17: 21.69381107 | D17: 16.69968748 | E17: 20.57980456 | F17: 16.26127496 | G17: 19.40716612 | H17: 15.77590226 | I17: 18.85016287 | J17: 15.56382597 | K17: 18.29315961 | L17: 15.33752443 | M17: 17.17915309 | N17: 14.89994453 | O17: 16.06514658 | P17: 14.46333105 | R17: 1.205211726 | S17: 1.143322476 | T17: 1.078175896 | U17: 1.04723127 | V17: 1.016286645 | W17: 0.9543973941 | X17: 0.8925081433 | Y17: 0.7697903989 | Z17: 0.7901569187 | AA17: 0.812890566 | AB17: 0.8256600266 | AC17: 0.8384294872 | AD17: 0.8673270709 | AE17: 0.9002925046 | AF17: 0.9 | AG17: 0.9 | AH17: 0.9 | AI17: 0.9 | AJ17: 0.9 | AK17: 0.9 | AL17: 0.8103822377 | AM17: =Y17*C17+($A$4-80)*AF17*$A$16/1000 -> 16.69968748 | AN17: =Z17*E17+($A$4-80)*AG17*$A$16/1000 -> 16.26127496 | AO17: =AA17*G17+($A$4-80)*AH17*$A$16/1000 -> 15.77590226 | AP17: =AB17*I17+($A$4-80)*AI17*$A$16/1000 -> 15.56382597 | AQ17: =AC17*K17+($A$4-80)*AJ17*$A$16/1000 -> 15.33752443 | AR17: =AD17*M17+($A$4-80)*AK17*$A$16/1000 -> 14.89994453 | AS17: =AE17*O17+($A$4-80)*AL17*$A$16/1000 -> 14.46333105
B18: 62 | C18: 20.46254072 | D18: 20.46254072 | E18: 19.58306189 | F18: 19.58306189 | G18: 18.64495114 | H18: 18.64495114 | I18: 18.20521173 | J18: 18.20521173 | K18: 17.76547231 | L18: 17.76547231 | M18: 16.88599349 | N18: 16.88599349 | O18: 15.94788274 | P18: 15.94788274 | R18: 1.136807818 | S18: 1.087947883 | T18: 1.035830619 | U18: 1.011400651 | V18: 0.986970684 | W18: 0.9381107492 | X18: 0.8859934853 | Y18: 1 | Z18: 1 | AA18: 1 | AB18: 1 | AC18: 1 | AD18: 1 | AE18: 1 | AF18: 0.443 | AG18: 0.443 | AH18: 0.443 | AI18: 0.443 | AJ18: 0.443 | AK18: 0.443 | AL18: 0.443 | AM18: 20.46254072 | AN18: =Z18*E18+($A$4-80)*AG18*$A$16/1000 -> 19.58306189 | AO18: =AA18*G18+($A$4-80)*AH18*$A$16/1000 -> 18.64495114 | AP18: 18.20521173 | AQ18: 17.76547231 | AR18: 16.88599349 | AS18: 15.94788274
B19: 57 | C19: 20.46254072 | D19: 20.46254072 | E19: 19.52442997 | F19: 19.52442997 | G19: 18.64495114 | H19: 18.64495114 | I19: 18.20521173 | J19: 18.20521173 | K19: 17.76547231 | L19: 17.76547231 | M19: 16.82736156 | N19: 16.82736156 | O19: 15.94788274 | P19: 15.94788274 | R19: 1.136807818 | S19: 1.084690554 | T19: 1.035830619 | U19: 1.011400651 | V19: 0.986970684 | W19: 0.9348534202 | X19: 0.8859934853 | Y19: 1 | Z19: 1 | AA19: 1 | AB19: 1 | AC19: 1 | AD19: 1 | AE19: 1 | AF19: 0.443 | AG19: 0.443 | AH19: 0.443 | AI19: 0.443 | AJ19: 0.443 | AK19: 0.443 | AL19: 0.443 | AM19: 20.46254072 | AN19: =Z19*E19+($A$4-80)*AG19*$A$16/1000 -> 19.52442997 | AO19: =AA19*G19+($A$4-80)*AH19*$A$16/1000 -> 18.64495114 | AP19: 18.20521173 | AQ19: 17.76547231 | AR19: 16.82736156 | AS19: 15.94788274

Sheet 4AC13L_36 (hidden)
A2: 4AC13L_36
A3: Evaporator Air | C3: Condenser Entering Air Temperature ˚F
A4: 80 | B4: °F DB | C4: 65 | E4: 75 | G4: 85 | I4: 90 | K4: 95 | M4: 105 | O4: 115
A5: CFM | B5: EWB† ˚F | C5: Capacity Mbtuh | E5: Capacity Mbtuh | G5: Capacity Mbtuh | I5: Capacity Mbtuh | K5: Capacity Mbtuh | M5: Capacity Mbtuh | O5: Capacity Mbtuh
C6: Total | D6: Sens. | E6: Total | F6: Sens. | G6: Total | H6: Sens. | I6: Total | J6: Sens. | K6: Total | L6: Sens. | M6: Total | N6: Sens. | O6: Total | P6: Sens.
R7: Total Factors | Y7: Sens. % | AF7: IDB Adj | AM7: Sens Calc
A8: 1000 | B8: 72 | C8: =R8*$K$13 -> 22.46197183 | D8: =IF(AM8>C8,C8,AM8) -> 11.25848582 | E8: =S8*$K$13 -> 21.34647887 | F8: =IF(AN8>E8,E8,AN8) -> 10.88651656 | G8: =T8*$K$13 -> 20.23098592 | H8: =IF(AO8>G8,G8,AO8) -> 10.51478372 | I8: =U8*$K$13 -> 19.64788732 | J8: =IF(AP8>I8,I8,AP8) -> 10.31878089 | K8: =V8*$K$13 -> 19.06478873 | L8: =IF(AQ8>K8,K8,AQ8) -> 10.11642384 | M8: =W8*$K$13 -> 17.94929577 | N8: =IF(AR8>M8,M8,AR8) -> 9.744678175 | O8: =X8*$K$13 -> 16.83380282 | P8: =IF(AS8>O8,O8,AS8) -> 9.373246439 | R8: 1.247887324 | S8: 1.185915493 | T8: 1.123943662 | U8: 1.091549296 | V8: 1.05915493 | W8: 0.9971830986 | X8: 0.9352112676 | Y8: 0.5012242871 | Z8: 0.5099912087 | AA8: 0.5197365945 | AB8: 0.5251852642 | AC8: 0.5306339338 | AD8: 0.5429003064 | AE8: 0.5568109916 | AF8: =IF(Y8<0.9,0.9,Y8*-3.6846+4.1276) -> 0.9 | AG8: =IF(Z8<0.9,0.9,Z8*-3.6846+4.1276) -> 0.9 | AH8: 0.9 | AI8: 0.9 | AJ8: 0.9 | AK8: 0.9 | AL8: 0.9 | AM8: =Y8*C8+($A$4-80)*AF8*$A$8/1000 -> 11.25848582 | AN8: =Z8*E8+($A$4-80)*AG8*$A$8/1000 -> 10.88651656 | AO8: =AA8*G8+($A$4-80)*AH8*$A$8/1000 -> 10.51478372 | AP8: =AB8*I8+($A$4-80)*AI8*$A$8/1000 -> 10.31878089 | AQ8: =AC8*K8+($A$4-80)*AJ8*$A$8/1000 -> 10.11642384 | AR8: =AD8*M8+($A$4-80)*AK8*$A$8/1000 -> 9.744678175 | AS8: =AE8*O8+($A$4-80)*AL8*$A$8/1000 -> 9.373246439
B9: 67 | C9: 20.73802817 | D9: 14.3043363 | E9: 19.67323944 | F9: =IF(AN9>E9,E9,AN9) -> 13.87917732 | G9: 18.6084507 | H9: =IF(AO9>G9,G9,AO9) -> 13.45372714 | I9: 18.07605634 | J9: =IF(AP9>I9,I9,AP9) -> 13.2460504 | K9: =V9*$K$13 -> 17.54366197 | L9: =IF(AQ9>K9,K9,AQ9) -> 13.02793321 | M9: 16.47887324 | N9: =IF(AR9>M9,M9,AR9) -> 12.60172955 | O9: 15.46478873 | P9: =IF(AS9>O9,O9,AS9) -> 12.2150816 | R9: 1.152112676 | S9: 1.092957746 | T9: 1.033802817 | U9: 1.004225352 | V9: 0.9746478873 | W9: 0.9154929577 | X9: 0.8591549296 | Y9: 0.6897635676 | Z9: 0.7054851016 | AA9: 0.7229901807 | AB9: 0.7327953705 | AC9: 0.7426005602 | AD9: 0.7647203404 | AE9: 0.7898641108 | AF9: =IF(Y9<0.9,0.9,Y9*-3.6846+4.1276) -> 0.9 | AG9: 0.9 | AH9: 0.9 | AI9: 0.9 | AJ9: 0.9 | AK9: 0.9 | AL9: 0.9 | AM9: =Y9*C9+($A$4-80)*AF9*$A$8/1000 -> 14.3043363 | AN9: =Z9*E9+($A$4-80)*AG9*$A$8/1000 -> 13.87917732 | AO9: =AA9*G9+($A$4-80)*AH9*$A$8/1000 -> 13.45372714 | AP9: =AB9*I9+($A$4-80)*AI9*$A$8/1000 -> 13.2460504 | AQ9: =AC9*K9+($A$4-80)*AJ9*$A$8/1000 -> 13.02793321 | AR9: =AD9*M9+($A$4-80)*AK9*$A$8/1000 -> 12.60172955 | AS9: =AE9*O9+($A$4-80)*AL9*$A$8/1000 -> 12.2150816
B10: 62 | C10: 19.11549296 | D10: 17.36333229 | E10: 18.15211268 | F10: 16.89998031 | G10: 17.13802817 | H10: 16.39008457 | I10: 16.63098592 | J10: 16.14207021 | K10: =V10*$K$13 -> 16.12394366 | L10: 15.87961076 | M10: 15.10985915 | N10: 15.10985915 | O10: 14.14647887 | P10: 14.14647887 | R10: 1.061971831 | S10: 1.008450704 | T10: 0.9521126761 | U10: 0.923943662 | V10: 0.8957746479 | W10: 0.8394366197 | X10: 0.785915493 | Y10: 0.9083381909 | Z10: 0.9310200201 | AA10: 0.9563576629 | AB10: 0.9706021212 | AC10: 0.9848465795 | AD10: 1 | AE10: 1 | AF10: 0.7807371019 | AG10: 0.6971636338 | AH10: 0.6038045551 | AI10: 0.5513194242 | AJ10: 0.4988342933 | AK10: 0.443 | AL10: 0.443 | AM10: 17.36333229 | AN10: =Z10*E10+($A$4-80)*AG10*$A$8/1000 -> 16.89998031 | AO10: =AA10*G10+($A$4-80)*AH10*$A$8/1000 -> 16.39008457 | AP10: 16.14207021 | AQ10: 15.87961076 | AR10: 15.10985915 | AS10: 14.14647887
B11: 57 | C11: 18.65915493 | D11: 18.65915493 | E11: 17.84788732 | F11: 17.84788732 | G11: 17.08732394 | H11: 17.08732394 | I11: 16.68169014 | J11: 16.68169014 | K11: =V11*$K$13 -> 16.27605634 | L11: 16.27605634 | M11: 15.46478873 | N11: 15.46478873 | O11: 14.70422535 | P11: 14.70422535 | R11: 1.036619718 | S11: 0.9915492958 | T11: 0.9492957746 | U11: 0.9267605634 | V11: 0.9042253521 | W11: 0.8591549296 | X11: 0.8169014085 | Y11: 1 | Z11: 1 | AA11: 1 | AB11: 1 | AC11: 1 | AD11: 1 | AE11: 1 | AF11: 0.443 | AG11: 0.443 | AH11: 0.443 | AI11: 0.443 | AJ11: 0.443 | AK11: 0.443 | AL11: 0.443 | AM11: 18.65915493 | AN11: =Z11*E11+($A$4-80)*AG11*$A$8/1000 -> 17.84788732 | AO11: =AA11*G11+($A$4-80)*AH11*$A$8/1000 -> 17.08732394 | AP11: =AB11*I11+($A$4-80)*AI11*$A$8/1000 -> 16.68169014 | AQ11: 16.27605634 | AR11: 15.46478873 | AS11: 14.70422535
A12: 1200 | B12: 72 | C12: 23.01971831 | D12: 12.10661034 | E12: 21.8028169 | F12: 11.68418666 | G12: 20.63661972 | H12: 11.28910324 | I12: 20.02816901 | J12: 11.08158223 | K12: =V12*$K$13 -> 19.41971831 | L12: 10.86644641 | M12: 18.25352113 | N12: 10.47239955 | O12: 17.03661972 | P12: 10.04950047 | R12: 1.278873239 | S12: 1.211267606 | T12: 1.146478873 | U12: 1.112676056 | V12: 1.078873239 | W12: 1.014084507 | X12: 0.9464788732 | Y12: 0.5259234792 | Z12: 0.5359026181 | AA12: 0.5470422674 | AB12: 0.5532998162 | AC12: 0.5595573651 | AD12: 0.5737194198 | AE12: 0.5898764329 | AF12: 0.9 | AG12: 0.9 | AH12: 0.9 | AI12: 0.9 | AJ12: 0.9 | AK12: 0.9 | AL12: 0.9 | AM12: =Y12*C12+($A$4-80)*AF12*$A$12/1000 -> 12.10661034 | AN12: =Z12*E12+($A$4-80)*AG12*$A$12/1000 -> 11.68418666 | AO12: =AA12*G12+($A$4-80)*AH12*$A$12/1000 -> 11.28910324 | AP12: =AB12*I12+($A$4-80)*AI12*$A$12/1000 -> 11.08158223 | AQ12: =AC12*K12+($A$4-80)*AJ12*$A$12/1000 -> 10.86644641 | AR12: =AD12*M12+($A$4-80)*AK12*$A$12/1000 -> 10.47239955 | AS12: =AE12*O12+($A$4-80)*AL12*$A$12/1000 -> 10.04950047
B13: 67 | C13: 21.1943662 | D13: 15.64161549 | E13: 20.12957746 | F13: 15.26984032 | G13: 19.06478873 | H13: 14.89834194 | I13: 18.53239437 | J13: 14.71957222 | K13: 18 | L13: 14.52716978 | M13: 16.93521127 | N13: 14.15638583 | O13: 15.87042254 | P13: 13.78606881 | R13: 1.177464789 | S13: 1.118309859 | T13: 1.05915493 | U13: 1.029577465 | V13: 1 | W13: 0.9408450704 | X13: 0.8816901408 | Y13: 0.7380081738 | Z13: 0.75857729 | AA13: 0.7814585383 | AB13: 0.794261763 | AC13: 0.8070649877 | AD13: 0.8359143328 | AE13: 0.8686642576 | AF13: 0.9 | AG13: 0.9 | AH13: 0.9 | AI13: 0.9 | AJ13: 0.9 | AK13: 0.9 | AL13: 0.9 | AM13: =Y13*C13+($A$4-80)*AF13*$A$12/1000 -> 15.64161549 | AN13: =Z13*E13+($A$4-80)*AG13*$A$12/1000 -> 15.26984032 | AO13: =AA13*G13+($A$4-80)*AH13*$A$12/1000 -> 14.89834194 | AP13: =AB13*I13+($A$4-80)*AI13*$A$12/1000 -> 14.71957222 | AQ13: =AC13*K13+($A$4-80)*AJ13*$A$12/1000 -> 14.52716978 | AR13: =AD13*M13+($A$4-80)*AK13*$A$12/1000 -> 14.15638583 | AS13: =AE13*O13+($A$4-80)*AL13*$A$12/1000 -> 13.78606881
B14: 62 | C14: 19.41971831 | D14: 19.11548104 | E14: 18.65915493 | F14: 18.45630495 | G14: 17.89859155 | H14: 17.79715293 | I14: 17.51830986 | J14: 17.46866815 | K14: =V14*$K$13 -> 17.13802817 | L14: 17.13802817 | M14: 16.37746479 | N14: 16.37746479 | O14: 15.61690141 | P14: 15.61690141 | R14: 1.078873239 | S14: 1.036619718 | T14: 0.9943661972 | U14: 0.9732394366 | V14: 0.9521126761 | W14: 0.9098591549 | X14: 0.8676056338 | Y14: 0.9843335901 | Z14: 0.9891286623 | AA14: 0.9943325918 | AB14: 0.9971662959 | AC14: 1 | AD14: 1 | AE14: 1 | AF14: 0.500724454 | AG14: 0.483056531 | AH14: 0.4638821321 | AI14: 0.453441066 | AJ14: 0.443 | AK14: 0.443 | AL14: 0.443 | AM14: 19.11548104 | AN14: =Z14*E14+($A$4-80)*AG14*$A$12/1000 -> 18.45630495 | AO14: =AA14*G14+($A$4-80)*AH14*$A$12/1000 -> 17.79715293 | AP14: 17.46866815 | AQ14: 17.13802817 | AR14: 16.37746479 | AS14: 15.61690141
B15: 57 | C15: 19.67323944 | D15: 19.67323944 | E15: 18.81126761 | F15: 18.81126761 | G15: 17.94929577 | H15: 17.94929577 | I15: 17.51830986 | J15: 17.51830986 | K15: 17.08732394 | L15: 17.08732394 | M15: 16.22535211 | N15: 16.22535211 | O15: 15.36338028 | P15: 15.36338028 | R15: 1.092957746 | S15: 1.045070423 | T15: 0.9971830986 | U15: 0.9732394366 | V15: 0.9492957746 | W15: 0.9014084507 | X15: 0.8535211268 | Y15: 1 | Z15: 1 | AA15: 1 | AB15: 1 | AC15: 1 | AD15: 1 | AE15: 1 | AF15: 0.443 | AG15: 0.443 | AH15: 0.443 | AI15: 0.443 | AJ15: 0.443 | AK15: 0.443 | AL15: 0.443 | AM15: 19.67323944 | AN15: =Z15*E15+($A$4-80)*AG15*$A$12/1000 -> 18.81126761 | AO15: =AA15*G15+($A$4-80)*AH15*$A$12/1000 -> 17.94929577 | AP15: 17.51830986 | AQ15: 17.08732394 | AR15: 16.22535211 | AS15: 15.36338028
A16: 1400 | B16: 72 | C16: 23.42535211 | D16: 13.00768813 | E16: 22.15774648 | F16: 12.5846436 | G16: 20.94084507 | H16: 12.19032885 | I16: 20.33239437 | J16: 11.99836801 | K16: 19.72394366 | L16: 11.79669718 | M16: 18.45633803 | N16: 11.37264265 | O16: 17.23943662 | P16: 10.97977957 | R16: 1.301408451 | S16: 1.230985915 | T16: 1.163380282 | U16: 1.129577465 | V16: 1.095774648 | W16: 1.025352113 | X16: 0.9577464789 | Y16: 0.5552825021 | Z16: 0.5679568368 | AA16: 0.5821316576 | AB16: 0.590110923 | AC16: 0.5980901884 | AD16: 0.6161917187 | AE16: 0.6368989783 | AF16: 0.9 | AG16: 0.9 | AH16: 0.9 | AI16: 0.9 | AJ16: 0.9 | AK16: 0.9 | AL16: 0.9 | AM16: =Y16*C16+($A$4-80)*AF16*$A$16/1000 -> 13.00768813 | AN16: =Z16*E16+($A$4-80)*AG16*$A$16/1000 -> 12.5846436 | AO16: =AA16*G16+($A$4-80)*AH16*$A$16/1000 -> 12.19032885 | AP16: =AB16*I16+($A$4-80)*AI16*$A$16/1000 -> 11.99836801 | AQ16: =AC16*K16+($A$4-80)*AJ16*$A$16/1000 -> 11.79669718 | AR16: =AD16*M16+($A$4-80)*AK16*$A$16/1000 -> 11.37264265 | AS16: =AE16*O16+($A$4-80)*AL16*$A$16/1000 -> 10.97977957
B17: 67 | C17: 21.65070423 | D17: 17.19131982 | E17: 20.48450704 | F17: 16.72088813 | G17: 19.31830986 | H17: 16.25001384 | I17: 18.76056338 | J17: 16.0441789 | K17: 18.2028169 | L17: 15.82268677 | M17: 17.03661972 | N17: 15.35226766 | O17: 15.87042254 | P17: 14.88131093 | R17: 1.202816901 | S17: 1.138028169 | T17: 1.073239437 | U17: 1.042253521 | V17: 1.011267606 | W17: 0.9464788732 | X17: 0.8816901408 | Y17: 0.7940305149 | Z17: 0.8162699787 | AA17: 0.8411716118 | AB17: 0.8552077343 | AC17: 0.8692438569 | AD17: 0.9011334356 | AE17: 0.9376757862 | AF17: 0.9 | AG17: 0.9 | AH17: 0.9 | AI17: 0.9 | AJ17: 0.9 | AK17: 0.8072837432 | AL17: 0.672639798 | AM17: =Y17*C17+($A$4-80)*AF17*$A$16/1000 -> 17.19131982 | AN17: =Z17*E17+($A$4-80)*AG17*$A$16/1000 -> 16.72088813 | AO17: =AA17*G17+($A$4-80)*AH17*$A$16/1000 -> 16.25001384 | AP17: =AB17*I17+($A$4-80)*AI17*$A$16/1000 -> 16.0441789 | AQ17: =AC17*K17+($A$4-80)*AJ17*$A$16/1000 -> 15.82268677 | AR17: =AD17*M17+($A$4-80)*AK17*$A$16/1000 -> 15.35226766 | AS17: =AE17*O17+($A$4-80)*AL17*$A$16/1000 -> 14.88131093
B18: 62 | C18: 20.53521127 | D18: 20.53521127 | E18: 19.62253521 | F18: 19.62253521 | G18: 18.65915493 | H18: 18.65915493 | I18: 18.2028169 | J18: 18.2028169 | K18: 17.74647887 | L18: 17.74647887 | M18: 16.83380282 | N18: 16.83380282 | O18: 15.92112676 | P18: 15.92112676 | R18: 1.14084507 | S18: 1.090140845 | T18: 1.036619718 | U18: 1.011267606 | V18: 0.985915493 | W18: 0.9352112676 | X18: 0.8845070423 | Y18: 1 | Z18: 1 | AA18: 1 | AB18: 1 | AC18: 1 | AD18: 1 | AE18: 1 | AF18: 0.443 | AG18: 0.443 | AH18: 0.443 | AI18: 0.443 | AJ18: 0.443 | AK18: 0.443 | AL18: 0.443 | AM18: 20.53521127 | AN18: =Z18*E18+($A$4-80)*AG18*$A$16/1000 -> 19.62253521 | AO18: =AA18*G18+($A$4-80)*AH18*$A$16/1000 -> 18.65915493 | AP18: 18.2028169 | AQ18: 17.74647887 | AR18: 16.83380282 | AS18: 15.92112676
B19: 57 | C19: 20.48450704 | D19: 20.48450704 | E19: 19.57183099 | F19: 19.57183099 | G19: 18.65915493 | H19: 18.65915493 | I19: 18.2028169 | J19: 18.2028169 | K19: 17.74647887 | L19: 17.74647887 | M19: 16.78309859 | N19: 16.78309859 | O19: 15.87042254 | P19: 15.87042254 | R19: 1.138028169 | S19: 1.087323944 | T19: 1.036619718 | U19: 1.011267606 | V19: 0.985915493 | W19: 0.9323943662 | X19: 0.8816901408 | Y19: 1 | Z19: 1 | AA19: 1 | AB19: 1 | AC19: 1 | AD19: 1 | AE19: 1 | AF19: 0.443 | AG19: 0.443 | AH19: 0.443 | AI19: 0.443 | AJ19: 0.443 | AK19: 0.443 | AL19: 0.443 | AM19: 20.48450704 | AN19: =Z19*E19+($A$4-80)*AG19*$A$16/1000 -> 19.57183099 | AO19: =AA19*G19+($A$4-80)*AH19*$A$16/1000 -> 18.65915493 | AP19: 18.2028169 | AQ19: 17.74647887 | AR19: 16.78309859 | AS19: 15.87042254

Sheet 4AC13L_42 (hidden)
A2: 4AC13L_42
A3: Evaporator Air | C3: Condenser Entering Air Temperature ˚F
A4: 80 | B4: °F DB | C4: 65 | E4: 75 | G4: 85 | I4: 90 | K4: 95 | M4: 105 | O4: 115
A5: CFM | B5: EWB† ˚F | C5: Capacity Mbtuh | E5: Capacity Mbtuh | G5: Capacity Mbtuh | I5: Capacity Mbtuh | K5: Capacity Mbtuh | M5: Capacity Mbtuh | O5: Capacity Mbtuh
C6: Total | D6: Sens. | E6: Total | F6: Sens. | G6: Total | H6: Sens. | I6: Total | J6: Sens. | K6: Total | L6: Sens. | M6: Total | N6: Sens. | O6: Total | P6: Sens.
R7: Total Factors | Y7: Sens. % | AF7: IDB Adj | AM7: Sens Calc
A8: 1200 | B8: 72 | C8: =R8*$K$13 -> 22.5323741 | D8: =IF(AM8>C8,C8,AM8) -> 11.37603942 | E8: =S8*$K$13 -> 21.36690647 | F8: =IF(AN8>E8,E8,AN8) -> 10.96708856 | G8: =T8*$K$13 -> 20.24460432 | H8: =IF(AO8>G8,G8,AO8) -> 10.58006761 | I8: =U8*$K$13 -> 19.68345324 | J8: =IF(AP8>I8,I8,AP8) -> 10.38956731 | K8: =V8*$K$13 -> 19.12230216 | L8: =IF(AQ8>K8,K8,AQ8) -> 10.19320767 | M8: =W8*$K$13 -> 18 | N8: =IF(AR8>M8,M8,AR8) -> 9.806539085 | O8: =X8*$K$13 -> 16.87769784 | P8: =IF(AS8>O8,O8,AS8) -> 9.420100373 | R8: 1.251798561 | S8: 1.18705036 | T8: 1.12470024 | U8: 1.09352518 | V8: 1.06235012 | W8: 1 | X8: 0.9376498801 | Y8: 0.5048753128 | Z8: 0.513274515 | AA8: 0.5226117263 | AB8: 0.5278325497 | AC8: 0.5330533731 | AD8: 0.5448077269 | AE8: 0.5581389394 | AF8: =IF(Y8<0.9,0.9,Y8*-3.6846+4.1276) -> 0.9 | AG8: =IF(Z8<0.9,0.9,Z8*-3.6846+4.1276) -> 0.9 | AH8: 0.9 | AI8: 0.9 | AJ8: 0.9 | AK8: 0.9 | AL8: 0.9 | AM8: =Y8*C8+($A$4-80)*AF8*$A$8/1000 -> 11.37603942 | AN8: =Z8*E8+($A$4-80)*AG8*$A$8/1000 -> 10.96708856 | AO8: =AA8*G8+($A$4-80)*AH8*$A$8/1000 -> 10.58006761 | AP8: =AB8*I8+($A$4-80)*AI8*$A$8/1000 -> 10.38956731 | AQ8: =AC8*K8+($A$4-80)*AJ8*$A$8/1000 -> 10.19320767 | AR8: =AD8*M8+($A$4-80)*AK8*$A$8/1000 -> 9.806539085 | AS8: =AE8*O8+($A$4-80)*AL8*$A$8/1000 -> 9.420100373
B9: 67 | C9: 20.84892086 | D9: 14.47892118 | E9: 19.76978417 | F9: =IF(AN9>E9,E9,AN9) -> 14.04627074 | G9: 18.73381295 | H9: =IF(AO9>G9,G9,AO9) -> 13.64422004 | I9: 18.1942446 | J9: =IF(AP9>I9,I9,AP9) -> 13.4327961 | K9: =V9*$K$13 -> 17.65467626 | L9: =IF(AQ9>K9,K9,AQ9) -> 13.21060379 | M9: 16.61870504 | N9: =IF(AR9>M9,M9,AR9) -> 12.80919048 | O9: 15.58273381 | P9: =IF(AS9>O9,O9,AS9) -> 12.40869735 | R9: 1.158273381 | S9: 1.098321343 | T9: 1.040767386 | U9: 1.010791367 | V9: 0.9808153477 | W9: 0.9232613909 | X9: 0.8657074341 | Y9: 0.694468614 | Z9: 0.7104918605 | AA9: 0.7283205016 | AB9: 0.7382991926 | AC9: 0.7482778836 | AD9: 0.7707694706 | AE9: 0.7963106796 | AF9: =IF(Y9<0.9,0.9,Y9*-3.6846+4.1276) -> 0.9 | AG9: 0.9 | AH9: 0.9 | AI9: 0.9 | AJ9: 0.9 | AK9: 0.9 | AL9: 0.9 | AM9: =Y9*C9+($A$4-80)*AF9*$A$8/1000 -> 14.47892118 | AN9: =Z9*E9+($A$4-80)*AG9*$A$8/1000 -> 14.04627074 | AO9: =AA9*G9+($A$4-80)*AH9*$A$8/1000 -> 13.64422004 | AP9: =AB9*I9+($A$4-80)*AI9*$A$8/1000 -> 13.4327961 | AQ9: =AC9*K9+($A$4-80)*AJ9*$A$8/1000 -> 13.21060379 | AR9: =AD9*M9+($A$4-80)*AK9*$A$8/1000 -> 12.80919048 | AS9: =AE9*O9+($A$4-80)*AL9*$A$8/1000 -> 12.40869735
B10: 62 | C10: 19.20863309 | D10: 17.21650363 | E10: 18.25899281 | F10: 16.78041297 | G10: 17.30935252 | H10: 16.34497276 | I10: 16.81294964 | J10: 16.1136557 | K10: =V10*$K$13 -> 16.31654676 | L10: 15.86831843 | M10: 15.36690647 | N10: 15.36690647 | O10: 14.41726619 | P10: 14.41726619 | R10: 1.067146283 | S10: 1.014388489 | T10: 0.9616306954 | U10: 0.9340527578 | V10: 0.9064748201 | W10: 0.8537170264 | X10: 0.8009592326 | Y10: 0.8962898896 | Z10: 0.9190218291 | AA10: 0.9442856251 | AB10: 0.9584074205 | AC10: 0.9725292158 | AD10: 1 | AE10: 1 | AF10: 0.9 | AG10: 0.7413721685 | AH10: 0.6482851857 | AI10: 0.5962520186 | AJ10: 0.5442188515 | AK10: 0.443 | AL10: 0.443 | AM10: 17.21650363 | AN10: =Z10*E10+($A$4-80)*AG10*$A$8/1000 -> 16.78041297 | AO10: =AA10*G10+($A$4-80)*AH10*$A$8/1000 -> 16.34497276 | AP10: 16.1136557 | AQ10: 15.86831843 | AR10: 15.36690647 | AS10: 14.41726619
B11: 57 | C11: 18.82014388 | D11: 18.82014388 | E11: 18 | F11: 18 | G11: 17.22302158 | H11: 17.22302158 | I11: 16.81294964 | J11: 16.81294964 | K11: =V11*$K$13 -> 16.4028777 | L11: 16.4028777 | M11: 15.62589928 | N11: 15.62589928 | O11: 14.84892086 | P11: 14.84892086 | R11: 1.045563549 | S11: 1 | T11: 0.9568345324 | U11: 0.9340527578 | V11: 0.9112709832 | W11: 0.8681055156 | X11: 0.824940048 | Y11: 1 | Z11: 1 | AA11: 1 | AB11: 1 | AC11: 1 | AD11: 1 | AE11: 1 | AF11: 0.443 | AG11: 0.443 | AH11: 0.443 | AI11: 0.443 | AJ11: 0.443 | AK11: 0.443 | AL11: 0.443 | AM11: 18.82014388 | AN11: =Z11*E11+($A$4-80)*AG11*$A$8/1000 -> 18 | AO11: =AA11*G11+($A$4-80)*AH11*$A$8/1000 -> 17.22302158 | AP11: =AB11*I11+($A$4-80)*AI11*$A$8/1000 -> 16.81294964 | AQ11: 16.4028777 | AR11: 15.62589928 | AS11: 14.84892086
A12: 1400 | B12: 72 | C12: 22.96402878 | D12: 12.11621048 | E12: 21.79856115 | F12: 11.72123603 | G12: 20.58992806 | H12: 11.30292899 | I12: 20.00719424 | J12: 11.10924183 | K12: =V12*$K$13 -> 19.42446043 | L12: 10.90820281 | M12: 18.21582734 | N12: 10.48906354 | O12: 17.05035971 | P12: 10.09461396 | R12: 1.275779376 | S12: 1.211031175 | T12: 1.143884892 | U12: 1.111510791 | V12: 1.079136691 | W12: 1.011990408 | X12: 0.9472422062 | Y12: 0.5276169349 | Z12: 0.5377068675 | AA12: 0.548954273 | AB12: 0.5552623569 | AC12: 0.5615704409 | AD12: 0.5758214184 | AE12: 0.592046979 | AF12: 0.9 | AG12: 0.9 | AH12: 0.9 | AI12: 0.9 | AJ12: 0.9 | AK12: 0.9 | AL12: 0.9 | AM12: =Y12*C12+($A$4-80)*AF12*$A$12/1000 -> 12.11621048 | AN12: =Z12*E12+($A$4-80)*AG12*$A$12/1000 -> 11.72123603 | AO12: =AA12*G12+($A$4-80)*AH12*$A$12/1000 -> 11.30292899 | AP12: =AB12*I12+($A$4-80)*AI12*$A$12/1000 -> 11.10924183 | AQ12: =AC12*K12+($A$4-80)*AJ12*$A$12/1000 -> 10.90820281 | AR12: =AD12*M12+($A$4-80)*AK12*$A$12/1000 -> 10.48906354 | AS12: =AE12*O12+($A$4-80)*AL12*$A$12/1000 -> 10.09461396
B13: 67 | C13: 21.28057554 | D13: 15.7387545 | E13: 20.20143885 | F13: 15.3285064 | G13: 19.07913669 | H13: 14.88552389 | I13: 18.53956835 | J13: 14.68739645 | K13: 18 | L13: 14.47629791 | M13: 16.87769784 | N13: 14.03238321 | O13: 15.79856115 | P13: 13.62447102 | R13: 1.182254197 | S13: 1.122302158 | T13: 1.059952038 | U13: 1.029976019 | V13: 1 | W13: 0.9376498801 | X13: 0.8776978417 | Y13: 0.7395831221 | Z13: 0.7587829025 | AA13: 0.7801990275 | AB13: 0.7922189002 | AC13: 0.804238773 | AD13: 0.8314157142 | AE13: 0.8623868268 | AF13: 0.9 | AG13: 0.9 | AH13: 0.9 | AI13: 0.9 | AJ13: 0.9 | AK13: 0.9 | AL13: 0.9 | AM13: =Y13*C13+($A$4-80)*AF13*$A$12/1000 -> 15.7387545 | AN13: =Z13*E13+($A$4-80)*AG13*$A$12/1000 -> 15.3285064 | AO13: =AA13*G13+($A$4-80)*AH13*$A$12/1000 -> 14.88552389 | AP13: =AB13*I13+($A$4-80)*AI13*$A$12/1000 -> 14.68739645 | AQ13: =AC13*K13+($A$4-80)*AJ13*$A$12/1000 -> 14.47629791 | AR13: =AD13*M13+($A$4-80)*AK13*$A$12/1000 -> 14.03238321 | AS13: =AE13*O13+($A$4-80)*AL13*$A$12/1000 -> 13.62447102
B14: 62 | C14: 19.4676259 | D14: 18.84341864 | E14: 18.69064748 | F14: 18.2743497 | G14: 17.91366906 | H14: 17.70543338 | I14: 17.50359712 | J14: 17.4018627 | K14: =V14*$K$13 -> 17.09352518 | L14: 17.09352518 | M14: 16.31654676 | N14: 16.31654676 | O14: 15.53956835 | P14: 15.53956835 | R14: 1.081534772 | S14: 1.038369305 | T14: 0.9952038369 | U14: 0.9724220624 | V14: 0.9496402878 | W14: 0.9064748201 | X14: 0.8633093525 | Y14: 0.9679361384 | Z14: 0.9777269472 | AA14: 0.9883755984 | AB14: 0.9941877992 | AC14: 1 | AD14: 1 | AE14: 1 | AF14: 0.5611425046 | AG14: 0.5250672905 | AH14: 0.4858312701 | AI14: 0.4644156351 | AJ14: 0.443 | AK14: 0.443 | AL14: 0.443 | AM14: 18.84341864 | AN14: =Z14*E14+($A$4-80)*AG14*$A$12/1000 -> 18.2743497 | AO14: =AA14*G14+($A$4-80)*AH14*$A$12/1000 -> 17.70543338 | AP14: 17.4018627 | AQ14: 17.09352518 | AR14: 16.31654676 | AS14: 15.53956835
B15: 57 | C15: 19.64028777 | D15: 19.64028777 | E15: 18.82014388 | F15: 18.82014388 | G15: 17.95683453 | H15: 17.95683453 | I15: 17.52517986 | J15: 17.52517986 | K15: 17.09352518 | L15: 17.09352518 | M15: 16.23021583 | N15: 16.23021583 | O15: 15.36690647 | P15: 15.36690647 | R15: 1.091127098 | S15: 1.045563549 | T15: 0.9976019185 | U15: 0.9736211031 | V15: 0.9496402878 | W15: 0.9016786571 | X15: 0.8537170264 | Y15: 1 | Z15: 1 | AA15: 1 | AB15: 1 | AC15: 1 | AD15: 1 | AE15: 1 | AF15: 0.443 | AG15: 0.443 | AH15: 0.443 | AI15: 0.443 | AJ15: 0.443 | AK15: 0.443 | AL15: 0.443 | AM15: 19.64028777 | AN15: =Z15*E15+($A$4-80)*AG15*$A$12/1000 -> 18.82014388 | AO15: =AA15*G15+($A$4-80)*AH15*$A$12/1000 -> 17.95683453 | AP15: 17.52517986 | AQ15: 17.09352518 | AR15: 16.23021583 | AS15: 15.36690647
A16: 1600 | B16: 72 | C16: 23.26618705 | D16: 12.7955287 | E16: 22.05755396 | F16: 12.40664533 | G16: 20.84892086 | H16: 12.01801196 | I16: 20.22302158 | J16: 11.81597713 | K16: 19.5971223 | L16: 11.60411545 | M16: 18.38848921 | N16: 11.2153667 | O16: 17.17985612 | P16: 10.82694021 | R16: 1.292565947 | S16: 1.225419664 | T16: 1.158273381 | U16: 1.123501199 | V16: 1.088729017 | W16: 1.021582734 | X16: 0.9544364508 | Y16: 0.5499624273 | Z16: 0.5624669604 | AA16: 0.576433286 | AB16: 0.5842834652 | AC16: 0.5921336444 | AD16: 0.6099123517 | AE16: 0.6302113437 | AF16: 0.9 | AG16: 0.9 | AH16: 0.9 | AI16: 0.9 | AJ16: 0.9 | AK16: 0.9 | AL16: 0.9 | AM16: =Y16*C16+($A$4-80)*AF16*$A$16/1000 -> 12.7955287 | AN16: =Z16*E16+($A$4-80)*AG16*$A$16/1000 -> 12.40664533 | AO16: =AA16*G16+($A$4-80)*AH16*$A$16/1000 -> 12.01801196 | AP16: =AB16*I16+($A$4-80)*AI16*$A$16/1000 -> 11.81597713 | AQ16: =AC16*K16+($A$4-80)*AJ16*$A$16/1000 -> 11.60411545 | AR16: =AD16*M16+($A$4-80)*AK16*$A$16/1000 -> 11.2153667 | AS16: =AE16*O16+($A$4-80)*AL16*$A$16/1000 -> 10.82694021
B17: 67 | C17: 21.58273381 | D17: 17.15613712 | E17: 20.46043165 | F17: 16.50153225 | G17: 19.29496403 | H17: 15.81191771 | I17: 18.73381295 | J17: 15.4887937 | K17: 18.17266187 | L17: 15.15747846 | M17: 17.05035971 | N17: 14.50347357 | O17: 15.88489209 | P17: 13.81246228 | R17: 1.199040767 | S17: 1.136690647 | T17: 1.071942446 | U17: 1.040767386 | V17: 1.009592326 | W17: 0.9472422062 | X17: 0.8824940048 | Y17: 0.7949010198 | Z17: 0.8065094877 | AA17: 0.8194841766 | AB17: 0.8267827665 | AC17: 0.8340813564 | AD17: 0.8506256649 | AE17: 0.8695345366 | AF17: 0.9 | AG17: 0.9 | AH17: 0.9 | AI17: 0.9 | AJ17: 0.9 | AK17: 0.9 | AL17: 0.9 | AM17: =Y17*C17+($A$4-80)*AF17*$A$16/1000 -> 17.15613712 | AN17: =Z17*E17+($A$4-80)*AG17*$A$16/1000 -> 16.50153225 | AO17: =AA17*G17+($A$4-80)*AH17*$A$16/1000 -> 15.81191771 | AP17: =AB17*I17+($A$4-80)*AI17*$A$16/1000 -> 15.4887937 | AQ17: =AC17*K17+($A$4-80)*AJ17*$A$16/1000 -> 15.15747846 | AR17: =AD17*M17+($A$4-80)*AK17*$A$16/1000 -> 14.50347357 | AS17: =AE17*O17+($A$4-80)*AL17*$A$16/1000 -> 13.81246228
B18: 62 | C18: 20.37410072 | D18: 20.37410072 | E18: 19.4676259 | F18: 19.4676259 | G18: 18.56115108 | H18: 18.56115108 | I18: 18.08633094 | J18: 18.08633094 | K18: 17.61151079 | L18: 17.61151079 | M18: 16.70503597 | N18: 16.70503597 | O18: 15.79856115 | P18: 15.79856115 | R18: 1.131894484 | S18: 1.081534772 | T18: 1.03117506 | U18: 1.004796163 | V18: 0.9784172662 | W18: 0.928057554 | X18: 0.8776978417 | Y18: 1 | Z18: 1 | AA18: 1 | AB18: 1 | AC18: 1 | AD18: 1 | AE18: 1 | AF18: 0.443 | AG18: 0.443 | AH18: 0.443 | AI18: 0.443 | AJ18: 0.443 | AK18: 0.443 | AL18: 0.443 | AM18: 20.37410072 | AN18: =Z18*E18+($A$4-80)*AG18*$A$16/1000 -> 19.4676259 | AO18: =AA18*G18+($A$4-80)*AH18*$A$16/1000 -> 18.56115108 | AP18: 18.08633094 | AQ18: 17.61151079 | AR18: 16.70503597 | AS18: 15.79856115
B19: 57 | C19: 20.33093525 | D19: 20.33093525 | E19: 19.42446043 | F19: 19.42446043 | G19: 18.51798561 | H19: 18.51798561 | I19: 18.0647482 | J19: 18.0647482 | K19: 17.61151079 | L19: 17.61151079 | M19: 16.70503597 | N19: 16.70503597 | O19: 15.79856115 | P19: 15.79856115 | R19: 1.129496403 | S19: 1.079136691 | T19: 1.028776978 | U19: 1.003597122 | V19: 0.9784172662 | W19: 0.928057554 | X19: 0.8776978417 | Y19: 1 | Z19: 1 | AA19: 1 | AB19: 1 | AC19: 1 | AD19: 1 | AE19: 1 | AF19: 0.443 | AG19: 0.443 | AH19: 0.443 | AI19: 0.443 | AJ19: 0.443 | AK19: 0.443 | AL19: 0.443 | AM19: 20.33093525 | AN19: =Z19*E19+($A$4-80)*AG19*$A$16/1000 -> 19.42446043 | AO19: =AA19*G19+($A$4-80)*AH19*$A$16/1000 -> 18.51798561 | AP19: 18.0647482 | AQ19: 17.61151079 | AR19: 16.70503597 | AS19: 15.79856115

Sheet 4AC13L_48 (hidden)
A2: 4AC13L_48
A3: Evaporator Air | C3: Condenser Entering Air Temperature ˚F
A4: 80 | B4: °F DB | C4: 65 | E4: 75 | G4: 85 | I4: 90 | K4: 95 | M4: 105 | O4: 115
A5: CFM | B5: EWB† ˚F | C5: Capacity Mbtuh | E5: Capacity Mbtuh | G5: Capacity Mbtuh | I5: Capacity Mbtuh | K5: Capacity Mbtuh | M5: Capacity Mbtuh | O5: Capacity Mbtuh
C6: Total | D6: Sens. | E6: Total | F6: Sens. | G6: Total | H6: Sens. | I6: Total | J6: Sens. | K6: Total | L6: Sens. | M6: Total | N6: Sens. | O6: Total | P6: Sens.
R7: Total Factors | Y7: Sens. % | AF7: IDB Adj | AM7: Sens Calc
A8: 1400 | B8: 72 | C8: =R8*$K$13 -> 22.34730539 | D8: =IF(AM8>C8,C8,AM8) -> 11.2515604 | E8: =S8*$K$13 -> 21.30538922 | F8: =IF(AN8>E8,E8,AN8) -> 10.88202233 | G8: =T8*$K$13 -> 20.26347305 | H8: =IF(AO8>G8,G8,AO8) -> 10.51262212 | I8: =U8*$K$13 -> 19.74251497 | J8: =IF(AP8>I8,I8,AP8) -> 10.33032366 | K8: =V8*$K$13 -> 19.22155689 | L8: =IF(AQ8>K8,K8,AQ8) -> 10.14338241 | M8: =W8*$K$13 -> 18.14371257 | N8: =IF(AR8>M8,M8,AR8) -> 9.755014219 | O8: =X8*$K$13 -> 17.10179641 | P8: =IF(AS8>O8,O8,AS8) -> 9.38578481 | R8: 1.241516966 | S8: 1.183632735 | T8: 1.125748503 | U8: 1.096806387 | V8: 1.067864271 | W8: 1.007984032 | X8: 0.9500998004 | Y8: 0.5034862238 | Z8: 0.5107638362 | AA8: 0.5187966592 | AB8: 0.5232526696 | AC8: 0.5277086801 | AD8: 0.5376525989 | AE8: 0.5488186496 | AF8: =IF(Y8<0.9,0.9,Y8*-3.6846+4.1276) -> 0.9 | AG8: =IF(Z8<0.9,0.9,Z8*-3.6846+4.1276) -> 0.9 | AH8: 0.9 | AI8: 0.9 | AJ8: 0.9 | AK8: 0.9 | AL8: 0.9 | AM8: =Y8*C8+($A$4-80)*AF8*$A$8/1000 -> 11.2515604 | AN8: =Z8*E8+($A$4-80)*AG8*$A$8/1000 -> 10.88202233 | AO8: =AA8*G8+($A$4-80)*AH8*$A$8/1000 -> 10.51262212 | AP8: =AB8*I8+($A$4-80)*AI8*$A$8/1000 -> 10.33032366 | AQ8: =AC8*K8+($A$4-80)*AJ8*$A$8/1000 -> 10.14338241 | AR8: =AD8*M8+($A$4-80)*AK8*$A$8/1000 -> 9.755014219 | AS8: =AE8*O8+($A$4-80)*AL8*$A$8/1000 -> 9.38578481
B9: 67 | C9: 20.80239521 | D9: 14.3800924 | E9: 19.76047904 | F9: =IF(AN9>E9,E9,AN9) -> 13.93013602 | G9: 18.75449102 | H9: =IF(AO9>G9,G9,AO9) -> 13.50538922 | I9: 18.25149701 | J9: =IF(AP9>I9,I9,AP9) -> 13.29748746 | K9: =V9*$K$13 -> 17.74850299 | L9: =IF(AQ9>K9,K9,AQ9) -> 13.08108033 | M9: 16.70658683 | N9: =IF(AR9>M9,M9,AR9) -> 12.63012793 | O9: 15.7005988 | P9: =IF(AS9>O9,O9,AS9) -> 12.2061859 | R9: 1.155688623 | S9: 1.097804391 | T9: 1.041916168 | U9: 1.013972056 | V9: 0.9860279441 | W9: 0.9281437126 | X9: 0.872255489 | Y9: 0.6912709932 | Z9: 0.7049493078 | AA9: 0.7201149425 | AB9: 0.7285696871 | AC9: 0.7370244317 | AD9: 0.7559969048 | AE9: 0.7774344183 | AF9: =IF(Y9<0.9,0.9,Y9*-3.6846+4.1276) -> 0.9 | AG9: 0.9 | AH9: 0.9 | AI9: 0.9 | AJ9: 0.9 | AK9: 0.9 | AL9: 0.9 | AM9: =Y9*C9+($A$4-80)*AF9*$A$8/1000 -> 14.3800924 | AN9: =Z9*E9+($A$4-80)*AG9*$A$8/1000 -> 13.93013602 | AO9: =AA9*G9+($A$4-80)*AH9*$A$8/1000 -> 13.50538922 | AP9: =AB9*I9+($A$4-80)*AI9*$A$8/1000 -> 13.29748746 | AQ9: =AC9*K9+($A$4-80)*AJ9*$A$8/1000 -> 13.08108033 | AR9: =AD9*M9+($A$4-80)*AK9*$A$8/1000 -> 12.63012793 | AS9: =AE9*O9+($A$4-80)*AL9*$A$8/1000 -> 12.2061859
B10: 62 | C10: 19.18562874 | D10: 16.87487743 | E10: 18.28742515 | F10: 16.44297061 | G10: 17.35329341 | H10: 15.97885337 | I10: 16.88622754 | J10: 15.75206154 | K10: =V10*$K$13 -> 16.41916168 | L10: 15.51402439 | M10: 15.52095808 | N10: 15.08327224 | O10: 14.58682635 | P10: 14.58682635 | R10: 1.065868263 | S10: 1.015968064 | T10: 0.9640718563 | U10: 0.9381237525 | V10: 0.9121756487 | W10: 0.8622754491 | X10: 0.8103792415 | Y10: 0.8795582179 | Z10: 0.8991408293 | AA10: 0.9207965884 | AB10: 0.9328348502 | AC10: 0.944873112 | AD10: 0.9718003334 | AE10: 1 | AF10: 0.9 | AG10: 0.9 | AH10: 0.7348328903 | AI10: 0.690476711 | AJ10: 0.6461205316 | AK10: 0.5469044916 | AL10: 0.443 | AM10: 16.87487743 | AN10: =Z10*E10+($A$4-80)*AG10*$A$8/1000 -> 16.44297061 | AO10: =AA10*G10+($A$4-80)*AH10*$A$8/1000 -> 15.97885337 | AP10: 15.75206154 | AQ10: 15.51402439 | AR10: 15.08327224 | AS10: 14.58682635
B11: 57 | C11: 18.68263473 | D11: 18.68263473 | E11: 17.92814371 | F11: 17.92814371 | G11: 17.17365269 | H11: 17.17365269 | I11: 16.79640719 | J11: 16.79640719 | K11: =V11*$K$13 -> 16.41916168 | L11: 16.41916168 | M11: 15.7005988 | N11: 15.7005988 | O11: 14.94610778 | P11: 14.94610778 | R11: 1.037924152 | S11: 0.996007984 | T11: 0.9540918164 | U11: 0.9331337325 | V11: 0.9121756487 | W11: 0.872255489 | X11: 0.8303393214 | Y11: 1 | Z11: 1 | AA11: 1 | AB11: 1 | AC11: 1 | AD11: 1 | AE11: 1 | AF11: 0.443 | AG11: 0.443 | AH11: 0.443 | AI11: 0.443 | AJ11: 0.443 | AK11: 0.443 | AL11: 0.443 | AM11: 18.68263473 | AN11: =Z11*E11+($A$4-80)*AG11*$A$8/1000 -> 17.92814371 | AO11: =AA11*G11+($A$4-80)*AH11*$A$8/1000 -> 17.17365269 | AP11: =AB11*I11+($A$4-80)*AI11*$A$8/1000 -> 16.79640719 | AQ11: 16.41916168 | AR11: 15.7005988 | AS11: 14.94610778
A12: 1600 | B12: 72 | C12: 22.74251497 | D12: 11.84774096 | E12: 21.62874251 | F12: 11.45982582 | G12: 20.5508982 | H12: 11.09083832 | I12: 20.01197605 | J12: 10.90941437 | K12: =V12*$K$13 -> 19.47305389 | L12: 10.72209708 | M12: 18.35928144 | N12: 10.33342393 | O12: 17.28143713 | P12: 9.964822771 | R12: 1.263473054 | S12: 1.201596806 | T12: 1.141716567 | U12: 1.111776447 | V12: 1.081836327 | W12: 1.01996008 | X12: 0.9600798403 | Y12: 0.5209512218 | Z12: 0.5298424452 | AA12: 0.5396765734 | AB12: 0.5451442848 | AC12: 0.5506119962 | AD12: 0.5628446826 | AE12: 0.5766200287 | AF12: 0.9 | AG12: 0.9 | AH12: 0.9 | AI12: 0.9 | AJ12: 0.9 | AK12: 0.9 | AL12: 0.9 | AM12: =Y12*C12+($A$4-80)*AF12*$A$12/1000 -> 11.84774096 | AN12: =Z12*E12+($A$4-80)*AG12*$A$12/1000 -> 11.45982582 | AO12: =AA12*G12+($A$4-80)*AH12*$A$12/1000 -> 11.09083832 | AP12: =AB12*I12+($A$4-80)*AI12*$A$12/1000 -> 10.90941437 | AQ12: =AC12*K12+($A$4-80)*AJ12*$A$12/1000 -> 10.72209708 | AR12: =AD12*M12+($A$4-80)*AK12*$A$12/1000 -> 10.33342393 | AS12: =AE12*O12+($A$4-80)*AL12*$A$12/1000 -> 9.964822771
B13: 67 | C13: 21.16167665 | D13: 14.97127091 | E13: 20.11976048 | F13: 14.53922822 | G13: 19.04191617 | H13: 14.0811046 | I13: 18.52095808 | J13: 13.87017825 | K13: 18 | L13: 13.64944583 | M13: 16.92215569 | N13: 13.19037787 | O13: 15.88023952 | P13: 12.7591679 | R13: 1.175648703 | S13: 1.117764471 | T13: 1.057884232 | U13: 1.028942116 | V13: 1 | W13: 0.9401197605 | X13: 0.8822355289 | Y13: 0.7074709228 | Z13: 0.7226342597 | AA13: 0.7394793926 | AB13: 0.7488909694 | AC13: 0.7583025462 | AD13: 0.7794738517 | AE13: 0.8034619301 | AF13: 0.9 | AG13: 0.9 | AH13: 0.9 | AI13: 0.9 | AJ13: 0.9 | AK13: 0.9 | AL13: 0.9 | AM13: =Y13*C13+($A$4-80)*AF13*$A$12/1000 -> 14.97127091 | AN13: =Z13*E13+($A$4-80)*AG13*$A$12/1000 -> 14.53922822 | AO13: =AA13*G13+($A$4-80)*AH13*$A$12/1000 -> 14.0811046 | AP13: =AB13*I13+($A$4-80)*AI13*$A$12/1000 -> 13.87017825 | AQ13: =AC13*K13+($A$4-80)*AJ13*$A$12/1000 -> 13.64944583 | AR13: =AD13*M13+($A$4-80)*AK13*$A$12/1000 -> 13.19037787 | AS13: =AE13*O13+($A$4-80)*AL13*$A$12/1000 -> 12.7591679
B14: 62 | C14: 19.47305389 | D14: 17.99994396 | E14: 18.64670659 | F14: 17.66518752 | G14: 17.82035928 | H14: 17.32990221 | I14: 17.4251497 | J14: 17.1853597 | K14: =V14*$K$13 -> 17.02994012 | L14: 17.02994012 | M14: 16.20359281 | N14: 16.20359281 | O14: 15.37724551 | P14: 15.37724551 | R14: 1.081836327 | S14: 1.035928144 | T14: 0.9900199601 | U14: 0.9680638723 | V14: 0.9461077844 | W14: 0.9001996008 | X14: 0.8542914172 | Y14: 0.9243513656 | Z14: 0.9473623367 | AA14: 0.9724777112 | AB14: 0.9862388556 | AC14: 1 | AD14: 1 | AE14: 1 | AF14: 0.7217349584 | AG14: 0.6369487342 | AH14: 0.5444086254 | AI14: 0.4937043127 | AJ14: 0.443 | AK14: 0.443 | AL14: 0.443 | AM14: 17.99994396 | AN14: =Z14*E14+($A$4-80)*AG14*$A$12/1000 -> 17.66518752 | AO14: =AA14*G14+($A$4-80)*AH14*$A$12/1000 -> 17.32990221 | AP14: 17.1853597 | AQ14: 17.02994012 | AR14: 16.20359281 | AS14: 15.37724551
B15: 57 | C15: 19.4011976 | D15: 19.4011976 | E15: 18.5748503 | F15: 18.5748503 | G15: 17.78443114 | H15: 17.78443114 | I15: 17.38922156 | J15: 17.38922156 | K15: 16.99401198 | L15: 16.99401198 | M15: 16.20359281 | N15: 16.20359281 | O15: 15.41317365 | P15: 15.41317365 | R15: 1.077844311 | S15: 1.031936128 | T15: 0.9880239521 | U15: 0.9660678643 | V15: 0.9441117764 | W15: 0.9001996008 | X15: 0.8562874251 | Y15: 1 | Z15: 1 | AA15: 1 | AB15: 1 | AC15: 1 | AD15: 1 | AE15: 1 | AF15: 0.443 | AG15: 0.443 | AH15: 0.443 | AI15: 0.443 | AJ15: 0.443 | AK15: 0.443 | AL15: 0.443 | AM15: 19.4011976 | AN15: =Z15*E15+($A$4-80)*AG15*$A$12/1000 -> 18.5748503 | AO15: =AA15*G15+($A$4-80)*AH15*$A$12/1000 -> 17.78443114 | AP15: 17.38922156 | AQ15: 16.99401198 | AR15: 16.20359281 | AS15: 15.41317365
A16: 1800 | B16: 72 | C16: 22.99401198 | D16: 12.46760073 | E16: 21.88023952 | F16: 12.03502979 | G16: 20.76646707 | H16: 11.60229292 | I16: 20.22754491 | J16: 11.39863324 | K16: 19.68862275 | L16: 11.18978149 | M16: 18.5748503 | N16: 10.7570096 | O16: 17.46107784 | P16: 10.32401491 | R16: 1.27744511 | S16: 1.215568862 | T16: 1.153692615 | U16: 1.123752495 | V16: 1.093812375 | W16: 1.031936128 | X16: 0.9700598802 | Y16: 0.5422107608 | Z16: 0.5500410442 | AA16: 0.5587032635 | AB16: 0.5635203526 | AC16: 0.5683374418 | AD16: 0.5791168932 | AE16: 0.5912587413 | AF16: 0.9 | AG16: 0.9 | AH16: 0.9 | AI16: 0.9 | AJ16: 0.9 | AK16: 0.9 | AL16: 0.9 | AM16: =Y16*C16+($A$4-80)*AF16*$A$16/1000 -> 12.46760073 | AN16: =Z16*E16+($A$4-80)*AG16*$A$16/1000 -> 12.03502979 | AO16: =AA16*G16+($A$4-80)*AH16*$A$16/1000 -> 11.60229292 | AP16: =AB16*I16+($A$4-80)*AI16*$A$16/1000 -> 11.39863324 | AQ16: =AC16*K16+($A$4-80)*AJ16*$A$16/1000 -> 11.18978149 | AR16: =AD16*M16+($A$4-80)*AK16*$A$16/1000 -> 10.7570096 | AS16: =AE16*O16+($A$4-80)*AL16*$A$16/1000 -> 10.32401491
B17: 67 | C17: 21.41317365 | D17: 15.70439617 | E17: 20.33532934 | F17: 15.31186482 | G17: 19.25748503 | H17: 14.91884996 | I17: 18.73652695 | J17: 14.74273613 | K17: 18.21556886 | L17: 14.55397271 | M17: 17.13772455 | N17: 14.16069578 | O17: 16.05988024 | P17: 13.7667402 | R17: 1.189620758 | S17: 1.129740519 | T17: 1.069860279 | U17: 1.040918164 | V17: 1.011976048 | W17: 0.9520958084 | X17: 0.8922155689 | Y17: 0.7333988146 | Z17: 0.7529686175 | AA17: 0.7747039627 | AB17: 0.7868446577 | AC17: 0.7989853528 | AD17: 0.8262879789 | AE17: 0.8572131294 | AF17: 0.9 | AG17: 0.9 | AH17: 0.9 | AI17: 0.9 | AJ17: 0.9 | AK17: 0.9 | AL17: 0.9 | AM17: =Y17*C17+($A$4-80)*AF17*$A$16/1000 -> 15.70439617 | AN17: =Z17*E17+($A$4-80)*AG17*$A$16/1000 -> 15.31186482 | AO17: =AA17*G17+($A$4-80)*AH17*$A$16/1000 -> 14.91884996 | AP17: =AB17*I17+($A$4-80)*AI17*$A$16/1000 -> 14.74273613 | AQ17: =AC17*K17+($A$4-80)*AJ17*$A$16/1000 -> 14.55397271 | AR17: =AD17*M17+($A$4-80)*AK17*$A$16/1000 -> 14.16069578 | AS17: =AE17*O17+($A$4-80)*AL17*$A$16/1000 -> 13.7667402
B18: 62 | C18: 19.68862275 | D18: 19.27929326 | E18: 18.93413174 | F18: 18.66147852 | G18: 18.21556886 | H18: 18.07909908 | I18: 17.83832335 | J18: 17.77150161 | K18: 17.46107784 | L18: 17.46107784 | M18: 16.70658683 | N18: 16.70658683 | O18: 15.98802395 | P18: 15.98802395 | R18: 1.093812375 | S18: 1.051896208 | T18: 1.011976048 | U18: 0.9910179641 | V18: 0.9700598802 | W18: 0.9281437126 | X18: 0.8882235529 | Y18: 0.9792098463 | Z18: 0.9855999089 | AA18: 0.9925080694 | AB18: 0.9962540347 | AC18: 1 | AD18: 1 | AE18: 1 | AF18: 0.5196034002 | AG18: 0.4960585755 | AH18: 0.4706047676 | AI18: 0.4568023838 | AJ18: 0.443 | AK18: 0.443 | AL18: 0.443 | AM18: 19.27929326 | AN18: =Z18*E18+($A$4-80)*AG18*$A$16/1000 -> 18.66147852 | AO18: =AA18*G18+($A$4-80)*AH18*$A$16/1000 -> 18.07909908 | AP18: 17.77150161 | AQ18: 17.46107784 | AR18: 16.70658683 | AS18: 15.98802395
B19: 57 | C19: 19.9760479 | D19: 19.9760479 | E19: 19.11377246 | F19: 19.11377246 | G19: 18.28742515 | H19: 18.28742515 | I19: 17.85628743 | J19: 17.85628743 | K19: 17.4251497 | L19: 17.4251497 | M19: 16.5988024 | N19: 16.5988024 | O19: 15.73652695 | P19: 15.73652695 | R19: 1.109780439 | S19: 1.061876248 | T19: 1.015968064 | U19: 0.9920159681 | V19: 0.9680638723 | W19: 0.9221556886 | X19: 0.874251497 | Y19: 1 | Z19: 1 | AA19: 1 | AB19: 1 | AC19: 1 | AD19: 1 | AE19: 1 | AF19: 0.443 | AG19: 0.443 | AH19: 0.443 | AI19: 0.443 | AJ19: 0.443 | AK19: 0.443 | AL19: 0.443 | AM19: 19.9760479 | AN19: =Z19*E19+($A$4-80)*AG19*$A$16/1000 -> 19.11377246 | AO19: =AA19*G19+($A$4-80)*AH19*$A$16/1000 -> 18.28742515 | AP19: 17.85628743 | AQ19: 17.4251497 | AR19: 16.5988024 | AS19: 15.73652695

Sheet 4AC13L_60 (hidden)
A2: 4AC13L_60
A3: Evaporator Air | C3: Condenser Entering Air Temperature ˚F
A4: 80 | B4: °F DB | C4: 65 | E4: 75 | G4: 85 | I4: 90 | K4: 95 | M4: 105 | O4: 115
A5: CFM | B5: EWB† ˚F | C5: Capacity Mbtuh | E5: Capacity Mbtuh | G5: Capacity Mbtuh | I5: Capacity Mbtuh | K5: Capacity Mbtuh | M5: Capacity Mbtuh | O5: Capacity Mbtuh
C6: Total | D6: Sens. | E6: Total | F6: Sens. | G6: Total | H6: Sens. | I6: Total | J6: Sens. | K6: Total | L6: Sens. | M6: Total | N6: Sens. | O6: Total | P6: Sens.
R7: Total Factors | Y7: Sens. % | AF7: IDB Adj | AM7: Sens Calc
A8: 1600 | B8: 72 | C8: =R8*$K$13 -> 21.92568659 | D8: =IF(AM8>C8,C8,AM8) -> 11.02705981 | E8: =S8*$K$13 -> 20.96607431 | F8: =IF(AN8>E8,E8,AN8) -> 10.53362648 | G8: =T8*$K$13 -> 20.0355412 | H8: =IF(AO8>G8,G8,AO8) -> 10.05479936 | I8: =U8*$K$13 -> 19.55573506 | J8: =IF(AP8>I8,I8,AP8) -> 9.807938566 | K8: =V8*$K$13 -> 19.07592892 | L8: =IF(AQ8>K8,K8,AQ8) -> 9.561375681 | M8: =W8*$K$13 -> 18.11631664 | N8: =IF(AR8>M8,M8,AR8) -> 9.067967262 | O8: =X8*$K$13 -> 17.18578352 | P8: =IF(AS8>O8,O8,AS8) -> 8.589109806 | R8: 1.2180937 | S8: 1.164781906 | T8: 1.113085622 | U8: 1.086429725 | V8: 1.059773829 | W8: 1.006462036 | X8: 0.9547657512 | Y8: 0.5029288259 | Z8: 0.5024129132 | AA8: 0.5018481537 | AB8: 0.5015377094 | AC8: 0.5012272651 | AD8: 0.5005414424 | AE8: 0.499779937 | AF8: =IF(Y8<0.9,0.9,Y8*-3.6846+4.1276) -> 0.9 | AG8: =IF(Z8<0.9,0.9,Z8*-3.6846+4.1276) -> 0.9 | AH8: 0.9 | AI8: 0.9 | AJ8: 0.9 | AK8: 0.9 | AL8: 0.9 | AM8: =Y8*C8+($A$4-80)*AF8*$A$8/1000 -> 11.02705981 | AN8: =Z8*E8+($A$4-80)*AG8*$A$8/1000 -> 10.53362648 | AO8: =AA8*G8+($A$4-80)*AH8*$A$8/1000 -> 10.05479936 | AP8: =AB8*I8+($A$4-80)*AI8*$A$8/1000 -> 9.807938566 | AQ8: =AC8*K8+($A$4-80)*AJ8*$A$8/1000 -> 9.561375681 | AR8: =AD8*M8+($A$4-80)*AK8*$A$8/1000 -> 9.067967262 | AS8: =AE8*O8+($A$4-80)*AL8*$A$8/1000 -> 8.589109806
B9: 67 | C9: 20.47172859 | D9: 13.72317452 | E9: 19.453958 | F9: =IF(AN9>E9,E9,AN9) -> 13.36513048 | G9: 18.4361874 | H9: =IF(AO9>G9,G9,AO9) -> 13.0069157 | I9: 17.94184168 | J9: =IF(AP9>I9,I9,AP9) -> 12.84336936 | K9: =V9*$K$13 -> 17.44749596 | L9: =IF(AQ9>K9,K9,AQ9) -> 12.66961644 | M9: 16.42972536 | N9: =IF(AR9>M9,M9,AR9) -> 12.31163803 | O9: 15.41195477 | P9: =IF(AS9>O9,O9,AS9) -> 11.95346383 | R9: 1.137318255 | S9: 1.080775444 | T9: 1.024232633 | U9: 0.9967689822 | V9: 0.9693053312 | W9: 0.9127625202 | X9: 0.8562197092 | Y9: 0.6703476192 | Z9: 0.6870134333 | AA9: 0.7055100609 | AB9: 0.7158333905 | AC9: 0.7261567202 | AD9: 0.7493514198 | AE9: 0.775596867 | AF9: =IF(Y9<0.9,0.9,Y9*-3.6846+4.1276) -> 0.9 | AG9: 0.9 | AH9: 0.9 | AI9: 0.9 | AJ9: 0.9 | AK9: 0.9 | AL9: 0.9 | AM9: =Y9*C9+($A$4-80)*AF9*$A$8/1000 -> 13.72317452 | AN9: =Z9*E9+($A$4-80)*AG9*$A$8/1000 -> 13.36513048 | AO9: =AA9*G9+($A$4-80)*AH9*$A$8/1000 -> 13.0069157 | AP9: =AB9*I9+($A$4-80)*AI9*$A$8/1000 -> 12.84336936 | AQ9: =AC9*K9+($A$4-80)*AJ9*$A$8/1000 -> 12.66961644 | AR9: =AD9*M9+($A$4-80)*AK9*$A$8/1000 -> 12.31163803 | AS9: =AE9*O9+($A$4-80)*AL9*$A$8/1000 -> 11.95346383
B10: 62 | C10: 18.78513732 | D10: 16.10713082 | E10: 17.94184168 | F10: 15.7777445 | G10: 17.1276252 | H10: 15.47437896 | I10: 16.70597738 | J10: 15.31540369 | K10: =V10*$K$13 -> 16.28432956 | L10: 15.14522352 | M10: 15.44103393 | N10: 14.81581433 | O10: 14.59773829 | P10: 14.48610767 | R10: 1.04361874 | S10: 0.9967689822 | T10: 0.9515347334 | U10: 0.9281098546 | V10: 0.9046849758 | W10: 0.8578352181 | X10: 0.8109854604 | Y10: 0.8574401423 | Z10: 0.8793826621 | AA10: 0.9034748707 | AB10: 0.9167619075 | AC10: 0.9300489443 | AD10: 0.959509214 | AE10: 0.9923528826 | AF10: 0.9 | AG10: 0.9 | AH10: 0.7986564915 | AI10: 0.7496990757 | AJ10: 0.7007416598 | AK10: 0.5921923501 | AL10: 0.4711765688 | AM10: 16.10713082 | AN10: =Z10*E10+($A$4-80)*AG10*$A$8/1000 -> 15.7777445 | AO10: =AA10*G10+($A$4-80)*AH10*$A$8/1000 -> 15.47437896 | AP10: 15.31540369 | AQ10: 15.14522352 | AR10: 14.81581433 | AS10: 14.48610767
B11: 57 | C11: 18.20355412 | D11: 18.20355412 | E11: 17.5638126 | F11: 17.5638126 | G11: 16.92407108 | H11: 16.92407108 | I11: 16.60420032 | J11: 16.60420032 | K11: =V11*$K$13 -> 16.28432956 | L11: 16.28432956 | M11: 15.64458805 | N11: 15.64458805 | O11: 15.00484653 | P11: 15.00484653 | R11: 1.011308562 | S11: 0.9757673667 | T11: 0.9402261712 | U11: 0.9224555735 | V11: 0.9046849758 | W11: 0.8691437803 | X11: 0.8336025848 | Y11: 1 | Z11: 1 | AA11: 1 | AB11: 1 | AC11: 1 | AD11: 1 | AE11: 1 | AF11: 0.443 | AG11: 0.443 | AH11: 0.443 | AI11: 0.443 | AJ11: 0.443 | AK11: 0.443 | AL11: 0.443 | AM11: 18.20355412 | AN11: =Z11*E11+($A$4-80)*AG11*$A$8/1000 -> 17.5638126 | AO11: =AA11*G11+($A$4-80)*AH11*$A$8/1000 -> 16.92407108 | AP11: =AB11*I11+($A$4-80)*AI11*$A$8/1000 -> 16.60420032 | AQ11: 16.28432956 | AR11: 15.64458805 | AS11: 15.00484653
A12: 1800 | B12: 72 | C12: 22.30371567 | D12: 11.30853118 | E12: 21.31502423 | F12: 11.02340782 | G12: 20.29725363 | H12: 10.72321723 | I12: 19.80290792 | J12: 10.58383545 | K12: =V12*$K$13 -> 19.3085622 | L12: 10.43837334 | M12: 18.2907916 | N12: 10.1377707 | O12: 17.30210016 | P12: 9.853263374 | R12: 1.239095315 | S12: 1.184168013 | T12: 1.127625202 | U12: 1.100161551 | V12: 1.0726979 | W12: 1.016155089 | X12: 0.9612277868 | Y12: 0.5070245403 | Z12: 0.5171660936 | AA12: 0.5283087762 | AB12: 0.5344586508 | AC12: 0.5406085254 | AD12: 0.5542554375 | AE12: 0.5694836628 | AF12: 0.9 | AG12: 0.9 | AH12: 0.9 | AI12: 0.9 | AJ12: 0.9 | AK12: 0.9 | AL12: 0.9 | AM12: =Y12*C12+($A$4-80)*AF12*$A$12/1000 -> 11.30853118 | AN12: =Z12*E12+($A$4-80)*AG12*$A$12/1000 -> 11.02340782 | AO12: =AA12*G12+($A$4-80)*AH12*$A$12/1000 -> 10.72321723 | AP12: =AB12*I12+($A$4-80)*AI12*$A$12/1000 -> 10.58383545 | AQ12: =AC12*K12+($A$4-80)*AJ12*$A$12/1000 -> 10.43837334 | AR12: =AD12*M12+($A$4-80)*AK12*$A$12/1000 -> 10.1377707 | AS12: =AE12*O12+($A$4-80)*AL12*$A$12/1000 -> 9.853263374
B13: 67 | C13: 20.70436187 | D13: 14.62066192 | E13: 19.80290792 | F13: 14.18541661 | G13: 18.90145396 | H13: 13.75021526 | I13: 18.45072698 | J13: 13.5354022 | K13: 18 | L13: 13.31506451 | M13: 17.06946688 | N13: 12.85806765 | O13: 16.16801292 | P13: 12.42260584 | R13: 1.150242326 | S13: 1.100161551 | T13: 1.050080775 | U13: 1.025040388 | V13: 1 | W13: 0.9483037157 | X13: 0.8982229402 | Y13: 0.7061633682 | Z13: 0.7163299787 | AA13: 0.7274686535 | AB13: 0.7335972297 | AC13: 0.7397258059 | AD13: 0.7532788071 | AE13: 0.7683446256 | AF13: 0.9 | AG13: 0.9 | AH13: 0.9 | AI13: 0.9 | AJ13: 0.9 | AK13: 0.9 | AL13: 0.9 | AM13: =Y13*C13+($A$4-80)*AF13*$A$12/1000 -> 14.62066192 | AN13: =Z13*E13+($A$4-80)*AG13*$A$12/1000 -> 14.18541661 | AO13: =AA13*G13+($A$4-80)*AH13*$A$12/1000 -> 13.75021526 | AP13: =AB13*I13+($A$4-80)*AI13*$A$12/1000 -> 13.5354022 | AQ13: =AC13*K13+($A$4-80)*AJ13*$A$12/1000 -> 13.31506451 | AR13: =AD13*M13+($A$4-80)*AK13*$A$12/1000 -> 12.85806765 | AS13: =AE13*O13+($A$4-80)*AL13*$A$12/1000 -> 12.42260584
B14: 62 | C14: 19.33764136 | D14: 17.31266536 | E14: 18.34894992 | F14: 16.89213018 | G14: 17.36025848 | H14: 16.47183464 | I14: 16.86591276 | J14: 16.26965035 | K14: =V14*$K$13 -> 16.37156704 | L14: 16.05182238 | M14: 15.38287561 | N14: 15.38287561 | O14: 14.36510501 | P14: 14.36510501 | R14: 1.074313409 | S14: 1.019386107 | T14: 0.9644588045 | U14: 0.9369951535 | V14: 0.9095315024 | W14: 0.8546042003 | X14: 0.7980613893 | Y14: 0.8952831962 | Z14: 0.9206047352 | AA14: 0.9488242735 | AB14: 0.9646468935 | AC14: 0.9804695136 | AD14: 1 | AE14: 1 | AF14: 0.9 | AG14: 0.7355397927 | AH14: 0.6315620819 | AI14: 0.573262056 | AJ14: 0.5149620302 | AK14: 0.443 | AL14: 0.443 | AM14: 17.31266536 | AN14: =Z14*E14+($A$4-80)*AG14*$A$12/1000 -> 16.89213018 | AO14: =AA14*G14+($A$4-80)*AH14*$A$12/1000 -> 16.47183464 | AP14: 16.26965035 | AQ14: 16.05182238 | AR14: 15.38287561 | AS14: 14.36510501
B15: 57 | C15: 18.90145396 | D15: 18.90145396 | E15: 18.20355412 | F15: 18.20355412 | G15: 17.53473344 | H15: 17.53473344 | I15: 17.2003231 | J15: 17.2003231 | K15: 16.86591276 | L15: 16.86591276 | M15: 16.16801292 | N15: 16.16801292 | O15: 15.49919225 | P15: 15.49919225 | R15: 1.050080775 | S15: 1.011308562 | T15: 0.9741518578 | U15: 0.9555735057 | V15: 0.9369951535 | W15: 0.8982229402 | X15: 0.8610662359 | Y15: 1 | Z15: 1 | AA15: 1 | AB15: 1 | AC15: 1 | AD15: 1 | AE15: 1 | AF15: 0.443 | AG15: 0.443 | AH15: 0.443 | AI15: 0.443 | AJ15: 0.443 | AK15: 0.443 | AL15: 0.443 | AM15: 18.90145396 | AN15: =Z15*E15+($A$4-80)*AG15*$A$12/1000 -> 18.20355412 | AO15: =AA15*G15+($A$4-80)*AH15*$A$12/1000 -> 17.53473344 | AP15: 17.2003231 | AQ15: 16.86591276 | AR15: 16.16801292 | AS15: 15.49919225
A16: 2000 | B16: 72 | C16: 22.53634895 | D16: 11.92160437 | E16: 21.57673667 | F16: 11.49776202 | G16: 20.61712439 | H16: 11.07387172 | I16: 20.13731826 | J16: 10.86301556 | K16: 19.65751212 | L16: 10.64992649 | M16: 18.69789984 | N16: 10.22591795 | O16: 17.76736672 | P16: 9.817904467 | R16: 1.252019386 | S16: 1.198707593 | T16: 1.1453958 | U16: 1.118739903 | V16: 1.092084006 | W16: 1.038772213 | X16: 0.9870759289 | Y16: 0.5289944877 | Z16: 0.5328777095 | AA16: 0.5371200903 | AB16: 0.5394469821 | AC16: 0.541773874 | AD16: 0.5469019535 | AE16: 0.5525807297 | AF16: 0.9 | AG16: 0.9 | AH16: 0.9 | AI16: 0.9 | AJ16: 0.9 | AK16: 0.9 | AL16: 0.9 | AM16: =Y16*C16+($A$4-80)*AF16*$A$16/1000 -> 11.92160437 | AN16: =Z16*E16+($A$4-80)*AG16*$A$16/1000 -> 11.49776202 | AO16: =AA16*G16+($A$4-80)*AH16*$A$16/1000 -> 11.07387172 | AP16: =AB16*I16+($A$4-80)*AI16*$A$16/1000 -> 10.86301556 | AQ16: =AC16*K16+($A$4-80)*AJ16*$A$16/1000 -> 10.64992649 | AR16: =AD16*M16+($A$4-80)*AK16*$A$16/1000 -> 10.22591795 | AS16: =AE16*O16+($A$4-80)*AL16*$A$16/1000 -> 9.817904467
B17: 67 | C17: 20.84975767 | D17: 15.23102248 | E17: 20.00646204 | F17: 14.91226977 | G17: 19.1631664 | H17: 14.59342901 | I17: 18.74151858 | J17: 14.43767859 | K17: 18.31987076 | L17: 14.2744881 | M17: 17.50565428 | N17: 13.97865293 | O17: 16.66235864 | P17: 13.66008468 | R17: 1.158319871 | S17: 1.111470113 | T17: 1.064620355 | U17: 1.041195477 | V17: 1.017770598 | W17: 0.9725363489 | X17: 0.9256865913 | Y17: 0.7305131655 | Z17: 0.7453726573 | AA17: 0.7615353701 | AB17: 0.7703579907 | AC17: 0.7791806113 | AD17: 0.7985221634 | AE17: 0.819816988 | AF17: 0.9 | AG17: 0.9 | AH17: 0.9 | AI17: 0.9 | AJ17: 0.9 | AK17: 0.9 | AL17: 0.9 | AM17: =Y17*C17+($A$4-80)*AF17*$A$16/1000 -> 15.23102248 | AN17: =Z17*E17+($A$4-80)*AG17*$A$16/1000 -> 14.91226977 | AO17: =AA17*G17+($A$4-80)*AH17*$A$16/1000 -> 14.59342901 | AP17: =AB17*I17+($A$4-80)*AI17*$A$16/1000 -> 14.43767859 | AQ17: =AC17*K17+($A$4-80)*AJ17*$A$16/1000 -> 14.2744881 | AR17: =AD17*M17+($A$4-80)*AK17*$A$16/1000 -> 13.97865293 | AS17: =AE17*O17+($A$4-80)*AL17*$A$16/1000 -> 13.66008468
B18: 62 | C18: 19.39579968 | D18: 18.30012891 | E18: 18.61066236 | F18: 17.88016559 | G18: 17.82552504 | H18: 17.46024968 | I18: 17.43295638 | J18: 17.2543409 | K18: 17.04038772 | L18: 17.04038772 | M18: 16.2552504 | N18: 16.2552504 | O18: 15.47011309 | P18: 15.47011309 | R18: 1.077544426 | S18: 1.033925687 | T18: 0.9903069467 | U18: 0.9684975767 | V18: 0.9466882068 | W18: 0.9030694669 | X18: 0.859450727 | Y18: 0.9435098946 | Z18: 0.960748481 | AA18: 0.979508297 | AB18: 0.9897541485 | AC18: 1 | AD18: 1 | AE18: 1 | AF18: 0.6511434425 | AG18: 0.5876261469 | AH18: 0.518503729 | AI18: 0.4807518645 | AJ18: 0.443 | AK18: 0.443 | AL18: 0.443 | AM18: 18.30012891 | AN18: =Z18*E18+($A$4-80)*AG18*$A$16/1000 -> 17.88016559 | AO18: =AA18*G18+($A$4-80)*AH18*$A$16/1000 -> 17.46024968 | AP18: 17.2543409 | AQ18: 17.04038772 | AR18: 16.2552504 | AS18: 15.47011309
B19: 57 | C19: 19.27948304 | D19: 19.27948304 | E19: 18.75605816 | F19: 18.75605816 | G19: 18.20355412 | H19: 18.20355412 | I19: 17.9273021 | J19: 17.9273021 | K19: 17.65105008 | L19: 17.65105008 | M19: 17.1276252 | N19: 17.1276252 | O19: 16.57512116 | P19: 16.57512116 | R19: 1.071082391 | S19: 1.042003231 | T19: 1.011308562 | U19: 0.9959612278 | V19: 0.9806138934 | W19: 0.9515347334 | X19: 0.9208400646 | Y19: 1 | Z19: 1 | AA19: 1 | AB19: 1 | AC19: 1 | AD19: 1 | AE19: 1 | AF19: 0.443 | AG19: 0.443 | AH19: 0.443 | AI19: 0.443 | AJ19: 0.443 | AK19: 0.443 | AL19: 0.443 | AM19: 19.27948304 | AN19: =Z19*E19+($A$4-80)*AG19*$A$16/1000 -> 18.75605816 | AO19: =AA19*G19+($A$4-80)*AH19*$A$16/1000 -> 18.20355412 | AP19: 17.9273021 | AQ19: 17.65105008 | AR19: 17.1276252 | AS19: 16.57512116

Sheet 4SCU13L_18 (hidden)
A2: 4SCU13L_18
A3: Evaporator Air | C3: Condenser Entering Air Temperature ˚F
A4: 80 | B4: °F DB | C4: 65 | E4: 75 | G4: 85 | I4: 90 | K4: 95 | M4: 105 | O4: 115
A5: CFM | B5: EWB† ˚F | C5: Capacity Mbtuh | E5: Capacity Mbtuh | G5: Capacity Mbtuh | I5: Capacity Mbtuh | K5: Capacity Mbtuh | M5: Capacity Mbtuh | O5: Capacity Mbtuh
C6: Total | D6: Sens. | E6: Total | F6: Sens. | G6: Total | H6: Sens. | I6: Total | J6: Sens. | K6: Total | L6: Sens. | M6: Total | N6: Sens. | O6: Total | P6: Sens.
R7: Total Factors | Y7: Sens. % | AF7: IDB Adj | AM7: Sens Calc
A8: 450 | B8: 72 | C8: =R8*$K$13 -> 22.20652174 | D8: =IF(AM8>C8,C8,AM8) -> 10.85960645 | E8: =S8*$K$13 -> 21.13043478 | F8: =IF(AN8>E8,E8,AN8) -> 10.4624048 | G8: =T8*$K$13 -> 19.95652174 | H8: =IF(AO8>G8,G8,AO8) -> 10.01657591 | I8: =U8*$K$13 -> 19.41847826 | J8: =IF(AP8>I8,I8,AP8) -> 9.82015991 | K8: =V8*$K$13 -> 18.88043478 | L8: =IF(AQ8>K8,K8,AQ8) -> 9.619663177 | M8: =W8*$K$13 -> 17.80434783 | N8: =IF(AR8>M8,M8,AR8) -> 9.223319451 | O8: =X8*$K$13 -> 16.63043478 | P8: =IF(AS8>O8,O8,AS8) -> 8.776034887 | R8: 1.233695652 | S8: 1.173913043 | T8: 1.108695652 | U8: 1.078804348 | V8: 1.048913043 | W8: 0.9891304348 | X8: 0.9239130435 | Y8: 0.4890277992 | Z8: 0.4951343837 | AA8: 0.5019199256 | AB8: 0.5057121253 | AC8: 0.5095043249 | AD8: 0.5180374783 | AE8: 0.5277092873 | AF8: =IF(Y8<0.9,0.9,Y8*-3.6846+4.1276) -> 0.9 | AG8: =IF(Z8<0.9,0.9,Z8*-3.6846+4.1276) -> 0.9 | AH8: 0.9 | AI8: 0.9 | AJ8: 0.9 | AK8: 0.9 | AL8: 0.9 | AM8: =Y8*C8+($A$4-80)*AF8*$A$8/1000 -> 10.85960645 | AN8: =Z8*E8+($A$4-80)*AG8*$A$8/1000 -> 10.4624048 | AO8: =AA8*G8+($A$4-80)*AH8*$A$8/1000 -> 10.01657591 | AP8: =AB8*I8+($A$4-80)*AI8*$A$8/1000 -> 9.82015991 | AQ8: =AC8*K8+($A$4-80)*AJ8*$A$8/1000 -> 9.619663177 | AR8: =AD8*M8+($A$4-80)*AK8*$A$8/1000 -> 9.223319451 | AS8: =AE8*O8+($A$4-80)*AL8*$A$8/1000 -> 8.776034887
B9: 67 | C9: 20.44565217 | D9: 13.58092482 | E9: 19.36956522 | F9: =IF(AN9>E9,E9,AN9) -> 13.09687296 | G9: 18.39130435 | H9: =IF(AO9>G9,G9,AO9) -> 12.67890945 | I9: 17.85326087 | J9: =IF(AP9>I9,I9,AP9) -> 12.44011724 | K9: =V9*$K$13 -> 17.31521739 | L9: =IF(AQ9>K9,K9,AQ9) -> 12.19336084 | M9: 16.33695652 | N9: =IF(AR9>M9,M9,AR9) -> 11.7766209 | O9: 15.26086957 | P9: =IF(AS9>O9,O9,AS9) -> 11.28915673 | R9: 1.135869565 | S9: 1.076086957 | T9: 1.02173913 | U9: 0.9918478261 | V9: 0.9619565217 | W9: 0.9076086957 | X9: 0.847826087 | Y9: 0.664245127 | Z9: 0.6761573022 | AA9: 0.6893969675 | AB9: 0.6967980435 | AC9: 0.7041991195 | AD9: 0.7208576998 | AE9: 0.7397453126 | AF9: =IF(Y9<0.9,0.9,Y9*-3.6846+4.1276) -> 0.9 | AG9: 0.9 | AH9: 0.9 | AI9: 0.9 | AJ9: 0.9 | AK9: 0.9 | AL9: 0.9 | AM9: =Y9*C9+($A$4-80)*AF9*$A$8/1000 -> 13.58092482 | AN9: =Z9*E9+($A$4-80)*AG9*$A$8/1000 -> 13.09687296 | AO9: =AA9*G9+($A$4-80)*AH9*$A$8/1000 -> 12.67890945 | AP9: =AB9*I9+($A$4-80)*AI9*$A$8/1000 -> 12.44011724 | AQ9: =AC9*K9+($A$4-80)*AJ9*$A$8/1000 -> 12.19336084 | AR9: =AD9*M9+($A$4-80)*AK9*$A$8/1000 -> 11.7766209 | AS9: =AE9*O9+($A$4-80)*AL9*$A$8/1000 -> 11.28915673
B10: 62 | C10: 18.58695652 | D10: 15.66016603 | E10: 17.60869565 | F10: 15.18375071 | G10: 16.72826087 | H10: 14.7917272 | I10: 16.23913043 | J10: 14.55842379 | K10: =V10*$K$13 -> 15.75 | L10: 14.31312019 | M10: 14.86956522 | N10: 13.92346714 | O10: 13.89130435 | P10: 13.44209521 | R10: 1.032608696 | S10: 0.9782608696 | T10: 0.9293478261 | U10: 0.902173913 | V10: 0.875 | W10: 0.8260869565 | X10: 0.7717391304 | Y10: 0.8425352484 | Z10: 0.8622870776 | AA10: 0.884235804 | AB10: 0.8965026701 | AC10: 0.9087695361 | AD10: 0.9363735214 | AE10: 0.9676625659 | AF10: 0.9 | AG10: 0.9 | AH10: 0.9 | AI10: 0.9 | AJ10: 0.7791477673 | AK10: 0.6774381232 | AL10: 0.5621505097 | AM10: 15.66016603 | AN10: =Z10*E10+($A$4-80)*AG10*$A$8/1000 -> 15.18375071 | AO10: =AA10*G10+($A$4-80)*AH10*$A$8/1000 -> 14.7917272 | AP10: 14.55842379 | AQ10: 14.31312019 | AR10: 13.92346714 | AS10: 13.44209521
B11: 57 | C11: 17.70652174 | D11: 17.70652174 | E11: 16.92391304 | F11: 16.92391304 | G11: 16.23913043 | H11: 16.23913043 | I11: 15.84782609 | J11: 15.84782609 | K11: =V11*$K$13 -> 15.45652174 | L11: 15.45652174 | M11: 14.67391304 | N11: 14.67391304 | O11: 13.98913043 | P11: 13.98913043 | R11: 0.9836956522 | S11: 0.9402173913 | T11: 0.902173913 | U11: 0.8804347826 | V11: 0.8586956522 | W11: 0.8152173913 | X11: 0.777173913 | Y11: 1 | Z11: 1 | AA11: 1 | AB11: 1 | AC11: 1 | AD11: 1 | AE11: 1 | AF11: 0.443 | AG11: 0.443 | AH11: 0.443 | AI11: 0.443 | AJ11: 0.443 | AK11: 0.443 | AL11: 0.443 | AM11: 17.70652174 | AN11: =Z11*E11+($A$4-80)*AG11*$A$8/1000 -> 16.92391304 | AO11: =AA11*G11+($A$4-80)*AH11*$A$8/1000 -> 16.23913043 | AP11: =AB11*I11+($A$4-80)*AI11*$A$8/1000 -> 15.84782609 | AQ11: 15.45652174 | AR11: 14.67391304 | AS11: 13.98913043
A12: 600 | B12: 72 | C12: 23.2826087 | D12: 12.03954018 | E12: 22.10869565 | F12: 11.66700788 | G12: 20.83695652 | H12: 11.24264916 | I12: 20.25 | J12: 11.06068192 | K12: =V12*$K$13 -> 19.66304348 | L12: 10.87090442 | M12: 18.39130435 | N12: 10.44478808 | O12: 17.2173913 | P12: 10.07398472 | R12: 1.293478261 | S12: 1.22826087 | T12: 1.157608696 | U12: 1.125 | V12: 1.092391304 | W12: 1.02173913 | X12: 0.9565217391 | Y12: 0.5171044337 | Z12: 0.5277112707 | AA12: 0.5395533243 | AB12: 0.5462065147 | AC12: 0.5528597051 | AD12: 0.5679199193 | AE12: 0.5851051734 | AF12: 0.9 | AG12: 0.9 | AH12: 0.9 | AI12: 0.9 | AJ12: 0.9 | AK12: 0.9 | AL12: 0.9 | AM12: =Y12*C12+($A$4-80)*AF12*$A$12/1000 -> 12.03954018 | AN12: =Z12*E12+($A$4-80)*AG12*$A$12/1000 -> 11.66700788 | AO12: =AA12*G12+($A$4-80)*AH12*$A$12/1000 -> 11.24264916 | AP12: =AB12*I12+($A$4-80)*AI12*$A$12/1000 -> 11.06068192 | AQ12: =AC12*K12+($A$4-80)*AJ12*$A$12/1000 -> 10.87090442 | AR12: =AD12*M12+($A$4-80)*AK12*$A$12/1000 -> 10.44478808 | AS12: =AE12*O12+($A$4-80)*AL12*$A$12/1000 -> 10.07398472
B13: 67 | C13: 21.42391304 | D13: 15.10561949 | E13: 20.25 | F13: 14.64529863 | G13: 19.17391304 | H13: 14.25549181 | I13: 18.58695652 | J13: 14.03070314 | K13: 18 | L13: 13.79255002 | M13: 16.92391304 | N13: 13.40423216 | O13: 15.84782609 | P13: 13.01820743 | R13: 1.190217391 | S13: 1.125 | T13: 1.065217391 | U13: 1.032608696 | V13: 1 | W13: 0.9402173913 | X13: 0.8804347826 | Y13: 0.7050821883 | Z13: 0.7232246237 | AA13: 0.7434836997 | AB13: 0.7548682393 | AC13: 0.7662527788 | AD13: 0.7920291321 | AE13: 0.8214506746 | AF13: 0.9 | AG13: 0.9 | AH13: 0.9 | AI13: 0.9 | AJ13: 0.9 | AK13: 0.9 | AL13: 0.9 | AM13: =Y13*C13+($A$4-80)*AF13*$A$12/1000 -> 15.10561949 | AN13: =Z13*E13+($A$4-80)*AG13*$A$12/1000 -> 14.64529863 | AO13: =AA13*G13+($A$4-80)*AH13*$A$12/1000 -> 14.25549181 | AP13: =AB13*I13+($A$4-80)*AI13*$A$12/1000 -> 14.03070314 | AQ13: =AC13*K13+($A$4-80)*AJ13*$A$12/1000 -> 13.79255002 | AR13: =AD13*M13+($A$4-80)*AK13*$A$12/1000 -> 13.40423216 | AS13: =AE13*O13+($A$4-80)*AL13*$A$12/1000 -> 13.01820743
B14: 62 | C14: 19.36956522 | D14: 18.1778701 | E14: 18.58695652 | F14: 17.79024668 | G14: 17.70652174 | H14: 17.30913314 | I14: 17.31521739 | J14: 17.12091412 | K14: =V14*$K$13 -> 16.92391304 | L14: 16.92391304 | M14: 16.04347826 | N14: 16.04347826 | O14: 15.16304348 | P14: 15.16304348 | R14: 1.076086957 | S14: 1.032608696 | T14: 0.9836956522 | U14: 0.9619565217 | V14: 0.9402173913 | W14: 0.8913043478 | X14: 0.8423913043 | Y14: 0.9384758974 | Z14: 0.9571360785 | AA14: 0.9775569358 | AB14: 0.9887784679 | AC14: 1 | AD14: 1 | AE14: 1 | AF14: 0.6696917085 | AG14: 0.6009364053 | AH14: 0.5256937143 | AI14: 0.4843468571 | AJ14: 0.443 | AK14: 0.443 | AL14: 0.443 | AM14: 18.1778701 | AN14: =Z14*E14+($A$4-80)*AG14*$A$12/1000 -> 17.79024668 | AO14: =AA14*G14+($A$4-80)*AH14*$A$12/1000 -> 17.30913314 | AP14: 17.12091412 | AQ14: 16.92391304 | AR14: 16.04347826 | AS14: 15.16304348
B15: 57 | C15: 19.36956522 | D15: 19.36956522 | E15: 18.58695652 | F15: 18.58695652 | G15: 17.70652174 | H15: 17.70652174 | I15: 17.26630435 | J15: 17.26630435 | K15: 16.82608696 | L15: 16.82608696 | M15: 16.04347826 | N15: 16.04347826 | O15: 15.16304348 | P15: 15.16304348 | R15: 1.076086957 | S15: 1.032608696 | T15: 0.9836956522 | U15: 0.9592391304 | V15: 0.9347826087 | W15: 0.8913043478 | X15: 0.8423913043 | Y15: 1 | Z15: 1 | AA15: 1 | AB15: 1 | AC15: 1 | AD15: 1 | AE15: 1 | AF15: 0.443 | AG15: 0.443 | AH15: 0.443 | AI15: 0.443 | AJ15: 0.443 | AK15: 0.443 | AL15: 0.443 | AM15: 19.36956522 | AN15: =Z15*E15+($A$4-80)*AG15*$A$12/1000 -> 18.58695652 | AO15: =AA15*G15+($A$4-80)*AH15*$A$12/1000 -> 17.70652174 | AP15: 17.26630435 | AQ15: 16.82608696 | AR15: 16.04347826 | AS15: 15.16304348
A16: 750 | B16: 72 | C16: 23.9673913 | D16: 13.4383724 | E16: 22.59782609 | F16: 12.9200232 | G16: 21.32608696 | H16: 12.45743032 | I16: 20.64130435 | J16: 12.20222138 | K16: 19.95652174 | L16: 11.93740483 | M16: 18.68478261 | N16: 11.4756432 | O16: 17.41304348 | P16: 11.01525484 | R16: 1.331521739 | S16: 1.255434783 | T16: 1.184782609 | U16: 1.14673913 | V16: 1.108695652 | W16: 1.038043478 | X16: 0.9673913043 | Y16: 0.560693996 | Z16: 0.5717374384 | AA16: 0.5841404636 | AB16: 0.591155538 | AC16: 0.5981706124 | AD16: 0.6141705491 | AE16: 0.6325864204 | AF16: 0.9 | AG16: 0.9 | AH16: 0.9 | AI16: 0.9 | AJ16: 0.9 | AK16: 0.9 | AL16: 0.9 | AM16: =Y16*C16+($A$4-80)*AF16*$A$16/1000 -> 13.4383724 | AN16: =Z16*E16+($A$4-80)*AG16*$A$16/1000 -> 12.9200232 | AO16: =AA16*G16+($A$4-80)*AH16*$A$16/1000 -> 12.45743032 | AP16: =AB16*I16+($A$4-80)*AI16*$A$16/1000 -> 12.20222138 | AQ16: =AC16*K16+($A$4-80)*AJ16*$A$16/1000 -> 11.93740483 | AR16: =AD16*M16+($A$4-80)*AK16*$A$16/1000 -> 11.4756432 | AS16: =AE16*O16+($A$4-80)*AL16*$A$16/1000 -> 11.01525484
B17: 67 | C17: 22.01086957 | D17: 16.8291634 | E17: 20.73913043 | F17: 16.30800103 | G17: 19.56521739 | H17: 15.86321402 | I17: 18.97826087 | J17: 15.64988692 | K17: 18.39130435 | L17: 15.42031843 | M17: 17.11956522 | N17: 14.89460276 | O17: 15.94565217 | P17: 14.453255 | R17: 1.222826087 | S17: 1.152173913 | T17: 1.086956522 | U17: 1.054347826 | V17: 1.02173913 | W17: 0.9510869565 | X17: 0.8858695652 | Y17: 0.7645842137 | Z17: 0.7863396724 | AA17: 0.8107864944 | AB17: 0.8246217623 | AC17: 0.8384570302 | AD17: 0.8700339389 | AE17: 0.9064072665 | AF17: 0.9 | AG17: 0.9 | AH17: 0.9 | AI17: 0.9 | AJ17: 0.9 | AK17: 0.9 | AL17: 0.7878517859 | AM17: =Y17*C17+($A$4-80)*AF17*$A$16/1000 -> 16.8291634 | AN17: =Z17*E17+($A$4-80)*AG17*$A$16/1000 -> 16.30800103 | AO17: =AA17*G17+($A$4-80)*AH17*$A$16/1000 -> 15.86321402 | AP17: =AB17*I17+($A$4-80)*AI17*$A$16/1000 -> 15.64988692 | AQ17: =AC17*K17+($A$4-80)*AJ17*$A$16/1000 -> 15.42031843 | AR17: =AD17*M17+($A$4-80)*AK17*$A$16/1000 -> 14.89460276 | AS17: =AE17*O17+($A$4-80)*AL17*$A$16/1000 -> 14.453255
B18: 62 | C18: 20.64130435 | D18: 20.64130435 | E18: 19.66304348 | F18: 19.66304348 | G18: 18.7826087 | H18: 18.7826087 | I18: 18.29347826 | J18: 18.29347826 | K18: 17.80434783 | L18: 17.80434783 | M18: 16.82608696 | N18: 16.82608696 | O18: 15.94565217 | P18: 15.94565217 | R18: 1.14673913 | S18: 1.092391304 | T18: 1.043478261 | U18: 1.016304348 | V18: 0.9891304348 | W18: 0.9347826087 | X18: 0.8858695652 | Y18: 1 | Z18: 1 | AA18: 1 | AB18: 1 | AC18: 1 | AD18: 1 | AE18: 1 | AF18: 0.443 | AG18: 0.443 | AH18: 0.443 | AI18: 0.443 | AJ18: 0.443 | AK18: 0.443 | AL18: 0.443 | AM18: 20.64130435 | AN18: =Z18*E18+($A$4-80)*AG18*$A$16/1000 -> 19.66304348 | AO18: =AA18*G18+($A$4-80)*AH18*$A$16/1000 -> 18.7826087 | AP18: 18.29347826 | AQ18: 17.80434783 | AR18: 16.82608696 | AS18: 15.94565217
B19: 57 | C19: 20.64130435 | D19: 20.64130435 | E19: 19.66304348 | F19: 19.66304348 | G19: 18.68478261 | H19: 18.68478261 | I19: 18.24456522 | J19: 18.24456522 | K19: 17.80434783 | L19: 17.80434783 | M19: 16.82608696 | N19: 16.82608696 | O19: 15.94565217 | P19: 15.94565217 | R19: 1.14673913 | S19: 1.092391304 | T19: 1.038043478 | U19: 1.013586957 | V19: 0.9891304348 | W19: 0.9347826087 | X19: 0.8858695652 | Y19: 1 | Z19: 1 | AA19: 1 | AB19: 1 | AC19: 1 | AD19: 1 | AE19: 1 | AF19: 0.443 | AG19: 0.443 | AH19: 0.443 | AI19: 0.443 | AJ19: 0.443 | AK19: 0.443 | AL19: 0.443 | AM19: 20.64130435 | AN19: =Z19*E19+($A$4-80)*AG19*$A$16/1000 -> 19.66304348 | AO19: =AA19*G19+($A$4-80)*AH19*$A$16/1000 -> 18.68478261 | AP19: 18.24456522 | AQ19: 17.80434783 | AR19: 16.82608696 | AS19: 15.94565217

Sheet 4SCU13L_24 (hidden)
A2: 4SCU13L_24
A3: Evaporator Air | C3: Condenser Entering Air Temperature ˚F
A4: 80 | B4: °F DB | C4: 65 | E4: 75 | G4: 85 | I4: 90 | K4: 95 | M4: 105 | O4: 115
A5: CFM | B5: EWB† ˚F | C5: Capacity Mbtuh | E5: Capacity Mbtuh | G5: Capacity Mbtuh | I5: Capacity Mbtuh | K5: Capacity Mbtuh | M5: Capacity Mbtuh | O5: Capacity Mbtuh
C6: Total | D6: Sens. | E6: Total | F6: Sens. | G6: Total | H6: Sens. | I6: Total | J6: Sens. | K6: Total | L6: Sens. | M6: Total | N6: Sens. | O6: Total | P6: Sens.
R7: Total Factors | Y7: Sens. % | AF7: IDB Adj | AM7: Sens Calc
A8: 600 | B8: 72 | C8: =R8*$K$13 -> 22.05737705 | D8: =IF(AM8>C8,C8,AM8) -> 10.78391761 | E8: =S8*$K$13 -> 20.95081967 | F8: =IF(AN8>E8,E8,AN8) -> 10.36528194 | G8: =T8*$K$13 -> 19.8442623 | H8: =IF(AO8>G8,G8,AO8) -> 9.946622053 | I8: =U8*$K$13 -> 19.29098361 | J8: =IF(AP8>I8,I8,AP8) -> 9.739285087 | K8: =V8*$K$13 -> 18.73770492 | L8: =IF(AQ8>K8,K8,AQ8) -> 9.527933674 | M8: =W8*$K$13 -> 17.63114754 | N8: =IF(AR8>M8,M8,AR8) -> 9.109211448 | O8: =X8*$K$13 -> 16.52459016 | P8: =IF(AS8>O8,O8,AS8) -> 8.69044859 | R8: 1.225409836 | S8: 1.163934426 | T8: 1.102459016 | U8: 1.071721311 | V8: 1.040983607 | W8: 0.9795081967 | X8: 0.9180327869 | Y8: 0.4889029909 | Z8: 0.4947435041 | AA8: 0.5012341555 | AB8: 0.504862027 | AC8: 0.5084898986 | AD8: 0.5166544847 | AE8: 0.5259100833 | AF8: =IF(Y8<0.9,0.9,Y8*-3.6846+4.1276) -> 0.9 | AG8: =IF(Z8<0.9,0.9,Z8*-3.6846+4.1276) -> 0.9 | AH8: 0.9 | AI8: 0.9 | AJ8: 0.9 | AK8: 0.9 | AL8: 0.9 | AM8: =Y8*C8+($A$4-80)*AF8*$A$8/1000 -> 10.78391761 | AN8: =Z8*E8+($A$4-80)*AG8*$A$8/1000 -> 10.36528194 | AO8: =AA8*G8+($A$4-80)*AH8*$A$8/1000 -> 9.946622053 | AP8: =AB8*I8+($A$4-80)*AI8*$A$8/1000 -> 9.739285087 | AQ8: =AC8*K8+($A$4-80)*AJ8*$A$8/1000 -> 9.527933674 | AR8: =AD8*M8+($A$4-80)*AK8*$A$8/1000 -> 9.109211448 | AS8: =AE8*O8+($A$4-80)*AL8*$A$8/1000 -> 8.69044859
B9: 67 | C9: 20.36065574 | D9: 13.46166075 | E9: 19.32786885 | F9: =IF(AN9>E9,E9,AN9) -> 13.0256879 | G9: 18.29508197 | H9: =IF(AO9>G9,G9,AO9) -> 12.58934337 | I9: 17.77868852 | J9: =IF(AP9>I9,I9,AP9) -> 12.3750493 | K9: =V9*$K$13 -> 17.26229508 | L9: =IF(AQ9>K9,K9,AQ9) -> 12.15256144 | M9: 16.30327869 | N9: =IF(AR9>M9,M9,AR9) -> 11.76851111 | O9: 15.2704918 | P9: =IF(AS9>O9,O9,AS9) -> 11.33207904 | R9: 1.131147541 | S9: 1.073770492 | T9: 1.016393443 | U9: 0.987704918 | V9: 0.9590163934 | W9: 0.9057377049 | X9: 0.8483606557 | Y9: 0.6611604714 | Z9: 0.6739329617 | AA9: 0.6881271914 | AB9: 0.6960608644 | AC9: 0.7039945374 | AD9: 0.7218493492 | AE9: 0.7420899855 | AF9: =IF(Y9<0.9,0.9,Y9*-3.6846+4.1276) -> 0.9 | AG9: 0.9 | AH9: 0.9 | AI9: 0.9 | AJ9: 0.9 | AK9: 0.9 | AL9: 0.9 | AM9: =Y9*C9+($A$4-80)*AF9*$A$8/1000 -> 13.46166075 | AN9: =Z9*E9+($A$4-80)*AG9*$A$8/1000 -> 13.0256879 | AO9: =AA9*G9+($A$4-80)*AH9*$A$8/1000 -> 12.58934337 | AP9: =AB9*I9+($A$4-80)*AI9*$A$8/1000 -> 12.3750493 | AQ9: =AC9*K9+($A$4-80)*AJ9*$A$8/1000 -> 12.15256144 | AR9: =AD9*M9+($A$4-80)*AK9*$A$8/1000 -> 11.76851111 | AS9: =AE9*O9+($A$4-80)*AL9*$A$8/1000 -> 11.33207904
B10: 62 | C10: 18.59016393 | D10: 15.97556539 | E10: 17.70491803 | F10: 15.59358644 | G10: 16.74590164 | H10: 15.14684304 | I10: 16.30327869 | J10: 14.96288362 | K10: =V10*$K$13 -> 15.86065574 | L10: 14.76717409 | M10: 14.90163934 | N10: 14.319112 | O10: 14.01639344 | P10: 13.94243221 | R10: 1.032786885 | S10: 0.9836065574 | T10: 0.9303278689 | U10: 0.9057377049 | V10: 0.881147541 | W10: 0.8278688525 | X10: 0.7786885246 | Y10: 0.85935581 | Z10: 0.8807488638 | AA10: 0.904510451 | AB10: 0.9177837111 | AC10: 0.9310569712 | AD10: 0.9609085061 | AE10: 0.9947232336 | AF10: 0.9 | AG10: 0.9 | AH10: 0.7948407921 | AI10: 0.7459341381 | AJ10: 0.697027484 | AK10: 0.5870365184 | AL10: 0.4624427735 | AM10: 15.97556539 | AN10: =Z10*E10+($A$4-80)*AG10*$A$8/1000 -> 15.59358644 | AO10: =AA10*G10+($A$4-80)*AH10*$A$8/1000 -> 15.14684304 | AP10: 14.96288362 | AQ10: 14.76717409 | AR10: 14.319112 | AS10: 13.94243221
B11: 57 | C11: 17.77868852 | D11: 17.77868852 | E11: 17.04098361 | F11: 17.04098361 | G11: 16.30327869 | H11: 16.30327869 | I11: 15.93442623 | J11: 15.93442623 | K11: =V11*$K$13 -> 15.56557377 | L11: 15.56557377 | M11: 14.82786885 | N11: 14.82786885 | O11: 14.09016393 | P11: 14.09016393 | R11: 0.987704918 | S11: 0.9467213115 | T11: 0.9057377049 | U11: 0.8852459016 | V11: 0.8647540984 | W11: 0.8237704918 | X11: 0.7827868852 | Y11: 1 | Z11: 1 | AA11: 1 | AB11: 1 | AC11: 1 | AD11: 1 | AE11: 1 | AF11: 0.443 | AG11: 0.443 | AH11: 0.443 | AI11: 0.443 | AJ11: 0.443 | AK11: 0.443 | AL11: 0.443 | AM11: 17.77868852 | AN11: =Z11*E11+($A$4-80)*AG11*$A$8/1000 -> 17.04098361 | AO11: =AA11*G11+($A$4-80)*AH11*$A$8/1000 -> 16.30327869 | AP11: =AB11*I11+($A$4-80)*AI11*$A$8/1000 -> 15.93442623 | AQ11: 15.56557377 | AR11: 14.82786885 | AS11: 14.09016393
A12: 800 | B12: 72 | C12: 23.09016393 | D12: 12.04126991 | E12: 21.90983607 | F12: 11.6431542 | G12: 20.6557377 | H12: 11.20560968 | I12: 20.06557377 | J12: 11.01041403 | K12: =V12*$K$13 -> 19.47540984 | L12: 10.80786751 | M12: 18.29508197 | N12: 10.41084408 | O12: 17.04098361 | P12: 9.97152522 | R12: 1.282786885 | S12: 1.217213115 | T12: 1.147540984 | U12: 1.114754098 | V12: 1.081967213 | W12: 1.016393443 | X12: 0.9467213115 | Y12: 0.5214891476 | Z12: 0.5314122009 | AA12: 0.5424938021 | AB12: 0.5487216141 | AC12: 0.5549494261 | AD12: 0.5690515135 | AE12: 0.5851496281 | AF12: 0.9 | AG12: 0.9 | AH12: 0.9 | AI12: 0.9 | AJ12: 0.9 | AK12: 0.9 | AL12: 0.9 | AM12: =Y12*C12+($A$4-80)*AF12*$A$12/1000 -> 12.04126991 | AN12: =Z12*E12+($A$4-80)*AG12*$A$12/1000 -> 11.6431542 | AO12: =AA12*G12+($A$4-80)*AH12*$A$12/1000 -> 11.20560968 | AP12: =AB12*I12+($A$4-80)*AI12*$A$12/1000 -> 11.01041403 | AQ12: =AC12*K12+($A$4-80)*AJ12*$A$12/1000 -> 10.80786751 | AR12: =AD12*M12+($A$4-80)*AK12*$A$12/1000 -> 10.41084408 | AS12: =AE12*O12+($A$4-80)*AL12*$A$12/1000 -> 9.97152522
B13: 67 | C13: 21.31967213 | D13: 15.76172143 | E13: 20.21311475 | F13: 15.14858401 | G13: 19.10655738 | H13: 14.53573605 | I13: 18.55327869 | J13: 14.23300845 | K13: 18 | L13: 13.92323166 | M13: 16.81967213 | N13: 13.25301209 | O13: 15.71311475 | P13: 12.64020341 | R13: 1.18442623 | S13: 1.12295082 | T13: 1.06147541 | U13: 1.030737705 | V13: 1 | W13: 0.9344262295 | X13: 0.8729508197 | Y13: 0.7393041193 | Z13: 0.7494433291 | AA13: 0.7607721142 | AB13: 0.7671424921 | AC13: 0.77351287 | AD13: 0.7879471126 | AE13: 0.8044365239 | AF13: 0.9 | AG13: 0.9 | AH13: 0.9 | AI13: 0.9 | AJ13: 0.9 | AK13: 0.9 | AL13: 0.9 | AM13: =Y13*C13+($A$4-80)*AF13*$A$12/1000 -> 15.76172143 | AN13: =Z13*E13+($A$4-80)*AG13*$A$12/1000 -> 15.14858401 | AO13: =AA13*G13+($A$4-80)*AH13*$A$12/1000 -> 14.53573605 | AP13: =AB13*I13+($A$4-80)*AI13*$A$12/1000 -> 14.23300845 | AQ13: =AC13*K13+($A$4-80)*AJ13*$A$12/1000 -> 13.92323166 | AR13: =AD13*M13+($A$4-80)*AK13*$A$12/1000 -> 13.25301209 | AS13: =AE13*O13+($A$4-80)*AL13*$A$12/1000 -> 12.64020341
B14: 62 | C14: 19.40163934 | D14: 18.481386 | E14: 18.59016393 | F14: 17.9762229 | G14: 17.77868852 | H14: 17.47147822 | I14: 17.37295082 | J14: 17.22285118 | K14: =V14*$K$13 -> 16.96721311 | L14: 16.96721311 | M14: 16.08196721 | N14: 16.08196721 | O14: 15.2704918 | P14: 15.2704918 | R14: 1.077868852 | S14: 1.032786885 | T14: 0.987704918 | U14: 0.9651639344 | V14: 0.9426229508 | W14: 0.893442623 | X14: 0.8483606557 | Y14: 0.9525682686 | Z14: 0.9669749534 | AA14: 0.9827203057 | AB14: 0.9913601529 | AC14: 1 | AD14: 1 | AE14: 1 | AF14: 0.6177669574 | AG14: 0.5646840868 | AH14: 0.5066687616 | AI14: 0.4748343808 | AJ14: 0.443 | AK14: 0.443 | AL14: 0.443 | AM14: 18.481386 | AN14: =Z14*E14+($A$4-80)*AG14*$A$12/1000 -> 17.9762229 | AO14: =AA14*G14+($A$4-80)*AH14*$A$12/1000 -> 17.47147822 | AP14: 17.22285118 | AQ14: 16.96721311 | AR14: 16.08196721 | AS14: 15.2704918
B15: 57 | C15: 19.47540984 | D15: 19.47540984 | E15: 18.59016393 | F15: 18.59016393 | G15: 17.77868852 | H15: 17.77868852 | I15: 17.33606557 | J15: 17.33606557 | K15: 16.89344262 | L15: 16.89344262 | M15: 16.08196721 | N15: 16.08196721 | O15: 15.19672131 | P15: 15.19672131 | R15: 1.081967213 | S15: 1.032786885 | T15: 0.987704918 | U15: 0.9631147541 | V15: 0.9385245902 | W15: 0.893442623 | X15: 0.8442622951 | Y15: 1 | Z15: 1 | AA15: 1 | AB15: 1 | AC15: 1 | AD15: 1 | AE15: 1 | AF15: 0.443 | AG15: 0.443 | AH15: 0.443 | AI15: 0.443 | AJ15: 0.443 | AK15: 0.443 | AL15: 0.443 | AM15: 19.47540984 | AN15: =Z15*E15+($A$4-80)*AG15*$A$12/1000 -> 18.59016393 | AO15: =AA15*G15+($A$4-80)*AH15*$A$12/1000 -> 17.77868852 | AP15: 17.33606557 | AQ15: 16.89344262 | AR15: 16.08196721 | AS15: 15.19672131
A16: 1000 | B16: 72 | C16: 23.68032787 | D16: 13.29771583 | E16: 22.35245902 | F16: 12.84553816 | G16: 21.09836066 | H16: 12.43534531 | I16: 20.47131148 | J16: 12.23579032 | K16: 19.8442623 | L16: 12.02581926 | M16: 18.59016393 | N16: 11.61709755 | O16: 17.26229508 | P16: 11.16165898 | R16: 1.31557377 | S16: 1.241803279 | T16: 1.172131148 | U16: 1.137295082 | V16: 1.102459016 | W16: 1.032786885 | X16: 0.9590163934 | Y16: 0.5615511705 | Z16: 0.5746812086 | AA16: 0.5893986512 | AB16: 0.5977042719 | AC16: 0.6060098925 | AD16: 0.6249056004 | AE16: 0.6465918306 | AF16: 0.9 | AG16: 0.9 | AH16: 0.9 | AI16: 0.9 | AJ16: 0.9 | AK16: 0.9 | AL16: 0.9 | AM16: =Y16*C16+($A$4-80)*AF16*$A$16/1000 -> 13.29771583 | AN16: =Z16*E16+($A$4-80)*AG16*$A$16/1000 -> 12.84553816 | AO16: =AA16*G16+($A$4-80)*AH16*$A$16/1000 -> 12.43534531 | AP16: =AB16*I16+($A$4-80)*AI16*$A$16/1000 -> 12.23579032 | AQ16: =AC16*K16+($A$4-80)*AJ16*$A$16/1000 -> 12.02581926 | AR16: =AD16*M16+($A$4-80)*AK16*$A$16/1000 -> 11.61709755 | AS16: =AE16*O16+($A$4-80)*AL16*$A$16/1000 -> 11.16165898
B17: 67 | C17: 21.76229508 | D17: 16.80861804 | E17: 20.6557377 | F17: 16.44972807 | G17: 19.47540984 | H17: 16.03263047 | I17: 18.8852459 | J17: 15.83227205 | K17: 18.29508197 | L17: 15.6140712 | M17: 17.18852459 | N17: 15.25924561 | O17: 16.00819672 | P17: 14.8396883 | R17: 1.209016393 | S17: 1.147540984 | T17: 1.081967213 | U17: 1.049180328 | V17: 1.016393443 | W17: 0.9549180328 | X17: 0.8893442623 | Y17: 0.7723734092 | Z17: 0.7963757238 | AA17: 0.823224292 | AB17: 0.8383407945 | AC17: 0.8534572969 | AD17: 0.887757732 | AE17: 0.9270056185 | AF17: 0.9 | AG17: 0.9 | AH17: 0.9 | AI17: 0.9 | AJ17: 0.9 | AK17: 0.9 | AL17: 0.7119550981 | AM17: =Y17*C17+($A$4-80)*AF17*$A$16/1000 -> 16.80861804 | AN17: =Z17*E17+($A$4-80)*AG17*$A$16/1000 -> 16.44972807 | AO17: =AA17*G17+($A$4-80)*AH17*$A$16/1000 -> 16.03263047 | AP17: =AB17*I17+($A$4-80)*AI17*$A$16/1000 -> 15.83227205 | AQ17: =AC17*K17+($A$4-80)*AJ17*$A$16/1000 -> 15.6140712 | AR17: =AD17*M17+($A$4-80)*AK17*$A$16/1000 -> 15.25924561 | AS17: =AE17*O17+($A$4-80)*AL17*$A$16/1000 -> 14.8396883
B18: 62 | C18: 20.6557377 | D18: 20.6557377 | E18: 19.69672131 | F18: 19.69672131 | G18: 18.73770492 | H18: 18.73770492 | I18: 18.29508197 | J18: 18.29508197 | K18: 17.85245902 | L18: 17.85245902 | M18: 16.89344262 | N18: 16.89344262 | O18: 15.93442623 | P18: 15.93442623 | R18: 1.147540984 | S18: 1.094262295 | T18: 1.040983607 | U18: 1.016393443 | V18: 0.9918032787 | W18: 0.9385245902 | X18: 0.8852459016 | Y18: 1 | Z18: 1 | AA18: 1 | AB18: 1 | AC18: 1 | AD18: 1 | AE18: 1 | AF18: 0.443 | AG18: 0.443 | AH18: 0.443 | AI18: 0.443 | AJ18: 0.443 | AK18: 0.443 | AL18: 0.443 | AM18: 20.6557377 | AN18: =Z18*E18+($A$4-80)*AG18*$A$16/1000 -> 19.69672131 | AO18: =AA18*G18+($A$4-80)*AH18*$A$16/1000 -> 18.73770492 | AP18: 18.29508197 | AQ18: 17.85245902 | AR18: 16.89344262 | AS18: 15.93442623
B19: 57 | C19: 20.6557377 | D19: 20.6557377 | E19: 19.69672131 | F19: 19.69672131 | G19: 18.73770492 | H19: 18.73770492 | I19: 18.25819672 | J19: 18.25819672 | K19: 17.77868852 | L19: 17.77868852 | M19: 16.81967213 | N19: 16.81967213 | O19: 15.86065574 | P19: 15.86065574 | R19: 1.147540984 | S19: 1.094262295 | T19: 1.040983607 | U19: 1.014344262 | V19: 0.987704918 | W19: 0.9344262295 | X19: 0.881147541 | Y19: 1 | Z19: 1 | AA19: 1 | AB19: 1 | AC19: 1 | AD19: 1 | AE19: 1 | AF19: 0.443 | AG19: 0.443 | AH19: 0.443 | AI19: 0.443 | AJ19: 0.443 | AK19: 0.443 | AL19: 0.443 | AM19: 20.6557377 | AN19: =Z19*E19+($A$4-80)*AG19*$A$16/1000 -> 19.69672131 | AO19: =AA19*G19+($A$4-80)*AH19*$A$16/1000 -> 18.73770492 | AP19: 18.25819672 | AQ19: 17.77868852 | AR19: 16.81967213 | AS19: 15.86065574

Sheet 4SCU13L_30 (hidden)
A2: 4SCU13L_30
A3: Evaporator Air | C3: Condenser Entering Air Temperature ˚F
A4: 80 | B4: °F DB | C4: 65 | E4: 75 | G4: 85 | I4: 90 | K4: 95 | M4: 105 | O4: 115
A5: CFM | B5: EWB† ˚F | C5: Capacity Mbtuh | E5: Capacity Mbtuh | G5: Capacity Mbtuh | I5: Capacity Mbtuh | K5: Capacity Mbtuh | M5: Capacity Mbtuh | O5: Capacity Mbtuh
C6: Total | D6: Sens. | E6: Total | F6: Sens. | G6: Total | H6: Sens. | I6: Total | J6: Sens. | K6: Total | L6: Sens. | M6: Total | N6: Sens. | O6: Total | P6: Sens.
R7: Total Factors | Y7: Sens. % | AF7: IDB Adj | AM7: Sens Calc
A8: 800 | B8: 72 | C8: =R8*$K$13 -> 22.39175258 | D8: =IF(AM8>C8,C8,AM8) -> 11.24612777 | E8: =S8*$K$13 -> 21.27835052 | F8: =IF(AN8>E8,E8,AN8) -> 10.83447183 | G8: =T8*$K$13 -> 20.10309278 | H8: =IF(AO8>G8,G8,AO8) -> 10.39112253 | I8: =U8*$K$13 -> 19.54639175 | J8: =IF(AP8>I8,I8,AP8) -> 10.18773471 | K8: =V8*$K$13 -> 18.98969072 | L8: =IF(AQ8>K8,K8,AQ8) -> 9.979541204 | M8: =W8*$K$13 -> 17.87628866 | N8: =IF(AR8>M8,M8,AR8) -> 9.568284047 | O8: =X8*$K$13 -> 16.7628866 | P8: =IF(AS8>O8,O8,AS8) -> 9.157416817 | R8: 1.243986254 | S8: 1.182130584 | T8: 1.116838488 | U8: 1.085910653 | V8: 1.054982818 | W8: 0.9931271478 | X8: 0.9312714777 | Y8: 0.5022441962 | Z8: 0.5091781818 | AA8: 0.5168917362 | AB8: 0.5212079465 | AC8: 0.5255241568 | AD8: 0.5352500303 | AE8: 0.5462911631 | AF8: =IF(Y8<0.9,0.9,Y8*-3.6846+4.1276) -> 0.9 | AG8: =IF(Z8<0.9,0.9,Z8*-3.6846+4.1276) -> 0.9 | AH8: 0.9 | AI8: 0.9 | AJ8: 0.9 | AK8: 0.9 | AL8: 0.9 | AM8: =Y8*C8+($A$4-80)*AF8*$A$8/1000 -> 11.24612777 | AN8: =Z8*E8+($A$4-80)*AG8*$A$8/1000 -> 10.83447183 | AO8: =AA8*G8+($A$4-80)*AH8*$A$8/1000 -> 10.39112253 | AP8: =AB8*I8+($A$4-80)*AI8*$A$8/1000 -> 10.18773471 | AQ8: =AC8*K8+($A$4-80)*AJ8*$A$8/1000 -> 9.979541204 | AR8: =AD8*M8+($A$4-80)*AK8*$A$8/1000 -> 9.568284047 | AS8: =AE8*O8+($A$4-80)*AL8*$A$8/1000 -> 9.157416817
B9: 67 | C9: 20.65979381 | D9: 14.1804545 | E9: 19.60824742 | F9: =IF(AN9>E9,E9,AN9) -> 13.7612042 | G9: 18.55670103 | H9: =IF(AO9>G9,G9,AO9) -> 13.34182108 | I9: 18.03092784 | J9: =IF(AP9>I9,I9,AP9) -> 13.13710458 | K9: =V9*$K$13 -> 17.50515464 | L9: =IF(AQ9>K9,K9,AQ9) -> 12.9222813 | M9: 16.45360825 | N9: =IF(AR9>M9,M9,AR9) -> 12.50255496 | O9: 15.40206186 | P9: =IF(AS9>O9,O9,AS9) -> 12.08260405 | R9: 1.147766323 | S9: 1.089347079 | T9: 1.030927835 | U9: 1.001718213 | V9: 0.9725085911 | W9: 0.9140893471 | X9: 0.8556701031 | Y9: 0.6863792845 | Z9: 0.701806944 | AA9: 0.7189759136 | AB9: 0.7285872754 | AC9: 0.7381986372 | AD9: 0.7598670622 | AE9: 0.7844796471 | AF9: =IF(Y9<0.9,0.9,Y9*-3.6846+4.1276) -> 0.9 | AG9: 0.9 | AH9: 0.9 | AI9: 0.9 | AJ9: 0.9 | AK9: 0.9 | AL9: 0.9 | AM9: =Y9*C9+($A$4-80)*AF9*$A$8/1000 -> 14.1804545 | AN9: =Z9*E9+($A$4-80)*AG9*$A$8/1000 -> 13.7612042 | AO9: =AA9*G9+($A$4-80)*AH9*$A$8/1000 -> 13.34182108 | AP9: =AB9*I9+($A$4-80)*AI9*$A$8/1000 -> 13.13710458 | AQ9: =AC9*K9+($A$4-80)*AJ9*$A$8/1000 -> 12.9222813 | AR9: =AD9*M9+($A$4-80)*AK9*$A$8/1000 -> 12.50255496 | AS9: =AE9*O9+($A$4-80)*AL9*$A$8/1000 -> 12.08260405
B10: 62 | C10: 18.92783505 | D10: 17.09247981 | E10: 18 | F10: 16.54341698 | G10: 17.07216495 | H10: 15.99497273 | I10: 16.57731959 | J10: 15.69645029 | K10: =V10*$K$13 -> 16.08247423 | L10: 15.38807114 | M10: 15.15463918 | N10: 14.83983236 | O10: 14.22680412 | P10: 14.22680412 | R10: 1.051546392 | S10: 1 | T10: 0.9484536082 | U10: 0.9209621993 | V10: 0.8934707904 | W10: 0.8419243986 | X10: 0.7903780069 | Y10: 0.9030340638 | Z10: 0.9190787212 | AA10: 0.9369035957 | AB10: 0.9468629841 | AC10: 0.9568223725 | AD10: 0.9792270334 | AE10: 1 | AF10: 0.8002806885 | AG10: 0.7411625438 | AH10: 0.6754850114 | AI10: 0.6387886489 | AJ10: 0.6020922864 | AK10: 0.5195400726 | AL10: 0.443 | AM10: 17.09247981 | AN10: =Z10*E10+($A$4-80)*AG10*$A$8/1000 -> 16.54341698 | AO10: =AA10*G10+($A$4-80)*AH10*$A$8/1000 -> 15.99497273 | AP10: 15.69645029 | AQ10: 15.38807114 | AR10: 14.83983236 | AS10: 14.22680412
B11: 57 | C11: 18.49484536 | D11: 18.49484536 | E11: 17.69072165 | F11: 17.69072165 | G11: 16.94845361 | H11: 16.94845361 | I11: 16.54639175 | J11: 16.54639175 | K11: =V11*$K$13 -> 16.1443299 | L11: 16.1443299 | M11: 15.34020619 | N11: 15.34020619 | O11: 14.59793814 | P11: 14.59793814 | R11: 1.027491409 | S11: 0.9828178694 | T11: 0.941580756 | U11: 0.9192439863 | V11: 0.8969072165 | W11: 0.852233677 | X11: 0.8109965636 | Y11: 1 | Z11: 1 | AA11: 1 | AB11: 1 | AC11: 1 | AD11: 1 | AE11: 1 | AF11: 0.443 | AG11: 0.443 | AH11: 0.443 | AI11: 0.443 | AJ11: 0.443 | AK11: 0.443 | AL11: 0.443 | AM11: 18.49484536 | AN11: =Z11*E11+($A$4-80)*AG11*$A$8/1000 -> 17.69072165 | AO11: =AA11*G11+($A$4-80)*AH11*$A$8/1000 -> 16.94845361 | AP11: =AB11*I11+($A$4-80)*AI11*$A$8/1000 -> 16.54639175 | AQ11: 16.1443299 | AR11: 15.34020619 | AS11: 14.59793814
A12: 1000 | B12: 72 | C12: 23.01030928 | D12: 12.15643061 | E12: 21.83505155 | F12: 11.78082663 | G12: 20.65979381 | H12: 11.4054704 | I12: 20.07216495 | J12: 11.2220668 | K12: =V12*$K$13 -> 19.48453608 | L12: 11.03040721 | M12: 18.30927835 | N12: 10.65569409 | O12: 17.07216495 | P12: 10.24428691 | R12: 1.278350515 | S12: 1.213058419 | T12: 1.147766323 | U12: 1.115120275 | V12: 1.082474227 | W12: 1.017182131 | X12: 0.9484536082 | Y12: 0.5283036601 | Z12: 0.5395373857 | AA12: 0.5520611921 | AB12: 0.5590860193 | AC12: 0.5661108464 | AD12: 0.5819832922 | AE12: 0.6000578683 | AF12: 0.9 | AG12: 0.9 | AH12: 0.9 | AI12: 0.9 | AJ12: 0.9 | AK12: 0.9 | AL12: 0.9 | AM12: =Y12*C12+($A$4-80)*AF12*$A$12/1000 -> 12.15643061 | AN12: =Z12*E12+($A$4-80)*AG12*$A$12/1000 -> 11.78082663 | AO12: =AA12*G12+($A$4-80)*AH12*$A$12/1000 -> 11.4054704 | AP12: =AB12*I12+($A$4-80)*AI12*$A$12/1000 -> 11.2220668 | AQ12: =AC12*K12+($A$4-80)*AJ12*$A$12/1000 -> 11.03040721 | AR12: =AD12*M12+($A$4-80)*AK12*$A$12/1000 -> 10.65569409 | AS12: =AE12*O12+($A$4-80)*AL12*$A$12/1000 -> 10.24428691
B13: 67 | C13: 21.27835052 | D13: 15.87151338 | E13: 20.16494845 | F13: 15.42189226 | G13: 19.05154639 | H13: 14.97130082 | I13: 18.5257732 | J13: 14.77666773 | K13: 18 | L13: 14.56963027 | M13: 16.88659794 | N13: 14.11817144 | O13: 15.83505155 | P13: 13.71887791 | R13: 1.182130584 | S13: 1.120274914 | T13: 1.058419244 | U13: 1.029209622 | V13: 1 | W13: 0.9381443299 | X13: 0.8797250859 | Y13: 0.7458996114 | Z13: 0.7647870904 | AA13: 0.7858312659 | AB13: 0.7976275848 | AC13: 0.8094239037 | AD13: 0.8360577715 | AE13: 0.8663614307 | AF13: 0.9 | AG13: 0.9 | AH13: 0.9 | AI13: 0.9 | AJ13: 0.9 | AK13: 0.9 | AL13: 0.9 | AM13: =Y13*C13+($A$4-80)*AF13*$A$12/1000 -> 15.87151338 | AN13: =Z13*E13+($A$4-80)*AG13*$A$12/1000 -> 15.42189226 | AO13: =AA13*G13+($A$4-80)*AH13*$A$12/1000 -> 14.97130082 | AP13: =AB13*I13+($A$4-80)*AI13*$A$12/1000 -> 14.77666773 | AQ13: =AC13*K13+($A$4-80)*AJ13*$A$12/1000 -> 14.56963027 | AR13: =AD13*M13+($A$4-80)*AK13*$A$12/1000 -> 14.11817144 | AS13: =AE13*O13+($A$4-80)*AL13*$A$12/1000 -> 13.71887791
B14: 62 | C14: 19.79381443 | D14: 19.79381443 | E14: 18.92783505 | F14: 18.92783505 | G14: 18.06185567 | H14: 18.06185567 | I14: 17.59793814 | J14: 17.59793814 | K14: =V14*$K$13 -> 17.13402062 | L14: 17.13402062 | M14: 16.26804124 | N14: 16.147615 | O14: 15.40206186 | P14: 15.16117302 | R14: 1.099656357 | S14: 1.051546392 | T14: 1.003436426 | U14: 0.9776632302 | V14: 0.9518900344 | W14: 0.9037800687 | X14: 0.8556701031 | Y14: 1.018300694 | Z14: 1.01276178 | AA14: 1.006688619 | AB14: 1.00334431 | AC14: 1 | AD14: 0.992597373 | AE14: 0.9843599615 | AF14: 0.3755692611 | AG14: 0.395977945 | AH14: 0.4183551142 | AI14: 0.4306775571 | AJ14: 0.443 | AK14: 0.4702757194 | AL14: 0.5006272859 | AM14: 20.15605498 | AN14: =Z14*E14+($A$4-80)*AG14*$A$12/1000 -> 19.16938792 | AO14: =AA14*G14+($A$4-80)*AH14*$A$12/1000 -> 18.18266454 | AP14: 17.6567911 | AQ14: 17.13402062 | AR14: 16.147615 | AS14: 15.16117302
B15: 57 | C15: 19.73195876 | D15: 19.73195876 | E15: 18.86597938 | F15: 18.86597938 | G15: 18 | H15: 18 | I15: 17.56701031 | J15: 17.56701031 | K15: 17.13402062 | L15: 17.13402062 | M15: 16.26804124 | N15: 16.26804124 | O15: 15.40206186 | P15: 15.40206186 | R15: 1.096219931 | S15: 1.048109966 | T15: 1 | U15: 0.9759450172 | V15: 0.9518900344 | W15: 0.9037800687 | X15: 0.8556701031 | Y15: 1 | Z15: 1 | AA15: 1 | AB15: 1 | AC15: 1 | AD15: 1 | AE15: 1 | AF15: 0.443 | AG15: 0.443 | AH15: 0.443 | AI15: 0.443 | AJ15: 0.443 | AK15: 0.443 | AL15: 0.443 | AM15: 19.73195876 | AN15: =Z15*E15+($A$4-80)*AG15*$A$12/1000 -> 18.86597938 | AO15: =AA15*G15+($A$4-80)*AH15*$A$12/1000 -> 18 | AP15: 17.56701031 | AQ15: 17.13402062 | AR15: 16.26804124 | AS15: 15.40206186
A16: 1200 | B16: 72 | C16: 23.44329897 | D16: 13.28982049 | E16: 22.20618557 | F16: 12.83618466 | G16: 21.03092784 | H16: 12.41879586 | I16: 20.41237113 | J16: 12.19643648 | K16: 19.79381443 | L16: 11.96541653 | M16: 18.55670103 | N16: 11.51175541 | O16: 17.31958763 | P16: 11.05775264 | R16: 1.302405498 | S16: 1.233676976 | T16: 1.16838488 | U16: 1.134020619 | V16: 1.099656357 | W16: 1.030927835 | X16: 0.9621993127 | Y16: 0.5668920789 | Z16: 0.5780454558 | AA16: 0.5905015679 | AB16: 0.5975021911 | AC16: 0.6045028143 | AD16: 0.6203557082 | AE16: 0.6384535751 | AF16: 0.9 | AG16: 0.9 | AH16: 0.9 | AI16: 0.9 | AJ16: 0.9 | AK16: 0.9 | AL16: 0.9 | AM16: =Y16*C16+($A$4-80)*AF16*$A$16/1000 -> 13.28982049 | AN16: =Z16*E16+($A$4-80)*AG16*$A$16/1000 -> 12.83618466 | AO16: =AA16*G16+($A$4-80)*AH16*$A$16/1000 -> 12.41879586 | AP16: =AB16*I16+($A$4-80)*AI16*$A$16/1000 -> 12.19643648 | AQ16: =AC16*K16+($A$4-80)*AJ16*$A$16/1000 -> 11.96541653 | AR16: =AD16*M16+($A$4-80)*AK16*$A$16/1000 -> 11.51175541 | AS16: =AE16*O16+($A$4-80)*AL16*$A$16/1000 -> 11.05775264
B17: 67 | C17: 21.77319588 | D17: 17.03170881 | E17: 20.53608247 | F17: 16.54827762 | G17: 19.36082474 | H17: 16.11442422 | I17: 18.74226804 | J17: 15.88082357 | K17: 18.12371134 | L17: 15.62865941 | M17: 16.94845361 | N17: 15.1958477 | O17: 15.77319588 | P17: 14.76484109 | R17: 1.209621993 | S17: 1.140893471 | T17: 1.075601375 | U17: 1.041237113 | V17: 1.006872852 | W17: 0.941580756 | X17: 0.8762886598 | Y17: 0.7822328385 | Z17: 0.8058147234 | AA17: 0.832321166 | AB17: 0.8473266704 | AC17: 0.8623321747 | AD17: 0.8965919872 | AE17: 0.9360716249 | AF17: 0.9 | AG17: 0.9 | AH17: 0.9 | AI17: 0.9 | AJ17: 0.9 | AK17: 0.9 | AL17: 0.6785504909 | AM17: =Y17*C17+($A$4-80)*AF17*$A$16/1000 -> 17.03170881 | AN17: =Z17*E17+($A$4-80)*AG17*$A$16/1000 -> 16.54827762 | AO17: =AA17*G17+($A$4-80)*AH17*$A$16/1000 -> 16.11442422 | AP17: =AB17*I17+($A$4-80)*AI17*$A$16/1000 -> 15.88082357 | AQ17: =AC17*K17+($A$4-80)*AJ17*$A$16/1000 -> 15.62865941 | AR17: =AD17*M17+($A$4-80)*AK17*$A$16/1000 -> 15.1958477 | AS17: =AE17*O17+($A$4-80)*AL17*$A$16/1000 -> 14.76484109
B18: 62 | C18: 20.65979381 | D18: 20.65979381 | E18: 19.73195876 | F18: 19.73195876 | G18: 18.80412371 | H18: 18.80412371 | I18: 18.34020619 | J18: 18.34020619 | K18: 17.87628866 | L18: 17.87628866 | M18: 16.94845361 | N18: 16.94845361 | O18: 15.95876289 | P18: 15.95876289 | R18: 1.147766323 | S18: 1.096219931 | T18: 1.04467354 | U18: 1.018900344 | V18: 0.9931271478 | W18: 0.941580756 | X18: 0.8865979381 | Y18: 1 | Z18: 1 | AA18: 1 | AB18: 1 | AC18: 1 | AD18: 1 | AE18: 1 | AF18: 0.443 | AG18: 0.443 | AH18: 0.443 | AI18: 0.443 | AJ18: 0.443 | AK18: 0.443 | AL18: 0.443 | AM18: 20.65979381 | AN18: =Z18*E18+($A$4-80)*AG18*$A$16/1000 -> 19.73195876 | AO18: =AA18*G18+($A$4-80)*AH18*$A$16/1000 -> 18.80412371 | AP18: 18.34020619 | AQ18: 17.87628866 | AR18: 16.94845361 | AS18: 15.95876289
B19: 57 | C19: 20.65979381 | D19: 20.65979381 | E19: 19.73195876 | F19: 19.73195876 | G19: 18.80412371 | H19: 18.80412371 | I19: 18.30927835 | J19: 18.30927835 | K19: 17.81443299 | L19: 17.81443299 | M19: 16.88659794 | N19: 16.88659794 | O19: 15.95876289 | P19: 15.95876289 | R19: 1.147766323 | S19: 1.096219931 | T19: 1.04467354 | U19: 1.017182131 | V19: 0.9896907216 | W19: 0.9381443299 | X19: 0.8865979381 | Y19: 1 | Z19: 1 | AA19: 1 | AB19: 1 | AC19: 1 | AD19: 1 | AE19: 1 | AF19: 0.443 | AG19: 0.443 | AH19: 0.443 | AI19: 0.443 | AJ19: 0.443 | AK19: 0.443 | AL19: 0.443 | AM19: 20.65979381 | AN19: =Z19*E19+($A$4-80)*AG19*$A$16/1000 -> 19.73195876 | AO19: =AA19*G19+($A$4-80)*AH19*$A$16/1000 -> 18.80412371 | AP19: 18.30927835 | AQ19: 17.81443299 | AR19: 16.88659794 | AS19: 15.95876289

Sheet 4SCU13L_36 (hidden)
A2: 4SCU13L_36
A3: Evaporator Air | C3: Condenser Entering Air Temperature ˚F
A4: 80 | B4: °F DB | C4: 65 | E4: 75 | G4: 85 | I4: 90 | K4: 95 | M4: 105 | O4: 115
A5: CFM | B5: EWB† ˚F | C5: Capacity Mbtuh | E5: Capacity Mbtuh | G5: Capacity Mbtuh | I5: Capacity Mbtuh | K5: Capacity Mbtuh | M5: Capacity Mbtuh | O5: Capacity Mbtuh
C6: Total | D6: Sens. | E6: Total | F6: Sens. | G6: Total | H6: Sens. | I6: Total | J6: Sens. | K6: Total | L6: Sens. | M6: Total | N6: Sens. | O6: Total | P6: Sens.
R7: Total Factors | Y7: Sens. % | AF7: IDB Adj | AM7: Sens Calc
A8: 1000 | B8: 72 | C8: =R8*$K$13 -> 22.53824363 | D8: =IF(AM8>C8,C8,AM8) -> 11.33382685 | E8: =S8*$K$13 -> 21.41643059 | F8: =IF(AN8>E8,E8,AN8) -> 10.93955539 | G8: =T8*$K$13 -> 20.24362606 | H8: =IF(AO8>G8,G8,AO8) -> 10.51925642 | I8: =U8*$K$13 -> 19.68271955 | J8: =IF(AP8>I8,I8,AP8) -> 10.32515477 | K8: =V8*$K$13 -> 19.12181303 | L8: =IF(AQ8>K8,K8,AQ8) -> 10.12550388 | M8: =W8*$K$13 -> 17.9490085 | N8: =IF(AR8>M8,M8,AR8) -> 9.704776791 | O8: =X8*$K$13 -> 16.82719547 | P8: =IF(AS8>O8,O8,AS8) -> 9.311691295 | R8: 1.252124646 | S8: 1.1898017 | T8: 1.124645892 | U8: 1.093484419 | V8: 1.062322946 | W8: 0.9971671388 | X8: 0.9348441926 | Y8: 0.5028708999 | Z8: 0.5108019913 | AA8: 0.5196330137 | AB8: 0.5245796823 | AC8: 0.5295263509 | AD8: 0.5406859544 | AE8: 0.5533715534 | AF8: =IF(Y8<0.9,0.9,Y8*-3.6846+4.1276) -> 0.9 | AG8: =IF(Z8<0.9,0.9,Z8*-3.6846+4.1276) -> 0.9 | AH8: 0.9 | AI8: 0.9 | AJ8: 0.9 | AK8: 0.9 | AL8: 0.9 | AM8: =Y8*C8+($A$4-80)*AF8*$A$8/1000 -> 11.33382685 | AN8: =Z8*E8+($A$4-80)*AG8*$A$8/1000 -> 10.93955539 | AO8: =AA8*G8+($A$4-80)*AH8*$A$8/1000 -> 10.51925642 | AP8: =AB8*I8+($A$4-80)*AI8*$A$8/1000 -> 10.32515477 | AQ8: =AC8*K8+($A$4-80)*AJ8*$A$8/1000 -> 10.12550388 | AR8: =AD8*M8+($A$4-80)*AK8*$A$8/1000 -> 9.704776791 | AS8: =AE8*O8+($A$4-80)*AL8*$A$8/1000 -> 9.311691295
B9: 67 | C9: 20.80453258 | D9: 14.35729263 | E9: 19.73371105 | F9: =IF(AN9>E9,E9,AN9) -> 13.93246814 | G9: 18.66288952 | H9: =IF(AO9>G9,G9,AO9) -> 13.50751771 | I9: 18.12747875 | J9: =IF(AP9>I9,I9,AP9) -> 13.30029297 | K9: =V9*$K$13 -> 17.59206799 | L9: =IF(AQ9>K9,K9,AQ9) -> 13.08241843 | M9: 16.52124646 | N9: =IF(AR9>M9,M9,AR9) -> 12.65714148 | O9: 15.45042493 | P9: =IF(AS9>O9,O9,AS9) -> 12.23165008 | R9: 1.155807365 | S9: 1.09631728 | T9: 1.036827195 | U9: 1.007082153 | V9: 0.9773371105 | W9: 0.9178470255 | X9: 0.8583569405 | Y9: 0.6901040709 | Z9: 0.7060237228 | AA9: 0.7237634717 | AB9: 0.7337089264 | AC9: 0.7436543811 | AD9: 0.7661129876 | AE9: 0.7916707884 | AF9: =IF(Y9<0.9,0.9,Y9*-3.6846+4.1276) -> 0.9 | AG9: 0.9 | AH9: 0.9 | AI9: 0.9 | AJ9: 0.9 | AK9: 0.9 | AL9: 0.9 | AM9: =Y9*C9+($A$4-80)*AF9*$A$8/1000 -> 14.35729263 | AN9: =Z9*E9+($A$4-80)*AG9*$A$8/1000 -> 13.93246814 | AO9: =AA9*G9+($A$4-80)*AH9*$A$8/1000 -> 13.50751771 | AP9: =AB9*I9+($A$4-80)*AI9*$A$8/1000 -> 13.30029297 | AQ9: =AC9*K9+($A$4-80)*AJ9*$A$8/1000 -> 13.08241843 | AR9: =AD9*M9+($A$4-80)*AK9*$A$8/1000 -> 12.65714148 | AS9: =AE9*O9+($A$4-80)*AL9*$A$8/1000 -> 12.23165008
B10: 62 | C10: 19.12181303 | D10: 17.4837837 | E10: 18.1529745 | F10: 16.91638474 | G10: 17.18413598 | H10: 16.34944658 | I10: 16.67422096 | J10: 16.0470215 | K10: =V10*$K$13 -> 16.16430595 | L10: 15.73342077 | M10: 15.19546742 | N10: 15.16641543 | O10: 14.2266289 | P10: 14.2266289 | R10: 1.062322946 | S10: 1.008498584 | T10: 0.954674221 | U10: 0.9263456091 | V10: 0.8980169972 | W10: 0.8441926346 | X10: 0.790368272 | Y10: 0.9143371326 | Z10: 0.9318794964 | AA10: 0.9514267465 | AB10: 0.9623850813 | AC10: 0.9733434162 | AD10: 0.9980881144 | AE10: 1 | AF10: 0.7586334013 | AG10: 0.6939968076 | AH10: 0.6219730099 | AI10: 0.5815959293 | AJ10: 0.5412188487 | AK10: 0.4500445335 | AL10: 0.443 | AM10: 17.4837837 | AN10: =Z10*E10+($A$4-80)*AG10*$A$8/1000 -> 16.91638474 | AO10: =AA10*G10+($A$4-80)*AH10*$A$8/1000 -> 16.34944658 | AP10: 16.0470215 | AQ10: 15.73342077 | AR10: 15.16641543 | AS10: 14.2266289
B11: 57 | C11: 18.61189802 | D11: 18.61189802 | E11: 17.8470255 | F11: 17.8470255 | G11: 17.03116147 | H11: 17.03116147 | I11: 16.64872521 | J11: 16.64872521 | K11: =V11*$K$13 -> 16.26628895 | L11: 16.26628895 | M11: 15.45042493 | N11: 15.45042493 | O11: 14.63456091 | P11: 14.63456091 | R11: 1.033994334 | S11: 0.9915014164 | T11: 0.9461756374 | U11: 0.9249291785 | V11: 0.9036827195 | W11: 0.8583569405 | X11: 0.8130311615 | Y11: 1 | Z11: 1 | AA11: 1 | AB11: 1 | AC11: 1 | AD11: 1 | AE11: 1 | AF11: 0.443 | AG11: 0.443 | AH11: 0.443 | AI11: 0.443 | AJ11: 0.443 | AK11: 0.443 | AL11: 0.443 | AM11: 18.61189802 | AN11: =Z11*E11+($A$4-80)*AG11*$A$8/1000 -> 17.8470255 | AO11: =AA11*G11+($A$4-80)*AH11*$A$8/1000 -> 17.03116147 | AP11: =AB11*I11+($A$4-80)*AI11*$A$8/1000 -> 16.64872521 | AQ11: 16.26628895 | AR11: 15.45042493 | AS11: 14.63456091
A12: 1200 | B12: 72 | C12: 23.15014164 | D12: 12.25073309 | E12: 21.92634561 | F12: 11.82426981 | G12: 20.70254958 | H12: 11.39752883 | I12: 20.09065156 | J12: 11.18786812 | K12: =V12*$K$13 -> 19.47875354 | L12: 10.97045845 | M12: 18.30594901 | N12: 10.57244295 | O12: 17.08215297 | P12: 10.14533387 | R12: 1.28611898 | S12: 1.218130312 | T12: 1.150141643 | U12: 1.116147309 | V12: 1.082152975 | W12: 1.016997167 | X12: 0.9490084986 | Y12: 0.5291860965 | Z12: 0.5392722535 | AA12: 0.5505374491 | AB12: 0.5568693522 | AC12: 0.5632012554 | AD12: 0.5775413745 | AE12: 0.5939142379 | AF12: 0.9 | AG12: 0.9 | AH12: 0.9 | AI12: 0.9 | AJ12: 0.9 | AK12: 0.9 | AL12: 0.9 | AM12: =Y12*C12+($A$4-80)*AF12*$A$12/1000 -> 12.25073309 | AN12: =Z12*E12+($A$4-80)*AG12*$A$12/1000 -> 11.82426981 | AO12: =AA12*G12+($A$4-80)*AH12*$A$12/1000 -> 11.39752883 | AP12: =AB12*I12+($A$4-80)*AI12*$A$12/1000 -> 11.18786812 | AQ12: =AC12*K12+($A$4-80)*AJ12*$A$12/1000 -> 10.97045845 | AR12: =AD12*M12+($A$4-80)*AK12*$A$12/1000 -> 10.57244295 | AS12: =AE12*O12+($A$4-80)*AL12*$A$12/1000 -> 10.14533387
B13: 67 | C13: 21.31444759 | D13: 15.77350689 | E13: 20.19263456 | F13: 15.33641676 | G13: 19.12181303 | H13: 14.93859739 | I13: 18.56090652 | J13: 14.72690168 | K13: 18 | L13: 14.50151623 | M13: 16.87818697 | N13: 14.06379644 | O13: 15.75637394 | P13: 13.62530335 | R13: 1.184135977 | S13: 1.121813031 | T13: 1.062322946 | U13: 1.031161473 | V13: 1 | W13: 0.9376770538 | X13: 0.8753541076 | Y13: 0.7400382684 | Z13: 0.7595054876 | AA13: 0.7812333155 | AB13: 0.7934365529 | AC13: 0.8056397903 | AD13: 0.8332527937 | AE13: 0.8647486666 | AF13: 0.9 | AG13: 0.9 | AH13: 0.9 | AI13: 0.9 | AJ13: 0.9 | AK13: 0.9 | AL13: 0.9 | AM13: =Y13*C13+($A$4-80)*AF13*$A$12/1000 -> 15.77350689 | AN13: =Z13*E13+($A$4-80)*AG13*$A$12/1000 -> 15.33641676 | AO13: =AA13*G13+($A$4-80)*AH13*$A$12/1000 -> 14.93859739 | AP13: =AB13*I13+($A$4-80)*AI13*$A$12/1000 -> 14.72690168 | AQ13: =AC13*K13+($A$4-80)*AJ13*$A$12/1000 -> 14.50151623 | AR13: =AD13*M13+($A$4-80)*AK13*$A$12/1000 -> 14.06379644 | AS13: =AE13*O13+($A$4-80)*AL13*$A$12/1000 -> 13.62530335
B14: 62 | C14: 19.42776204 | D14: 19.05350362 | E14: 18.66288952 | F14: 18.41322729 | G14: 17.8470255 | H14: 17.72246516 | I14: 17.46458924 | J14: 17.40364364 | K14: =V14*$K$13 -> 17.08215297 | L14: 17.08215297 | M14: 16.31728045 | N14: 16.31728045 | O14: 15.55240793 | P14: 15.55240793 | R14: 1.079320113 | S14: 1.036827195 | T14: 0.9915014164 | U14: 0.9702549575 | V14: 0.9490084986 | W14: 0.9065155807 | X14: 0.8640226629 | Y14: 0.9807358966 | Z14: 0.986622531 | AA14: 0.9930206668 | AB14: 0.9965103334 | AC14: 1 | AD14: 1 | AE14: 1 | AF14: 0.5139805153 | AG14: 0.4922906221 | AH14: 0.468716051 | AI14: 0.4558580255 | AJ14: 0.443 | AK14: 0.443 | AL14: 0.443 | AM14: 19.05350362 | AN14: =Z14*E14+($A$4-80)*AG14*$A$12/1000 -> 18.41322729 | AO14: =AA14*G14+($A$4-80)*AH14*$A$12/1000 -> 17.72246516 | AP14: 17.40364364 | AQ14: 17.08215297 | AR14: 16.31728045 | AS14: 15.55240793
B15: 57 | C15: 19.68271955 | D15: 19.68271955 | E15: 18.81586402 | F15: 18.81586402 | G15: 17.9490085 | H15: 17.9490085 | I15: 17.51558074 | J15: 17.51558074 | K15: 17.08215297 | L15: 17.08215297 | M15: 16.21529745 | N15: 16.21529745 | O15: 15.34844193 | P15: 15.34844193 | R15: 1.093484419 | S15: 1.045325779 | T15: 0.9971671388 | U15: 0.9730878187 | V15: 0.9490084986 | W15: 0.9008498584 | X15: 0.8526912181 | Y15: 1 | Z15: 1 | AA15: 1 | AB15: 1 | AC15: 1 | AD15: 1 | AE15: 1 | AF15: 0.443 | AG15: 0.443 | AH15: 0.443 | AI15: 0.443 | AJ15: 0.443 | AK15: 0.443 | AL15: 0.443 | AM15: 19.68271955 | AN15: =Z15*E15+($A$4-80)*AG15*$A$12/1000 -> 18.81586402 | AO15: =AA15*G15+($A$4-80)*AH15*$A$12/1000 -> 17.9490085 | AP15: 17.51558074 | AQ15: 17.08215297 | AR15: 16.21529745 | AS15: 15.34844193
A16: 1400 | B16: 72 | C16: 23.50708215 | D16: 13.12187975 | E16: 22.23229462 | F16: 12.65364405 | G16: 20.95750708 | H16: 12.18524282 | I16: 20.34560907 | J16: 11.97035771 | K16: 19.73371105 | L16: 11.74699811 | M16: 18.45892351 | N16: 11.2789645 | O16: 17.18413598 | P16: 10.81075855 | R16: 1.305949008 | S16: 1.235127479 | T16: 1.164305949 | U16: 1.130311615 | V16: 1.09631728 | W16: 1.025495751 | X16: 0.954674221 | Y16: 0.5582096349 | Z16: 0.5691560079 | AA16: 0.581426158 | AB16: 0.588350915 | AC16: 0.595275672 | AD16: 0.6110304589 | AE16: 0.6291127212 | AF16: 0.9 | AG16: 0.9 | AH16: 0.9 | AI16: 0.9 | AJ16: 0.9 | AK16: 0.9 | AL16: 0.9 | AM16: =Y16*C16+($A$4-80)*AF16*$A$16/1000 -> 13.12187975 | AN16: =Z16*E16+($A$4-80)*AG16*$A$16/1000 -> 12.65364405 | AO16: =AA16*G16+($A$4-80)*AH16*$A$16/1000 -> 12.18524282 | AP16: =AB16*I16+($A$4-80)*AI16*$A$16/1000 -> 11.97035771 | AQ16: =AC16*K16+($A$4-80)*AJ16*$A$16/1000 -> 11.74699811 | AR16: =AD16*M16+($A$4-80)*AK16*$A$16/1000 -> 11.2789645 | AS16: =AE16*O16+($A$4-80)*AL16*$A$16/1000 -> 10.81075855
B17: 67 | C17: 21.7733711 | D17: 16.83918953 | E17: 20.49858357 | F17: 16.21989642 | G17: 19.27478754 | H17: 15.64035206 | I17: 18.66288952 | J17: 15.35778305 | K17: 18.0509915 | L17: 15.06118452 | M17: 16.82719547 | N17: 14.48247668 | O17: 15.60339943 | P17: 13.90433765 | R17: 1.209631728 | S17: 1.138810198 | T17: 1.07082153 | U17: 1.036827195 | V17: 1.002832861 | W17: 0.9348441926 | X17: 0.8668555241 | Y17: 0.7733845829 | Z17: 0.7912691314 | AA17: 0.811440958 | AB17: 0.8229048902 | AC17: 0.8343688224 | AD17: 0.8606589676 | AE17: 0.891109512 | AF17: 0.9 | AG17: 0.9 | AH17: 0.9 | AI17: 0.9 | AJ17: 0.9 | AK17: 0.9 | AL17: 0.9 | AM17: =Y17*C17+($A$4-80)*AF17*$A$16/1000 -> 16.83918953 | AN17: =Z17*E17+($A$4-80)*AG17*$A$16/1000 -> 16.21989642 | AO17: =AA17*G17+($A$4-80)*AH17*$A$16/1000 -> 15.64035206 | AP17: =AB17*I17+($A$4-80)*AI17*$A$16/1000 -> 15.35778305 | AQ17: =AC17*K17+($A$4-80)*AJ17*$A$16/1000 -> 15.06118452 | AR17: =AD17*M17+($A$4-80)*AK17*$A$16/1000 -> 14.48247668 | AS17: =AE17*O17+($A$4-80)*AL17*$A$16/1000 -> 13.90433765
B18: 62 | C18: 20.49858357 | D18: 20.49858357 | E18: 19.58073654 | F18: 19.58073654 | G18: 18.61189802 | H18: 18.61189802 | I18: 18.1529745 | J18: 18.1529745 | K18: 17.69405099 | L18: 17.69405099 | M18: 16.77620397 | N18: 16.77620397 | O18: 15.85835694 | P18: 15.85835694 | R18: 1.138810198 | S18: 1.087818697 | T18: 1.033994334 | U18: 1.008498584 | V18: 0.9830028329 | W18: 0.9320113314 | X18: 0.88101983 | Y18: 1 | Z18: 1 | AA18: 1 | AB18: 1 | AC18: 1 | AD18: 1 | AE18: 1 | AF18: 0.443 | AG18: 0.443 | AH18: 0.443 | AI18: 0.443 | AJ18: 0.443 | AK18: 0.443 | AL18: 0.443 | AM18: 20.49858357 | AN18: =Z18*E18+($A$4-80)*AG18*$A$16/1000 -> 19.58073654 | AO18: =AA18*G18+($A$4-80)*AH18*$A$16/1000 -> 18.61189802 | AP18: 18.1529745 | AQ18: 17.69405099 | AR18: 16.77620397 | AS18: 15.85835694
B19: 57 | C19: 20.44759207 | D19: 20.44759207 | E19: 19.52974504 | F19: 19.52974504 | G19: 18.61189802 | H19: 18.61189802 | I19: 18.1529745 | J19: 18.1529745 | K19: 17.69405099 | L19: 17.69405099 | M19: 16.72521246 | N19: 16.72521246 | O19: 15.80736544 | P19: 15.80736544 | R19: 1.135977337 | S19: 1.084985836 | T19: 1.033994334 | U19: 1.008498584 | V19: 0.9830028329 | W19: 0.9291784703 | X19: 0.8781869688 | Y19: 1 | Z19: 1 | AA19: 1 | AB19: 1 | AC19: 1 | AD19: 1 | AE19: 1 | AF19: 0.443 | AG19: 0.443 | AH19: 0.443 | AI19: 0.443 | AJ19: 0.443 | AK19: 0.443 | AL19: 0.443 | AM19: 20.44759207 | AN19: =Z19*E19+($A$4-80)*AG19*$A$16/1000 -> 19.52974504 | AO19: =AA19*G19+($A$4-80)*AH19*$A$16/1000 -> 18.61189802 | AP19: 18.1529745 | AQ19: 17.69405099 | AR19: 16.72521246 | AS19: 15.80736544

Sheet 4SCU13L_42 (hidden)
A2: 4SCU13L_42
A3: Evaporator Air | C3: Condenser Entering Air Temperature ˚F
A4: 80 | B4: °F DB | C4: 65 | E4: 75 | G4: 85 | I4: 90 | K4: 95 | M4: 105 | O4: 115
A5: CFM | B5: EWB† ˚F | C5: Capacity Mbtuh | E5: Capacity Mbtuh | G5: Capacity Mbtuh | I5: Capacity Mbtuh | K5: Capacity Mbtuh | M5: Capacity Mbtuh | O5: Capacity Mbtuh
C6: Total | D6: Sens. | E6: Total | F6: Sens. | G6: Total | H6: Sens. | I6: Total | J6: Sens. | K6: Total | L6: Sens. | M6: Total | N6: Sens. | O6: Total | P6: Sens.
R7: Total Factors | Y7: Sens. % | AF7: IDB Adj | AM7: Sens Calc
A8: 1200 | B8: 72 | C8: =R8*$K$13 -> 22.67475728 | D8: =IF(AM8>C8,C8,AM8) -> 11.52092955 | E8: =S8*$K$13 -> 21.53883495 | F8: =IF(AN8>E8,E8,AN8) -> 11.09965776 | G8: =T8*$K$13 -> 20.3592233 | H8: =IF(AO8>G8,G8,AO8) -> 10.6560028 | I8: =U8*$K$13 -> 19.76941748 | J8: =IF(AP8>I8,I8,AP8) -> 10.43673428 | K8: =V8*$K$13 -> 19.17961165 | L8: =IF(AQ8>K8,K8,AQ8) -> 10.21212928 | M8: =W8*$K$13 -> 18.04368932 | N8: =IF(AR8>M8,M8,AR8) -> 9.79170349 | O8: =X8*$K$13 -> 16.86407767 | P8: =IF(AS8>O8,O8,AS8) -> 9.347762054 | R8: 1.259708738 | S8: 1.196601942 | T8: 1.131067961 | U8: 1.098300971 | V8: 1.065533981 | W8: 1.002427184 | X8: 0.9368932039 | Y8: 0.5080949448 | Z8: 0.5153323186 | AA8: 0.523399279 | AB8: 0.5279232072 | AC8: 0.5324471354 | AD8: 0.5426663758 | AE8: 0.5543002254 | AF8: =IF(Y8<0.9,0.9,Y8*-3.6846+4.1276) -> 0.9 | AG8: =IF(Z8<0.9,0.9,Z8*-3.6846+4.1276) -> 0.9 | AH8: 0.9 | AI8: 0.9 | AJ8: 0.9 | AK8: 0.9 | AL8: 0.9 | AM8: =Y8*C8+($A$4-80)*AF8*$A$8/1000 -> 11.52092955 | AN8: =Z8*E8+($A$4-80)*AG8*$A$8/1000 -> 11.09965776 | AO8: =AA8*G8+($A$4-80)*AH8*$A$8/1000 -> 10.6560028 | AP8: =AB8*I8+($A$4-80)*AI8*$A$8/1000 -> 10.43673428 | AQ8: =AC8*K8+($A$4-80)*AJ8*$A$8/1000 -> 10.21212928 | AR8: =AD8*M8+($A$4-80)*AK8*$A$8/1000 -> 9.79170349 | AS8: =AE8*O8+($A$4-80)*AL8*$A$8/1000 -> 9.347762054
B9: 67 | C9: 20.92718447 | D9: 14.64750096 | E9: 19.83495146 | F9: =IF(AN9>E9,E9,AN9) -> 14.19319786 | G9: 18.78640777 | H9: =IF(AO9>G9,G9,AO9) -> 13.77062141 | I9: 18.24029126 | J9: =IF(AP9>I9,I9,AP9) -> 13.54891971 | K9: =V9*$K$13 -> 17.69417476 | L9: =IF(AQ9>K9,K9,AQ9) -> 13.31652298 | M9: 16.60194175 | N9: =IF(AR9>M9,M9,AR9) -> 12.86211431 | O9: 15.50970874 | P9: =IF(AS9>O9,O9,AS9) -> 12.40733034 | R9: 1.162621359 | S9: 1.101941748 | T9: 1.04368932 | U9: 1.013349515 | V9: 0.9830097087 | W9: 0.9223300971 | X9: 0.8616504854 | Y9: 0.6999269768 | Z9: 0.7155650414 | AA9: 0.7330098217 | AB9: 0.7428017195 | AC9: 0.7525936172 | AD9: 0.7747355402 | AE9: 0.7999718468 | AF9: =IF(Y9<0.9,0.9,Y9*-3.6846+4.1276) -> 0.9 | AG9: 0.9 | AH9: 0.9 | AI9: 0.9 | AJ9: 0.9 | AK9: 0.9 | AL9: 0.9 | AM9: =Y9*C9+($A$4-80)*AF9*$A$8/1000 -> 14.64750096 | AN9: =Z9*E9+($A$4-80)*AG9*$A$8/1000 -> 14.19319786 | AO9: =AA9*G9+($A$4-80)*AH9*$A$8/1000 -> 13.77062141 | AP9: =AB9*I9+($A$4-80)*AI9*$A$8/1000 -> 13.54891971 | AQ9: =AC9*K9+($A$4-80)*AJ9*$A$8/1000 -> 13.31652298 | AR9: =AD9*M9+($A$4-80)*AK9*$A$8/1000 -> 12.86211431 | AS9: =AE9*O9+($A$4-80)*AL9*$A$8/1000 -> 12.40733034
B10: 62 | C10: 19.26699029 | D10: 17.81037784 | E10: 18.26213592 | F10: 17.19932267 | G10: 17.30097087 | H10: 16.62922853 | I10: 16.79854369 | J10: 16.32849923 | K10: =V10*$K$13 -> 16.2961165 | L10: 16.01687169 | M10: 15.33495146 | N10: 15.33495146 | O10: 14.37378641 | P10: 14.37378641 | R10: 1.07038835 | S10: 1.014563107 | T10: 0.9611650485 | U10: 0.9332524272 | V10: 0.9053398058 | W10: 0.8519417476 | X10: 0.7985436893 | Y10: 0.9243985474 | Z10: 0.9418023576 | AA10: 0.961173142 | AB10: 0.9720187379 | AC10: 0.9828643337 | AD10: 1 | AE10: 1 | AF10: 0.7215611121 | AG10: 0.6574350334 | AH10: 0.5860614409 | AI10: 0.5460997584 | AJ10: 0.506138076 | AK10: 0.443 | AL10: 0.443 | AM10: 17.81037784 | AN10: =Z10*E10+($A$4-80)*AG10*$A$8/1000 -> 17.19932267 | AO10: =AA10*G10+($A$4-80)*AH10*$A$8/1000 -> 16.62922853 | AP10: 16.32849923 | AQ10: 16.01687169 | AR10: 15.33495146 | AS10: 14.37378641
B11: 57 | C11: 18.69902913 | D11: 18.69902913 | E11: 17.91262136 | F11: 17.91262136 | G11: 17.08252427 | H11: 17.08252427 | I11: 16.68932039 | J11: 16.68932039 | K11: =V11*$K$13 -> 16.2961165 | L11: 16.2961165 | M11: 15.50970874 | N11: 15.50970874 | O11: 14.72330097 | P11: 14.72330097 | R11: 1.038834951 | S11: 0.9951456311 | T11: 0.9490291262 | U11: 0.927184466 | V11: 0.9053398058 | W11: 0.8616504854 | X11: 0.817961165 | Y11: 1 | Z11: 1 | AA11: 1 | AB11: 1 | AC11: 1 | AD11: 1 | AE11: 1 | AF11: 0.443 | AG11: 0.443 | AH11: 0.443 | AI11: 0.443 | AJ11: 0.443 | AK11: 0.443 | AL11: 0.443 | AM11: 18.69902913 | AN11: =Z11*E11+($A$4-80)*AG11*$A$8/1000 -> 17.91262136 | AO11: =AA11*G11+($A$4-80)*AH11*$A$8/1000 -> 17.08252427 | AP11: =AB11*I11+($A$4-80)*AI11*$A$8/1000 -> 16.68932039 | AQ11: 16.2961165 | AR11: 15.50970874 | AS11: 14.72330097
A12: 1400 | B12: 72 | C12: 23.11165049 | D12: 12.1429946 | E12: 21.88834951 | F12: 11.74948434 | G12: 20.70873786 | H12: 11.37935923 | I12: 20.09708738 | J12: 11.18659894 | K12: =V12*$K$13 -> 19.48543689 | L12: 10.98511367 | M12: 18.30582524 | N12: 10.6154036 | O12: 17.12621359 | P12: 10.24633294 | R12: 1.283980583 | S12: 1.216019417 | T12: 1.150485437 | U12: 1.116504854 | V12: 1.082524272 | W12: 1.016990291 | X12: 0.9514563107 | Y12: 0.5254057735 | Z12: 0.5367916999 | AA12: 0.5494955465 | AB12: 0.55662787 | AC12: 0.5637601936 | AD12: 0.5798921087 | AE12: 0.5982836126 | AF12: 0.9 | AG12: 0.9 | AH12: 0.9 | AI12: 0.9 | AJ12: 0.9 | AK12: 0.9 | AL12: 0.9 | AM12: =Y12*C12+($A$4-80)*AF12*$A$12/1000 -> 12.1429946 | AN12: =Z12*E12+($A$4-80)*AG12*$A$12/1000 -> 11.74948434 | AO12: =AA12*G12+($A$4-80)*AH12*$A$12/1000 -> 11.37935923 | AP12: =AB12*I12+($A$4-80)*AI12*$A$12/1000 -> 11.18659894 | AQ12: =AC12*K12+($A$4-80)*AJ12*$A$12/1000 -> 10.98511367 | AR12: =AD12*M12+($A$4-80)*AK12*$A$12/1000 -> 10.6154036 | AS12: =AE12*O12+($A$4-80)*AL12*$A$12/1000 -> 10.24633294
B13: 67 | C13: 21.32038835 | D13: 15.75240832 | E13: 20.18446602 | F13: 15.33762735 | G13: 19.09223301 | H13: 14.95565897 | I13: 18.5461165 | J13: 14.77218474 | K13: 18 | L13: 14.57432186 | M13: 16.86407767 | N13: 14.15706366 | O13: 15.77184466 | P13: 13.77591161 | R13: 1.184466019 | S13: 1.121359223 | T13: 1.060679612 | U13: 1.030339806 | V13: 1 | W13: 0.9368932039 | X13: 0.8762135922 | Y13: 0.7388424668 | Z13: 0.7598728319 | AA13: 0.7833373371 | AB13: 0.7965109425 | AC13: 0.8096845479 | AD13: 0.839480459 | AE13: 0.8734496124 | AF13: 0.9 | AG13: 0.9 | AH13: 0.9 | AI13: 0.9 | AJ13: 0.9 | AK13: 0.9 | AL13: 0.9 | AM13: =Y13*C13+($A$4-80)*AF13*$A$12/1000 -> 15.75240832 | AN13: =Z13*E13+($A$4-80)*AG13*$A$12/1000 -> 15.33762735 | AO13: =AA13*G13+($A$4-80)*AH13*$A$12/1000 -> 14.95565897 | AP13: =AB13*I13+($A$4-80)*AI13*$A$12/1000 -> 14.77218474 | AQ13: =AC13*K13+($A$4-80)*AJ13*$A$12/1000 -> 14.57432186 | AR13: =AD13*M13+($A$4-80)*AK13*$A$12/1000 -> 14.15706366 | AS13: =AE13*O13+($A$4-80)*AL13*$A$12/1000 -> 13.77591161
B14: 62 | C14: 19.57281553 | D14: 19.20815764 | E14: 18.69902913 | F14: 18.45608245 | G14: 17.82524272 | H14: 17.70385632 | I14: 17.41019417 | J14: 17.35091418 | K14: =V14*$K$13 -> 16.99514563 | L14: 16.99514563 | M14: 16.12135922 | N14: 16.12135922 | O14: 15.24757282 | P14: 15.24757282 | R14: 1.087378641 | S14: 1.038834951 | T14: 0.9902912621 | U14: 0.9672330097 | V14: 0.9441747573 | W14: 0.895631068 | X14: 0.8470873786 | Y14: 0.9813691653 | Z14: 0.9870075244 | AA14: 0.9931901968 | AB14: 0.9965950984 | AC14: 1 | AD14: 1 | AE14: 1 | AF14: 0.5116471735 | AG14: 0.4908720755 | AH14: 0.4680914008 | AI14: 0.4555457004 | AJ14: 0.443 | AK14: 0.443 | AL14: 0.443 | AM14: 19.20815764 | AN14: =Z14*E14+($A$4-80)*AG14*$A$12/1000 -> 18.45608245 | AO14: =AA14*G14+($A$4-80)*AH14*$A$12/1000 -> 17.70385632 | AP14: 17.35091418 | AQ14: 16.99514563 | AR14: 16.12135922 | AS14: 15.24757282
B15: 57 | C15: 19.52912621 | D15: 19.52912621 | E15: 18.69902913 | F15: 18.69902913 | G15: 17.82524272 | H15: 17.82524272 | I15: 17.38834951 | J15: 17.38834951 | K15: 16.95145631 | L15: 16.95145631 | M15: 16.12135922 | N15: 16.12135922 | O15: 15.24757282 | P15: 15.24757282 | R15: 1.084951456 | S15: 1.038834951 | T15: 0.9902912621 | U15: 0.9660194175 | V15: 0.9417475728 | W15: 0.895631068 | X15: 0.8470873786 | Y15: 1 | Z15: 1 | AA15: 1 | AB15: 1 | AC15: 1 | AD15: 1 | AE15: 1 | AF15: 0.443 | AG15: 0.443 | AH15: 0.443 | AI15: 0.443 | AJ15: 0.443 | AK15: 0.443 | AL15: 0.443 | AM15: 19.52912621 | AN15: =Z15*E15+($A$4-80)*AG15*$A$12/1000 -> 18.69902913 | AO15: =AA15*G15+($A$4-80)*AH15*$A$12/1000 -> 17.82524272 | AP15: 17.38834951 | AQ15: 16.95145631 | AR15: 16.12135922 | AS15: 15.24757282
A16: 1600 | B16: 72 | C16: 23.46116505 | D16: 12.97764697 | E16: 22.19417476 | F16: 12.52132652 | G16: 20.92718447 | H16: 12.06487038 | I16: 20.29368932 | J16: 11.840973 | K16: 19.66019417 | L16: 11.60825243 | M16: 18.39320388 | N16: 11.15143942 | O16: 17.12621359 | P16: 10.69438833 | R16: 1.303398058 | S16: 1.233009709 | T16: 1.162621359 | U16: 1.127427184 | V16: 1.09223301 | W16: 1.02184466 | X16: 0.9514563107 | Y16: 0.5531544124 | Z16: 0.564171755 | AA16: 0.5765166545 | AB16: 0.5834805495 | AC16: 0.5904444444 | AD16: 0.6062804227 | AE16: 0.6244455774 | AF16: 0.9 | AG16: 0.9 | AH16: 0.9 | AI16: 0.9 | AJ16: 0.9 | AK16: 0.9 | AL16: 0.9 | AM16: =Y16*C16+($A$4-80)*AF16*$A$16/1000 -> 12.97764697 | AN16: =Z16*E16+($A$4-80)*AG16*$A$16/1000 -> 12.52132652 | AO16: =AA16*G16+($A$4-80)*AH16*$A$16/1000 -> 12.06487038 | AP16: =AB16*I16+($A$4-80)*AI16*$A$16/1000 -> 11.840973 | AQ16: =AC16*K16+($A$4-80)*AJ16*$A$16/1000 -> 11.60825243 | AR16: =AD16*M16+($A$4-80)*AK16*$A$16/1000 -> 11.15143942 | AS16: =AE16*O16+($A$4-80)*AL16*$A$16/1000 -> 10.69438833
B17: 67 | C17: 21.58252427 | D17: 16.23945709 | E17: 20.44660194 | F17: 16.07276835 | G17: 19.31067961 | H17: 15.90644628 | I17: 18.74271845 | J17: 15.83553104 | K17: 18.17475728 | L17: 15.74055996 | M17: 17.03883495 | N17: 15.57519704 | O17: 15.90291262 | P17: 15.41047031 | R17: 1.199029126 | S17: 1.13592233 | T17: 1.072815534 | U17: 1.041262136 | V17: 1.009708738 | W17: 0.9466019417 | X17: 0.8834951456 | Y17: 0.7524354837 | Z17: 0.7860850618 | AA17: 0.8237124014 | AB17: 0.8448897681 | AC17: 0.8660671348 | AD17: 0.9140998833 | AE17: 0.9690344581 | AF17: 0.9 | AG17: 0.9 | AH17: 0.9 | AI17: 0.9 | AJ17: 0.9 | AK17: 0.7595075701 | AL17: 0.5570956357 | AM17: =Y17*C17+($A$4-80)*AF17*$A$16/1000 -> 16.23945709 | AN17: =Z17*E17+($A$4-80)*AG17*$A$16/1000 -> 16.07276835 | AO17: =AA17*G17+($A$4-80)*AH17*$A$16/1000 -> 15.90644628 | AP17: =AB17*I17+($A$4-80)*AI17*$A$16/1000 -> 15.83553104 | AQ17: =AC17*K17+($A$4-80)*AJ17*$A$16/1000 -> 15.74055996 | AR17: =AD17*M17+($A$4-80)*AK17*$A$16/1000 -> 15.57519704 | AS17: =AE17*O17+($A$4-80)*AL17*$A$16/1000 -> 15.41047031
B18: 62 | C18: 20.22815534 | D18: 20.22815534 | E18: 19.31067961 | F18: 19.31067961 | G18: 18.39320388 | H18: 18.39320388 | I18: 17.93446602 | J18: 17.93446602 | K18: 17.47572816 | L18: 17.47572816 | M18: 16.55825243 | N18: 16.55825243 | O18: 15.6407767 | P18: 15.6407767 | R18: 1.123786408 | S18: 1.072815534 | T18: 1.02184466 | U18: 0.9963592233 | V18: 0.9708737864 | W18: 0.9199029126 | X18: 0.8689320388 | Y18: 1 | Z18: 1 | AA18: 1 | AB18: 1 | AC18: 1 | AD18: 1 | AE18: 1 | AF18: 0.443 | AG18: 0.443 | AH18: 0.443 | AI18: 0.443 | AJ18: 0.443 | AK18: 0.443 | AL18: 0.443 | AM18: 20.22815534 | AN18: =Z18*E18+($A$4-80)*AG18*$A$16/1000 -> 19.31067961 | AO18: =AA18*G18+($A$4-80)*AH18*$A$16/1000 -> 18.39320388 | AP18: 17.93446602 | AQ18: 17.47572816 | AR18: 16.55825243 | AS18: 15.6407767
B19: 57 | C19: 20.22815534 | D19: 20.22815534 | E19: 19.31067961 | F19: 19.31067961 | G19: 18.39320388 | H19: 18.39320388 | I19: 17.93446602 | J19: 17.93446602 | K19: 17.47572816 | L19: 17.47572816 | M19: 16.55825243 | N19: 16.55825243 | O19: 15.6407767 | P19: 15.6407767 | R19: 1.123786408 | S19: 1.072815534 | T19: 1.02184466 | U19: 0.9963592233 | V19: 0.9708737864 | W19: 0.9199029126 | X19: 0.8689320388 | Y19: 1 | Z19: 1 | AA19: 1 | AB19: 1 | AC19: 1 | AD19: 1 | AE19: 1 | AF19: 0.443 | AG19: 0.443 | AH19: 0.443 | AI19: 0.443 | AJ19: 0.443 | AK19: 0.443 | AL19: 0.443 | AM19: 20.22815534 | AN19: =Z19*E19+($A$4-80)*AG19*$A$16/1000 -> 19.31067961 | AO19: =AA19*G19+($A$4-80)*AH19*$A$16/1000 -> 18.39320388 | AP19: 17.93446602 | AQ19: 17.47572816 | AR19: 16.55825243 | AS19: 15.6407767

Sheet 4SCU13L_48 (hidden)
A2: 4SCU13L_48
A3: Evaporator Air | C3: Condenser Entering Air Temperature ˚F
A4: 80 | B4: °F DB | C4: 65 | E4: 75 | G4: 85 | I4: 90 | K4: 95 | M4: 105 | O4: 115
A5: CFM | B5: EWB† ˚F | C5: Capacity Mbtuh | E5: Capacity Mbtuh | G5: Capacity Mbtuh | I5: Capacity Mbtuh | K5: Capacity Mbtuh | M5: Capacity Mbtuh | O5: Capacity Mbtuh
C6: Total | D6: Sens. | E6: Total | F6: Sens. | G6: Total | H6: Sens. | I6: Total | J6: Sens. | K6: Total | L6: Sens. | M6: Total | N6: Sens. | O6: Total | P6: Sens.
R7: Total Factors | Y7: Sens. % | AF7: IDB Adj | AM7: Sens Calc
A8: 1400 | B8: 72 | C8: =R8*$K$13 -> 22.72689076 | D8: =IF(AM8>C8,C8,AM8) -> 11.55835852 | E8: =S8*$K$13 -> 21.55462185 | F8: =IF(AN8>E8,E8,AN8) -> 11.12136821 | G8: =T8*$K$13 -> 20.38235294 | H8: =IF(AO8>G8,G8,AO8) -> 10.68453128 | I8: =U8*$K$13 -> 19.79621849 | J8: =IF(AP8>I8,I8,AP8) -> 10.468917 | K8: =V8*$K$13 -> 19.21008403 | L8: =IF(AQ8>K8,K8,AQ8) -> 10.24787606 | M8: =W8*$K$13 -> 18 | N8: =IF(AR8>M8,M8,AR8) -> 9.790869296 | O8: =X8*$K$13 -> 16.82773109 | P8: =IF(AS8>O8,O8,AS8) -> 9.354243203 | R8: 1.262605042 | S8: 1.197478992 | T8: 1.132352941 | U8: 1.099789916 | V8: 1.067226891 | W8: 1 | X8: 0.9348739496 | Y8: 0.5085763222 | Z8: 0.5159621119 | AA8: 0.5242049978 | AB8: 0.5288341812 | AC8: 0.5334633647 | AD8: 0.5439371831 | AE8: 0.5558826173 | AF8: =IF(Y8<0.9,0.9,Y8*-3.6846+4.1276) -> 0.9 | AG8: =IF(Z8<0.9,0.9,Z8*-3.6846+4.1276) -> 0.9 | AH8: 0.9 | AI8: 0.9 | AJ8: 0.9 | AK8: 0.9 | AL8: 0.9 | AM8: =Y8*C8+($A$4-80)*AF8*$A$8/1000 -> 11.55835852 | AN8: =Z8*E8+($A$4-80)*AG8*$A$8/1000 -> 11.12136821 | AO8: =AA8*G8+($A$4-80)*AH8*$A$8/1000 -> 10.68453128 | AP8: =AB8*I8+($A$4-80)*AI8*$A$8/1000 -> 10.468917 | AQ8: =AC8*K8+($A$4-80)*AJ8*$A$8/1000 -> 10.24787606 | AR8: =AD8*M8+($A$4-80)*AK8*$A$8/1000 -> 9.790869296 | AS8: =AE8*O8+($A$4-80)*AL8*$A$8/1000 -> 9.354243203
B9: 67 | C9: 20.94957983 | D9: 14.28618513 | E9: 19.8907563 | F9: =IF(AN9>E9,E9,AN9) -> 13.88192486 | G9: 18.83193277 | H9: =IF(AO9>G9,G9,AO9) -> 13.47777992 | I9: 18.30252101 | J9: =IF(AP9>I9,I9,AP9) -> 13.28104447 | K9: =V9*$K$13 -> 17.77310924 | L9: =IF(AQ9>K9,K9,AQ9) -> 13.07377097 | M9: 16.71428571 | N9: =IF(AR9>M9,M9,AR9) -> 12.66992397 | O9: 15.65546218 | P9: =IF(AS9>O9,O9,AS9) -> 12.26627191 | R9: 1.163865546 | S9: 1.105042017 | T9: 1.046218487 | U9: 1.016806723 | V9: 0.987394958 | W9: 0.9285714286 | X9: 0.8697478992 | Y9: 0.6819318213 | Z9: 0.6979083476 | AA9: 0.7156875546 | AB9: 0.725640171 | AC9: 0.7355927873 | AD9: 0.7580296392 | AE9: 0.7835138795 | AF9: =IF(Y9<0.9,0.9,Y9*-3.6846+4.1276) -> 0.9 | AG9: 0.9 | AH9: 0.9 | AI9: 0.9 | AJ9: 0.9 | AK9: 0.9 | AL9: 0.9 | AM9: =Y9*C9+($A$4-80)*AF9*$A$8/1000 -> 14.28618513 | AN9: =Z9*E9+($A$4-80)*AG9*$A$8/1000 -> 13.88192486 | AO9: =AA9*G9+($A$4-80)*AH9*$A$8/1000 -> 13.47777992 | AP9: =AB9*I9+($A$4-80)*AI9*$A$8/1000 -> 13.28104447 | AQ9: =AC9*K9+($A$4-80)*AJ9*$A$8/1000 -> 13.07377097 | AR9: =AD9*M9+($A$4-80)*AK9*$A$8/1000 -> 12.66992397 | AS9: =AE9*O9+($A$4-80)*AL9*$A$8/1000 -> 12.26627191
B10: 62 | C10: 19.24789916 | D10: 17.27659903 | E10: 18.30252101 | F10: 16.83371844 | G10: 17.31932773 | H10: 16.3564076 | I10: 16.82773109 | J10: 16.12424515 | K10: =V10*$K$13 -> 16.33613445 | L10: 15.87852166 | M10: 15.3907563 | N10: 15.3907563 | O10: 14.40756303 | P10: 14.40756303 | R10: 1.069327731 | S10: 1.016806723 | T10: 0.9621848739 | U10: 0.9348739496 | V10: 0.9075630252 | W10: 0.8550420168 | X10: 0.8004201681 | Y10: 0.8975836212 | Z10: 0.9197486201 | AA10: 0.9444019912 | AB10: 0.9581948426 | AC10: 0.971987694 | AD10: 1 | AE10: 1 | AF10: 0.9 | AG10: 0.7386942344 | AH10: 0.6478564233 | AI10: 0.597035283 | AJ10: 0.5462141426 | AK10: 0.443 | AL10: 0.443 | AM10: 17.27659903 | AN10: =Z10*E10+($A$4-80)*AG10*$A$8/1000 -> 16.83371844 | AO10: =AA10*G10+($A$4-80)*AH10*$A$8/1000 -> 16.3564076 | AP10: 16.12424515 | AQ10: 15.87852166 | AR10: 15.3907563 | AS10: 14.40756303
B11: 57 | C11: 18.75630252 | D11: 18.75630252 | E11: 17.96218487 | F11: 17.96218487 | G11: 17.16806723 | H11: 17.16806723 | I11: 16.7710084 | J11: 16.7710084 | K11: =V11*$K$13 -> 16.37394958 | L11: 16.37394958 | M11: 15.57983193 | N11: 15.57983193 | O11: 14.78571429 | P11: 14.78571429 | R11: 1.042016807 | S11: 0.9978991597 | T11: 0.9537815126 | U11: 0.9317226891 | V11: 0.9096638655 | W11: 0.8655462185 | X11: 0.8214285714 | Y11: 1 | Z11: 1 | AA11: 1 | AB11: 1 | AC11: 1 | AD11: 1 | AE11: 1 | AF11: 0.443 | AG11: 0.443 | AH11: 0.443 | AI11: 0.443 | AJ11: 0.443 | AK11: 0.443 | AL11: 0.443 | AM11: 18.75630252 | AN11: =Z11*E11+($A$4-80)*AG11*$A$8/1000 -> 17.96218487 | AO11: =AA11*G11+($A$4-80)*AH11*$A$8/1000 -> 17.16806723 | AP11: =AB11*I11+($A$4-80)*AI11*$A$8/1000 -> 16.7710084 | AQ11: 16.37394958 | AR11: 15.57983193 | AS11: 14.78571429
A12: 1600 | B12: 72 | C12: 23.10504202 | D12: 12.16480472 | E12: 21.89495798 | F12: 11.75775234 | G12: 20.68487395 | H12: 11.35086263 | I12: 20.07983193 | J12: 11.15151188 | K12: =V12*$K$13 -> 19.47478992 | L12: 10.94416613 | M12: 18.26470588 | N12: 10.53770151 | O12: 17.01680672 | P12: 10.10905395 | R12: 1.283613445 | S12: 1.216386555 | T12: 1.149159664 | U12: 1.115546218 | V12: 1.081932773 | W12: 1.014705882 | X12: 0.9453781513 | Y12: 0.5265000041 | Z12: 0.5370073031 | AA12: 0.5487518396 | AB12: 0.5553588258 | AC12: 0.561965812 | AD12: 0.5769433997 | AE12: 0.5940629232 | AF12: 0.9 | AG12: 0.9 | AH12: 0.9 | AI12: 0.9 | AJ12: 0.9 | AK12: 0.9 | AL12: 0.9 | AM12: =Y12*C12+($A$4-80)*AF12*$A$12/1000 -> 12.16480472 | AN12: =Z12*E12+($A$4-80)*AG12*$A$12/1000 -> 11.75775234 | AO12: =AA12*G12+($A$4-80)*AH12*$A$12/1000 -> 11.35086263 | AP12: =AB12*I12+($A$4-80)*AI12*$A$12/1000 -> 11.15151188 | AQ12: =AC12*K12+($A$4-80)*AJ12*$A$12/1000 -> 10.94416613 | AR12: =AD12*M12+($A$4-80)*AK12*$A$12/1000 -> 10.53770151 | AS12: =AE12*O12+($A$4-80)*AL12*$A$12/1000 -> 10.10905395
B13: 67 | C13: 21.36554622 | D13: 15.27233895 | E13: 20.23109244 | F13: 14.82021418 | G13: 19.13445378 | H13: 14.39605264 | I13: 18.56722689 | J13: 14.17619961 | K13: 18 | L13: 13.94370458 | M13: 16.86554622 | N13: 13.49077453 | O13: 15.76890756 | P13: 13.06847741 | R13: 1.18697479 | S13: 1.12394958 | T13: 1.06302521 | U13: 1.031512605 | V13: 1 | W13: 0.9369747899 | X13: 0.8760504202 | Y13: 0.7148115378 | Z13: 0.7325464122 | AA13: 0.7523628742 | AB13: 0.7635065642 | AC13: 0.7746502542 | AD13: 0.7999014293 | AE13: 0.8287497 | AF13: 0.9 | AG13: 0.9 | AH13: 0.9 | AI13: 0.9 | AJ13: 0.9 | AK13: 0.9 | AL13: 0.9 | AM13: =Y13*C13+($A$4-80)*AF13*$A$12/1000 -> 15.27233895 | AN13: =Z13*E13+($A$4-80)*AG13*$A$12/1000 -> 14.82021418 | AO13: =AA13*G13+($A$4-80)*AH13*$A$12/1000 -> 14.39605264 | AP13: =AB13*I13+($A$4-80)*AI13*$A$12/1000 -> 14.17619961 | AQ13: =AC13*K13+($A$4-80)*AJ13*$A$12/1000 -> 13.94370458 | AR13: =AD13*M13+($A$4-80)*AK13*$A$12/1000 -> 13.49077453 | AS13: =AE13*O13+($A$4-80)*AL13*$A$12/1000 -> 13.06847741
B14: 62 | C14: 19.43697479 | D14: 18.57782771 | E14: 18.60504202 | F14: 18.03221877 | G14: 17.77310924 | H14: 17.48666561 | I14: 17.35714286 | J14: 17.21727304 | K14: =V14*$K$13 -> 16.94117647 | L14: 16.94117647 | M14: 16.1092437 | N14: 16.1092437 | O14: 15.27731092 | P14: 15.27731092 | R14: 1.079831933 | S14: 1.033613445 | T14: 0.987394958 | U14: 0.9642857143 | V14: 0.9411764706 | W14: 0.8949579832 | X14: 0.8487394958 | Y14: 0.9557983128 | Z14: 0.9692113975 | AA14: 0.9838833135 | AB14: 0.9919416567 | AC14: 1 | AD14: 1 | AE14: 1 | AF14: 0.6058655367 | AG14: 0.5564436849 | AH14: 0.5023835431 | AI14: 0.4726917716 | AJ14: 0.443 | AK14: 0.443 | AL14: 0.443 | AM14: 18.57782771 | AN14: =Z14*E14+($A$4-80)*AG14*$A$12/1000 -> 18.03221877 | AO14: =AA14*G14+($A$4-80)*AH14*$A$12/1000 -> 17.48666561 | AP14: 17.21727304 | AQ14: 16.94117647 | AR14: 16.1092437 | AS14: 15.27731092
B15: 57 | C15: 19.47478992 | D15: 19.47478992 | E15: 18.60504202 | F15: 18.60504202 | G15: 17.77310924 | H15: 17.77310924 | I15: 17.35714286 | J15: 17.35714286 | K15: 16.94117647 | L15: 16.94117647 | M15: 16.07142857 | N15: 16.07142857 | O15: 15.2394958 | P15: 15.2394958 | R15: 1.081932773 | S15: 1.033613445 | T15: 0.987394958 | U15: 0.9642857143 | V15: 0.9411764706 | W15: 0.8928571429 | X15: 0.8466386555 | Y15: 1 | Z15: 1 | AA15: 1 | AB15: 1 | AC15: 1 | AD15: 1 | AE15: 1 | AF15: 0.443 | AG15: 0.443 | AH15: 0.443 | AI15: 0.443 | AJ15: 0.443 | AK15: 0.443 | AL15: 0.443 | AM15: 19.47478992 | AN15: =Z15*E15+($A$4-80)*AG15*$A$12/1000 -> 18.60504202 | AO15: =AA15*G15+($A$4-80)*AH15*$A$12/1000 -> 17.77310924 | AP15: 17.35714286 | AQ15: 16.94117647 | AR15: 16.07142857 | AS15: 15.2394958
A16: 1800 | B16: 72 | C16: 23.3697479 | D16: 12.6745503 | E16: 22.12184874 | F16: 12.29445308 | G16: 20.87394958 | H16: 11.91428055 | I16: 20.25 | J16: 11.729427 | K16: 19.62605042 | L16: 11.53401838 | M16: 18.37815126 | N16: 11.15364836 | O16: 17.1302521 | P16: 10.77314696 | R16: 1.298319328 | S16: 1.228991597 | T16: 1.159663866 | U16: 1.125 | V16: 1.090336134 | W16: 1.021008403 | X16: 0.9516806723 | Y16: 0.5423486105 | Z16: 0.5557606522 | AA16: 0.5707726997 | AB16: 0.5792309629 | AC16: 0.5876892261 | AD16: 0.6068971899 | AE16: 0.6288959965 | AF16: 0.9 | AG16: 0.9 | AH16: 0.9 | AI16: 0.9 | AJ16: 0.9 | AK16: 0.9 | AL16: 0.9 | AM16: =Y16*C16+($A$4-80)*AF16*$A$16/1000 -> 12.6745503 | AN16: =Z16*E16+($A$4-80)*AG16*$A$16/1000 -> 12.29445308 | AO16: =AA16*G16+($A$4-80)*AH16*$A$16/1000 -> 11.91428055 | AP16: =AB16*I16+($A$4-80)*AI16*$A$16/1000 -> 11.729427 | AQ16: =AC16*K16+($A$4-80)*AJ16*$A$16/1000 -> 11.53401838 | AR16: =AD16*M16+($A$4-80)*AK16*$A$16/1000 -> 11.15364836 | AS16: =AE16*O16+($A$4-80)*AL16*$A$16/1000 -> 10.77314696
B17: 67 | C17: 21.59243697 | D17: 16.02343417 | E17: 20.45798319 | F17: 15.60055096 | G17: 19.28571429 | H17: 15.14861965 | I17: 18.71848739 | J17: 14.94473009 | K17: 18.1512605 | L17: 14.72619459 | M17: 16.9789916 | N17: 14.27278714 | O17: 15.84453782 | P17: 13.85087929 | R17: 1.199579832 | S17: 1.136554622 | T17: 1.071428571 | U17: 1.039915966 | V17: 1.008403361 | W17: 0.9432773109 | X17: 0.8802521008 | Y17: 0.7420854898 | Z17: 0.7625654402 | AA17: 0.7854839816 | AB17: 0.7983941104 | AC17: 0.8113042391 | AD17: 0.8406145357 | AE17: 0.8741737657 | AF17: 0.9 | AG17: 0.9 | AH17: 0.9 | AI17: 0.9 | AJ17: 0.9 | AK17: 0.9 | AL17: 0.9 | AM17: =Y17*C17+($A$4-80)*AF17*$A$16/1000 -> 16.02343417 | AN17: =Z17*E17+($A$4-80)*AG17*$A$16/1000 -> 15.60055096 | AO17: =AA17*G17+($A$4-80)*AH17*$A$16/1000 -> 15.14861965 | AP17: =AB17*I17+($A$4-80)*AI17*$A$16/1000 -> 14.94473009 | AQ17: =AC17*K17+($A$4-80)*AJ17*$A$16/1000 -> 14.72619459 | AR17: =AD17*M17+($A$4-80)*AK17*$A$16/1000 -> 14.27278714 | AS17: =AE17*O17+($A$4-80)*AL17*$A$16/1000 -> 13.85087929
B18: 62 | C18: 20.07983193 | D18: 20.07983193 | E18: 19.21008403 | F18: 19.21008403 | G18: 18.30252101 | H18: 18.30252101 | I18: 17.8487395 | J18: 17.8487395 | K18: 17.39495798 | L18: 17.39495798 | M18: 16.48739496 | N18: 16.48739496 | O18: 15.57983193 | P18: 15.57983193 | R18: 1.115546218 | S18: 1.067226891 | T18: 1.016806723 | U18: 0.9915966387 | V18: 0.9663865546 | W18: 0.9159663866 | X18: 0.8655462185 | Y18: 1 | Z18: 1 | AA18: 1 | AB18: 1 | AC18: 1 | AD18: 1 | AE18: 1 | AF18: 0.443 | AG18: 0.443 | AH18: 0.443 | AI18: 0.443 | AJ18: 0.443 | AK18: 0.443 | AL18: 0.443 | AM18: 20.07983193 | AN18: =Z18*E18+($A$4-80)*AG18*$A$16/1000 -> 19.21008403 | AO18: =AA18*G18+($A$4-80)*AH18*$A$16/1000 -> 18.30252101 | AP18: 17.8487395 | AQ18: 17.39495798 | AR18: 16.48739496 | AS18: 15.57983193
B19: 57 | C19: 20.07983193 | D19: 20.07983193 | E19: 19.17226891 | F19: 19.17226891 | G19: 18.26470588 | H19: 18.26470588 | I19: 17.81092437 | J19: 17.81092437 | K19: 17.35714286 | L19: 17.35714286 | M19: 16.48739496 | N19: 16.48739496 | O19: 15.57983193 | P19: 15.57983193 | R19: 1.115546218 | S19: 1.06512605 | T19: 1.014705882 | U19: 0.9894957983 | V19: 0.9642857143 | W19: 0.9159663866 | X19: 0.8655462185 | Y19: 1 | Z19: 1 | AA19: 1 | AB19: 1 | AC19: 1 | AD19: 1 | AE19: 1 | AF19: 0.443 | AG19: 0.443 | AH19: 0.443 | AI19: 0.443 | AJ19: 0.443 | AK19: 0.443 | AL19: 0.443 | AM19: 20.07983193 | AN19: =Z19*E19+($A$4-80)*AG19*$A$16/1000 -> 19.17226891 | AO19: =AA19*G19+($A$4-80)*AH19*$A$16/1000 -> 18.26470588 | AP19: 17.81092437 | AQ19: 17.35714286 | AR19: 16.48739496 | AS19: 15.57983193

Sheet 4SCU13L_60 (hidden)
A2: 4SCU13L_60
A3: Evaporator Air | C3: Condenser Entering Air Temperature ˚F
A4: 80 | B4: °F DB | C4: 65 | E4: 75 | G4: 85 | I4: 90 | K4: 95 | M4: 105 | O4: 115
A5: CFM | B5: EWB† ˚F | C5: Capacity Mbtuh | E5: Capacity Mbtuh | G5: Capacity Mbtuh | I5: Capacity Mbtuh | K5: Capacity Mbtuh | M5: Capacity Mbtuh | O5: Capacity Mbtuh
C6: Total | D6: Sens. | E6: Total | F6: Sens. | G6: Total | H6: Sens. | I6: Total | J6: Sens. | K6: Total | L6: Sens. | M6: Total | N6: Sens. | O6: Total | P6: Sens.
R7: Total Factors | Y7: Sens. % | AF7: IDB Adj | AM7: Sens Calc
A8: 1600 | B8: 72 | C8: =R8*$K$13 -> 22.47115385 | D8: =IF(AM8>C8,C8,AM8) -> 11.09631378 | E8: =S8*$K$13 -> 21.34615385 | F8: =IF(AN8>E8,E8,AN8) -> 10.65145107 | G8: =T8*$K$13 -> 20.25 | H8: =IF(AO8>G8,G8,AO8) -> 10.22090663 | I8: =U8*$K$13 -> 19.70192308 | J8: =IF(AP8>I8,I8,AP8) -> 10.00743486 | K8: =V8*$K$13 -> 19.15384615 | L8: =IF(AQ8>K8,K8,AQ8) -> 9.79044893 | M8: =W8*$K$13 -> 18.05769231 | N8: =IF(AR8>M8,M8,AR8) -> 9.360093887 | O8: =X8*$K$13 -> 16.93269231 | P8: =IF(AS8>O8,O8,AS8) -> 8.914674717 | R8: 1.248397436 | S8: 1.185897436 | T8: 1.125 | U8: 1.094551282 | V8: 1.064102564 | W8: 1.003205128 | X8: 0.9407051282 | Y8: 0.4938025817 | Z8: 0.4989868972 | AA8: 0.5047361299 | AB8: 0.507942033 | AC8: 0.5111479361 | AD8: 0.5183438574 | AE8: 0.5264770986 | AF8: =IF(Y8<0.9,0.9,Y8*-3.6846+4.1276) -> 0.9 | AG8: =IF(Z8<0.9,0.9,Z8*-3.6846+4.1276) -> 0.9 | AH8: 0.9 | AI8: 0.9 | AJ8: 0.9 | AK8: 0.9 | AL8: 0.9 | AM8: =Y8*C8+($A$4-80)*AF8*$A$8/1000 -> 11.09631378 | AN8: =Z8*E8+($A$4-80)*AG8*$A$8/1000 -> 10.65145107 | AO8: =AA8*G8+($A$4-80)*AH8*$A$8/1000 -> 10.22090663 | AP8: =AB8*I8+($A$4-80)*AI8*$A$8/1000 -> 10.00743486 | AQ8: =AC8*K8+($A$4-80)*AJ8*$A$8/1000 -> 9.79044893 | AR8: =AD8*M8+($A$4-80)*AK8*$A$8/1000 -> 9.360093887 | AS8: =AE8*O8+($A$4-80)*AL8*$A$8/1000 -> 8.914674717
B9: 67 | C9: 20.74038462 | D9: 13.83990502 | E9: 19.73076923 | F9: =IF(AN9>E9,E9,AN9) -> 13.42847358 | G9: 18.72115385 | H9: =IF(AO9>G9,G9,AO9) -> 13.0170151 | I9: 18.21634615 | J9: =IF(AP9>I9,I9,AP9) -> 12.81540997 | K9: =V9*$K$13 -> 17.71153846 | L9: =IF(AQ9>K9,K9,AQ9) -> 12.60552495 | M9: 16.70192308 | N9: =IF(AR9>M9,M9,AR9) -> 12.19399739 | O9: 15.69230769 | P9: =IF(AS9>O9,O9,AS9) -> 11.78242522 | R9: 1.15224359 | S9: 1.096153846 | T9: 1.040064103 | U9: 1.012019231 | V9: 0.983974359 | W9: 0.9278846154 | X9: 0.8717948718 | Y9: 0.6672925925 | Z9: 0.6805854058 | AA9: 0.6953105138 | AB9: 0.7035115529 | AC9: 0.711712592 | AD9: 0.7300954108 | AE9: 0.7508408226 | AF9: =IF(Y9<0.9,0.9,Y9*-3.6846+4.1276) -> 0.9 | AG9: 0.9 | AH9: 0.9 | AI9: 0.9 | AJ9: 0.9 | AK9: 0.9 | AL9: 0.9 | AM9: =Y9*C9+($A$4-80)*AF9*$A$8/1000 -> 13.83990502 | AN9: =Z9*E9+($A$4-80)*AG9*$A$8/1000 -> 13.42847358 | AO9: =AA9*G9+($A$4-80)*AH9*$A$8/1000 -> 13.0170151 | AP9: =AB9*I9+($A$4-80)*AI9*$A$8/1000 -> 12.81540997 | AQ9: =AC9*K9+($A$4-80)*AJ9*$A$8/1000 -> 12.60552495 | AR9: =AD9*M9+($A$4-80)*AK9*$A$8/1000 -> 12.19399739 | AS9: =AE9*O9+($A$4-80)*AL9*$A$8/1000 -> 11.78242522
B10: 62 | C10: 19.03846154 | D10: 16.59359669 | E10: 18.11538462 | F10: 16.04234358 | G10: 17.19230769 | H10: 15.49082116 | I10: 16.74519231 | J10: 15.23199235 | K10: =V10*$K$13 -> 16.29807692 | L10: 14.96547166 | M10: 15.375 | N10: 14.4138191 | O10: 14.45192308 | P10: 13.86179568 | R10: 1.057692308 | S10: 1.006410256 | T10: 0.9551282051 | U10: 0.9302884615 | V10: 0.9054487179 | W10: 0.8541666667 | X10: 0.8028846154 | Y10: 0.8715828565 | Z10: 0.8855646137 | AA10: 0.9010321034 | AB10: 0.9096337665 | AC10: 0.9182354295 | AD10: 0.9374841693 | AE10: 0.959166168 | AF10: 0.9 | AG10: 0.9 | AH10: 0.807657112 | AI10: 0.7759634241 | AJ10: 0.7442697363 | AK10: 0.6733458296 | AL10: 0.5934563375 | AM10: 16.59359669 | AN10: =Z10*E10+($A$4-80)*AG10*$A$8/1000 -> 16.04234358 | AO10: =AA10*G10+($A$4-80)*AH10*$A$8/1000 -> 15.49082116 | AP10: 15.23199235 | AQ10: 14.96547166 | AR10: 14.4138191 | AS10: 13.86179568
B11: 57 | C11: 18.28846154 | D11: 18.28846154 | E11: 17.56730769 | F11: 17.56730769 | G11: 16.81730769 | H11: 16.81730769 | I11: 16.45673077 | J11: 16.45673077 | K11: =V11*$K$13 -> 16.09615385 | L11: 16.09615385 | M11: 15.34615385 | N11: 15.34615385 | O11: 14.625 | P11: 14.625 | R11: 1.016025641 | S11: 0.9759615385 | T11: 0.9342948718 | U11: 0.9142628205 | V11: 0.8942307692 | W11: 0.8525641026 | X11: 0.8125 | Y11: 1 | Z11: 1 | AA11: 1 | AB11: 1 | AC11: 1 | AD11: 1 | AE11: 1 | AF11: 0.443 | AG11: 0.443 | AH11: 0.443 | AI11: 0.443 | AJ11: 0.443 | AK11: 0.443 | AL11: 0.443 | AM11: 18.28846154 | AN11: =Z11*E11+($A$4-80)*AG11*$A$8/1000 -> 17.56730769 | AO11: =AA11*G11+($A$4-80)*AH11*$A$8/1000 -> 16.81730769 | AP11: =AB11*I11+($A$4-80)*AI11*$A$8/1000 -> 16.45673077 | AQ11: 16.09615385 | AR11: 15.34615385 | AS11: 14.625
A12: 1800 | B12: 72 | C12: 22.84615385 | D12: 11.53005158 | E12: 21.72115385 | F12: 11.13345429 | G12: 20.59615385 | H12: 10.7370052 | I12: 20.01923077 | J12: 10.53402569 | K12: =V12*$K$13 -> 19.44230769 | L12: 10.32541062 | M12: 18.31730769 | N12: 9.929025429 | O12: 17.19230769 | P12: 9.532845759 | R12: 1.269230769 | S12: 1.206730769 | T12: 1.144230769 | U12: 1.112179487 | V12: 1.080128205 | W12: 1.017628205 | X12: 0.9551282051 | Y12: 0.5046823924 | Z12: 0.5125627473 | AA12: 0.5213111768 | AB12: 0.5261953274 | AC12: 0.5310794781 | AD12: 0.5420570313 | AE12: 0.5544831985 | AF12: 0.9 | AG12: 0.9 | AH12: 0.9 | AI12: 0.9 | AJ12: 0.9 | AK12: 0.9 | AL12: 0.9 | AM12: =Y12*C12+($A$4-80)*AF12*$A$12/1000 -> 11.53005158 | AN12: =Z12*E12+($A$4-80)*AG12*$A$12/1000 -> 11.13345429 | AO12: =AA12*G12+($A$4-80)*AH12*$A$12/1000 -> 10.7370052 | AP12: =AB12*I12+($A$4-80)*AI12*$A$12/1000 -> 10.53402569 | AQ12: =AC12*K12+($A$4-80)*AJ12*$A$12/1000 -> 10.32541062 | AR12: =AD12*M12+($A$4-80)*AK12*$A$12/1000 -> 9.929025429 | AS12: =AE12*O12+($A$4-80)*AL12*$A$12/1000 -> 9.532845759
B13: 67 | C13: 21.14423077 | D13: 14.66547983 | E13: 20.10576923 | F13: 14.25595756 | G13: 19.03846154 | H13: 13.82599066 | I13: 18.51923077 | J13: 13.62647941 | K13: 18 | L13: 13.41701145 | M13: 16.93269231 | N13: 12.98654274 | O13: 15.89423077 | P13: 12.57825339 | R13: 1.174679487 | S13: 1.116987179 | T13: 1.057692308 | U13: 1.028846154 | V13: 1 | W13: 0.9407051282 | X13: 0.8830128205 | Y13: 0.6935924979 | Z13: 0.7090481044 | AA13: 0.7262136511 | AB13: 0.735801588 | AC13: 0.745389525 | AD13: 0.7669508487 | AE13: 0.7913722641 | AF13: 0.9 | AG13: 0.9 | AH13: 0.9 | AI13: 0.9 | AJ13: 0.9 | AK13: 0.9 | AL13: 0.9 | AM13: =Y13*C13+($A$4-80)*AF13*$A$12/1000 -> 14.66547983 | AN13: =Z13*E13+($A$4-80)*AG13*$A$12/1000 -> 14.25595756 | AO13: =AA13*G13+($A$4-80)*AH13*$A$12/1000 -> 13.82599066 | AP13: =AB13*I13+($A$4-80)*AI13*$A$12/1000 -> 13.62647941 | AQ13: =AC13*K13+($A$4-80)*AJ13*$A$12/1000 -> 13.41701145 | AR13: =AD13*M13+($A$4-80)*AK13*$A$12/1000 -> 12.98654274 | AS13: =AE13*O13+($A$4-80)*AL13*$A$12/1000 -> 12.57825339
B14: 62 | C14: 19.44230769 | D14: 17.26390312 | E14: 18.49038462 | F14: 16.84560342 | G14: 17.56730769 | H14: 16.45410632 | I14: 17.09134615 | J14: 16.25191767 | K14: =V14*$K$13 -> 16.61538462 | L14: 16.03616074 | M14: 15.66346154 | N14: 15.61801629 | O14: 14.71153846 | P14: 14.71153846 | R14: 1.080128205 | S14: 1.02724359 | T14: 0.9759615385 | U14: 0.9495192308 | V14: 0.9230769231 | W14: 0.8701923077 | X14: 0.8173076923 | Y14: 0.8879554521 | Z14: 0.9110466748 | AA14: 0.9366322154 | AB14: 0.9508857596 | AC14: 0.9651393038 | AD14: 0.997098646 | AE14: 1 | AF14: 0.9 | AG14: 0.7707574221 | AH14: 0.676484939 | AI14: 0.62396633 | AJ14: 0.5714477211 | AK14: 0.4536903288 | AL14: 0.443 | AM14: 17.26390312 | AN14: =Z14*E14+($A$4-80)*AG14*$A$12/1000 -> 16.84560342 | AO14: =AA14*G14+($A$4-80)*AH14*$A$12/1000 -> 16.45410632 | AP14: 16.25191767 | AQ14: 16.03616074 | AR14: 15.61801629 | AS14: 14.71153846
B15: 57 | C15: 19.00961538 | D15: 19.00961538 | E15: 18.23076923 | F15: 18.23076923 | G15: 17.42307692 | H15: 17.42307692 | I15: 17.03365385 | J15: 17.03365385 | K15: 16.64423077 | L15: 16.64423077 | M15: 15.86538462 | N15: 15.86538462 | O15: 15.08653846 | P15: 15.08653846 | R15: 1.056089744 | S15: 1.012820513 | T15: 0.9679487179 | U15: 0.9463141026 | V15: 0.9246794872 | W15: 0.8814102564 | X15: 0.8381410256 | Y15: 1 | Z15: 1 | AA15: 1 | AB15: 1 | AC15: 1 | AD15: 1 | AE15: 1 | AF15: 0.443 | AG15: 0.443 | AH15: 0.443 | AI15: 0.443 | AJ15: 0.443 | AK15: 0.443 | AL15: 0.443 | AM15: 19.00961538 | AN15: =Z15*E15+($A$4-80)*AG15*$A$12/1000 -> 18.23076923 | AO15: =AA15*G15+($A$4-80)*AH15*$A$12/1000 -> 17.42307692 | AP15: 17.03365385 | AQ15: 16.64423077 | AR15: 15.86538462 | AS15: 15.08653846
A16: 2000 | B16: 72 | C16: 23.16346154 | D16: 12.00711738 | E16: 22.00961538 | F16: 11.60989542 | G16: 20.82692308 | H16: 11.19744406 | I16: 20.25 | J16: 11.00224961 | K16: 19.67307692 | L16: 10.80050336 | M16: 18.49038462 | N16: 10.38770754 | O16: 17.33653846 | P16: 9.991119669 | R16: 1.286858974 | S16: 1.22275641 | T16: 1.157051282 | U16: 1.125 | V16: 1.092948718 | W16: 1.02724359 | X16: 0.9631410256 | Y16: 0.5183645529 | Z16: 0.527491972 | AA16: 0.5376427434 | AB16: 0.5433209685 | AC16: 0.5489991935 | AD16: 0.5617896952 | AE16: 0.576304185 | AF16: 0.9 | AG16: 0.9 | AH16: 0.9 | AI16: 0.9 | AJ16: 0.9 | AK16: 0.9 | AL16: 0.9 | AM16: =Y16*C16+($A$4-80)*AF16*$A$16/1000 -> 12.00711738 | AN16: =Z16*E16+($A$4-80)*AG16*$A$16/1000 -> 11.60989542 | AO16: =AA16*G16+($A$4-80)*AH16*$A$16/1000 -> 11.19744406 | AP16: =AB16*I16+($A$4-80)*AI16*$A$16/1000 -> 11.00224961 | AQ16: =AC16*K16+($A$4-80)*AJ16*$A$16/1000 -> 10.80050336 | AR16: =AD16*M16+($A$4-80)*AK16*$A$16/1000 -> 10.38770754 | AS16: =AE16*O16+($A$4-80)*AL16*$A$16/1000 -> 9.991119669
B17: 67 | C17: 21.40384615 | D17: 15.37633786 | E17: 20.33653846 | F17: 14.98753458 | G17: 19.26923077 | H17: 14.59887663 | I17: 18.73557692 | J17: 14.41079201 | K17: 18.20192308 | L17: 14.21038969 | M17: 17.13461538 | N17: 13.82210583 | O17: 16.06730769 | P17: 13.43406571 | R17: 1.189102564 | S17: 1.129807692 | T17: 1.070512821 | U17: 1.040865385 | V17: 1.011217949 | W17: 0.9519230769 | X17: 0.8926282051 | Y17: 0.7183913465 | Z17: 0.7369756955 | AA17: 0.7576263322 | AB17: 0.769167241 | AC17: 0.7807081497 | AD17: 0.8066773324 | AE17: 0.8361118097 | AF17: 0.9 | AG17: 0.9 | AH17: 0.9 | AI17: 0.9 | AJ17: 0.9 | AK17: 0.9 | AL17: 0.9 | AM17: =Y17*C17+($A$4-80)*AF17*$A$16/1000 -> 15.37633786 | AN17: =Z17*E17+($A$4-80)*AG17*$A$16/1000 -> 14.98753458 | AO17: =AA17*G17+($A$4-80)*AH17*$A$16/1000 -> 14.59887663 | AP17: =AB17*I17+($A$4-80)*AI17*$A$16/1000 -> 14.41079201 | AQ17: =AC17*K17+($A$4-80)*AJ17*$A$16/1000 -> 14.21038969 | AR17: =AD17*M17+($A$4-80)*AK17*$A$16/1000 -> 13.82210583 | AS17: =AE17*O17+($A$4-80)*AL17*$A$16/1000 -> 13.43406571
B18: 62 | C18: 19.61538462 | D18: 18.20347143 | E18: 18.80769231 | F18: 17.86563369 | G18: 17.97115385 | H18: 17.50045261 | I18: 17.56730769 | J18: 17.33724585 | K18: 17.16346154 | L18: 17.16346154 | M18: 16.32692308 | N18: 16.32692308 | O18: 15.49038462 | P18: 15.49038462 | R18: 1.08974359 | S18: 1.044871795 | T18: 0.9983974359 | U18: 0.9759615385 | V18: 0.953525641 | W18: 0.9070512821 | X18: 0.8605769231 | Y18: 0.928020112 | Z18: 0.9499109938 | AA18: 0.9738079571 | AB18: 0.9869039786 | AC18: 1 | AD18: 1 | AE18: 1 | AF18: 0.7082170952 | AG18: 0.6275579522 | AH18: 0.5395072012 | AI18: 0.4912536006 | AJ18: 0.443 | AK18: 0.443 | AL18: 0.443 | AM18: 18.20347143 | AN18: =Z18*E18+($A$4-80)*AG18*$A$16/1000 -> 17.86563369 | AO18: =AA18*G18+($A$4-80)*AH18*$A$16/1000 -> 17.50045261 | AP18: 17.33724585 | AQ18: 17.16346154 | AR18: 16.32692308 | AS18: 15.49038462
B19: 57 | C19: 19.61538462 | D19: 19.61538462 | E19: 18.77884615 | F19: 18.77884615 | G19: 17.94230769 | H19: 17.94230769 | I19: 17.53846154 | J19: 17.53846154 | K19: 17.13461538 | L19: 17.13461538 | M19: 16.29807692 | N19: 16.29807692 | O19: 15.46153846 | P19: 15.46153846 | R19: 1.08974359 | S19: 1.043269231 | T19: 0.9967948718 | U19: 0.9743589744 | V19: 0.9519230769 | W19: 0.9054487179 | X19: 0.858974359 | Y19: 1 | Z19: 1 | AA19: 1 | AB19: 1 | AC19: 1 | AD19: 1 | AE19: 1 | AF19: 0.443 | AG19: 0.443 | AH19: 0.443 | AI19: 0.443 | AJ19: 0.443 | AK19: 0.443 | AL19: 0.443 | AM19: 19.61538462 | AN19: =Z19*E19+($A$4-80)*AG19*$A$16/1000 -> 18.77884615 | AO19: =AA19*G19+($A$4-80)*AH19*$A$16/1000 -> 17.94230769 | AP19: 17.53846154 | AQ19: 17.13461538 | AR19: 16.29807692 | AS19: 15.46153846

Sheet 4SCU14L_18 (hidden)
A2: 4SCU14L_18
A3: Evaporator Air | C3: Condenser Entering Air Temperature ˚F
A4: 80 | B4: °F DB | C4: 65 | E4: 75 | G4: 85 | I4: 90 | K4: 95 | M4: 105 | O4: 115
A5: CFM | B5: EWB† ˚F | C5: Capacity Mbtuh | E5: Capacity Mbtuh | G5: Capacity Mbtuh | I5: Capacity Mbtuh | K5: Capacity Mbtuh | M5: Capacity Mbtuh | O5: Capacity Mbtuh
C6: Total | D6: Sens. | E6: Total | F6: Sens. | G6: Total | H6: Sens. | I6: Total | J6: Sens. | K6: Total | L6: Sens. | M6: Total | N6: Sens. | O6: Total | P6: Sens.
R7: Total Factors | Y7: Sens. % | AF7: IDB Adj | AM7: Sens Calc
A8: 450 | B8: 72 | C8: =R8*$K$13 -> 22.0952381 | D8: =IF(AM8>C8,C8,AM8) -> 10.7375972 | E8: =S8*$K$13 -> 20.95238095 | F8: =IF(AN8>E8,E8,AN8) -> 10.30697433 | G8: =T8*$K$13 -> 19.80952381 | H8: =IF(AO8>G8,G8,AO8) -> 9.876253524 | I8: =U8*$K$13 -> 19.28571429 | J8: =IF(AP8>I8,I8,AP8) -> 9.686880189 | K8: =V8*$K$13 -> 18.76190476 | L8: =IF(AQ8>K8,K8,AQ8) -> 9.493607824 | M8: =W8*$K$13 -> 17.61904762 | N8: =IF(AR8>M8,M8,AR8) -> 9.063433587 | O8: =X8*$K$13 -> 16.47619048 | P8: =IF(AS8>O8,O8,AS8) -> 8.633203142 | R8: 1.227513228 | S8: 1.164021164 | T8: 1.100529101 | U8: 1.071428571 | V8: 1.042328042 | W8: 0.9788359788 | X8: 0.9153439153 | Y8: 0.4859688388 | Z8: 0.491923775 | AA8: 0.498560875 | AB8: 0.5022826765 | AC8: 0.5060044779 | AD8: 0.5144110955 | AE8: 0.5239805375 | AF8: =IF(Y8<0.9,0.9,Y8*-3.6846+4.1276) -> 0.9 | AG8: =IF(Z8<0.9,0.9,Z8*-3.6846+4.1276) -> 0.9 | AH8: 0.9 | AI8: 0.9 | AJ8: 0.9 | AK8: 0.9 | AL8: 0.9 | AM8: =Y8*C8+($A$4-80)*AF8*$A$8/1000 -> 10.7375972 | AN8: =Z8*E8+($A$4-80)*AG8*$A$8/1000 -> 10.30697433 | AO8: =AA8*G8+($A$4-80)*AH8*$A$8/1000 -> 9.876253524 | AP8: =AB8*I8+($A$4-80)*AI8*$A$8/1000 -> 9.686880189 | AQ8: =AC8*K8+($A$4-80)*AJ8*$A$8/1000 -> 9.493607824 | AR8: =AD8*M8+($A$4-80)*AK8*$A$8/1000 -> 9.063433587 | AS8: =AE8*O8+($A$4-80)*AL8*$A$8/1000 -> 8.633203142
B9: 67 | C9: 20.38095238 | D9: 13.35348174 | E9: 19.33333333 | F9: =IF(AN9>E9,E9,AN9) -> 12.9130492 | G9: 18.28571429 | H9: =IF(AO9>G9,G9,AO9) -> 12.47260427 | I9: 17.76190476 | J9: =IF(AP9>I9,I9,AP9) -> 12.25653924 | K9: =V9*$K$13 -> 17.23809524 | L9: =IF(AQ9>K9,K9,AQ9) -> 12.0321447 | M9: 16.19047619 | N9: =IF(AR9>M9,M9,AR9) -> 11.59166765 | O9: 15.14285714 | P9: =IF(AS9>O9,O9,AS9) -> 11.15116949 | R9: 1.132275132 | S9: 1.074074074 | T9: 1.015873016 | U9: 0.9867724868 | V9: 0.9576719577 | W9: 0.8994708995 | X9: 0.8412698413 | Y9: 0.6551941975 | Z9: 0.6679163378 | AA9: 0.6820955461 | AB9: 0.6900464453 | AC9: 0.6979973445 | AD9: 0.715955943 | AE9: 0.7363979849 | AF9: =IF(Y9<0.9,0.9,Y9*-3.6846+4.1276) -> 0.9 | AG9: 0.9 | AH9: 0.9 | AI9: 0.9 | AJ9: 0.9 | AK9: 0.9 | AL9: 0.9 | AM9: =Y9*C9+($A$4-80)*AF9*$A$8/1000 -> 13.35348174 | AN9: =Z9*E9+($A$4-80)*AG9*$A$8/1000 -> 12.9130492 | AO9: =AA9*G9+($A$4-80)*AH9*$A$8/1000 -> 12.47260427 | AP9: =AB9*I9+($A$4-80)*AI9*$A$8/1000 -> 12.25653924 | AQ9: =AC9*K9+($A$4-80)*AJ9*$A$8/1000 -> 12.0321447 | AR9: =AD9*M9+($A$4-80)*AK9*$A$8/1000 -> 11.59166765 | AS9: =AE9*O9+($A$4-80)*AL9*$A$8/1000 -> 11.15116949
B10: 62 | C10: 18.57142857 | D10: 15.71337013 | E10: 17.61904762 | F10: 15.27657034 | G10: 16.66666667 | H10: 14.83978479 | I10: 16.19047619 | J10: 14.62763103 | K10: =V10*$K$13 -> 15.71428571 | L10: 14.40301608 | M10: 14.76190476 | N10: 13.96626747 | O10: 13.80952381 | P10: 13.52954312 | R10: 1.031746032 | S10: 0.9788359788 | T10: 0.9259259259 | U10: 0.8994708995 | V10: 0.873015873 | W10: 0.8201058201 | X10: 0.7671957672 | Y10: 0.8461045453 | Z10: 0.8670485867 | AA10: 0.8903870876 | AB10: 0.9034713283 | AC10: 0.916555569 | AD10: 0.9461019901 | AE10: 0.9797255362 | AF10: 0.9 | AG10: 0.9 | AH10: 0.9 | AI10: 0.7986695438 | AJ10: 0.7504593504 | AK10: 0.6415926072 | AL10: 0.5177032894 | AM10: 15.71337013 | AN10: =Z10*E10+($A$4-80)*AG10*$A$8/1000 -> 15.27657034 | AO10: =AA10*G10+($A$4-80)*AH10*$A$8/1000 -> 14.83978479 | AP10: 14.62763103 | AQ10: 14.40301608 | AR10: 13.96626747 | AS10: 13.52954312
B11: 57 | C11: 17.71428571 | D11: 17.71428571 | E11: 16.95238095 | F11: 16.95238095 | G11: 16.19047619 | H11: 16.19047619 | I11: 15.80952381 | J11: 15.80952381 | K11: =V11*$K$13 -> 15.42857143 | L11: 15.42857143 | M11: 14.66666667 | N11: 14.66666667 | O11: 14 | P11: 14 | R11: 0.9841269841 | S11: 0.9417989418 | T11: 0.8994708995 | U11: 0.8783068783 | V11: 0.8571428571 | W11: 0.8148148148 | X11: 0.7777777778 | Y11: 1 | Z11: 1 | AA11: 1 | AB11: 1 | AC11: 1 | AD11: 1 | AE11: 1 | AF11: 0.443 | AG11: 0.443 | AH11: 0.443 | AI11: 0.443 | AJ11: 0.443 | AK11: 0.443 | AL11: 0.443 | AM11: 17.71428571 | AN11: =Z11*E11+($A$4-80)*AG11*$A$8/1000 -> 16.95238095 | AO11: =AA11*G11+($A$4-80)*AH11*$A$8/1000 -> 16.19047619 | AP11: =AB11*I11+($A$4-80)*AI11*$A$8/1000 -> 15.80952381 | AQ11: 15.42857143 | AR11: 14.66666667 | AS11: 14
A12: 600 | B12: 72 | C12: 23.23809524 | D12: 11.94676983 | E12: 22 | F12: 11.51524588 | G12: 20.76190476 | H12: 11.08416052 | I12: 20.14285714 | J12: 10.8725327 | K12: =V12*$K$13 -> 19.52380952 | L12: 10.65359888 | M12: 18.19047619 | N12: 10.17042135 | O12: 16.95238095 | P12: 9.739795823 | R12: 1.291005291 | S12: 1.222222222 | T12: 1.153439153 | U12: 1.119047619 | V12: 1.084656085 | W12: 1.010582011 | X12: 0.9417989418 | Y12: 0.5141028001 | Z12: 0.5234202673 | AA12: 0.5338701168 | AB12: 0.5397711272 | AC12: 0.5456721376 | AD12: 0.559106933 | AE12: 0.5745385176 | AF12: 0.9 | AG12: 0.9 | AH12: 0.9 | AI12: 0.9 | AJ12: 0.9 | AK12: 0.9 | AL12: 0.9 | AM12: =Y12*C12+($A$4-80)*AF12*$A$12/1000 -> 11.94676983 | AN12: =Z12*E12+($A$4-80)*AG12*$A$12/1000 -> 11.51524588 | AO12: =AA12*G12+($A$4-80)*AH12*$A$12/1000 -> 11.08416052 | AP12: =AB12*I12+($A$4-80)*AI12*$A$12/1000 -> 10.8725327 | AQ12: =AC12*K12+($A$4-80)*AJ12*$A$12/1000 -> 10.65359888 | AR12: =AD12*M12+($A$4-80)*AK12*$A$12/1000 -> 10.17042135 | AS12: =AE12*O12+($A$4-80)*AL12*$A$12/1000 -> 9.739795823
B13: 67 | C13: 21.42857143 | D13: 15.37529461 | E13: 20.28571429 | F13: 14.93870853 | G13: 19.14285714 | H13: 14.50278468 | I13: 18.57142857 | J13: 14.29205455 | K13: 18 | L13: 14.06765126 | M13: 16.85714286 | N13: 13.63347184 | O13: 15.71428571 | P13: 13.20045845 | R13: 1.19047619 | S13: 1.126984127 | T13: 1.063492063 | U13: 1.031746032 | V13: 1 | W13: 0.9365079365 | X13: 0.873015873 | Y13: 0.7175137484 | Z13: 0.7364152093 | AA13: 0.7576081551 | AB13: 0.7695721682 | AC13: 0.7815361813 | AD13: 0.8087652784 | AE13: 0.840029174 | AF13: 0.9 | AG13: 0.9 | AH13: 0.9 | AI13: 0.9 | AJ13: 0.9 | AK13: 0.9 | AL13: 0.9 | AM13: =Y13*C13+($A$4-80)*AF13*$A$12/1000 -> 15.37529461 | AN13: =Z13*E13+($A$4-80)*AG13*$A$12/1000 -> 14.93870853 | AO13: =AA13*G13+($A$4-80)*AH13*$A$12/1000 -> 14.50278468 | AP13: =AB13*I13+($A$4-80)*AI13*$A$12/1000 -> 14.29205455 | AQ13: =AC13*K13+($A$4-80)*AJ13*$A$12/1000 -> 14.06765126 | AR13: =AD13*M13+($A$4-80)*AK13*$A$12/1000 -> 13.63347184 | AS13: =AE13*O13+($A$4-80)*AL13*$A$12/1000 -> 13.20045845
B14: 62 | C14: 19.42857143 | D14: 18.19436965 | E14: 18.57142857 | F14: 17.74938959 | G14: 17.80952381 | H14: 17.39671396 | I14: 17.38095238 | J14: 17.17951442 | K14: =V14*$K$13 -> 16.95238095 | L14: 16.95238095 | M14: 16.0952381 | N14: 16.0952381 | O14: 15.23809524 | P14: 15.23809524 | R14: 1.079365079 | S14: 1.031746032 | T14: 0.9894179894 | U14: 0.9656084656 | V14: 0.9417989418 | W14: 0.8941798942 | X14: 0.8465608466 | Y14: 0.9364749082 | Z14: 0.9557363627 | AA14: 0.9768208371 | AB14: 0.9884104186 | AC14: 1 | AD14: 1 | AE14: 1 | AF14: 0.6770645532 | AG14: 0.606093798 | AH14: 0.5284059435 | AI14: 0.4857029718 | AJ14: 0.443 | AK14: 0.443 | AL14: 0.443 | AM14: 18.19436965 | AN14: =Z14*E14+($A$4-80)*AG14*$A$12/1000 -> 17.74938959 | AO14: =AA14*G14+($A$4-80)*AH14*$A$12/1000 -> 17.39671396 | AP14: 17.17951442 | AQ14: 16.95238095 | AR14: 16.0952381 | AS14: 15.23809524
B15: 57 | C15: 19.52380952 | D15: 19.52380952 | E15: 18.66666667 | F15: 18.66666667 | G15: 17.80952381 | H15: 17.80952381 | I15: 17.33333333 | J15: 17.33333333 | K15: 16.85714286 | L15: 16.85714286 | M15: 16 | N15: 16 | O15: 15.14285714 | P15: 15.14285714 | R15: 1.084656085 | S15: 1.037037037 | T15: 0.9894179894 | U15: 0.962962963 | V15: 0.9365079365 | W15: 0.8888888889 | X15: 0.8412698413 | Y15: 1 | Z15: 1 | AA15: 1 | AB15: 1 | AC15: 1 | AD15: 1 | AE15: 1 | AF15: 0.443 | AG15: 0.443 | AH15: 0.443 | AI15: 0.443 | AJ15: 0.443 | AK15: 0.443 | AL15: 0.443 | AM15: 19.52380952 | AN15: =Z15*E15+($A$4-80)*AG15*$A$12/1000 -> 18.66666667 | AO15: =AA15*G15+($A$4-80)*AH15*$A$12/1000 -> 17.80952381 | AP15: 17.33333333 | AQ15: 16.85714286 | AR15: 16 | AS15: 15.14285714
A16: 750 | B16: 72 | C16: 23.9047619 | D16: 13.11427927 | E16: 22.57142857 | F16: 12.67097815 | G16: 21.23809524 | H16: 12.2278212 | I16: 20.57142857 | J16: 12.01176662 | K16: 19.9047619 | L16: 11.78483751 | M16: 18.57142857 | N16: 11.34206459 | O16: 17.23809524 | P16: 10.8995516 | R16: 1.328042328 | S16: 1.253968254 | T16: 1.17989418 | U16: 1.142857143 | V16: 1.105820106 | W16: 1.031746032 | X16: 0.9576719577 | Y16: 0.5486053082 | Z16: 0.5613724498 | AA16: 0.5757494287 | AB16: 0.5839053217 | AC16: 0.5920612147 | AD16: 0.6107265549 | AE16: 0.6322944297 | AF16: 0.9 | AG16: 0.9 | AH16: 0.9 | AI16: 0.9 | AJ16: 0.9 | AK16: 0.9 | AL16: 0.9 | AM16: =Y16*C16+($A$4-80)*AF16*$A$16/1000 -> 13.11427927 | AN16: =Z16*E16+($A$4-80)*AG16*$A$16/1000 -> 12.67097815 | AO16: =AA16*G16+($A$4-80)*AH16*$A$16/1000 -> 12.2278212 | AP16: =AB16*I16+($A$4-80)*AI16*$A$16/1000 -> 12.01176662 | AQ16: =AC16*K16+($A$4-80)*AJ16*$A$16/1000 -> 11.78483751 | AR16: =AD16*M16+($A$4-80)*AK16*$A$16/1000 -> 11.34206459 | AS16: =AE16*O16+($A$4-80)*AL16*$A$16/1000 -> 10.8995516
B17: 67 | C17: 22.0952381 | D17: 16.99483827 | E17: 20.85714286 | F17: 16.47302413 | G17: 19.61904762 | H17: 15.95202045 | I17: 19 | J17: 15.70020207 | K17: 18.38095238 | L17: 15.43199378 | M17: 17.14285714 | N17: 14.91315965 | O17: 15.80952381 | P17: 14.30959963 | R17: 1.227513228 | S17: 1.158730159 | T17: 1.08994709 | U17: 1.055555556 | V17: 1.021164021 | W17: 0.9523809524 | X17: 0.8783068783 | Y17: 0.7691629387 | Z17: 0.7898025266 | AA17: 0.8130884208 | AB17: 0.8263264246 | AC17: 0.8395644283 | AD17: 0.8699343131 | AE17: 0.9051252779 | AF17: 0.9 | AG17: 0.9 | AH17: 0.9 | AI17: 0.9 | AJ17: 0.9 | AK17: 0.9 | AL17: 0.7925754011 | AM17: =Y17*C17+($A$4-80)*AF17*$A$16/1000 -> 16.99483827 | AN17: =Z17*E17+($A$4-80)*AG17*$A$16/1000 -> 16.47302413 | AO17: =AA17*G17+($A$4-80)*AH17*$A$16/1000 -> 15.95202045 | AP17: =AB17*I17+($A$4-80)*AI17*$A$16/1000 -> 15.70020207 | AQ17: =AC17*K17+($A$4-80)*AJ17*$A$16/1000 -> 15.43199378 | AR17: =AD17*M17+($A$4-80)*AK17*$A$16/1000 -> 14.91315965 | AS17: =AE17*O17+($A$4-80)*AL17*$A$16/1000 -> 14.30959963
B18: 62 | C18: 20.85714286 | D18: 20.85714286 | E18: 19.9047619 | F18: 19.9047619 | G18: 18.85714286 | H18: 18.85714286 | I18: 18.38095238 | J18: 18.38095238 | K18: 17.9047619 | L18: 17.9047619 | M18: 16.95238095 | N18: 16.95238095 | O18: 15.9047619 | P18: 15.9047619 | R18: 1.158730159 | S18: 1.105820106 | T18: 1.047619048 | U18: 1.021164021 | V18: 0.9947089947 | W18: 0.9417989418 | X18: 0.8835978836 | Y18: 1 | Z18: 1 | AA18: 1 | AB18: 1 | AC18: 1 | AD18: 1 | AE18: 1 | AF18: 0.443 | AG18: 0.443 | AH18: 0.443 | AI18: 0.443 | AJ18: 0.443 | AK18: 0.443 | AL18: 0.443 | AM18: 20.85714286 | AN18: =Z18*E18+($A$4-80)*AG18*$A$16/1000 -> 19.9047619 | AO18: =AA18*G18+($A$4-80)*AH18*$A$16/1000 -> 18.85714286 | AP18: 18.38095238 | AQ18: 17.9047619 | AR18: 16.95238095 | AS18: 15.9047619
B19: 57 | C19: 20.85714286 | D19: 20.85714286 | E19: 19.80952381 | F19: 19.80952381 | G19: 18.85714286 | H19: 18.85714286 | I19: 18.38095238 | J19: 18.38095238 | K19: 17.9047619 | L19: 17.9047619 | M19: 16.85714286 | N19: 16.85714286 | O19: 15.9047619 | P19: 15.9047619 | R19: 1.158730159 | S19: 1.100529101 | T19: 1.047619048 | U19: 1.021164021 | V19: 0.9947089947 | W19: 0.9365079365 | X19: 0.8835978836 | Y19: 1 | Z19: 1 | AA19: 1 | AB19: 1 | AC19: 1 | AD19: 1 | AE19: 1 | AF19: 0.443 | AG19: 0.443 | AH19: 0.443 | AI19: 0.443 | AJ19: 0.443 | AK19: 0.443 | AL19: 0.443 | AM19: 20.85714286 | AN19: =Z19*E19+($A$4-80)*AG19*$A$16/1000 -> 19.80952381 | AO19: =AA19*G19+($A$4-80)*AH19*$A$16/1000 -> 18.85714286 | AP19: 18.38095238 | AQ19: 17.9047619 | AR19: 16.85714286 | AS19: 15.9047619

Sheet 4SCU14L_24 (hidden)
A2: 4SCU14L_24
A3: Evaporator Air | C3: Condenser Entering Air Temperature ˚F
A4: 80 | B4: °F DB | C4: 65 | E4: 75 | G4: 85 | I4: 90 | K4: 95 | M4: 105 | O4: 115
A5: CFM | B5: EWB† ˚F | C5: Capacity Mbtuh | E5: Capacity Mbtuh | G5: Capacity Mbtuh | I5: Capacity Mbtuh | K5: Capacity Mbtuh | M5: Capacity Mbtuh | O5: Capacity Mbtuh
C6: Total | D6: Sens. | E6: Total | F6: Sens. | G6: Total | H6: Sens. | I6: Total | J6: Sens. | K6: Total | L6: Sens. | M6: Total | N6: Sens. | O6: Total | P6: Sens.
R7: Total Factors | Y7: Sens. % | AF7: IDB Adj | AM7: Sens Calc
A8: 600 | B8: 72 | C8: =R8*$K$13 -> 22.5 | D8: =IF(AM8>C8,C8,AM8) -> 10.9353629 | E8: =S8*$K$13 -> 21.26612903 | F8: =IF(AN8>E8,E8,AN8) -> 10.461464 | G8: =T8*$K$13 -> 20.03225806 | H8: =IF(AO8>G8,G8,AO8) -> 9.987478363 | I8: =U8*$K$13 -> 19.41532258 | J8: =IF(AP8>I8,I8,AP8) -> 9.752748734 | K8: =V8*$K$13 -> 18.7983871 | L8: =IF(AQ8>K8,K8,AQ8) -> 9.513389019 | M8: =W8*$K$13 -> 17.56451613 | N8: =IF(AR8>M8,M8,AR8) -> 9.039174262 | O8: =X8*$K$13 -> 16.33064516 | P8: =IF(AS8>O8,O8,AS8) -> 8.564805872 | R8: 1.25 | S8: 1.181451613 | T8: 1.112903226 | U8: 1.078629032 | V8: 1.044354839 | W8: 0.9758064516 | X8: 0.9072580645 | Y8: 0.486016129 | Z8: 0.4919308062 | AA8: 0.4985697733 | AB8: 0.5023222608 | AC8: 0.5060747483 | AD8: 0.5146270012 | AE8: 0.5244621867 | AF8: =IF(Y8<0.9,0.9,Y8*-3.6846+4.1276) -> 0.9 | AG8: =IF(Z8<0.9,0.9,Z8*-3.6846+4.1276) -> 0.9 | AH8: 0.9 | AI8: 0.9 | AJ8: 0.9 | AK8: 0.9 | AL8: 0.9 | AM8: =Y8*C8+($A$4-80)*AF8*$A$8/1000 -> 10.9353629 | AN8: =Z8*E8+($A$4-80)*AG8*$A$8/1000 -> 10.461464 | AO8: =AA8*G8+($A$4-80)*AH8*$A$8/1000 -> 9.987478363 | AP8: =AB8*I8+($A$4-80)*AI8*$A$8/1000 -> 9.752748734 | AQ8: =AC8*K8+($A$4-80)*AJ8*$A$8/1000 -> 9.513389019 | AR8: =AD8*M8+($A$4-80)*AK8*$A$8/1000 -> 9.039174262 | AS8: =AE8*O8+($A$4-80)*AL8*$A$8/1000 -> 8.564805872
B9: 67 | C9: 20.75806452 | D9: 13.55754732 | E9: 19.59677419 | F9: =IF(AN9>E9,E9,AN9) -> 13.07104186 | G9: 18.50806452 | H9: =IF(AO9>G9,G9,AO9) -> 12.63286893 | I9: 17.92741935 | J9: =IF(AP9>I9,I9,AP9) -> 12.39402945 | K9: =V9*$K$13 -> 17.34677419 | L9: =IF(AQ9>K9,K9,AQ9) -> 12.14498846 | M9: 16.25806452 | N9: =IF(AR9>M9,M9,AR9) -> 11.70781039 | O9: 15.09677419 | P9: =IF(AS9>O9,O9,AS9) -> 11.21811911 | R9: 1.153225806 | S9: 1.088709677 | T9: 1.028225806 | U9: 0.9959677419 | V9: 0.9637096774 | W9: 0.9032258065 | X9: 0.8387096774 | Y9: 0.6531219376 | Z9: 0.666999667 | AA9: 0.6825602386 | AB9: 0.6913448726 | AC9: 0.7001295066 | AD9: 0.7201232583 | AE9: 0.7430805392 | AF9: =IF(Y9<0.9,0.9,Y9*-3.6846+4.1276) -> 0.9 | AG9: 0.9 | AH9: 0.9 | AI9: 0.9 | AJ9: 0.9 | AK9: 0.9 | AL9: 0.9 | AM9: =Y9*C9+($A$4-80)*AF9*$A$8/1000 -> 13.55754732 | AN9: =Z9*E9+($A$4-80)*AG9*$A$8/1000 -> 13.07104186 | AO9: =AA9*G9+($A$4-80)*AH9*$A$8/1000 -> 12.63286893 | AP9: =AB9*I9+($A$4-80)*AI9*$A$8/1000 -> 12.39402945 | AQ9: =AC9*K9+($A$4-80)*AJ9*$A$8/1000 -> 12.14498846 | AR9: =AD9*M9+($A$4-80)*AK9*$A$8/1000 -> 11.70781039 | AS9: =AE9*O9+($A$4-80)*AL9*$A$8/1000 -> 11.21811911
B10: 62 | C10: 18.94354839 | D10: 16.10475306 | E10: 17.92741935 | F10: 15.51444724 | G10: 16.98387097 | H10: 14.98767105 | I10: 16.47580645 | J10: 14.69752431 | K10: =V10*$K$13 -> 15.96774194 | L10: 14.39762059 | M10: 14.9516129 | N10: 13.80701439 | O10: 13.93548387 | P10: 13.21573273 | R10: 1.052419355 | S10: 0.9959677419 | T10: 0.9435483871 | U10: 0.9153225806 | V10: 0.8870967742 | W10: 0.8306451613 | X10: 0.7741935484 | Y10: 0.8501444783 | Z10: 0.8654032649 | AA10: 0.882464962 | AB10: 0.8920670651 | AC10: 0.9016691681 | AD10: 0.9234464853 | AE10: 0.9483511911 | AF10: 0.9 | AG10: 0.9 | AH10: 0.9 | AI10: 0.9 | AJ10: 0.8053097831 | AK10: 0.7250690801 | AL10: 0.6333052013 | AM10: 16.10475306 | AN10: =Z10*E10+($A$4-80)*AG10*$A$8/1000 -> 15.51444724 | AO10: =AA10*G10+($A$4-80)*AH10*$A$8/1000 -> 14.98767105 | AP10: 14.69752431 | AQ10: 14.39762059 | AR10: 13.80701439 | AS10: 13.21573273
B11: 57 | C11: 18.07258065 | D11: 18.07258065 | E11: 17.27419355 | F11: 17.27419355 | G11: 16.47580645 | H11: 16.47580645 | I11: 16.0766129 | J11: 16.0766129 | K11: =V11*$K$13 -> 15.67741935 | L11: 15.67741935 | M11: 14.9516129 | N11: 14.9516129 | O11: 14.15322581 | P11: 14.15322581 | R11: 1.004032258 | S11: 0.9596774194 | T11: 0.9153225806 | U11: 0.8931451613 | V11: 0.8709677419 | W11: 0.8306451613 | X11: 0.7862903226 | Y11: 1 | Z11: 1 | AA11: 1 | AB11: 1 | AC11: 1 | AD11: 1 | AE11: 1 | AF11: 0.443 | AG11: 0.443 | AH11: 0.443 | AI11: 0.443 | AJ11: 0.443 | AK11: 0.443 | AL11: 0.443 | AM11: 18.07258065 | AN11: =Z11*E11+($A$4-80)*AG11*$A$8/1000 -> 17.27419355 | AO11: =AA11*G11+($A$4-80)*AH11*$A$8/1000 -> 16.47580645 | AP11: =AB11*I11+($A$4-80)*AI11*$A$8/1000 -> 16.0766129 | AQ11: 15.67741935 | AR11: 14.9516129 | AS11: 14.15322581
A12: 800 | B12: 72 | C12: 23.66129032 | D12: 12.25397827 | E12: 22.28225806 | F12: 11.7404189 | G12: 20.90322581 | H12: 11.22695618 | I12: 20.21370968 | J12: 10.97429747 | K12: =V12*$K$13 -> 19.52419355 | L12: 10.71361067 | M12: 18.14516129 | N12: 10.20040921 | O12: 16.76612903 | P12: 9.687387512 | R12: 1.314516129 | S12: 1.237903226 | T12: 1.161290323 | U12: 1.122983871 | V12: 1.084677419 | W12: 1.008064516 | X12: 0.9314516129 | Y12: 0.5178913787 | Z12: 0.5268953833 | AA12: 0.5370920397 | AB12: 0.5429135794 | AC12: 0.548735119 | AD12: 0.5621558852 | AE12: 0.5777951186 | AF12: 0.9 | AG12: 0.9 | AH12: 0.9 | AI12: 0.9 | AJ12: 0.9 | AK12: 0.9 | AL12: 0.9 | AM12: =Y12*C12+($A$4-80)*AF12*$A$12/1000 -> 12.25397827 | AN12: =Z12*E12+($A$4-80)*AG12*$A$12/1000 -> 11.7404189 | AO12: =AA12*G12+($A$4-80)*AH12*$A$12/1000 -> 11.22695618 | AP12: =AB12*I12+($A$4-80)*AI12*$A$12/1000 -> 10.97429747 | AQ12: =AC12*K12+($A$4-80)*AJ12*$A$12/1000 -> 10.71361067 | AR12: =AD12*M12+($A$4-80)*AK12*$A$12/1000 -> 10.20040921 | AS12: =AE12*O12+($A$4-80)*AL12*$A$12/1000 -> 9.687387512
B13: 67 | C13: 21.84677419 | D13: 15.63580306 | E13: 20.54032258 | F13: 15.1079974 | G13: 19.30645161 | H13: 14.63374914 | I13: 18.65322581 | J13: 14.37753125 | K13: 18 | L13: 14.10458043 | M13: 16.76612903 | N13: 13.63254144 | O13: 15.45967742 | P13: 13.10163054 | R13: 1.213709677 | S13: 1.141129032 | T13: 1.072580645 | U13: 1.036290323 | V13: 1 | W13: 0.9314516129 | X13: 0.8588709677 | Y13: 0.7157030562 | Z13: 0.7355287308 | AA13: 0.7579719688 | AB13: 0.7707798852 | AC13: 0.7835878016 | AD13: 0.8131001149 | AE13: 0.8474711457 | AF13: 0.9 | AG13: 0.9 | AH13: 0.9 | AI13: 0.9 | AJ13: 0.9 | AK13: 0.9 | AL13: 0.9 | AM13: =Y13*C13+($A$4-80)*AF13*$A$12/1000 -> 15.63580306 | AN13: =Z13*E13+($A$4-80)*AG13*$A$12/1000 -> 15.1079974 | AO13: =AA13*G13+($A$4-80)*AH13*$A$12/1000 -> 14.63374914 | AP13: =AB13*I13+($A$4-80)*AI13*$A$12/1000 -> 14.37753125 | AQ13: =AC13*K13+($A$4-80)*AJ13*$A$12/1000 -> 14.10458043 | AR13: =AD13*M13+($A$4-80)*AK13*$A$12/1000 -> 13.63254144 | AS13: =AE13*O13+($A$4-80)*AL13*$A$12/1000 -> 13.10163054
B14: 62 | C14: 19.88709677 | D14: 18.50517115 | E14: 18.94354839 | F14: 18.02292328 | G14: 18 | H14: 17.54005074 | I14: 17.56451613 | J14: 17.3401054 | K14: =V14*$K$13 -> 17.12903226 | L14: 17.12903226 | M14: 16.18548387 | N14: 16.18548387 | O14: 15.24193548 | P14: 15.24193548 | R14: 1.10483871 | S14: 1.052419355 | T14: 1 | U14: 0.9758064516 | V14: 0.9516129032 | W14: 0.8991935484 | X14: 0.8467741935 | Y14: 0.9305114445 | Z14: 0.9514016544 | AA14: 0.9744472635 | AB14: 0.9872236318 | AC14: 1 | AD14: 1 | AE14: 1 | AF14: 0.6990375315 | AG14: 0.6220654642 | AH14: 0.5371516129 | AI14: 0.4900758065 | AJ14: 0.443 | AK14: 0.443 | AL14: 0.443 | AM14: 18.50517115 | AN14: =Z14*E14+($A$4-80)*AG14*$A$12/1000 -> 18.02292328 | AO14: =AA14*G14+($A$4-80)*AH14*$A$12/1000 -> 17.54005074 | AP14: 17.3401054 | AQ14: 17.12903226 | AR14: 16.18548387 | AS14: 15.24193548
B15: 57 | C15: 19.88709677 | D15: 19.88709677 | E15: 18.94354839 | F15: 18.94354839 | G15: 18 | H15: 18 | I15: 17.52822581 | J15: 17.52822581 | K15: 17.05645161 | L15: 17.05645161 | M15: 16.11290323 | N15: 16.11290323 | O15: 15.16935484 | P15: 15.16935484 | R15: 1.10483871 | S15: 1.052419355 | T15: 1 | U15: 0.9737903226 | V15: 0.9475806452 | W15: 0.8951612903 | X15: 0.8427419355 | Y15: 1 | Z15: 1 | AA15: 1 | AB15: 1 | AC15: 1 | AD15: 1 | AE15: 1 | AF15: 0.443 | AG15: 0.443 | AH15: 0.443 | AI15: 0.443 | AJ15: 0.443 | AK15: 0.443 | AL15: 0.443 | AM15: 19.88709677 | AN15: =Z15*E15+($A$4-80)*AG15*$A$12/1000 -> 18.94354839 | AO15: =AA15*G15+($A$4-80)*AH15*$A$12/1000 -> 18 | AP15: 17.52822581 | AQ15: 17.05645161 | AR15: 16.11290323 | AS15: 15.16935484
A16: 1000 | B16: 72 | C16: 24.31451613 | D16: 13.45318731 | E16: 22.79032258 | F16: 12.90978143 | G16: 21.33870968 | H16: 12.40705309 | I16: 20.61290323 | J16: 12.1622454 | K16: 19.88709677 | L16: 11.90495878 | M16: 18.43548387 | N16: 11.40365061 | O16: 16.91129032 | P16: 10.85673819 | R16: 1.350806452 | S16: 1.266129032 | T16: 1.185483871 | U16: 1.14516129 | V16: 1.10483871 | W16: 1.024193548 | X16: 0.939516129 | Y16: 0.5532985826 | Z16: 0.5664589163 | AA16: 0.5814340828 | AB16: 0.5900306846 | AC16: 0.5986272863 | AD16: 0.6185707245 | AE16: 0.6419816577 | AF16: 0.9 | AG16: 0.9 | AH16: 0.9 | AI16: 0.9 | AJ16: 0.9 | AK16: 0.9 | AL16: 0.9 | AM16: =Y16*C16+($A$4-80)*AF16*$A$16/1000 -> 13.45318731 | AN16: =Z16*E16+($A$4-80)*AG16*$A$16/1000 -> 12.90978143 | AO16: =AA16*G16+($A$4-80)*AH16*$A$16/1000 -> 12.40705309 | AP16: =AB16*I16+($A$4-80)*AI16*$A$16/1000 -> 12.1622454 | AQ16: =AC16*K16+($A$4-80)*AJ16*$A$16/1000 -> 11.90495878 | AR16: =AD16*M16+($A$4-80)*AK16*$A$16/1000 -> 11.40365061 | AS16: =AE16*O16+($A$4-80)*AL16*$A$16/1000 -> 10.85673819
B17: 67 | C17: 22.42741935 | D17: 16.99739365 | E17: 21.0483871 | F17: 16.47050786 | G17: 19.74193548 | H17: 15.99958273 | I17: 19.08870968 | J17: 15.77513509 | K17: 18.43548387 | L17: 15.52981631 | M17: 17.12903226 | N17: 15.06147826 | O17: 15.75 | P17: 14.52797975 | R17: 1.245967742 | S17: 1.169354839 | T17: 1.096774194 | U17: 1.060483871 | V17: 1.024193548 | W17: 0.9516129032 | X17: 0.875 | Y17: 0.7578845064 | Z17: 0.7825068871 | AA17: 0.8104363803 | AB17: 0.8264118084 | AC17: 0.8423872366 | AD17: 0.8792953412 | AE17: 0.9224114128 | AF17: 0.9 | AG17: 0.9 | AH17: 0.9 | AI17: 0.9 | AJ17: 0.9 | AK17: 0.9 | AL17: 0.7288829084 | AM17: =Y17*C17+($A$4-80)*AF17*$A$16/1000 -> 16.99739365 | AN17: =Z17*E17+($A$4-80)*AG17*$A$16/1000 -> 16.47050786 | AO17: =AA17*G17+($A$4-80)*AH17*$A$16/1000 -> 15.99958273 | AP17: =AB17*I17+($A$4-80)*AI17*$A$16/1000 -> 15.77513509 | AQ17: =AC17*K17+($A$4-80)*AJ17*$A$16/1000 -> 15.52981631 | AR17: =AD17*M17+($A$4-80)*AK17*$A$16/1000 -> 15.06147826 | AS17: =AE17*O17+($A$4-80)*AL17*$A$16/1000 -> 14.52797975
B18: 62 | C18: 21.19354839 | D18: 21.19354839 | E18: 20.10483871 | F18: 20.10483871 | G18: 19.01612903 | H18: 19.01612903 | I18: 18.50806452 | J18: 18.50806452 | K18: 18 | L18: 18 | M18: 16.91129032 | N18: 16.91129032 | O18: 15.82258065 | P18: 15.82258065 | R18: 1.177419355 | S18: 1.116935484 | T18: 1.056451613 | U18: 1.028225806 | V18: 1 | W18: 0.939516129 | X18: 0.8790322581 | Y18: 1 | Z18: 1 | AA18: 1 | AB18: 1 | AC18: 1 | AD18: 1 | AE18: 1 | AF18: 0.443 | AG18: 0.443 | AH18: 0.443 | AI18: 0.443 | AJ18: 0.443 | AK18: 0.443 | AL18: 0.443 | AM18: 21.19354839 | AN18: =Z18*E18+($A$4-80)*AG18*$A$16/1000 -> 20.10483871 | AO18: =AA18*G18+($A$4-80)*AH18*$A$16/1000 -> 19.01612903 | AP18: 18.50806452 | AQ18: 18 | AR18: 16.91129032 | AS18: 15.82258065
B19: 57 | C19: 21.12096774 | D19: 21.12096774 | E19: 20.10483871 | F19: 20.10483871 | G19: 19.01612903 | H19: 19.01612903 | I19: 18.47177419 | J19: 18.47177419 | K19: 17.92741935 | L19: 17.92741935 | M19: 16.91129032 | N19: 16.91129032 | O19: 15.82258065 | P19: 15.82258065 | R19: 1.173387097 | S19: 1.116935484 | T19: 1.056451613 | U19: 1.026209677 | V19: 0.9959677419 | W19: 0.939516129 | X19: 0.8790322581 | Y19: 1 | Z19: 1 | AA19: 1 | AB19: 1 | AC19: 1 | AD19: 1 | AE19: 1 | AF19: 0.443 | AG19: 0.443 | AH19: 0.443 | AI19: 0.443 | AJ19: 0.443 | AK19: 0.443 | AL19: 0.443 | AM19: 21.12096774 | AN19: =Z19*E19+($A$4-80)*AG19*$A$16/1000 -> 20.10483871 | AO19: =AA19*G19+($A$4-80)*AH19*$A$16/1000 -> 19.01612903 | AP19: 18.47177419 | AQ19: 17.92741935 | AR19: 16.91129032 | AS19: 15.82258065

Sheet 4SCU14L_30 (hidden)
A2: 4SCU14L_30
A3: Evaporator Air | C3: Condenser Entering Air Temperature ˚F
A4: 80 | B4: °F DB | C4: 65 | E4: 75 | G4: 85 | I4: 90 | K4: 95 | M4: 105 | O4: 115
A5: CFM | B5: EWB† ˚F | C5: Capacity Mbtuh | E5: Capacity Mbtuh | G5: Capacity Mbtuh | I5: Capacity Mbtuh | K5: Capacity Mbtuh | M5: Capacity Mbtuh | O5: Capacity Mbtuh
C6: Total | D6: Sens. | E6: Total | F6: Sens. | G6: Total | H6: Sens. | I6: Total | J6: Sens. | K6: Total | L6: Sens. | M6: Total | N6: Sens. | O6: Total | P6: Sens.
R7: Total Factors | Y7: Sens. % | AF7: IDB Adj | AM7: Sens Calc
A8: 800 | B8: 72 | C8: =R8*$K$13 -> 22.40425532 | D8: =IF(AM8>C8,C8,AM8) -> 11.35054037 | E8: =S8*$K$13 -> 21.25531915 | F8: =IF(AN8>E8,E8,AN8) -> 10.92513074 | G8: =T8*$K$13 -> 20.17021277 | H8: =IF(AO8>G8,G8,AO8) -> 10.53268729 | I8: =U8*$K$13 -> 19.59574468 | J8: =IF(AP8>I8,I8,AP8) -> 10.32251016 | K8: =V8*$K$13 -> 19.0212766 | L8: =IF(AQ8>K8,K8,AQ8) -> 10.10706762 | M8: =W8*$K$13 -> 17.87234043 | N8: =IF(AR8>M8,M8,AR8) -> 9.681010422 | O8: =X8*$K$13 -> 16.78723404 | P8: =IF(AS8>O8,O8,AS8) -> 9.289749771 | R8: 1.244680851 | S8: 1.180851064 | T8: 1.120567376 | U8: 1.088652482 | V8: 1.056737589 | W8: 0.9929078014 | X8: 0.9326241135 | Y8: 0.5066243091 | Z8: 0.51399514 | AA8: 0.5221901926 | AB8: 0.5267730482 | AC8: 0.5313559038 | AD8: 0.5416755831 | AE8: 0.5533817988 | AF8: =IF(Y8<0.9,0.9,Y8*-3.6846+4.1276) -> 0.9 | AG8: =IF(Z8<0.9,0.9,Z8*-3.6846+4.1276) -> 0.9 | AH8: 0.9 | AI8: 0.9 | AJ8: 0.9 | AK8: 0.9 | AL8: 0.9 | AM8: =Y8*C8+($A$4-80)*AF8*$A$8/1000 -> 11.35054037 | AN8: =Z8*E8+($A$4-80)*AG8*$A$8/1000 -> 10.92513074 | AO8: =AA8*G8+($A$4-80)*AH8*$A$8/1000 -> 10.53268729 | AP8: =AB8*I8+($A$4-80)*AI8*$A$8/1000 -> 10.32251016 | AQ8: =AC8*K8+($A$4-80)*AJ8*$A$8/1000 -> 10.10706762 | AR8: =AD8*M8+($A$4-80)*AK8*$A$8/1000 -> 9.681010422 | AS8: =AE8*O8+($A$4-80)*AL8*$A$8/1000 -> 9.289749771
B9: 67 | C9: 20.68085106 | D9: 14.38266591 | E9: 19.59574468 | F9: =IF(AN9>E9,E9,AN9) -> 13.93732922 | G9: 18.57446809 | H9: =IF(AO9>G9,G9,AO9) -> 13.53691339 | I9: 18.06382979 | J9: =IF(AP9>I9,I9,AP9) -> 13.34202849 | K9: =V9*$K$13 -> 17.55319149 | L9: =IF(AQ9>K9,K9,AQ9) -> 13.1371216 | M9: 16.53191489 | N9: =IF(AR9>M9,M9,AR9) -> 12.73807163 | O9: 15.44680851 | P9: =IF(AS9>O9,O9,AS9) -> 12.28913137 | R9: 1.14893617 | S9: 1.088652482 | T9: 1.031914894 | U9: 1.003546099 | V9: 0.975177305 | W9: 0.9184397163 | X9: 0.8581560284 | Y9: 0.6954581255 | Z9: 0.711242642 | AA9: 0.7287914427 | AB9: 0.7386046397 | AC9: 0.7484178366 | AD9: 0.7705139853 | AE9: 0.7955773753 | AF9: =IF(Y9<0.9,0.9,Y9*-3.6846+4.1276) -> 0.9 | AG9: 0.9 | AH9: 0.9 | AI9: 0.9 | AJ9: 0.9 | AK9: 0.9 | AL9: 0.9 | AM9: =Y9*C9+($A$4-80)*AF9*$A$8/1000 -> 14.38266591 | AN9: =Z9*E9+($A$4-80)*AG9*$A$8/1000 -> 13.93732922 | AO9: =AA9*G9+($A$4-80)*AH9*$A$8/1000 -> 13.53691339 | AP9: =AB9*I9+($A$4-80)*AI9*$A$8/1000 -> 13.34202849 | AQ9: =AC9*K9+($A$4-80)*AJ9*$A$8/1000 -> 13.1371216 | AR9: =AD9*M9+($A$4-80)*AK9*$A$8/1000 -> 12.73807163 | AS9: =AE9*O9+($A$4-80)*AL9*$A$8/1000 -> 12.28913137
B10: 62 | C10: 18.95744681 | D10: 16.87691904 | E10: 18 | F10: 16.4428911 | G10: 17.04255319 | H10: 16.00799879 | I10: 16.56382979 | J10: 15.79694095 | K10: =V10*$K$13 -> 16.08510638 | L10: 15.57209091 | M10: 15.19148936 | N10: 15.19148936 | O10: 14.23404255 | P10: 14.23404255 | R10: 1.053191489 | S10: 1 | T10: 0.9468085106 | U10: 0.920212766 | V10: 0.8936170213 | W10: 0.8439716312 | X10: 0.7907801418 | Y10: 0.8902527441 | Z10: 0.9134939503 | AA10: 0.9392958089 | AB10: 0.9537009948 | AC10: 0.9681061807 | AD10: 1 | AE10: 1 | AF10: 0.9 | AG10: 0.7617401909 | AH10: 0.6666706624 | AI10: 0.6135933146 | AJ10: 0.5605159667 | AK10: 0.443 | AL10: 0.443 | AM10: 16.87691904 | AN10: =Z10*E10+($A$4-80)*AG10*$A$8/1000 -> 16.4428911 | AO10: =AA10*G10+($A$4-80)*AH10*$A$8/1000 -> 16.00799879 | AP10: 15.79694095 | AQ10: 15.57209091 | AR10: 15.19148936 | AS10: 14.23404255
B11: 57 | C11: 18.5106383 | D11: 18.5106383 | E11: 17.74468085 | F11: 17.74468085 | G11: 16.9787234 | H11: 16.9787234 | I11: 16.59574468 | J11: 16.59574468 | K11: =V11*$K$13 -> 16.21276596 | L11: 16.21276596 | M11: 15.44680851 | N11: 15.44680851 | O11: 14.68085106 | P11: 14.68085106 | R11: 1.028368794 | S11: 0.9858156028 | T11: 0.9432624113 | U11: 0.9219858156 | V11: 0.9007092199 | W11: 0.8581560284 | X11: 0.8156028369 | Y11: 1 | Z11: 1 | AA11: 1 | AB11: 1 | AC11: 1 | AD11: 1 | AE11: 1 | AF11: 0.443 | AG11: 0.443 | AH11: 0.443 | AI11: 0.443 | AJ11: 0.443 | AK11: 0.443 | AL11: 0.443 | AM11: 18.5106383 | AN11: =Z11*E11+($A$4-80)*AG11*$A$8/1000 -> 17.74468085 | AO11: =AA11*G11+($A$4-80)*AH11*$A$8/1000 -> 16.9787234 | AP11: =AB11*I11+($A$4-80)*AI11*$A$8/1000 -> 16.59574468 | AQ11: 16.21276596 | AR11: 15.44680851 | AS11: 14.68085106
A12: 1000 | B12: 72 | C12: 23.10638298 | D12: 12.43929674 | E12: 21.89361702 | F12: 11.99151938 | G12: 20.68085106 | H12: 11.54375047 | I12: 20.07446809 | J12: 11.32344038 | K12: =V12*$K$13 -> 19.46808511 | L12: 11.0959916 | M12: 18.25531915 | N12: 10.64824475 | O12: 17.04255319 | P12: 10.20051251 | R12: 1.283687943 | S12: 1.216312057 | T12: 1.14893617 | U12: 1.115248227 | V12: 1.081560284 | W12: 1.014184397 | X12: 0.9468085106 | Y12: 0.5383489381 | Z12: 0.5477176004 | AA12: 0.5581854652 | AB12: 0.5640717517 | AC12: 0.5699580383 | AD12: 0.5832954585 | AE12: 0.5985319452 | AF12: 0.9 | AG12: 0.9 | AH12: 0.9 | AI12: 0.9 | AJ12: 0.9 | AK12: 0.9 | AL12: 0.9 | AM12: =Y12*C12+($A$4-80)*AF12*$A$12/1000 -> 12.43929674 | AN12: =Z12*E12+($A$4-80)*AG12*$A$12/1000 -> 11.99151938 | AO12: =AA12*G12+($A$4-80)*AH12*$A$12/1000 -> 11.54375047 | AP12: =AB12*I12+($A$4-80)*AI12*$A$12/1000 -> 11.32344038 | AQ12: =AC12*K12+($A$4-80)*AJ12*$A$12/1000 -> 11.0959916 | AR12: =AD12*M12+($A$4-80)*AK12*$A$12/1000 -> 10.64824475 | AS12: =AE12*O12+($A$4-80)*AL12*$A$12/1000 -> 10.20051251
B13: 67 | C13: 21.31914894 | D13: 15.69363892 | E13: 20.23404255 | F13: 15.25662644 | G13: 19.14893617 | H13: 14.82048705 | I13: 18.57446809 | J13: 14.58395409 | K13: 18 | L13: 14.33455009 | M13: 16.91489362 | N13: 13.89906482 | O13: 15.76595745 | P13: 13.41055679 | R13: 1.184397163 | S13: 1.124113475 | T13: 1.063829787 | U13: 1.031914894 | V13: 1 | W13: 0.9397163121 | X13: 0.8758865248 | Y13: 0.7361287717 | Z13: 0.7540078263 | AA13: 0.773958768 | AB13: 0.7851613311 | AC13: 0.7963638941 | AD13: 0.8217057191 | AE13: 0.8506021175 | AF13: 0.9 | AG13: 0.9 | AH13: 0.9 | AI13: 0.9 | AJ13: 0.9 | AK13: 0.9 | AL13: 0.9 | AM13: =Y13*C13+($A$4-80)*AF13*$A$12/1000 -> 15.69363892 | AN13: =Z13*E13+($A$4-80)*AG13*$A$12/1000 -> 15.25662644 | AO13: =AA13*G13+($A$4-80)*AH13*$A$12/1000 -> 14.82048705 | AP13: =AB13*I13+($A$4-80)*AI13*$A$12/1000 -> 14.58395409 | AQ13: =AC13*K13+($A$4-80)*AJ13*$A$12/1000 -> 14.33455009 | AR13: =AD13*M13+($A$4-80)*AK13*$A$12/1000 -> 13.89906482 | AS13: =AE13*O13+($A$4-80)*AL13*$A$12/1000 -> 13.41055679
B14: 62 | C14: 19.85106383 | D14: 19.85106383 | E14: 18.95744681 | F14: 18.95744681 | G14: 18.12765957 | H14: 18.12765957 | I14: 17.68085106 | J14: 17.68085106 | K14: =V14*$K$13 -> 17.23404255 | L14: 17.23404255 | M14: 16.34042553 | N14: 16.34042553 | O14: 15.5106383 | P14: 15.5106383 | R14: 1.102836879 | S14: 1.053191489 | T14: 1.007092199 | U14: 0.9822695035 | V14: 0.9574468085 | W14: 0.9078014184 | X14: 0.8617021277 | Y14: 1 | Z14: 1 | AA14: 1 | AB14: 1 | AC14: 1 | AD14: 1 | AE14: 1 | AF14: 0.443 | AG14: 0.443 | AH14: 0.443 | AI14: 0.443 | AJ14: 0.443 | AK14: 0.443 | AL14: 0.443 | AM14: 19.85106383 | AN14: =Z14*E14+($A$4-80)*AG14*$A$12/1000 -> 18.95744681 | AO14: =AA14*G14+($A$4-80)*AH14*$A$12/1000 -> 18.12765957 | AP14: 17.68085106 | AQ14: 17.23404255 | AR14: 16.34042553 | AS14: 15.5106383
B15: 57 | C15: 19.78723404 | D15: 19.78723404 | E15: 18.95744681 | F15: 18.95744681 | G15: 18.06382979 | H15: 18.06382979 | I15: 17.64893617 | J15: 17.64893617 | K15: 17.23404255 | L15: 17.23404255 | M15: 16.34042553 | N15: 16.34042553 | O15: 15.5106383 | P15: 15.5106383 | R15: 1.09929078 | S15: 1.053191489 | T15: 1.003546099 | U15: 0.9804964539 | V15: 0.9574468085 | W15: 0.9078014184 | X15: 0.8617021277 | Y15: 1 | Z15: 1 | AA15: 1 | AB15: 1 | AC15: 1 | AD15: 1 | AE15: 1 | AF15: 0.443 | AG15: 0.443 | AH15: 0.443 | AI15: 0.443 | AJ15: 0.443 | AK15: 0.443 | AL15: 0.443 | AM15: 19.78723404 | AN15: =Z15*E15+($A$4-80)*AG15*$A$12/1000 -> 18.95744681 | AO15: =AA15*G15+($A$4-80)*AH15*$A$12/1000 -> 18.06382979 | AP15: 17.64893617 | AQ15: 17.23404255 | AR15: 16.34042553 | AS15: 15.5106383
A16: 1200 | B16: 72 | C16: 23.55319149 | D16: 13.7734412 | E16: 22.27659574 | F16: 13.03416477 | G16: 21 | H16: 12.29487725 | I16: 20.36170213 | J16: 11.92535807 | K16: 19.72340426 | L16: 11.55557649 | M16: 18.5106383 | N16: 10.85368631 | O16: 17.23404255 | P16: 10.11438437 | R16: 1.308510638 | S16: 1.237588652 | T16: 1.166666667 | U16: 1.131205674 | V16: 1.095744681 | W16: 1.028368794 | X16: 0.9574468085 | Y16: 0.5847802496 | Z16: 0.5851057731 | AA16: 0.5854703452 | AB16: 0.5856758927 | AC16: 0.5858814403 | AD16: 0.5863485706 | AE16: 0.5868840311 | AF16: 0.9 | AG16: 0.9 | AH16: 0.9 | AI16: 0.9 | AJ16: 0.9 | AK16: 0.9 | AL16: 0.9 | AM16: =Y16*C16+($A$4-80)*AF16*$A$16/1000 -> 13.7734412 | AN16: =Z16*E16+($A$4-80)*AG16*$A$16/1000 -> 13.03416477 | AO16: =AA16*G16+($A$4-80)*AH16*$A$16/1000 -> 12.29487725 | AP16: =AB16*I16+($A$4-80)*AI16*$A$16/1000 -> 11.92535807 | AQ16: =AC16*K16+($A$4-80)*AJ16*$A$16/1000 -> 11.55557649 | AR16: =AD16*M16+($A$4-80)*AK16*$A$16/1000 -> 10.85368631 | AS16: =AE16*O16+($A$4-80)*AL16*$A$16/1000 -> 10.11438437
B17: 67 | C17: 21.76595745 | D17: 17.19631422 | E17: 20.55319149 | F17: 16.67556754 | G17: 19.40425532 | H17: 16.20548898 | I17: 18.82978723 | J17: 15.97829762 | K17: 18.25531915 | L17: 15.73569482 | M17: 17.10638298 | N17: 15.2662427 | O17: 15.95744681 | P17: 14.79720691 | R17: 1.209219858 | S17: 1.141843972 | T17: 1.078014184 | U17: 1.046099291 | V17: 1.014184397 | W17: 0.9503546099 | X17: 0.8865248227 | Y17: 0.7900554919 | Z17: 0.8113371372 | AA17: 0.8351512961 | AB17: 0.8485649585 | AC17: 0.8619786208 | AD17: 0.8924296103 | AE17: 0.9272916333 | AF17: 0.9 | AG17: 0.9 | AH17: 0.9 | AI17: 0.9 | AJ17: 0.9 | AK17: 0.9 | AL17: 0.7109012478 | AM17: =Y17*C17+($A$4-80)*AF17*$A$16/1000 -> 17.19631422 | AN17: =Z17*E17+($A$4-80)*AG17*$A$16/1000 -> 16.67556754 | AO17: =AA17*G17+($A$4-80)*AH17*$A$16/1000 -> 16.20548898 | AP17: =AB17*I17+($A$4-80)*AI17*$A$16/1000 -> 15.97829762 | AQ17: =AC17*K17+($A$4-80)*AJ17*$A$16/1000 -> 15.73569482 | AR17: =AD17*M17+($A$4-80)*AK17*$A$16/1000 -> 15.2662427 | AS17: =AE17*O17+($A$4-80)*AL17*$A$16/1000 -> 14.79720691
B18: 62 | C18: 20.74468085 | D18: 20.74468085 | E18: 19.78723404 | F18: 19.78723404 | G18: 18.89361702 | H18: 18.89361702 | I18: 18.41489362 | J18: 18.41489362 | K18: 17.93617021 | L18: 17.93617021 | M18: 16.9787234 | N18: 16.9787234 | O18: 16.08510638 | P18: 16.08510638 | R18: 1.15248227 | S18: 1.09929078 | T18: 1.04964539 | U18: 1.023049645 | V18: 0.9964539007 | W18: 0.9432624113 | X18: 0.8936170213 | Y18: 1 | Z18: 1 | AA18: 1 | AB18: 1 | AC18: 1 | AD18: 1 | AE18: 1 | AF18: 0.443 | AG18: 0.443 | AH18: 0.443 | AI18: 0.443 | AJ18: 0.443 | AK18: 0.443 | AL18: 0.443 | AM18: 20.74468085 | AN18: =Z18*E18+($A$4-80)*AG18*$A$16/1000 -> 19.78723404 | AO18: =AA18*G18+($A$4-80)*AH18*$A$16/1000 -> 18.89361702 | AP18: 18.41489362 | AQ18: 17.93617021 | AR18: 16.9787234 | AS18: 16.08510638
B19: 57 | C19: 20.74468085 | D19: 20.74468085 | E19: 19.78723404 | F19: 19.78723404 | G19: 18.82978723 | H19: 18.82978723 | I19: 18.38297872 | J19: 18.38297872 | K19: 17.93617021 | L19: 17.93617021 | M19: 16.9787234 | N19: 16.9787234 | O19: 16.0212766 | P19: 16.0212766 | R19: 1.15248227 | S19: 1.09929078 | T19: 1.046099291 | U19: 1.021276596 | V19: 0.9964539007 | W19: 0.9432624113 | X19: 0.890070922 | Y19: 1 | Z19: 1 | AA19: 1 | AB19: 1 | AC19: 1 | AD19: 1 | AE19: 1 | AF19: 0.443 | AG19: 0.443 | AH19: 0.443 | AI19: 0.443 | AJ19: 0.443 | AK19: 0.443 | AL19: 0.443 | AM19: 20.74468085 | AN19: =Z19*E19+($A$4-80)*AG19*$A$16/1000 -> 19.78723404 | AO19: =AA19*G19+($A$4-80)*AH19*$A$16/1000 -> 18.82978723 | AP19: 18.38297872 | AQ19: 17.93617021 | AR19: 16.9787234 | AS19: 16.0212766

Sheet 4SCU14L_36 (hidden)
A2: 4SCU14L_36
A3: Evaporator Air | C3: Condenser Entering Air Temperature ˚F
A4: 76.8 | B4: °F DB | C4: 65 | E4: 75 | G4: 85 | I4: 90 | K4: 95 | M4: 105 | O4: 115
A5: CFM | B5: EWB† ˚F | C5: Capacity Mbtuh | E5: Capacity Mbtuh | G5: Capacity Mbtuh | I5: Capacity Mbtuh | K5: Capacity Mbtuh | M5: Capacity Mbtuh | O5: Capacity Mbtuh
C6: Total | D6: Sens. | E6: Total | F6: Sens. | G6: Total | H6: Sens. | I6: Total | J6: Sens. | K6: Total | L6: Sens. | M6: Total | N6: Sens. | O6: Total | P6: Sens.
R7: Total Factors | Y7: Sens. % | AF7: IDB Adj | AM7: Sens Calc
A8: 1000 | B8: 72 | C8: =R8*$K$13 -> 22.5129683 | D8: =IF(AM8>C8,C8,AM8) -> 8.55346555 | E8: =S8*$K$13 -> 21.37175793 | F8: =IF(AN8>E8,E8,AN8) -> 8.126263205 | G8: =T8*$K$13 -> 20.17867435 | H8: =IF(AO8>G8,G8,AO8) -> 7.672100888 | I8: =U8*$K$13 -> 19.60806916 | J8: =IF(AP8>I8,I8,AP8) -> 7.460989967 | K8: =V8*$K$13 -> 19.03746398 | L8: =IF(AQ8>K8,K8,AQ8) -> 7.244799401 | M8: =W8*$K$13 -> 17.8962536 | N8: =IF(AR8>M8,M8,AR8) -> 6.817672799 | O8: =X8*$K$13 -> 16.75504323 | P8: =IF(AS8>O8,O8,AS8) -> 6.390757144 | R8: 1.250720461 | S8: 1.187319885 | T8: 1.121037464 | U8: 1.089337176 | V8: 1.057636888 | W8: 0.9942363112 | X8: 0.9308357349 | Y8: 0.507861309 | Z8: 0.5149910103 | AA8: 0.5229333059 | AB8: 0.527384409 | AC8: 0.531835512 | AD8: 0.541882844 | AE8: 0.5533114429 | AF8: =IF(Y8<0.9,0.9,Y8*-3.6846+4.1276) -> 0.9 | AG8: =IF(Z8<0.9,0.9,Z8*-3.6846+4.1276) -> 0.9 | AH8: 0.9 | AI8: 0.9 | AJ8: 0.9 | AK8: 0.9 | AL8: 0.9 | AM8: =Y8*C8+($A$4-80)*AF8*$A$8/1000 -> 8.55346555 | AN8: =Z8*E8+($A$4-80)*AG8*$A$8/1000 -> 8.126263205 | AO8: =AA8*G8+($A$4-80)*AH8*$A$8/1000 -> 7.672100888 | AP8: =AB8*I8+($A$4-80)*AI8*$A$8/1000 -> 7.460989967 | AQ8: =AC8*K8+($A$4-80)*AJ8*$A$8/1000 -> 7.244799401 | AR8: =AD8*M8+($A$4-80)*AK8*$A$8/1000 -> 6.817672799 | AS8: =AE8*O8+($A$4-80)*AL8*$A$8/1000 -> 6.390757144
B9: 67 | C9: 21.06051873 | D9: 11.75615864 | E9: 19.91930836 | F9: =IF(AN9>E9,E9,AN9) -> 11.28328469 | G9: 18.72622478 | H9: =IF(AO9>G9,G9,AO9) -> 10.77343776 | I9: 18.1556196 | J9: =IF(AP9>I9,I9,AP9) -> 10.54324296 | K9: =V9*$K$13 -> 17.58501441 | L9: =IF(AQ9>K9,K9,AQ9) -> 10.30136691 | M9: 16.39193084 | N9: =IF(AR9>M9,M9,AR9) -> 9.790282906 | O9: 15.25072046 | P9: =IF(AS9>O9,O9,AS9) -> 9.319227528 | R9: 1.170028818 | S9: 1.106628242 | T9: 1.040345821 | U9: 1.008645533 | V9: 0.976945245 | W9: 0.9106628242 | X9: 0.8472622478 | Y9: 0.6949571766 | Z9: 0.7110329556 | AA9: 0.7291078643 | AB9: 0.7393436993 | AC9: 0.7495795344 | AD9: 0.7729585387 | AE9: 0.7999115556 | AF9: =IF(Y9<0.9,0.9,Y9*-3.6846+4.1276) -> 0.9 | AG9: 0.9 | AH9: 0.9 | AI9: 0.9 | AJ9: 0.9 | AK9: 0.9 | AL9: 0.9 | AM9: =Y9*C9+($A$4-80)*AF9*$A$8/1000 -> 11.75615864 | AN9: =Z9*E9+($A$4-80)*AG9*$A$8/1000 -> 11.28328469 | AO9: =AA9*G9+($A$4-80)*AH9*$A$8/1000 -> 10.77343776 | AP9: =AB9*I9+($A$4-80)*AI9*$A$8/1000 -> 10.54324296 | AQ9: =AC9*K9+($A$4-80)*AJ9*$A$8/1000 -> 10.30136691 | AR9: =AD9*M9+($A$4-80)*AK9*$A$8/1000 -> 9.790282906 | AS9: =AE9*O9+($A$4-80)*AL9*$A$8/1000 -> 9.319227528
B10: 62 | C10: 19.34870317 | D10: 14.36628285 | E10: 18.25936599 | F10: 14.31833967 | G10: 17.22190202 | H10: 14.171627 | I10: 16.70317003 | J10: 14.12803143 | K10: =V10*$K$13 -> 16.18443804 | L10: 14.06819898 | M10: 15.14697406 | N10: 13.72937406 | O10: 14.05763689 | P10: 12.64003689 | R10: 1.074927954 | S10: 1.014409222 | T10: 0.9567723343 | U10: 0.9279538905 | V10: 0.8991354467 | W10: 0.8414985591 | X10: 0.7809798271 | Y10: 0.8913405049 | Z10: 0.9160259866 | AA10: 0.9437253544 | AB10: 0.9593759013 | AC10: 0.9750264482 | AD10: 1 | AE10: 1 | AF10: 0.9 | AG10: 0.7524106499 | AH10: 0.650349559 | AI10: 0.5926835539 | AJ10: 0.5350175488 | AK10: 0.443 | AL10: 0.443 | AM10: 14.36628285 | AN10: =Z10*E10+($A$4-80)*AG10*$A$8/1000 -> 14.31833967 | AO10: =AA10*G10+($A$4-80)*AH10*$A$8/1000 -> 14.171627 | AP10: 14.12803143 | AQ10: 14.06819898 | AR10: 13.72937406 | AS10: 12.64003689
B11: 57 | C11: 18.93371758 | D11: 17.51611758 | E11: 18.0518732 | F11: 16.6342732 | G11: 17.22190202 | H11: 15.80430202 | I11: 16.78097983 | J11: 15.36337983 | K11: =V11*$K$13 -> 16.34005764 | L11: 14.92245764 | M11: 15.51008646 | N11: 14.09248646 | O11: 14.62824207 | P11: 13.21064207 | R11: 1.051873199 | S11: 1.002881844 | T11: 0.9567723343 | U11: 0.9322766571 | V11: 0.9077809798 | W11: 0.8616714697 | X11: 0.8126801153 | Y11: 1 | Z11: 1 | AA11: 1 | AB11: 1 | AC11: 1 | AD11: 1 | AE11: 1 | AF11: 0.443 | AG11: 0.443 | AH11: 0.443 | AI11: 0.443 | AJ11: 0.443 | AK11: 0.443 | AL11: 0.443 | AM11: 17.51611758 | AN11: =Z11*E11+($A$4-80)*AG11*$A$8/1000 -> 16.6342732 | AO11: =AA11*G11+($A$4-80)*AH11*$A$8/1000 -> 15.80430202 | AP11: =AB11*I11+($A$4-80)*AI11*$A$8/1000 -> 15.36337983 | AQ11: 14.92245764 | AR11: 14.09248646 | AS11: 13.21064207
A12: 1200 | B12: 72 | C12: 23.03170029 | D12: 8.711676033 | E12: 21.83861671 | F12: 8.336904918 | G12: 20.64553314 | H12: 7.962189294 | I12: 20.04899135 | J12: 7.779237338 | K12: =V12*$K$13 -> 19.45244957 | L12: 7.587539395 | M12: 18.25936599 | N12: 7.212968133 | O12: 17.06628242 | P12: 6.83849204 | R12: 1.279538905 | S12: 1.213256484 | T12: 1.146974063 | U12: 1.113832853 | V12: 1.080691643 | W12: 1.014409222 | X12: 0.9481268012 | Y12: 0.5283012492 | Z12: 0.5400023761 | AA12: 0.5530585825 | AB12: 0.5603891557 | AC12: 0.5677197289 | AD12: 0.5843011272 | AE12: 0.6032064738 | AF12: 0.9 | AG12: 0.9 | AH12: 0.9 | AI12: 0.9 | AJ12: 0.9 | AK12: 0.9 | AL12: 0.9 | AM12: =Y12*C12+($A$4-80)*AF12*$A$12/1000 -> 8.711676033 | AN12: =Z12*E12+($A$4-80)*AG12*$A$12/1000 -> 8.336904918 | AO12: =AA12*G12+($A$4-80)*AH12*$A$12/1000 -> 7.962189294 | AP12: =AB12*I12+($A$4-80)*AI12*$A$12/1000 -> 7.779237338 | AQ12: =AC12*K12+($A$4-80)*AJ12*$A$12/1000 -> 7.587539395 | AR12: =AD12*M12+($A$4-80)*AK12*$A$12/1000 -> 7.212968133 | AS12: =AE12*O12+($A$4-80)*AL12*$A$12/1000 -> 6.83849204
B13: 67 | C13: 21.63112392 | D13: 12.2733218 | E13: 20.43804035 | F13: 11.77387102 | G13: 19.19308357 | H13: 11.23567442 | I13: 18.59654179 | J13: 10.99328288 | K13: 18 | L13: 10.73714642 | M13: 16.75504323 | N13: 10.19758219 | O13: 15.56195965 | P13: 9.700231037 | R13: 1.201729107 | S13: 1.135446686 | T13: 1.066282421 | U13: 1.03314121 | V13: 1 | W13: 0.9308357349 | X13: 0.8645533141 | Y13: 0.7271615595 | Z13: 0.7451727642 | AA13: 0.7654671205 | AB13: 0.7769876274 | AC13: 0.7885081343 | AD13: 0.8148938803 | AE13: 0.8454096611 | AF13: 0.9 | AG13: 0.9 | AH13: 0.9 | AI13: 0.9 | AJ13: 0.9 | AK13: 0.9 | AL13: 0.9 | AM13: =Y13*C13+($A$4-80)*AF13*$A$12/1000 -> 12.2733218 | AN13: =Z13*E13+($A$4-80)*AG13*$A$12/1000 -> 11.77387102 | AO13: =AA13*G13+($A$4-80)*AH13*$A$12/1000 -> 11.23567442 | AP13: =AB13*I13+($A$4-80)*AI13*$A$12/1000 -> 10.99328288 | AQ13: =AC13*K13+($A$4-80)*AJ13*$A$12/1000 -> 10.73714642 | AR13: =AD13*M13+($A$4-80)*AK13*$A$12/1000 -> 10.19758219 | AS13: =AE13*O13+($A$4-80)*AL13*$A$12/1000 -> 9.700231037
B14: 62 | C14: 19.60806916 | D14: 17.19644121 | E14: 18.82997118 | F14: 16.64610104 | G14: 18 | H14: 16.05295265 | I14: 17.58501441 | J14: 15.76251798 | K14: =V14*$K$13 -> 17.17002882 | L14: 15.46890882 | M14: 16.39193084 | N14: 14.69081084 | O14: 15.56195965 | P14: 13.86083965 | R14: 1.089337176 | S14: 1.04610951 | T14: 1 | U14: 0.976945245 | V14: 0.9538904899 | W14: 0.9106628242 | X14: 0.8645533141 | Y14: 0.9789522362 | Z14: 0.9853618194 | AA14: 0.9923503566 | AB14: 0.9961751783 | AC14: 1 | AD14: 1 | AE14: 1 | AF14: 0.5205525903 | AG14: 0.4969358401 | AH14: 0.4711858763 | AI14: 0.4570929381 | AJ14: 0.443 | AK14: 0.443 | AL14: 0.443 | AM14: 17.19644121 | AN14: =Z14*E14+($A$4-80)*AG14*$A$12/1000 -> 16.64610104 | AO14: =AA14*G14+($A$4-80)*AH14*$A$12/1000 -> 16.05295265 | AP14: 15.76251798 | AQ14: 15.46890882 | AR14: 14.69081084 | AS14: 13.86083965
B15: 57 | C15: 19.97118156 | D15: 18.27006156 | E15: 19.03746398 | F15: 17.33634398 | G15: 18.1037464 | H15: 16.4026264 | I15: 17.63688761 | J15: 15.93576761 | K15: 17.17002882 | L15: 15.46890882 | M15: 16.23631124 | N15: 14.53519124 | O15: 15.30259366 | P15: 13.60147366 | R15: 1.109510086 | S15: 1.057636888 | T15: 1.005763689 | U15: 0.9798270893 | V15: 0.9538904899 | W15: 0.9020172911 | X15: 0.8501440922 | Y15: 1 | Z15: 1 | AA15: 1 | AB15: 1 | AC15: 1 | AD15: 1 | AE15: 1 | AF15: 0.443 | AG15: 0.443 | AH15: 0.443 | AI15: 0.443 | AJ15: 0.443 | AK15: 0.443 | AL15: 0.443 | AM15: 18.27006156 | AN15: =Z15*E15+($A$4-80)*AG15*$A$12/1000 -> 17.33634398 | AO15: =AA15*G15+($A$4-80)*AH15*$A$12/1000 -> 16.4026264 | AP15: 15.93576761 | AQ15: 15.46890882 | AR15: 14.53519124 | AS15: 13.60147366
A16: 1400 | B16: 72 | C16: 23.39481268 | D16: 8.971085492 | E16: 22.14985591 | F16: 8.592458326 | G16: 20.90489914 | H16: 8.213523751 | I16: 20.28242075 | J16: 8.029414127 | K16: 19.65994236 | L16: 7.834223909 | M16: 18.46685879 | N16: 7.486841749 | O16: 17.22190202 | P16: 7.107767498 | R16: 1.299711816 | S16: 1.23054755 | T16: 1.161383285 | U16: 1.126801153 | V16: 1.09221902 | W16: 1.025936599 | X16: 0.9567723343 | Y16: 0.5558106265 | Z16: 0.5699566795 | AA16: 0.5857729172 | AB16: 0.5946733024 | AC16: 0.6035736875 | AD16: 0.6237575042 | AE16: 0.6468372359 | AF16: 0.9 | AG16: 0.9 | AH16: 0.9 | AI16: 0.9 | AJ16: 0.9 | AK16: 0.9 | AL16: 0.9 | AM16: =Y16*C16+($A$4-80)*AF16*$A$16/1000 -> 8.971085492 | AN16: =Z16*E16+($A$4-80)*AG16*$A$16/1000 -> 8.592458326 | AO16: =AA16*G16+($A$4-80)*AH16*$A$16/1000 -> 8.213523751 | AP16: =AB16*I16+($A$4-80)*AI16*$A$16/1000 -> 8.029414127 | AQ16: =AC16*K16+($A$4-80)*AJ16*$A$16/1000 -> 7.834223909 | AR16: =AD16*M16+($A$4-80)*AK16*$A$16/1000 -> 7.486841749 | AS16: =AE16*O16+($A$4-80)*AL16*$A$16/1000 -> 7.107767498
B17: 67 | C17: 21.94236311 | D17: 12.71634235 | E17: 20.74927954 | F17: 12.37972763 | G17: 19.55619597 | H17: 12.04248067 | I17: 18.95965418 | J17: 11.88391893 | K17: 18.36311239 | L17: 11.70447949 | M17: 17.22190202 | N17: 11.41208693 | O17: 16.02881844 | P17: 12.17189335 | R17: 1.219020173 | S17: 1.152737752 | T17: 1.086455331 | U17: 1.053314121 | V17: 1.020172911 | W17: 0.9567723343 | X17: 0.8904899135 | Y17: 0.7632879953 | Z17: 0.7909540954 | AA17: 0.8219635708 | AB17: 0.8394625123 | AC17: 0.8569614538 | AD17: 0.8967701077 | AE17: 0.9424546632 | AF17: 0.9 | AG17: 0.9 | AH17: 0.9 | AI17: 0.9 | AJ17: 0.9 | AK17: 0.9 | AL17: 0.6550315479 | AM17: =Y17*C17+($A$4-80)*AF17*$A$16/1000 -> 12.71634235 | AN17: =Z17*E17+($A$4-80)*AG17*$A$16/1000 -> 12.37972763 | AO17: =AA17*G17+($A$4-80)*AH17*$A$16/1000 -> 12.04248067 | AP17: =AB17*I17+($A$4-80)*AI17*$A$16/1000 -> 11.88391893 | AQ17: =AC17*K17+($A$4-80)*AJ17*$A$16/1000 -> 11.70447949 | AR17: =AD17*M17+($A$4-80)*AK17*$A$16/1000 -> 11.41208693 | AS17: =AE17*O17+($A$4-80)*AL17*$A$16/1000 -> 12.17189335
B18: 62 | C18: 20.85302594 | D18: 18.86838594 | E18: 19.81556196 | F18: 17.83092196 | G18: 18.82997118 | H18: 16.84533118 | I18: 18.31123919 | J18: 16.32659919 | K18: 17.7925072 | L18: 15.8078672 | M18: 16.80691643 | N18: 14.82227643 | O18: 15.76945245 | P18: 13.78481245 | R18: 1.158501441 | S18: 1.100864553 | T18: 1.04610951 | U18: 1.017291066 | V18: 0.9884726225 | W18: 0.9337175793 | X18: 0.8760806916 | Y18: 1 | Z18: 1 | AA18: 1 | AB18: 1 | AC18: 1 | AD18: 1 | AE18: 1 | AF18: 0.443 | AG18: 0.443 | AH18: 0.443 | AI18: 0.443 | AJ18: 0.443 | AK18: 0.443 | AL18: 0.443 | AM18: 18.86838594 | AN18: =Z18*E18+($A$4-80)*AG18*$A$16/1000 -> 17.83092196 | AO18: =AA18*G18+($A$4-80)*AH18*$A$16/1000 -> 16.84533118 | AP18: 16.32659919 | AQ18: 15.8078672 | AR18: 14.82227643 | AS18: 13.78481245
B19: 57 | C19: 20.80115274 | D19: 18.81651274 | E19: 19.81556196 | F19: 17.83092196 | G19: 18.77809798 | H19: 16.79345798 | I19: 18.28530259 | J19: 16.30066259 | K19: 17.7925072 | L19: 15.8078672 | M19: 16.75504323 | N19: 14.77040323 | O19: 15.76945245 | P19: 13.78481245 | R19: 1.155619597 | S19: 1.100864553 | T19: 1.043227666 | U19: 1.015850144 | V19: 0.9884726225 | W19: 0.9308357349 | X19: 0.8760806916 | Y19: 1 | Z19: 1 | AA19: 1 | AB19: 1 | AC19: 1 | AD19: 1 | AE19: 1 | AF19: 0.443 | AG19: 0.443 | AH19: 0.443 | AI19: 0.443 | AJ19: 0.443 | AK19: 0.443 | AL19: 0.443 | AM19: 18.81651274 | AN19: =Z19*E19+($A$4-80)*AG19*$A$16/1000 -> 17.83092196 | AO19: =AA19*G19+($A$4-80)*AH19*$A$16/1000 -> 16.79345798 | AP19: 16.30066259 | AQ19: 15.8078672 | AR19: 14.77040323 | AS19: 13.78481245

Sheet 4SCU14L_41 (hidden)
A2: 4SCU14L_41
A3: Evaporator Air | C3: Condenser Entering Air Temperature ˚F
A4: 80 | B4: °F DB | C4: 65 | E4: 75 | G4: 85 | I4: 90 | K4: 95 | M4: 105 | O4: 115
A5: CFM | B5: EWB† ˚F | C5: Capacity Mbtuh | E5: Capacity Mbtuh | G5: Capacity Mbtuh | I5: Capacity Mbtuh | K5: Capacity Mbtuh | M5: Capacity Mbtuh | O5: Capacity Mbtuh
C6: Total | D6: Sens. | E6: Total | F6: Sens. | G6: Total | H6: Sens. | I6: Total | J6: Sens. | K6: Total | L6: Sens. | M6: Total | N6: Sens. | O6: Total | P6: Sens.
R7: Total Factors | Y7: Sens. % | AF7: IDB Adj | AM7: Sens Calc
A8: 1200 | B8: 72 | C8: =R8*$K$13 -> 22.70558376 | D8: =IF(AM8>C8,C8,AM8) -> 11.67244879 | E8: =S8*$K$13 -> 21.5177665 | F8: =IF(AN8>E8,E8,AN8) -> 11.23397338 | G8: =T8*$K$13 -> 20.32994924 | H8: =IF(AO8>G8,G8,AO8) -> 10.79540934 | I8: =U8*$K$13 -> 19.73604061 | J8: =IF(AP8>I8,I8,AP8) -> 10.57905448 | K8: =V8*$K$13 -> 19.14213198 | L8: =IF(AQ8>K8,K8,AQ8) -> 10.35674028 | M8: =W8*$K$13 -> 17.95431472 | N8: =IF(AR8>M8,M8,AR8) -> 9.91794546 | O8: =X8*$K$13 -> 16.76649746 | P8: =IF(AS8>O8,O8,AS8) -> 9.478998293 | R8: 1.26142132 | S8: 1.195431472 | T8: 1.129441624 | U8: 1.096446701 | V8: 1.063451777 | W8: 0.9974619289 | X8: 0.9314720812 | Y8: 0.5140783394 | Z8: 0.5220789703 | AA8: 0.5310101475 | AB8: 0.5360271947 | AC8: 0.5410442419 | AD8: 0.5523989979 | AE8: 0.5653535161 | AF8: =IF(Y8<0.9,0.9,Y8*-3.6846+4.1276) -> 0.9 | AG8: =IF(Z8<0.9,0.9,Z8*-3.6846+4.1276) -> 0.9 | AH8: 0.9 | AI8: 0.9 | AJ8: 0.9 | AK8: 0.9 | AL8: 0.9 | AM8: =Y8*C8+($A$4-80)*AF8*$A$8/1000 -> 11.67244879 | AN8: =Z8*E8+($A$4-80)*AG8*$A$8/1000 -> 11.23397338 | AO8: =AA8*G8+($A$4-80)*AH8*$A$8/1000 -> 10.79540934 | AP8: =AB8*I8+($A$4-80)*AI8*$A$8/1000 -> 10.57905448 | AQ8: =AC8*K8+($A$4-80)*AJ8*$A$8/1000 -> 10.35674028 | AR8: =AD8*M8+($A$4-80)*AK8*$A$8/1000 -> 9.91794546 | AS8: =AE8*O8+($A$4-80)*AL8*$A$8/1000 -> 9.478998293
B9: 67 | C9: 20.83248731 | D9: 14.83720954 | E9: 19.78172589 | F9: =IF(AN9>E9,E9,AN9) -> 14.43084126 | G9: 18.73096447 | H9: =IF(AO9>G9,G9,AO9) -> 14.02434406 | I9: 18.20558376 | J9: =IF(AP9>I9,I9,AP9) -> 13.82666676 | K9: =V9*$K$13 -> 17.68020305 | L9: =IF(AQ9>K9,K9,AQ9) -> 13.61769503 | M9: 16.62944162 | N9: =IF(AR9>M9,M9,AR9) -> 13.21086551 | O9: 15.5786802 | P9: =IF(AS9>O9,O9,AS9) -> 12.80381913 | R9: 1.157360406 | S9: 1.098984772 | T9: 1.040609137 | U9: 1.01142132 | V9: 0.9822335025 | W9: 0.923857868 | X9: 0.8654822335 | Y9: 0.7122149801 | Z9: 0.729503651 | AA9: 0.7487251433 | AB9: 0.7594739585 | AC9: 0.7702227736 | AD9: 0.7944262835 | AE9: 0.821880863 | AF9: =IF(Y9<0.9,0.9,Y9*-3.6846+4.1276) -> 0.9 | AG9: 0.9 | AH9: 0.9 | AI9: 0.9 | AJ9: 0.9 | AK9: 0.9 | AL9: 0.9 | AM9: =Y9*C9+($A$4-80)*AF9*$A$8/1000 -> 14.83720954 | AN9: =Z9*E9+($A$4-80)*AG9*$A$8/1000 -> 14.43084126 | AO9: =AA9*G9+($A$4-80)*AH9*$A$8/1000 -> 14.02434406 | AP9: =AB9*I9+($A$4-80)*AI9*$A$8/1000 -> 13.82666676 | AQ9: =AC9*K9+($A$4-80)*AJ9*$A$8/1000 -> 13.61769503 | AR9: =AD9*M9+($A$4-80)*AK9*$A$8/1000 -> 13.21086551 | AS9: =AE9*O9+($A$4-80)*AL9*$A$8/1000 -> 12.80381913
B10: 62 | C10: 19.14213198 | D10: 18.1385266 | E10: 18.31979695 | F10: 17.65068713 | G10: 17.49746193 | H10: 17.16288537 | I10: 17.08629442 | J10: 16.92293719 | K10: =V10*$K$13 -> 16.6751269 | L10: 16.6751269 | M10: 15.85279188 | N10: 15.85279188 | O10: 15.03045685 | P10: 15.03045685 | R10: 1.063451777 | S10: 1.017766497 | T10: 0.9720812183 | U10: 0.9492385787 | V10: 0.9263959391 | W10: 0.8807106599 | X10: 0.8350253807 | Y10: 0.9475708671 | Z10: 0.9634761334 | AA10: 0.9808785665 | AB10: 0.9904392832 | AC10: 1 | AD10: 1 | AE10: 1 | AF10: 0.636180383 | AG10: 0.5775758388 | AH10: 0.5134548339 | AI10: 0.478227417 | AJ10: 0.443 | AK10: 0.443 | AL10: 0.443 | AM10: 18.1385266 | AN10: =Z10*E10+($A$4-80)*AG10*$A$8/1000 -> 17.65068713 | AO10: =AA10*G10+($A$4-80)*AH10*$A$8/1000 -> 17.16288537 | AP10: 16.92293719 | AQ10: 16.6751269 | AR10: 15.85279188 | AS10: 15.03045685
B11: 57 | C11: 19.05076142 | D11: 19.05076142 | E11: 18.2284264 | F11: 18.2284264 | G11: 17.45177665 | H11: 17.45177665 | I11: 17.04060914 | J11: 17.04060914 | K11: =V11*$K$13 -> 16.62944162 | L11: 16.62944162 | M11: 15.8071066 | N11: 15.8071066 | O11: 15.03045685 | P11: 15.03045685 | R11: 1.058375635 | S11: 1.012690355 | T11: 0.9695431472 | U11: 0.9467005076 | V11: 0.923857868 | W11: 0.8781725888 | X11: 0.8350253807 | Y11: 1 | Z11: 1 | AA11: 1 | AB11: 1 | AC11: 1 | AD11: 1 | AE11: 1 | AF11: 0.443 | AG11: 0.443 | AH11: 0.443 | AI11: 0.443 | AJ11: 0.443 | AK11: 0.443 | AL11: 0.443 | AM11: 19.05076142 | AN11: =Z11*E11+($A$4-80)*AG11*$A$8/1000 -> 18.2284264 | AO11: =AA11*G11+($A$4-80)*AH11*$A$8/1000 -> 17.45177665 | AP11: =AB11*I11+($A$4-80)*AI11*$A$8/1000 -> 17.04060914 | AQ11: 16.62944162 | AR11: 15.8071066 | AS11: 15.03045685
A12: 1400 | B12: 72 | C12: 23.11675127 | D12: 12.44628551 | E12: 21.88324873 | F12: 12.00767275 | G12: 20.64974619 | H12: 11.56891217 | I12: 20.03299492 | J12: 11.35344834 | K12: =V12*$K$13 -> 19.41624365 | L12: 11.12997578 | M12: 18.18274112 | N12: 10.69082802 | O12: 16.94923858 | P12: 10.25142309 | R12: 1.284263959 | S12: 1.215736041 | T12: 1.147208122 | U12: 1.112944162 | V12: 1.078680203 | W12: 1.010152284 | X12: 0.9416243655 | Y12: 0.5384098035 | Z12: 0.5487152705 | AA12: 0.5602447634 | AB12: 0.5667374442 | AC12: 0.5732301249 | AD12: 0.5879656952 | AE12: 0.6048308919 | AF12: 0.9 | AG12: 0.9 | AH12: 0.9 | AI12: 0.9 | AJ12: 0.9 | AK12: 0.9 | AL12: 0.9 | AM12: =Y12*C12+($A$4-80)*AF12*$A$12/1000 -> 12.44628551 | AN12: =Z12*E12+($A$4-80)*AG12*$A$12/1000 -> 12.00767275 | AO12: =AA12*G12+($A$4-80)*AH12*$A$12/1000 -> 11.56891217 | AP12: =AB12*I12+($A$4-80)*AI12*$A$12/1000 -> 11.35344834 | AQ12: =AC12*K12+($A$4-80)*AJ12*$A$12/1000 -> 11.12997578 | AR12: =AD12*M12+($A$4-80)*AK12*$A$12/1000 -> 10.69082802 | AS12: =AE12*O12+($A$4-80)*AL12*$A$12/1000 -> 10.25142309
B13: 67 | C13: 21.19796954 | D13: 16.0620273 | E13: 20.14720812 | F13: 15.67893361 | G13: 19.0964467 | H13: 15.2967777 | I13: 18.54822335 | J13: 15.09436881 | K13: 18 | L13: 14.87796584 | M13: 16.94923858 | N13: 14.49691685 | O13: 15.85279188 | P13: 14.07670558 | R13: 1.177664975 | S13: 1.11928934 | T13: 1.060913706 | U13: 1.030456853 | V13: 1 | W13: 0.9416243655 | X13: 0.8807106599 | Y13: 0.7577153683 | Z13: 0.7782186749 | AA13: 0.8010274342 | AB13: 0.8137905461 | AC13: 0.826553658 | AD13: 0.8553137522 | AE13: 0.8879638165 | AF13: 0.9 | AG13: 0.9 | AH13: 0.9 | AI13: 0.9 | AJ13: 0.9 | AK13: 0.9 | AL13: 0.9 | AM13: =Y13*C13+($A$4-80)*AF13*$A$12/1000 -> 16.0620273 | AN13: =Z13*E13+($A$4-80)*AG13*$A$12/1000 -> 15.67893361 | AO13: =AA13*G13+($A$4-80)*AH13*$A$12/1000 -> 15.2967777 | AP13: =AB13*I13+($A$4-80)*AI13*$A$12/1000 -> 15.09436881 | AQ13: =AC13*K13+($A$4-80)*AJ13*$A$12/1000 -> 14.87796584 | AR13: =AD13*M13+($A$4-80)*AK13*$A$12/1000 -> 14.49691685 | AS13: =AE13*O13+($A$4-80)*AL13*$A$12/1000 -> 14.07670558
B14: 62 | C14: 19.96446701 | D14: 19.96446701 | E14: 19.0964467 | F14: 19.0964467 | G14: 18.18274112 | H14: 18.18274112 | I14: 17.74873096 | J14: 17.74873096 | K14: =V14*$K$13 -> 17.31472081 | L14: 17.31472081 | M14: 16.44670051 | N14: 16.44670051 | O14: 15.5786802 | P14: 15.5786802 | R14: 1.109137056 | S14: 1.060913706 | T14: 1.010152284 | U14: 0.9860406091 | V14: 0.961928934 | W14: 0.9137055838 | X14: 0.8654822335 | Y14: 1 | Z14: 1 | AA14: 1 | AB14: 1 | AC14: 1 | AD14: 1 | AE14: 1 | AF14: 0.443 | AG14: 0.443 | AH14: 0.443 | AI14: 0.443 | AJ14: 0.443 | AK14: 0.443 | AL14: 0.443 | AM14: 19.96446701 | AN14: =Z14*E14+($A$4-80)*AG14*$A$12/1000 -> 19.0964467 | AO14: =AA14*G14+($A$4-80)*AH14*$A$12/1000 -> 18.18274112 | AP14: 17.74873096 | AQ14: 17.31472081 | AR14: 16.44670051 | AS14: 15.5786802
B15: 57 | C15: 19.91878173 | D15: 19.91878173 | E15: 19.05076142 | F15: 19.05076142 | G15: 18.18274112 | H15: 18.18274112 | I15: 17.74873096 | J15: 17.74873096 | K15: 17.31472081 | L15: 17.31472081 | M15: 16.44670051 | N15: 16.44670051 | O15: 15.53299492 | P15: 15.53299492 | R15: 1.106598985 | S15: 1.058375635 | T15: 1.010152284 | U15: 0.9860406091 | V15: 0.961928934 | W15: 0.9137055838 | X15: 0.8629441624 | Y15: 1 | Z15: 1 | AA15: 1 | AB15: 1 | AC15: 1 | AD15: 1 | AE15: 1 | AF15: 0.443 | AG15: 0.443 | AH15: 0.443 | AI15: 0.443 | AJ15: 0.443 | AK15: 0.443 | AL15: 0.443 | AM15: 19.91878173 | AN15: =Z15*E15+($A$4-80)*AG15*$A$12/1000 -> 19.05076142 | AO15: =AA15*G15+($A$4-80)*AH15*$A$12/1000 -> 18.18274112 | AP15: 17.74873096 | AQ15: 17.31472081 | AR15: 16.44670051 | AS15: 15.53299492
A16: 1600 | B16: 72 | C16: 23.34517766 | D16: 13.14005349 | E16: 22.11167513 | F16: 12.73063208 | G16: 20.83248731 | H16: 12.29477349 | I16: 20.21573604 | J16: 12.09528508 | K16: 19.59898477 | L16: 11.88575929 | M16: 18.36548223 | N16: 11.4773974 | O16: 17.08629442 | P16: 11.04031163 | R16: 1.296954315 | S16: 1.228426396 | T16: 1.157360406 | U16: 1.123096447 | V16: 1.088832487 | W16: 1.020304569 | X16: 0.9492385787 | Y16: 0.5628594343 | Z16: 0.5757425436 | AA16: 0.5901730938 | AB16: 0.5983103983 | AC16: 0.6064477027 | AD16: 0.6249439713 | AE16: 0.6461501457 | AF16: 0.9 | AG16: 0.9 | AH16: 0.9 | AI16: 0.9 | AJ16: 0.9 | AK16: 0.9 | AL16: 0.9 | AM16: =Y16*C16+($A$4-80)*AF16*$A$16/1000 -> 13.14005349 | AN16: =Z16*E16+($A$4-80)*AG16*$A$16/1000 -> 12.73063208 | AO16: =AA16*G16+($A$4-80)*AH16*$A$16/1000 -> 12.29477349 | AP16: =AB16*I16+($A$4-80)*AI16*$A$16/1000 -> 12.09528508 | AQ16: =AC16*K16+($A$4-80)*AJ16*$A$16/1000 -> 11.88575929 | AR16: =AD16*M16+($A$4-80)*AK16*$A$16/1000 -> 11.4773974 | AS16: =AE16*O16+($A$4-80)*AL16*$A$16/1000 -> 11.04031163
B17: 67 | C17: 21.60913706 | D17: 17.46109621 | E17: 20.46700508 | F17: 16.99806761 | G17: 19.3248731 | H17: 16.5349206 | I17: 18.75380711 | J17: 16.31134764 | K17: 18.18274112 | L17: 16.07163292 | M17: 17.04060914 | N17: 15.60817637 | O17: 15.89847716 | P17: 15.14451464 | R17: 1.200507614 | S17: 1.137055838 | T17: 1.073604061 | U17: 1.041878173 | V17: 1.010152284 | W17: 0.9467005076 | X17: 0.883248731 | Y17: 0.8080422721 | Z17: 0.8305107437 | AA17: 0.8556289356 | AB17: 0.8697619393 | AC17: 0.883894943 | AD17: 0.915940049 | AE17: 0.9525764317 | AF17: 0.9 | AG17: 0.9 | AH17: 0.9 | AI17: 0.9 | AJ17: 0.9 | AK17: 0.7527272954 | AL17: 0.6177368796 | AM17: =Y17*C17+($A$4-80)*AF17*$A$16/1000 -> 17.46109621 | AN17: =Z17*E17+($A$4-80)*AG17*$A$16/1000 -> 16.99806761 | AO17: =AA17*G17+($A$4-80)*AH17*$A$16/1000 -> 16.5349206 | AP17: =AB17*I17+($A$4-80)*AI17*$A$16/1000 -> 16.31134764 | AQ17: =AC17*K17+($A$4-80)*AJ17*$A$16/1000 -> 16.07163292 | AR17: =AD17*M17+($A$4-80)*AK17*$A$16/1000 -> 15.60817637 | AS17: =AE17*O17+($A$4-80)*AL17*$A$16/1000 -> 15.14451464
B18: 62 | C18: 20.64974619 | D18: 20.64974619 | E18: 19.69035533 | F18: 19.69035533 | G18: 18.77664975 | H18: 18.77664975 | I18: 18.31979695 | J18: 18.31979695 | K18: 17.86294416 | L18: 17.86294416 | M18: 16.9035533 | N18: 16.9035533 | O18: 15.98984772 | P18: 15.98984772 | R18: 1.147208122 | S18: 1.093908629 | T18: 1.043147208 | U18: 1.017766497 | V18: 0.9923857868 | W18: 0.9390862944 | X18: 0.8883248731 | Y18: 1 | Z18: 1 | AA18: 1 | AB18: 1 | AC18: 1 | AD18: 1 | AE18: 1 | AF18: 0.443 | AG18: 0.443 | AH18: 0.443 | AI18: 0.443 | AJ18: 0.443 | AK18: 0.443 | AL18: 0.443 | AM18: 20.64974619 | AN18: =Z18*E18+($A$4-80)*AG18*$A$16/1000 -> 19.69035533 | AO18: =AA18*G18+($A$4-80)*AH18*$A$16/1000 -> 18.77664975 | AP18: 18.31979695 | AQ18: 17.86294416 | AR18: 16.9035533 | AS18: 15.98984772
B19: 57 | C19: 20.60406091 | D19: 20.60406091 | E19: 19.69035533 | F19: 19.69035533 | G19: 18.73096447 | H19: 18.73096447 | I19: 18.27411168 | J19: 18.27411168 | K19: 17.81725888 | L19: 17.81725888 | M19: 16.9035533 | N19: 16.9035533 | O19: 15.98984772 | P19: 15.98984772 | R19: 1.144670051 | S19: 1.093908629 | T19: 1.040609137 | U19: 1.015228426 | V19: 0.9898477157 | W19: 0.9390862944 | X19: 0.8883248731 | Y19: 1 | Z19: 1 | AA19: 1 | AB19: 1 | AC19: 1 | AD19: 1 | AE19: 1 | AF19: 0.443 | AG19: 0.443 | AH19: 0.443 | AI19: 0.443 | AJ19: 0.443 | AK19: 0.443 | AL19: 0.443 | AM19: 20.60406091 | AN19: =Z19*E19+($A$4-80)*AG19*$A$16/1000 -> 19.69035533 | AO19: =AA19*G19+($A$4-80)*AH19*$A$16/1000 -> 18.73096447 | AP19: 18.27411168 | AQ19: 17.81725888 | AR19: 16.9035533 | AS19: 15.98984772

Sheet 4SCU14L_42 (hidden)
A2: 4SCU14L_42
A3: Evaporator Air | C3: Condenser Entering Air Temperature ˚F
A4: 80 | B4: °F DB | C4: 65 | E4: 75 | G4: 85 | I4: 90 | K4: 95 | M4: 105 | O4: 115
A5: CFM | B5: EWB† ˚F | C5: Capacity Mbtuh | E5: Capacity Mbtuh | G5: Capacity Mbtuh | I5: Capacity Mbtuh | K5: Capacity Mbtuh | M5: Capacity Mbtuh | O5: Capacity Mbtuh
C6: Total | D6: Sens. | E6: Total | F6: Sens. | G6: Total | H6: Sens. | I6: Total | J6: Sens. | K6: Total | L6: Sens. | M6: Total | N6: Sens. | O6: Total | P6: Sens.
R7: Total Factors | Y7: Sens. % | AF7: IDB Adj | AM7: Sens Calc
A8: 1200 | B8: 72 | C8: =R8*$K$13 -> 22.72553699 | D8: =IF(AM8>C8,C8,AM8) -> 11.4874525 | E8: =S8*$K$13 -> 21.56563246 | F8: =IF(AN8>E8,E8,AN8) -> 11.05217184 | G8: =T8*$K$13 -> 20.40572792 | H8: =IF(AO8>G8,G8,AO8) -> 10.61719674 | I8: =U8*$K$13 -> 19.80429594 | J8: =IF(AP8>I8,I8,AP8) -> 10.39116457 | K8: =V8*$K$13 -> 19.20286396 | L8: =IF(AQ8>K8,K8,AQ8) -> 10.15985456 | M8: =W8*$K$13 -> 18.04295943 | N8: =IF(AR8>M8,M8,AR8) -> 9.725248021 | O8: =X8*$K$13 -> 16.84009547 | P8: =IF(AS8>O8,O8,AS8) -> 9.267464289 | R8: 1.262529833 | S8: 1.198090692 | T8: 1.133651551 | U8: 1.100238663 | V8: 1.066825776 | W8: 1.002386635 | X8: 0.9355608592 | Y8: 0.5054865151 | Z8: 0.5124900398 | AA8: 0.520304729 | AB8: 0.5246924504 | AC8: 0.5290801718 | AD8: 0.5390051483 | AE8: 0.550321363 | AF8: =IF(Y8<0.9,0.9,Y8*-3.6846+4.1276) -> 0.9 | AG8: =IF(Z8<0.9,0.9,Z8*-3.6846+4.1276) -> 0.9 | AH8: 0.9 | AI8: 0.9 | AJ8: 0.9 | AK8: 0.9 | AL8: 0.9 | AM8: =Y8*C8+($A$4-80)*AF8*$A$8/1000 -> 11.4874525 | AN8: =Z8*E8+($A$4-80)*AG8*$A$8/1000 -> 11.05217184 | AO8: =AA8*G8+($A$4-80)*AH8*$A$8/1000 -> 10.61719674 | AP8: =AB8*I8+($A$4-80)*AI8*$A$8/1000 -> 10.39116457 | AQ8: =AC8*K8+($A$4-80)*AJ8*$A$8/1000 -> 10.15985456 | AR8: =AD8*M8+($A$4-80)*AK8*$A$8/1000 -> 9.725248021 | AS8: =AE8*O8+($A$4-80)*AL8*$A$8/1000 -> 9.267464289
B9: 67 | C9: 20.96420048 | D9: 14.57074852 | E9: 19.8902148 | F9: =IF(AN9>E9,E9,AN9) -> 14.12957853 | G9: 18.77326969 | H9: =IF(AO9>G9,G9,AO9) -> 13.65807259 | I9: 18.21479714 | J9: =IF(AP9>I9,I9,AP9) -> 13.4274216 | K9: =V9*$K$13 -> 17.65632458 | L9: =IF(AQ9>K9,K9,AQ9) -> 13.18599943 | M9: 16.5823389 | N9: =IF(AR9>M9,M9,AR9) -> 12.74626737 | O9: 15.46539379 | P9: =IF(AS9>O9,O9,AS9) -> 12.27376063 | R9: 1.164677804 | S9: 1.105011933 | T9: 1.042959427 | U9: 1.011933174 | V9: 0.9809069212 | W9: 0.9212410501 | X9: 0.8591885442 | Y9: 0.6950300125 | Z9: 0.7103783784 | AA9: 0.7275276398 | AB9: 0.737171076 | AC9: 0.7468145122 | AD9: 0.7686652317 | AE9: 0.7936274237 | AF9: =IF(Y9<0.9,0.9,Y9*-3.6846+4.1276) -> 0.9 | AG9: 0.9 | AH9: 0.9 | AI9: 0.9 | AJ9: 0.9 | AK9: 0.9 | AL9: 0.9 | AM9: =Y9*C9+($A$4-80)*AF9*$A$8/1000 -> 14.57074852 | AN9: =Z9*E9+($A$4-80)*AG9*$A$8/1000 -> 14.12957853 | AO9: =AA9*G9+($A$4-80)*AH9*$A$8/1000 -> 13.65807259 | AP9: =AB9*I9+($A$4-80)*AI9*$A$8/1000 -> 13.4274216 | AQ9: =AC9*K9+($A$4-80)*AJ9*$A$8/1000 -> 13.18599943 | AR9: =AD9*M9+($A$4-80)*AK9*$A$8/1000 -> 12.74626737 | AS9: =AE9*O9+($A$4-80)*AL9*$A$8/1000 -> 12.27376063
B10: 62 | C10: 19.24582339 | D10: 17.48476765 | E10: 18.25775656 | F10: 17.0438077 | G10: 17.26968974 | H10: 16.6030755 | I10: 16.77565632 | J10: 16.39057346 | K10: =V10*$K$13 -> 16.28162291 | L10: 16.16261274 | M10: 15.29355609 | N10: 15.29355609 | O10: 14.30548926 | P10: 14.30548926 | R10: 1.069212411 | S10: 1.014319809 | T10: 0.9594272076 | U10: 0.9319809069 | V10: 0.9045346062 | W10: 0.8496420048 | X10: 0.7947494033 | Y10: 0.908496732 | Z10: 0.9335105132 | AA10: 0.9613997563 | AB10: 0.9770451388 | AC10: 0.9926905214 | AD10: 1 | AE10: 1 | AF10: 0.7801529412 | AG10: 0.6879871631 | AH10: 0.5852264581 | AI10: 0.5275794814 | AJ10: 0.4699325047 | AK10: 0.443 | AL10: 0.443 | AM10: 17.48476765 | AN10: =Z10*E10+($A$4-80)*AG10*$A$8/1000 -> 17.0438077 | AO10: =AA10*G10+($A$4-80)*AH10*$A$8/1000 -> 16.6030755 | AP10: 16.39057346 | AQ10: 16.16261274 | AR10: 15.29355609 | AS10: 14.30548926
B11: 57 | C11: 18.73031026 | D11: 18.73031026 | E11: 17.91408115 | F11: 17.91408115 | G11: 17.09785203 | H11: 17.09785203 | I11: 16.68973747 | J11: 16.68973747 | K11: =V11*$K$13 -> 16.28162291 | L11: 16.28162291 | M11: 15.50835322 | N11: 15.50835322 | O11: 14.69212411 | P11: 14.69212411 | R11: 1.040572792 | S11: 0.9952267303 | T11: 0.9498806683 | U11: 0.9272076372 | V11: 0.9045346062 | W11: 0.861575179 | X11: 0.8162291169 | Y11: 1 | Z11: 1 | AA11: 1 | AB11: 1 | AC11: 1 | AD11: 1 | AE11: 1 | AF11: 0.443 | AG11: 0.443 | AH11: 0.443 | AI11: 0.443 | AJ11: 0.443 | AK11: 0.443 | AL11: 0.443 | AM11: 18.73031026 | AN11: =Z11*E11+($A$4-80)*AG11*$A$8/1000 -> 17.91408115 | AO11: =AA11*G11+($A$4-80)*AH11*$A$8/1000 -> 17.09785203 | AP11: =AB11*I11+($A$4-80)*AI11*$A$8/1000 -> 16.68973747 | AQ11: 16.28162291 | AR11: 15.50835322 | AS11: 14.69212411
A12: 1400 | B12: 72 | C12: 23.19809069 | D12: 12.13746656 | E12: 21.9522673 | F12: 11.69568305 | G12: 20.74940334 | H12: 11.27683096 | I12: 20.12649165 | J12: 11.05949378 | K12: =V12*$K$13 -> 19.50357995 | L12: 10.83465429 | M12: 18.30071599 | N12: 10.41640471 | O12: 17.0548926 | P12: 9.973736921 | R12: 1.288782816 | S12: 1.219570406 | T12: 1.15274463 | U12: 1.118138425 | V12: 1.08353222 | W12: 1.016706444 | X12: 0.9474940334 | Y12: 0.523209721 | Z12: 0.5327779082 | AA12: 0.5434773603 | AB12: 0.5494993353 | AC12: 0.5555213103 | AD12: 0.5691801738 | AE12: 0.5848020949 | AF12: 0.9 | AG12: 0.9 | AH12: 0.9 | AI12: 0.9 | AJ12: 0.9 | AK12: 0.9 | AL12: 0.9 | AM12: =Y12*C12+($A$4-80)*AF12*$A$12/1000 -> 12.13746656 | AN12: =Z12*E12+($A$4-80)*AG12*$A$12/1000 -> 11.69568305 | AO12: =AA12*G12+($A$4-80)*AH12*$A$12/1000 -> 11.27683096 | AP12: =AB12*I12+($A$4-80)*AI12*$A$12/1000 -> 11.05949378 | AQ12: =AC12*K12+($A$4-80)*AJ12*$A$12/1000 -> 10.83465429 | AR12: =AD12*M12+($A$4-80)*AK12*$A$12/1000 -> 10.41640471 | AS12: =AE12*O12+($A$4-80)*AL12*$A$12/1000 -> 9.973736921
B13: 67 | C13: 21.39379475 | D13: 15.73146367 | E13: 20.27684964 | F13: 15.31181826 | G13: 19.15990453 | H13: 14.89295015 | I13: 18.57995227 | J13: 14.67398236 | K13: 18 | L13: 14.44054209 | M13: 16.88305489 | N13: 14.02249298 | O13: 15.72315036 | P13: 13.5685473 | R13: 1.188544153 | S13: 1.126491647 | T13: 1.064439141 | U13: 1.03221957 | V13: 1 | W13: 0.937947494 | X13: 0.8735083532 | Y13: 0.7353283441 | Z13: 0.7551379296 | AA13: 0.7772977219 | AB13: 0.7897750301 | AC13: 0.8022523382 | AD13: 0.8305660954 | AE13: 0.8629661989 | AF13: 0.9 | AG13: 0.9 | AH13: 0.9 | AI13: 0.9 | AJ13: 0.9 | AK13: 0.9 | AL13: 0.9 | AM13: =Y13*C13+($A$4-80)*AF13*$A$12/1000 -> 15.73146367 | AN13: =Z13*E13+($A$4-80)*AG13*$A$12/1000 -> 15.31181826 | AO13: =AA13*G13+($A$4-80)*AH13*$A$12/1000 -> 14.89295015 | AP13: =AB13*I13+($A$4-80)*AI13*$A$12/1000 -> 14.67398236 | AQ13: =AC13*K13+($A$4-80)*AJ13*$A$12/1000 -> 14.44054209 | AR13: =AD13*M13+($A$4-80)*AK13*$A$12/1000 -> 14.02249298 | AS13: =AE13*O13+($A$4-80)*AL13*$A$12/1000 -> 13.5685473
B14: 62 | C14: 19.58949881 | D14: 19.58949881 | E14: 18.73031026 | F14: 18.73031026 | G14: 17.87112172 | H14: 17.87112172 | I14: 17.44152745 | J14: 17.44152745 | K14: =V14*$K$13 -> 17.01193317 | L14: 17.01193317 | M14: 16.19570406 | N14: 16.17850751 | O14: 15.33651551 | P14: 15.3021499 | R14: 1.088305489 | S14: 1.040572792 | T14: 0.9928400955 | U14: 0.968973747 | V14: 0.9451073986 | W14: 0.8997613365 | X14: 0.8520286396 | Y14: 1.002634352 | Z14: 1.00183562 | AA14: 1.000961261 | AB14: 1.000480631 | AC14: 1 | AD14: 0.9989382034 | AE14: 0.9977592292 | AF14: 0.4332934668 | AG14: 0.4362364738 | AH14: 0.4394581371 | AI14: 0.4412290685 | AJ14: 0.443 | AK14: 0.4469122956 | AL14: 0.4512563442 | AM14: 19.64110444 | AN14: =Z14*E14+($A$4-80)*AG14*$A$12/1000 -> 18.764692 | AO14: =AA14*G14+($A$4-80)*AH14*$A$12/1000 -> 17.88830053 | AP14: 17.44991038 | AQ14: 17.01193317 | AR14: 16.17850751 | AS14: 15.3021499
B15: 57 | C15: 19.63245823 | D15: 19.63245823 | E15: 18.73031026 | F15: 18.73031026 | G15: 17.87112172 | H15: 17.87112172 | I15: 17.44152745 | J15: 17.44152745 | K15: 17.01193317 | L15: 17.01193317 | M15: 16.1097852 | N15: 16.1097852 | O15: 15.25059666 | P15: 15.25059666 | R15: 1.090692124 | S15: 1.040572792 | T15: 0.9928400955 | U15: 0.968973747 | V15: 0.9451073986 | W15: 0.8949880668 | X15: 0.8472553699 | Y15: 1 | Z15: 1 | AA15: 1 | AB15: 1 | AC15: 1 | AD15: 1 | AE15: 1 | AF15: 0.443 | AG15: 0.443 | AH15: 0.443 | AI15: 0.443 | AJ15: 0.443 | AK15: 0.443 | AL15: 0.443 | AM15: 19.63245823 | AN15: =Z15*E15+($A$4-80)*AG15*$A$12/1000 -> 18.73031026 | AO15: =AA15*G15+($A$4-80)*AH15*$A$12/1000 -> 17.87112172 | AP15: 17.44152745 | AQ15: 17.01193317 | AR15: 16.1097852 | AS15: 15.25059666
A16: 1600 | B16: 72 | C16: 23.58472554 | D16: 12.9663108 | E16: 22.29594272 | F16: 12.48973344 | G16: 21.0071599 | H16: 12.01295943 | I16: 20.3627685 | J16: 11.77870304 | K16: 19.71837709 | L16: 11.5359505 | M16: 18.42959427 | N16: 11.05865779 | O16: 17.18377088 | P16: 10.60753669 | R16: 1.31026253 | S16: 1.238663484 | T16: 1.167064439 | U16: 1.131264916 | V16: 1.095465394 | W16: 1.023866348 | X16: 0.9546539379 | Y16: 0.5497757766 | Z16: 0.5601796523 | AA16: 0.5718507157 | AB16: 0.5784431054 | AC16: 0.585035495 | AD16: 0.6000489009 | AE16: 0.6172997047 | AF16: 0.9 | AG16: 0.9 | AH16: 0.9 | AI16: 0.9 | AJ16: 0.9 | AK16: 0.9 | AL16: 0.9 | AM16: =Y16*C16+($A$4-80)*AF16*$A$16/1000 -> 12.9663108 | AN16: =Z16*E16+($A$4-80)*AG16*$A$16/1000 -> 12.48973344 | AO16: =AA16*G16+($A$4-80)*AH16*$A$16/1000 -> 12.01295943 | AP16: =AB16*I16+($A$4-80)*AI16*$A$16/1000 -> 11.77870304 | AQ16: =AC16*K16+($A$4-80)*AJ16*$A$16/1000 -> 11.5359505 | AR16: =AD16*M16+($A$4-80)*AK16*$A$16/1000 -> 11.05865779 | AS16: =AE16*O16+($A$4-80)*AL16*$A$16/1000 -> 10.60753669
B17: 67 | C17: 21.69451074 | D17: 16.82325724 | E17: 20.53460621 | F17: 16.41642583 | G17: 19.37470167 | H17: 16.00916636 | I17: 18.7947494 | J17: 15.81404831 | K17: 18.21479714 | L17: 15.60139772 | M17: 17.0548926 | N17: 15.19301694 | O17: 15.93794749 | P17: 14.82384773 | R17: 1.205250597 | S17: 1.140811456 | T17: 1.076372315 | U17: 1.044152745 | V17: 1.011933174 | W17: 0.9474940334 | X17: 0.8854415274 | Y17: 0.7754614722 | Z17: 0.7994516993 | AA17: 0.8262922768 | AB17: 0.8414077766 | AC17: 0.8565232764 | AD17: 0.8908304085 | AE17: 0.9300976636 | AF17: 0.9 | AG17: 0.9 | AH17: 0.9 | AI17: 0.9 | AJ17: 0.9 | AK17: 0.9 | AL17: 0.7005621486 | AM17: =Y17*C17+($A$4-80)*AF17*$A$16/1000 -> 16.82325724 | AN17: =Z17*E17+($A$4-80)*AG17*$A$16/1000 -> 16.41642583 | AO17: =AA17*G17+($A$4-80)*AH17*$A$16/1000 -> 16.00916636 | AP17: =AB17*I17+($A$4-80)*AI17*$A$16/1000 -> 15.81404831 | AQ17: =AC17*K17+($A$4-80)*AJ17*$A$16/1000 -> 15.60139772 | AR17: =AD17*M17+($A$4-80)*AK17*$A$16/1000 -> 15.19301694 | AS17: =AE17*O17+($A$4-80)*AL17*$A$16/1000 -> 14.82384773
B18: 62 | C18: 20.40572792 | D18: 20.40572792 | E18: 19.46062053 | F18: 19.46062053 | G18: 18.51551313 | H18: 18.51551313 | I18: 18.04295943 | J18: 18.04295943 | K18: 17.57040573 | L18: 17.57040573 | M18: 16.62529833 | N18: 16.62529833 | O18: 15.68019093 | P18: 15.68019093 | R18: 1.133651551 | S18: 1.081145585 | T18: 1.028639618 | U18: 1.002386635 | V18: 0.9761336516 | W18: 0.923627685 | X18: 0.8711217184 | Y18: 1 | Z18: 1 | AA18: 1 | AB18: 1 | AC18: 1 | AD18: 1 | AE18: 1 | AF18: 0.443 | AG18: 0.443 | AH18: 0.443 | AI18: 0.443 | AJ18: 0.443 | AK18: 0.443 | AL18: 0.443 | AM18: 20.40572792 | AN18: =Z18*E18+($A$4-80)*AG18*$A$16/1000 -> 19.46062053 | AO18: =AA18*G18+($A$4-80)*AH18*$A$16/1000 -> 18.51551313 | AP18: 18.04295943 | AQ18: 17.57040573 | AR18: 16.62529833 | AS18: 15.68019093
B19: 57 | C19: 20.3627685 | D19: 20.3627685 | E19: 19.4176611 | F19: 19.4176611 | G19: 18.4725537 | H19: 18.4725537 | I19: 18 | J19: 18 | K19: 17.5274463 | L19: 17.5274463 | M19: 16.5823389 | N19: 16.5823389 | O19: 15.6372315 | P19: 15.6372315 | R19: 1.131264916 | S19: 1.07875895 | T19: 1.026252983 | U19: 1 | V19: 0.9737470167 | W19: 0.9212410501 | X19: 0.8687350835 | Y19: 1 | Z19: 1 | AA19: 1 | AB19: 1 | AC19: 1 | AD19: 1 | AE19: 1 | AF19: 0.443 | AG19: 0.443 | AH19: 0.443 | AI19: 0.443 | AJ19: 0.443 | AK19: 0.443 | AL19: 0.443 | AM19: 20.3627685 | AN19: =Z19*E19+($A$4-80)*AG19*$A$16/1000 -> 19.4176611 | AO19: =AA19*G19+($A$4-80)*AH19*$A$16/1000 -> 18.4725537 | AP19: 18 | AQ19: 17.5274463 | AR19: 16.5823389 | AS19: 15.6372315

Sheet 4SCU14L_47 (hidden)
A2: 4SCU14L_47
A3: Evaporator Air | C3: Condenser Entering Air Temperature ˚F
A4: 80 | B4: °F DB | C4: 65 | E4: 75 | G4: 85 | I4: 90 | K4: 95 | M4: 105 | O4: 115
A5: CFM | B5: EWB† ˚F | C5: Capacity Mbtuh | E5: Capacity Mbtuh | G5: Capacity Mbtuh | I5: Capacity Mbtuh | K5: Capacity Mbtuh | M5: Capacity Mbtuh | O5: Capacity Mbtuh
C6: Total | D6: Sens. | E6: Total | F6: Sens. | G6: Total | H6: Sens. | I6: Total | J6: Sens. | K6: Total | L6: Sens. | M6: Total | N6: Sens. | O6: Total | P6: Sens.
R7: Total Factors | Y7: Sens. % | AF7: IDB Adj | AM7: Sens Calc
A8: 1350 | B8: 72 | C8: =R8*$K$13 -> 22.5375 | D8: =IF(AM8>C8,C8,AM8) -> 11.2752145 | E8: =S8*$K$13 -> 21.4125 | F8: =IF(AN8>E8,E8,AN8) -> 10.89718209 | G8: =T8*$K$13 -> 20.2875 | H8: =IF(AO8>G8,G8,AO8) -> 10.51913911 | I8: =U8*$K$13 -> 19.725 | J8: =IF(AP8>I8,I8,AP8) -> 10.33312403 | K8: =V8*$K$13 -> 19.1625 | L8: =IF(AQ8>K8,K8,AQ8) -> 10.14108369 | M8: =W8*$K$13 -> 18.0375 | N8: =IF(AR8>M8,M8,AR8) -> 9.763013503 | O8: =X8*$K$13 -> 16.9125 | P8: =IF(AS8>O8,O8,AS8) -> 9.384925615 | R8: 1.252083333 | S8: 1.189583333 | T8: 1.127083333 | U8: 1.095833333 | V8: 1.064583333 | W8: 1.002083333 | X8: 0.9395833333 | Y8: 0.5002868331 | Z8: 0.5089168519 | AA8: 0.518503468 | AB8: 0.5238592665 | AC8: 0.5292150651 | AD8: 0.5412620099 | AE8: 0.5549106055 | AF8: =IF(Y8<0.9,0.9,Y8*-3.6846+4.1276) -> 0.9 | AG8: =IF(Z8<0.9,0.9,Z8*-3.6846+4.1276) -> 0.9 | AH8: 0.9 | AI8: 0.9 | AJ8: 0.9 | AK8: 0.9 | AL8: 0.9 | AM8: =Y8*C8+($A$4-80)*AF8*$A$8/1000 -> 11.2752145 | AN8: =Z8*E8+($A$4-80)*AG8*$A$8/1000 -> 10.89718209 | AO8: =AA8*G8+($A$4-80)*AH8*$A$8/1000 -> 10.51913911 | AP8: =AB8*I8+($A$4-80)*AI8*$A$8/1000 -> 10.33312403 | AQ8: =AC8*K8+($A$4-80)*AJ8*$A$8/1000 -> 10.14108369 | AR8: =AD8*M8+($A$4-80)*AK8*$A$8/1000 -> 9.763013503 | AS8: =AE8*O8+($A$4-80)*AL8*$A$8/1000 -> 9.384925615
B9: 67 | C9: 20.8125 | D9: 14.30866405 | E9: 19.7625 | F9: =IF(AN9>E9,E9,AN9) -> 13.89933766 | G9: 18.7125 | H9: =IF(AO9>G9,G9,AO9) -> 13.48975355 | I9: 18.20625 | J9: =IF(AP9>I9,I9,AP9) -> 13.30366873 | K9: =V9*$K$13 -> 17.7 | L9: =IF(AQ9>K9,K9,AQ9) -> 13.10763653 | M9: 16.65 | N9: =IF(AR9>M9,M9,AR9) -> 12.69821795 | O9: 15.6 | P9: =IF(AS9>O9,O9,AS9) -> 12.28847762 | R9: 1.15625 | S9: 1.097916667 | T9: 1.039583333 | U9: 1.011458333 | V9: 0.9833333333 | W9: 0.925 | X9: 0.8666666667 | Y9: 0.6875033777 | Z9: 0.7033187939 | AA9: 0.7208953132 | AB9: 0.7307198751 | AC9: 0.7405444369 | AD9: 0.7626557325 | AE9: 0.7877229246 | AF9: =IF(Y9<0.9,0.9,Y9*-3.6846+4.1276) -> 0.9 | AG9: 0.9 | AH9: 0.9 | AI9: 0.9 | AJ9: 0.9 | AK9: 0.9 | AL9: 0.9 | AM9: =Y9*C9+($A$4-80)*AF9*$A$8/1000 -> 14.30866405 | AN9: =Z9*E9+($A$4-80)*AG9*$A$8/1000 -> 13.89933766 | AO9: =AA9*G9+($A$4-80)*AH9*$A$8/1000 -> 13.48975355 | AP9: =AB9*I9+($A$4-80)*AI9*$A$8/1000 -> 13.30366873 | AQ9: =AC9*K9+($A$4-80)*AJ9*$A$8/1000 -> 13.10763653 | AR9: =AD9*M9+($A$4-80)*AK9*$A$8/1000 -> 12.69821795 | AS9: =AE9*O9+($A$4-80)*AL9*$A$8/1000 -> 12.28847762
B10: 62 | C10: 19.2 | D10: 17.31471608 | E10: 18.225 | F10: 16.87093298 | G10: 17.2875 | H10: 16.46200757 | I10: 16.8 | J10: 16.24697651 | K10: =V10*$K$13 -> 16.3125 | L10: 16.01748351 | M10: 15.375 | N10: 15.375 | O10: 14.4 | P10: 14.4 | R10: 1.066666667 | S10: 1.0125 | T10: 0.9604166667 | U10: 0.9333333333 | V10: 0.90625 | W10: 0.8541666667 | X10: 0.8 | Y10: 0.9018081293 | Z10: 0.92570277 | AA10: 0.9522491725 | AB10: 0.9670819353 | AC10: 0.981914698 | AD10: 1 | AE10: 1 | AF10: 0.8047977669 | AG10: 0.7167555738 | AH10: 0.618942699 | AI10: 0.5642899013 | AJ10: 0.5096371036 | AK10: 0.443 | AL10: 0.443 | AM10: 17.31471608 | AN10: =Z10*E10+($A$4-80)*AG10*$A$8/1000 -> 16.87093298 | AO10: =AA10*G10+($A$4-80)*AH10*$A$8/1000 -> 16.46200757 | AP10: 16.24697651 | AQ10: 16.01748351 | AR10: 15.375 | AS10: 14.4
B11: 57 | C11: 18.7125 | D11: 18.7125 | E11: 17.925 | F11: 17.925 | G11: 17.1375 | H11: 17.1375 | I11: 16.74375 | J11: 16.74375 | K11: =V11*$K$13 -> 16.35 | L11: 16.35 | M11: 15.6 | N11: 15.6 | O11: 14.8125 | P11: 14.8125 | R11: 1.039583333 | S11: 0.9958333333 | T11: 0.9520833333 | U11: 0.9302083333 | V11: 0.9083333333 | W11: 0.8666666667 | X11: 0.8229166667 | Y11: 1 | Z11: 1 | AA11: 1 | AB11: 1 | AC11: 1 | AD11: 1 | AE11: 1 | AF11: 0.443 | AG11: 0.443 | AH11: 0.443 | AI11: 0.443 | AJ11: 0.443 | AK11: 0.443 | AL11: 0.443 | AM11: 18.7125 | AN11: =Z11*E11+($A$4-80)*AG11*$A$8/1000 -> 17.925 | AO11: =AA11*G11+($A$4-80)*AH11*$A$8/1000 -> 17.1375 | AP11: =AB11*I11+($A$4-80)*AI11*$A$8/1000 -> 16.74375 | AQ11: 16.35 | AR11: 15.6 | AS11: 14.8125
A12: 1550 | B12: 72 | C12: 23.025 | D12: 12.04729814 | E12: 21.825 | F12: 11.59299681 | G12: 20.625 | H12: 11.13861673 | I12: 20.025 | J12: 10.91436989 | K12: =V12*$K$13 -> 19.425 | L12: 10.68414338 | M12: 18.2625 | N12: 10.25060689 | O12: 17.0625 | P12: 9.796368839 | R12: 1.279166667 | S12: 1.2125 | T12: 1.145833333 | U12: 1.1125 | V12: 1.079166667 | W12: 1.014583333 | X12: 0.9479166667 | Y12: 0.5232268464 | Z12: 0.5311796933 | AA12: 0.5400541444 | AB12: 0.5450371978 | AC12: 0.5500202511 | AD12: 0.5612926428 | AE12: 0.5741461591 | AF12: 0.9 | AG12: 0.9 | AH12: 0.9 | AI12: 0.9 | AJ12: 0.9 | AK12: 0.9 | AL12: 0.9 | AM12: =Y12*C12+($A$4-80)*AF12*$A$12/1000 -> 12.04729814 | AN12: =Z12*E12+($A$4-80)*AG12*$A$12/1000 -> 11.59299681 | AO12: =AA12*G12+($A$4-80)*AH12*$A$12/1000 -> 11.13861673 | AP12: =AB12*I12+($A$4-80)*AI12*$A$12/1000 -> 10.91436989 | AQ12: =AC12*K12+($A$4-80)*AJ12*$A$12/1000 -> 10.68414338 | AR12: =AD12*M12+($A$4-80)*AK12*$A$12/1000 -> 10.25060689 | AS12: =AE12*O12+($A$4-80)*AL12*$A$12/1000 -> 9.796368839
B13: 67 | C13: 21.2625 | D13: 15.45169098 | E13: 20.175 | F13: 15.03056624 | G13: 19.0875 | H13: 14.60965033 | I13: 18.54375 | J13: 14.40553432 | K13: 18 | L13: 14.1889813 | M13: 16.9125 | N13: 13.76860706 | O13: 15.7875 | P13: 13.31695704 | R13: 1.18125 | S13: 1.120833333 | T13: 1.060416667 | U13: 1.030208333 | V13: 1 | W13: 0.9395833333 | X13: 0.8770833333 | Y13: 0.7267109219 | Z13: 0.7450094792 | AA13: 0.7654040776 | AB13: 0.7768404083 | AC13: 0.788276739 | AD13: 0.8141083258 | AE13: 0.8435127183 | AF13: 0.9 | AG13: 0.9 | AH13: 0.9 | AI13: 0.9 | AJ13: 0.9 | AK13: 0.9 | AL13: 0.9 | AM13: =Y13*C13+($A$4-80)*AF13*$A$12/1000 -> 15.45169098 | AN13: =Z13*E13+($A$4-80)*AG13*$A$12/1000 -> 15.03056624 | AO13: =AA13*G13+($A$4-80)*AH13*$A$12/1000 -> 14.60965033 | AP13: =AB13*I13+($A$4-80)*AI13*$A$12/1000 -> 14.40553432 | AQ13: =AC13*K13+($A$4-80)*AJ13*$A$12/1000 -> 14.1889813 | AR13: =AD13*M13+($A$4-80)*AK13*$A$12/1000 -> 13.76860706 | AS13: =AE13*O13+($A$4-80)*AL13*$A$12/1000 -> 13.31695704
B14: 62 | C14: 19.425 | D14: 18.98545169 | E14: 18.6375 | F14: 18.3442205 | G14: 17.85 | H14: 17.70322545 | I14: 17.4375 | J14: 17.36580865 | K14: =V14*$K$13 -> 17.025 | L14: 17.025 | M14: 16.2375 | N14: 16.2375 | O14: 15.4125 | P14: 15.4125 | R14: 1.079166667 | S14: 1.035416667 | T14: 0.9916666667 | U14: 0.96875 | V14: 0.9458333333 | W14: 0.9020833333 | X14: 0.85625 | Y14: 0.9773720304 | Z14: 0.9842640105 | AA14: 0.9917773362 | AB14: 0.9958886681 | AC14: 1 | AD14: 1 | AE14: 1 | AF14: 0.5263750166 | AG14: 0.500980827 | AH14: 0.4732972272 | AI14: 0.4581486136 | AJ14: 0.443 | AK14: 0.443 | AL14: 0.443 | AM14: 18.98545169 | AN14: =Z14*E14+($A$4-80)*AG14*$A$12/1000 -> 18.3442205 | AO14: =AA14*G14+($A$4-80)*AH14*$A$12/1000 -> 17.70322545 | AP14: 17.36580865 | AQ14: 17.025 | AR14: 16.2375 | AS14: 15.4125
B15: 57 | C15: 19.5375 | D15: 19.5375 | E15: 18.675 | F15: 18.675 | G15: 17.85 | H15: 17.85 | I15: 17.41875 | J15: 17.41875 | K15: 16.9875 | L15: 16.9875 | M15: 16.1625 | N15: 16.1625 | O15: 15.3 | P15: 15.3 | R15: 1.085416667 | S15: 1.0375 | T15: 0.9916666667 | U15: 0.9677083333 | V15: 0.94375 | W15: 0.8979166667 | X15: 0.85 | Y15: 1 | Z15: 1 | AA15: 1 | AB15: 1 | AC15: 1 | AD15: 1 | AE15: 1 | AF15: 0.443 | AG15: 0.443 | AH15: 0.443 | AI15: 0.443 | AJ15: 0.443 | AK15: 0.443 | AL15: 0.443 | AM15: 19.5375 | AN15: =Z15*E15+($A$4-80)*AG15*$A$12/1000 -> 18.675 | AO15: =AA15*G15+($A$4-80)*AH15*$A$12/1000 -> 17.85 | AP15: 17.41875 | AQ15: 16.9875 | AR15: 16.1625 | AS15: 15.3
A16: 1750 | B16: 72 | C16: 23.2875 | D16: 12.57297359 | E16: 22.0875 | F16: 12.18030584 | G16: 20.85 | H16: 11.7668688 | I16: 20.25 | J16: 11.57504314 | K16: 19.65 | L16: 11.37451885 | M16: 18.4125 | N16: 10.96033447 | O16: 17.2125 | P16: 10.56836173 | R16: 1.29375 | S16: 1.227083333 | T16: 1.158333333 | U16: 1.125 | V16: 1.091666667 | W16: 1.022916667 | X16: 0.95625 | Y16: 0.5399022473 | Z16: 0.5514569705 | AA16: 0.5643582159 | AB16: 0.5716070684 | AC16: 0.5788559209 | AD16: 0.5952659591 | AE16: 0.6139934195 | AF16: 0.9 | AG16: 0.9 | AH16: 0.9 | AI16: 0.9 | AJ16: 0.9 | AK16: 0.9 | AL16: 0.9 | AM16: =Y16*C16+($A$4-80)*AF16*$A$16/1000 -> 12.57297359 | AN16: =Z16*E16+($A$4-80)*AG16*$A$16/1000 -> 12.18030584 | AO16: =AA16*G16+($A$4-80)*AH16*$A$16/1000 -> 11.7668688 | AP16: =AB16*I16+($A$4-80)*AI16*$A$16/1000 -> 11.57504314 | AQ16: =AC16*K16+($A$4-80)*AJ16*$A$16/1000 -> 11.37451885 | AR16: =AD16*M16+($A$4-80)*AK16*$A$16/1000 -> 10.96033447 | AS16: =AE16*O16+($A$4-80)*AL16*$A$16/1000 -> 10.56836173
B17: 67 | C17: 21.5625 | D17: 16.48415224 | E17: 20.4375 | F17: 16.05243966 | G17: 19.3125 | H17: 15.62065797 | I17: 18.75 | J17: 15.41211913 | K17: 18.1875 | L17: 15.18879438 | M17: 17.0625 | N17: 14.75683272 | O17: 15.9375 | P17: 14.32475225 | R17: 1.197916667 | S17: 1.135416667 | T17: 1.072916667 | U17: 1.041666667 | V17: 1.010416667 | W17: 0.9479166667 | X17: 0.8854166667 | Y17: 0.7644824229 | Z17: 0.7854404725 | AA17: 0.8088366586 | AB17: 0.8219796869 | AC17: 0.8351227152 | AD17: 0.8648693169 | AE17: 0.8988079844 | AF17: 0.9 | AG17: 0.9 | AH17: 0.9 | AI17: 0.9 | AJ17: 0.9 | AK17: 0.9 | AL17: 0.9 | AM17: =Y17*C17+($A$4-80)*AF17*$A$16/1000 -> 16.48415224 | AN17: =Z17*E17+($A$4-80)*AG17*$A$16/1000 -> 16.05243966 | AO17: =AA17*G17+($A$4-80)*AH17*$A$16/1000 -> 15.62065797 | AP17: =AB17*I17+($A$4-80)*AI17*$A$16/1000 -> 15.41211913 | AQ17: =AC17*K17+($A$4-80)*AJ17*$A$16/1000 -> 15.18879438 | AR17: =AD17*M17+($A$4-80)*AK17*$A$16/1000 -> 14.75683272 | AS17: =AE17*O17+($A$4-80)*AL17*$A$16/1000 -> 14.32475225
B18: 62 | C18: 20.2125 | D18: 20.2125 | E18: 19.35 | F18: 19.35 | G18: 18.45 | H18: 18.45 | I18: 18 | J18: 18 | K18: 17.55 | L18: 17.55 | M18: 16.65 | N18: 16.65 | O18: 15.75 | P18: 15.75 | R18: 1.122916667 | S18: 1.075 | T18: 1.025 | U18: 1 | V18: 0.975 | W18: 0.925 | X18: 0.875 | Y18: 1 | Z18: 1 | AA18: 1 | AB18: 1 | AC18: 1 | AD18: 1 | AE18: 1 | AF18: 0.443 | AG18: 0.443 | AH18: 0.443 | AI18: 0.443 | AJ18: 0.443 | AK18: 0.443 | AL18: 0.443 | AM18: 20.2125 | AN18: =Z18*E18+($A$4-80)*AG18*$A$16/1000 -> 19.35 | AO18: =AA18*G18+($A$4-80)*AH18*$A$16/1000 -> 18.45 | AP18: 18 | AQ18: 17.55 | AR18: 16.65 | AS18: 15.75
B19: 57 | C19: 20.2125 | D19: 20.2125 | E19: 19.3125 | F19: 19.3125 | G19: 18.4125 | H19: 18.4125 | I19: 17.9625 | J19: 17.9625 | K19: 17.5125 | L19: 17.5125 | M19: 16.6125 | N19: 16.6125 | O19: 15.7125 | P19: 15.7125 | R19: 1.122916667 | S19: 1.072916667 | T19: 1.022916667 | U19: 0.9979166667 | V19: 0.9729166667 | W19: 0.9229166667 | X19: 0.8729166667 | Y19: 1 | Z19: 1 | AA19: 1 | AB19: 1 | AC19: 1 | AD19: 1 | AE19: 1 | AF19: 0.443 | AG19: 0.443 | AH19: 0.443 | AI19: 0.443 | AJ19: 0.443 | AK19: 0.443 | AL19: 0.443 | AM19: 20.2125 | AN19: =Z19*E19+($A$4-80)*AG19*$A$16/1000 -> 19.3125 | AO19: =AA19*G19+($A$4-80)*AH19*$A$16/1000 -> 18.4125 | AP19: 17.9625 | AQ19: 17.5125 | AR19: 16.6125 | AS19: 15.7125

Sheet 4SCU14L_48 (hidden)
A2: 4SCU14L_48
A3: Evaporator Air | C3: Condenser Entering Air Temperature ˚F
A4: 80 | B4: °F DB | C4: 65 | E4: 75 | G4: 85 | I4: 90 | K4: 95 | M4: 105 | O4: 115
A5: CFM | B5: EWB† ˚F | C5: Capacity Mbtuh | E5: Capacity Mbtuh | G5: Capacity Mbtuh | I5: Capacity Mbtuh | K5: Capacity Mbtuh | M5: Capacity Mbtuh | O5: Capacity Mbtuh
C6: Total | D6: Sens. | E6: Total | F6: Sens. | G6: Total | H6: Sens. | I6: Total | J6: Sens. | K6: Total | L6: Sens. | M6: Total | N6: Sens. | O6: Total | P6: Sens.
R7: Total Factors | Y7: Sens. % | AF7: IDB Adj | AM7: Sens Calc
A8: 1400 | B8: 72 | C8: =R8*$K$13 -> 58.36659878 | D8: =IF(AM8>C8,C8,AM8) -> 29.4626282 | E8: =S8*$K$13 -> 55.18126273 | F8: =IF(AN8>E8,E8,AN8) -> 28.24484173 | G8: =T8*$K$13 -> 52.08961303 | H8: =IF(AO8>G8,G8,AO8) -> 27.07504956 | I8: =U8*$K$13 -> 50.49694501 | J8: =IF(AP8>I8,I8,AP8) -> 26.47292453 | K8: =V8*$K$13 -> 48.90427699 | L8: =IF(AQ8>K8,K8,AQ8) -> 25.85656181 | M8: =W8*$K$13 -> 45.81262729 | N8: =IF(AR8>M8,M8,AR8) -> 24.6876658 | O8: =X8*$K$13 -> 42.62729124 | P8: =IF(AS8>O8,O8,AS8) -> 23.46828459 | R8: 1.268839104 | S8: 1.199592668 | T8: 1.132382892 | U8: 1.097759674 | V8: 1.063136456 | W8: 0.9959266802 | X8: 0.9266802444 | Y8: 0.5047857648 | Z8: 0.5118556614 | AA8: 0.5197782817 | AB8: 0.5242480415 | AC8: 0.5287178014 | AD8: 0.5388834316 | AE8: 0.5505459978 | AF8: =IF(Y8<0.9,0.9,Y8*-3.6846+4.1276) -> 0.9 | AG8: =IF(Z8<0.9,0.9,Z8*-3.6846+4.1276) -> 0.9 | AH8: 0.9 | AI8: 0.9 | AJ8: 0.9 | AK8: 0.9 | AL8: 0.9 | AM8: =Y8*C8+($A$4-80)*AF8*$A$8/1000 -> 29.4626282 | AN8: =Z8*E8+($A$4-80)*AG8*$A$8/1000 -> 28.24484173 | AO8: =AA8*G8+($A$4-80)*AH8*$A$8/1000 -> 27.07504956 | AP8: =AB8*I8+($A$4-80)*AI8*$A$8/1000 -> 26.47292453 | AQ8: =AC8*K8+($A$4-80)*AJ8*$A$8/1000 -> 25.85656181 | AR8: =AD8*M8+($A$4-80)*AK8*$A$8/1000 -> 24.6876658 | AS8: =AE8*O8+($A$4-80)*AL8*$A$8/1000 -> 23.46828459
B9: 67 | C9: 53.5885947 | D9: 36.9373797 | E9: 50.77800407 | F9: =IF(AN9>E9,E9,AN9) -> 35.84797872 | G9: 47.96741344 | H9: =IF(AO9>G9,G9,AO9) -> 34.75903597 | I9: 46.56211813 | J9: =IF(AP9>I9,I9,AP9) -> 34.22959186 | K9: =V9*$K$13 -> 45.15682281 | L9: =IF(AQ9>K9,K9,AQ9) -> 33.67063746 | M9: 42.34623218 | N9: =IF(AR9>M9,M9,AR9) -> 32.58289216 | O9: 39.53564155 | P9: =IF(AS9>O9,O9,AS9) -> 31.4959402 | R9: 1.16496945 | S9: 1.103869654 | T9: 1.042769857 | U9: 1.012219959 | V9: 0.9816700611 | W9: 0.9205702648 | X9: 0.8594704684 | Y9: 0.6892768864 | Z9: 0.7059745528 | AA9: 0.7246385301 | AB9: 0.7351382032 | AC9: 0.7456378763 | AD9: 0.7694401717 | AE9: 0.7966467463 | AF9: =IF(Y9<0.9,0.9,Y9*-3.6846+4.1276) -> 0.9 | AG9: 0.9 | AH9: 0.9 | AI9: 0.9 | AJ9: 0.9 | AK9: 0.9 | AL9: 0.9 | AM9: =Y9*C9+($A$4-80)*AF9*$A$8/1000 -> 36.9373797 | AN9: =Z9*E9+($A$4-80)*AG9*$A$8/1000 -> 35.84797872 | AO9: =AA9*G9+($A$4-80)*AH9*$A$8/1000 -> 34.75903597 | AP9: =AB9*I9+($A$4-80)*AI9*$A$8/1000 -> 34.22959186 | AQ9: =AC9*K9+($A$4-80)*AJ9*$A$8/1000 -> 33.67063746 | AR9: =AD9*M9+($A$4-80)*AK9*$A$8/1000 -> 32.58289216 | AS9: =AE9*O9+($A$4-80)*AL9*$A$8/1000 -> 31.4959402
B10: 62 | C10: 49.18533605 | D10: 44.44909866 | E10: 46.65580448 | F10: 43.3778199 | G10: 44.12627291 | H10: 42.3065604 | I10: 42.86150713 | J10: 41.79152618 | K10: =V10*$K$13 -> 41.59674134 | L10: 41.23532366 | M10: 39.06720978 | N10: 39.06720978 | O10: 36.53767821 | P10: 36.53767821 | R10: 1.069246436 | S10: 1.014256619 | T10: 0.9592668024 | U10: 0.9317718941 | V10: 0.9042769857 | W10: 0.849287169 | X10: 0.7942973523 | Y10: 0.9037063123 | Z10: 0.9297411198 | AA10: 0.958761246 | AB10: 0.9750363201 | AC10: 0.9913113942 | AD10: 1 | AE10: 1 | AF10: 0.7978037215 | AG10: 0.70187587 | AH10: 0.5949483131 | AI10: 0.534981175 | AJ10: 0.4750140368 | AK10: 0.443 | AL10: 0.443 | AM10: 44.44909866 | AN10: =Z10*E10+($A$4-80)*AG10*$A$8/1000 -> 43.3778199 | AO10: =AA10*G10+($A$4-80)*AH10*$A$8/1000 -> 42.3065604 | AP10: 41.79152618 | AQ10: 41.23532366 | AR10: 39.06720978 | AS10: 36.53767821
B11: 57 | C11: 47.96741344 | D11: 47.96741344 | E11: 45.90631365 | F11: 45.90631365 | G11: 43.84521385 | H11: 43.84521385 | I11: 42.76782077 | J11: 42.76782077 | K11: =V11*$K$13 -> 41.6904277 | L11: 41.6904277 | M11: 39.6293279 | N11: 39.6293279 | O11: 37.56822811 | P11: 37.56822811 | R11: 1.042769857 | S11: 0.9979633401 | T11: 0.9531568228 | U11: 0.9297352342 | V11: 0.9063136456 | W11: 0.8615071283 | X11: 0.816700611 | Y11: 1 | Z11: 1 | AA11: 1 | AB11: 1 | AC11: 1 | AD11: 1 | AE11: 1 | AF11: 0.443 | AG11: 0.443 | AH11: 0.443 | AI11: 0.443 | AJ11: 0.443 | AK11: 0.443 | AL11: 0.443 | AM11: 47.96741344 | AN11: =Z11*E11+($A$4-80)*AG11*$A$8/1000 -> 45.90631365 | AO11: =AA11*G11+($A$4-80)*AH11*$A$8/1000 -> 43.84521385 | AP11: =AB11*I11+($A$4-80)*AI11*$A$8/1000 -> 42.76782077 | AQ11: 41.6904277 | AR11: 39.6293279 | AS11: 37.56822811
A12: 1600 | B12: 72 | C12: 59.30346232 | D12: 30.87693187 | E12: 56.11812627 | F12: 29.62706409 | G12: 52.93279022 | H12: 28.37737524 | I12: 51.3401222 | J12: 27.75997201 | K12: =V12*$K$13 -> 49.74745418 | L12: 27.12789981 | M12: 46.46843177 | N12: 25.82661203 | O12: 43.28309572 | P12: 24.57658215 | R12: 1.289205703 | S12: 1.219959267 | T12: 1.150712831 | U12: 1.116089613 | V12: 1.081466395 | W12: 1.010183299 | X12: 0.9409368635 | Y12: 0.5206598512 | Z12: 0.5279410782 | AA12: 0.5361020101 | AB12: 0.5407071667 | AC12: 0.5453123233 | AD12: 0.5557883287 | AE12: 0.5678101748 | AF12: 0.9 | AG12: 0.9 | AH12: 0.9 | AI12: 0.9 | AJ12: 0.9 | AK12: 0.9 | AL12: 0.9 | AM12: =Y12*C12+($A$4-80)*AF12*$A$12/1000 -> 30.87693187 | AN12: =Z12*E12+($A$4-80)*AG12*$A$12/1000 -> 29.62706409 | AO12: =AA12*G12+($A$4-80)*AH12*$A$12/1000 -> 28.37737524 | AP12: =AB12*I12+($A$4-80)*AI12*$A$12/1000 -> 27.75997201 | AQ12: =AC12*K12+($A$4-80)*AJ12*$A$12/1000 -> 27.12789981 | AR12: =AD12*M12+($A$4-80)*AK12*$A$12/1000 -> 25.82661203 | AS12: =AE12*O12+($A$4-80)*AL12*$A$12/1000 -> 24.57658215
B13: 67 | C13: 54.6191446 | D13: 39.58493455 | E13: 51.71486762 | F13: 38.48136727 | G13: 48.90427699 | H13: 37.44868888 | I13: 47.45213849 | J13: 36.91480559 | K13: 46 | L13: 36.34554014 | M13: 43.09572301 | N13: 35.24148146 | O13: 40.19144603 | P13: 34.13631696 | R13: 1.187372709 | S13: 1.124236253 | T13: 1.063136456 | U13: 1.031568228 | V13: 1 | W13: 0.9368635438 | X13: 0.8737270876 | Y13: 0.7247446814 | Z13: 0.7441064639 | AA13: 0.7657548825 | AB13: 0.7779376601 | AC13: 0.7901204377 | AD13: 0.8177489319 | AE13: 0.8493428412 | AF13: 0.9 | AG13: 0.9 | AH13: 0.9 | AI13: 0.9 | AJ13: 0.9 | AK13: 0.9 | AL13: 0.9 | AM13: =Y13*C13+($A$4-80)*AF13*$A$12/1000 -> 39.58493455 | AN13: =Z13*E13+($A$4-80)*AG13*$A$12/1000 -> 38.48136727 | AO13: =AA13*G13+($A$4-80)*AH13*$A$12/1000 -> 37.44868888 | AP13: =AB13*I13+($A$4-80)*AI13*$A$12/1000 -> 36.91480559 | AQ13: =AC13*K13+($A$4-80)*AJ13*$A$12/1000 -> 36.34554014 | AR13: =AD13*M13+($A$4-80)*AK13*$A$12/1000 -> 35.24148146 | AS13: =AE13*O13+($A$4-80)*AL13*$A$12/1000 -> 34.13631696
B14: 62 | C14: 49.74745418 | D14: 48.90148233 | E14: 47.59266802 | F14: 47.02898686 | G14: 45.53156823 | H14: 45.24931095 | I14: 44.45417515 | J14: 44.31638598 | K14: =V14*$K$13 -> 43.37678208 | L14: 43.37678208 | M14: 41.22199593 | N14: 41.22199593 | O14: 39.06720978 | P14: 39.06720978 | R14: 1.081466395 | S14: 1.034623218 | T14: 0.9898167006 | U14: 0.966395112 | V14: 0.9429735234 | W14: 0.8961303462 | X14: 0.849287169 | Y14: 0.9829946705 | Z14: 0.9881561344 | AA14: 0.9938008444 | AB14: 0.9969004222 | AC14: 1 | AD14: 1 | AE14: 1 | AF14: 0.505657837 | AG14: 0.4866399071 | AH14: 0.4658414087 | AI14: 0.4544207044 | AJ14: 0.443 | AK14: 0.443 | AL14: 0.443 | AM14: 48.90148233 | AN14: =Z14*E14+($A$4-80)*AG14*$A$12/1000 -> 47.02898686 | AO14: =AA14*G14+($A$4-80)*AH14*$A$12/1000 -> 45.24931095 | AP14: 44.31638598 | AQ14: 43.37678208 | AR14: 41.22199593 | AS14: 39.06720978
B15: 57 | C15: 50.02851324 | D15: 50.02851324 | E15: 47.78004073 | F15: 47.78004073 | G15: 45.53156823 | H15: 45.53156823 | I15: 44.40733198 | J15: 44.40733198 | K15: 43.28309572 | L15: 43.28309572 | M15: 41.03462322 | N15: 41.03462322 | O15: 38.78615071 | P15: 38.78615071 | R15: 1.087576375 | S15: 1.038696538 | T15: 0.9898167006 | U15: 0.9653767821 | V15: 0.9409368635 | W15: 0.8920570265 | X15: 0.8431771894 | Y15: 1 | Z15: 1 | AA15: 1 | AB15: 1 | AC15: 1 | AD15: 1 | AE15: 1 | AF15: 0.443 | AG15: 0.443 | AH15: 0.443 | AI15: 0.443 | AJ15: 0.443 | AK15: 0.443 | AL15: 0.443 | AM15: 50.02851324 | AN15: =Z15*E15+($A$4-80)*AG15*$A$12/1000 -> 47.78004073 | AO15: =AA15*G15+($A$4-80)*AH15*$A$12/1000 -> 45.53156823 | AP15: 44.40733198 | AQ15: 43.28309572 | AR15: 41.03462322 | AS15: 38.78615071
A16: 1800 | B16: 72 | C16: 59.86558045 | D16: 32.24485896 | E16: 56.77393075 | F16: 31.12152393 | G16: 53.68228106 | H16: 29.99801297 | I16: 52.13645621 | J16: 29.44537992 | K16: 50.59063136 | L16: 28.87429392 | M16: 47.49898167 | N16: 27.75032628 | O16: 44.50101833 | P16: 26.68223145 | R16: 1.301425662 | S16: 1.234215886 | T16: 1.16700611 | U16: 1.133401222 | V16: 1.099796334 | W16: 1.032586558 | X16: 0.967413442 | Y16: 0.5386210026 | Z16: 0.5481657429 | AA16: 0.5588066002 | AB16: 0.5647752468 | AC16: 0.5707438934 | AD16: 0.5842299204 | AE16: 0.5995869858 | AF16: 0.9 | AG16: 0.9 | AH16: 0.9 | AI16: 0.9 | AJ16: 0.9 | AK16: 0.9 | AL16: 0.9 | AM16: =Y16*C16+($A$4-80)*AF16*$A$16/1000 -> 32.24485896 | AN16: =Z16*E16+($A$4-80)*AG16*$A$16/1000 -> 31.12152393 | AO16: =AA16*G16+($A$4-80)*AH16*$A$16/1000 -> 29.99801297 | AP16: =AB16*I16+($A$4-80)*AI16*$A$16/1000 -> 29.44537992 | AQ16: =AC16*K16+($A$4-80)*AJ16*$A$16/1000 -> 28.87429392 | AR16: =AD16*M16+($A$4-80)*AK16*$A$16/1000 -> 27.75032628 | AS16: =AE16*O16+($A$4-80)*AL16*$A$16/1000 -> 26.68223145
B17: 67 | C17: 56.02443992 | D17: 43.04744305 | E17: 52.55804481 | F17: 41.12447671 | G17: 49.09164969 | H17: 39.20125157 | I17: 47.35845214 | J17: 38.2555202 | K17: 45.62525458 | L17: 37.27770883 | M17: 42.15885947 | N17: 35.35377038 | O17: 38.69246436 | P17: 33.42933023 | R17: 1.217922607 | S17: 1.142566191 | T17: 1.067209776 | U17: 1.029531568 | V17: 0.9918533605 | W17: 0.916496945 | X17: 0.8411405295 | Y17: 0.7683690032 | Z17: 0.7824582679 | AA17: 0.7985319665 | AB17: 0.8077865402 | AC17: 0.8170411139 | AD17: 0.8385846017 | AE17: 0.8639752154 | AF17: 0.9 | AG17: 0.9 | AH17: 0.9 | AI17: 0.9 | AJ17: 0.9 | AK17: 0.9 | AL17: 0.9 | AM17: =Y17*C17+($A$4-80)*AF17*$A$16/1000 -> 43.04744305 | AN17: =Z17*E17+($A$4-80)*AG17*$A$16/1000 -> 41.12447671 | AO17: =AA17*G17+($A$4-80)*AH17*$A$16/1000 -> 39.20125157 | AP17: =AB17*I17+($A$4-80)*AI17*$A$16/1000 -> 38.2555202 | AQ17: =AC17*K17+($A$4-80)*AJ17*$A$16/1000 -> 37.27770883 | AR17: =AD17*M17+($A$4-80)*AK17*$A$16/1000 -> 35.35377038 | AS17: =AE17*O17+($A$4-80)*AL17*$A$16/1000 -> 33.42933023
B18: 62 | C18: 51.80855397 | D18: 51.80855397 | E18: 49.37270876 | F18: 49.37270876 | G18: 47.0305499 | H18: 47.0305499 | I18: 45.81262729 | J18: 45.81262729 | K18: 44.59470468 | L18: 44.59470468 | M18: 42.25254582 | N18: 42.25254582 | O18: 39.81670061 | P18: 39.81670061 | R18: 1.126272912 | S18: 1.073319756 | T18: 1.022403259 | U18: 0.9959266802 | V18: 0.9694501018 | W18: 0.9185336049 | X18: 0.8655804481 | Y18: 1 | Z18: 1 | AA18: 1 | AB18: 1 | AC18: 1 | AD18: 1 | AE18: 1 | AF18: 0.443 | AG18: 0.443 | AH18: 0.443 | AI18: 0.443 | AJ18: 0.443 | AK18: 0.443 | AL18: 0.443 | AM18: 51.80855397 | AN18: =Z18*E18+($A$4-80)*AG18*$A$16/1000 -> 49.37270876 | AO18: =AA18*G18+($A$4-80)*AH18*$A$16/1000 -> 47.0305499 | AP18: 45.81262729 | AQ18: 44.59470468 | AR18: 42.25254582 | AS18: 39.81670061
B19: 57 | C19: 51.71486762 | D19: 51.71486762 | E19: 49.2790224 | F19: 49.2790224 | G19: 46.93686354 | H19: 46.93686354 | I19: 45.71894094 | J19: 45.71894094 | K19: 44.50101833 | L19: 44.50101833 | M19: 42.15885947 | N19: 42.15885947 | O19: 39.72301426 | P19: 39.72301426 | R19: 1.124236253 | S19: 1.071283096 | T19: 1.020366599 | U19: 0.9938900204 | V19: 0.967413442 | W19: 0.916496945 | X19: 0.8635437882 | Y19: 1 | Z19: 1 | AA19: 1 | AB19: 1 | AC19: 1 | AD19: 1 | AE19: 1 | AF19: 0.443 | AG19: 0.443 | AH19: 0.443 | AI19: 0.443 | AJ19: 0.443 | AK19: 0.443 | AL19: 0.443 | AM19: 51.71486762 | AN19: =Z19*E19+($A$4-80)*AG19*$A$16/1000 -> 49.2790224 | AO19: =AA19*G19+($A$4-80)*AH19*$A$16/1000 -> 46.93686354 | AP19: 45.71894094 | AQ19: 44.50101833 | AR19: 42.15885947 | AS19: 39.72301426

Sheet 4SCU14L_60 (hidden)
A2: 4SCU14L_60
A3: Evaporator Air | C3: Condenser Entering Air Temperature ˚F
A4: 80 | B4: °F DB | C4: 65 | E4: 75 | G4: 85 | I4: 90 | K4: 95 | M4: 105 | O4: 115
A5: CFM | B5: EWB† ˚F | C5: Capacity Mbtuh | E5: Capacity Mbtuh | G5: Capacity Mbtuh | I5: Capacity Mbtuh | K5: Capacity Mbtuh | M5: Capacity Mbtuh | O5: Capacity Mbtuh
C6: Total | D6: Sens. | E6: Total | F6: Sens. | G6: Total | H6: Sens. | I6: Total | J6: Sens. | K6: Total | L6: Sens. | M6: Total | N6: Sens. | O6: Total | P6: Sens.
R7: Total Factors | Y7: Sens. % | AF7: IDB Adj | AM7: Sens Calc
A8: 1600 | B8: 72 | C8: =R8*$K$13 -> 22.06745363 | D8: =IF(AM8>C8,C8,AM8) -> 11.19568393 | E8: =S8*$K$13 -> 20.97470489 | F8: =IF(AN8>E8,E8,AN8) -> 10.64681033 | G8: =T8*$K$13 -> 19.91231029 | H8: =IF(AO8>G8,G8,AO8) -> 10.113348 | I8: =U8*$K$13 -> 19.36593592 | J8: =IF(AP8>I8,I8,AP8) -> 9.838999167 | K8: =V8*$K$13 -> 18.81956155 | L8: =IF(AQ8>K8,K8,AQ8) -> 9.564472501 | M8: =W8*$K$13 -> 17.72681282 | N8: =IF(AR8>M8,M8,AR8) -> 9.015590683 | O8: =X8*$K$13 -> 16.63406408 | P8: =IF(AS8>O8,O8,AS8) -> 8.466701314 | R8: 1.225969646 | S8: 1.165261383 | T8: 1.10623946 | U8: 1.075885329 | V8: 1.045531197 | W8: 0.9848229342 | X8: 0.9241146712 | Y8: 0.5073391845 | Z8: 0.5076023899 | AA8: 0.5078942551 | AB8: 0.5080569928 | AC8: 0.5082197306 | AD8: 0.5085849767 | AE8: 0.5089977574 | AF8: =IF(Y8<0.9,0.9,Y8*-3.6846+4.1276) -> 0.9 | AG8: =IF(Z8<0.9,0.9,Z8*-3.6846+4.1276) -> 0.9 | AH8: 0.9 | AI8: 0.9 | AJ8: 0.9 | AK8: 0.9 | AL8: 0.9 | AM8: =Y8*C8+($A$4-80)*AF8*$A$8/1000 -> 11.19568393 | AN8: =Z8*E8+($A$4-80)*AG8*$A$8/1000 -> 10.64681033 | AO8: =AA8*G8+($A$4-80)*AH8*$A$8/1000 -> 10.113348 | AP8: =AB8*I8+($A$4-80)*AI8*$A$8/1000 -> 9.838999167 | AQ8: =AC8*K8+($A$4-80)*AJ8*$A$8/1000 -> 9.564472501 | AR8: =AD8*M8+($A$4-80)*AK8*$A$8/1000 -> 9.015590683 | AS8: =AE8*O8+($A$4-80)*AL8*$A$8/1000 -> 8.466701314
B9: 67 | C9: 20.27655987 | D9: 13.8407997 | E9: 19.39629005 | F9: =IF(AN9>E9,E9,AN9) -> 13.57127016 | G9: 18.51602024 | H9: =IF(AO9>G9,G9,AO9) -> 13.30195947 | I9: 18.06070826 | J9: =IF(AP9>I9,I9,AP9) -> 13.1609043 | K9: =V9*$K$13 -> 17.60539629 | L9: =IF(AQ9>K9,K9,AQ9) -> 13.01046884 | M9: 16.72512648 | N9: =IF(AR9>M9,M9,AR9) -> 12.74101037 | O9: 15.84485666 | P9: =IF(AS9>O9,O9,AS9) -> 12.47181542 | R9: 1.126475548 | S9: 1.077571669 | T9: 1.028667791 | U9: 1.003372681 | V9: 0.9780775717 | W9: 0.9291736931 | X9: 0.8802698145 | Y9: 0.6826009835 | Z9: 0.6996838118 | AA9: 0.7184027294 | AB9: 0.7287036645 | AC9: 0.7390045997 | AD9: 0.761788581 | AE9: 0.7871207478 | AF9: =IF(Y9<0.9,0.9,Y9*-3.6846+4.1276) -> 0.9 | AG9: 0.9 | AH9: 0.9 | AI9: 0.9 | AJ9: 0.9 | AK9: 0.9 | AL9: 0.9 | AM9: =Y9*C9+($A$4-80)*AF9*$A$8/1000 -> 13.8407997 | AN9: =Z9*E9+($A$4-80)*AG9*$A$8/1000 -> 13.57127016 | AO9: =AA9*G9+($A$4-80)*AH9*$A$8/1000 -> 13.30195947 | AP9: =AB9*I9+($A$4-80)*AI9*$A$8/1000 -> 13.1609043 | AQ9: =AC9*K9+($A$4-80)*AJ9*$A$8/1000 -> 13.01046884 | AR9: =AD9*M9+($A$4-80)*AK9*$A$8/1000 -> 12.74101037 | AS9: =AE9*O9+($A$4-80)*AL9*$A$8/1000 -> 12.47181542
B10: 62 | C10: 18.75885329 | D10: 16.72887483 | E10: 17.90893761 | F10: 16.40693295 | G10: 17.02866779 | H10: 16.05662358 | I10: 16.60370995 | J10: 15.90176946 | K10: =V10*$K$13 -> 16.17875211 | L10: 15.7343309 | M10: 15.32883642 | N10: 15.32883642 | O10: 14.47892074 | P10: 14.47892074 | R10: 1.042158516 | S10: 0.9949409781 | T10: 0.9460370995 | U10: 0.9224283305 | V10: 0.8988195616 | W10: 0.8516020236 | X10: 0.8043844857 | Y10: 0.8917855784 | Z10: 0.9161310018 | AA10: 0.9429171899 | AB10: 0.9577238766 | AC10: 0.9725305633 | AD10: 1 | AE10: 1 | AF10: 0.9 | AG10: 0.7520237106 | AH10: 0.6533273223 | AI10: 0.5987706044 | AJ10: 0.5442138866 | AK10: 0.443 | AL10: 0.443 | AM10: 16.72887483 | AN10: =Z10*E10+($A$4-80)*AG10*$A$8/1000 -> 16.40693295 | AO10: =AA10*G10+($A$4-80)*AH10*$A$8/1000 -> 16.05662358 | AP10: 15.90176946 | AQ10: 15.7343309 | AR10: 15.32883642 | AS10: 14.47892074
B11: 57 | C11: 18.21247892 | D11: 18.21247892 | E11: 17.5143339 | F11: 17.5143339 | G11: 16.81618887 | H11: 16.81618887 | I11: 16.46711636 | J11: 16.46711636 | K11: =V11*$K$13 -> 16.11804384 | L11: 16.11804384 | M11: 15.41989882 | N11: 15.41989882 | O11: 14.75210793 | P11: 14.75210793 | R11: 1.011804384 | S11: 0.9730185497 | T11: 0.934232715 | U11: 0.9148397976 | V11: 0.8954468803 | W11: 0.8566610455 | X11: 0.8195615514 | Y11: 1 | Z11: 1 | AA11: 1 | AB11: 1 | AC11: 1 | AD11: 1 | AE11: 1 | AF11: 0.443 | AG11: 0.443 | AH11: 0.443 | AI11: 0.443 | AJ11: 0.443 | AK11: 0.443 | AL11: 0.443 | AM11: 18.21247892 | AN11: =Z11*E11+($A$4-80)*AG11*$A$8/1000 -> 17.5143339 | AO11: =AA11*G11+($A$4-80)*AH11*$A$8/1000 -> 16.81618887 | AP11: =AB11*I11+($A$4-80)*AI11*$A$8/1000 -> 16.46711636 | AQ11: 16.11804384 | AR11: 15.41989882 | AS11: 14.75210793
A12: 1800 | B12: 72 | C12: 22.4317032 | D12: 11.76673972 | E12: 21.30860034 | F12: 11.17480331 | G12: 20.15514334 | H12: 10.56694797 | I12: 19.59359191 | J12: 10.27093091 | K12: =V12*$K$13 -> 19.03204047 | L12: 9.975005943 | M12: 17.87858347 | N12: 9.367154236 | O12: 16.75548061 | P12: 8.775204932 | R12: 1.246205734 | S12: 1.18381113 | T12: 1.119730185 | U12: 1.088532884 | V12: 1.057335582 | W12: 0.9932546374 | X12: 0.9308600337 | Y12: 0.5245584616 | Z12: 0.5244269045 | AA12: 0.5242804672 | AB12: 0.5241984706 | AC12: 0.5241164739 | AD12: 0.5239315659 | AE12: 0.5237214699 | AF12: 0.9 | AG12: 0.9 | AH12: 0.9 | AI12: 0.9 | AJ12: 0.9 | AK12: 0.9 | AL12: 0.9 | AM12: =Y12*C12+($A$4-80)*AF12*$A$12/1000 -> 11.76673972 | AN12: =Z12*E12+($A$4-80)*AG12*$A$12/1000 -> 11.17480331 | AO12: =AA12*G12+($A$4-80)*AH12*$A$12/1000 -> 10.56694797 | AP12: =AB12*I12+($A$4-80)*AI12*$A$12/1000 -> 10.27093091 | AQ12: =AC12*K12+($A$4-80)*AJ12*$A$12/1000 -> 9.975005943 | AR12: =AD12*M12+($A$4-80)*AK12*$A$12/1000 -> 9.367154236 | AS12: =AE12*O12+($A$4-80)*AL12*$A$12/1000 -> 8.775204932
B13: 67 | C13: 20.61045531 | D13: 14.72754199 | E13: 19.7301855 | F13: 14.37230586 | G13: 18.88026981 | H13: 14.03928787 | I13: 18.44013491 | J13: 13.86519986 | K13: 18 | L13: 13.68379886 | M13: 17.15008432 | N13: 13.35152638 | O13: 16.2698145 | P13: 12.99575679 | R13: 1.145025295 | S13: 1.096121417 | T13: 1.048903879 | U13: 1.024451939 | V13: 1 | W13: 0.9527824621 | X13: 0.9038785835 | Y13: 0.7145665523 | Z13: 0.7284425108 | AA13: 0.7435957224 | AB13: 0.7519033852 | AC13: 0.760211048 | AD13: 0.7785108305 | AE13: 0.7987649023 | AF13: 0.9 | AG13: 0.9 | AH13: 0.9 | AI13: 0.9 | AJ13: 0.9 | AK13: 0.9 | AL13: 0.9 | AM13: =Y13*C13+($A$4-80)*AF13*$A$12/1000 -> 14.72754199 | AN13: =Z13*E13+($A$4-80)*AG13*$A$12/1000 -> 14.37230586 | AO13: =AA13*G13+($A$4-80)*AH13*$A$12/1000 -> 14.03928787 | AP13: =AB13*I13+($A$4-80)*AI13*$A$12/1000 -> 13.86519986 | AQ13: =AC13*K13+($A$4-80)*AJ13*$A$12/1000 -> 13.68379886 | AR13: =AD13*M13+($A$4-80)*AK13*$A$12/1000 -> 13.35152638 | AS13: =AE13*O13+($A$4-80)*AL13*$A$12/1000 -> 12.99575679
B14: 62 | C14: 18.94097808 | D14: 17.9465847 | E14: 18.24283305 | F14: 17.61058805 | G14: 17.54468803 | H14: 17.27456196 | I14: 17.19561551 | J14: 17.11017234 | K14: =V14*$K$13 -> 16.846543 | L14: 16.846543 | M14: 16.14839798 | N14: 16.14839798 | O14: 15.45025295 | P14: 15.45025295 | R14: 1.05227656 | S14: 1.013490725 | T14: 0.9747048904 | U14: 0.955311973 | V14: 0.9359190556 | W14: 0.8971332209 | X14: 0.8583473862 | Y14: 0.9475004207 | Z14: 0.9653428281 | AA14: 0.9846035412 | AB14: 0.9950311069 | AC14: 1.005458673 | AD14: 1 | AE14: 1 | AF14: 0.63643995 | AG14: 0.5706978154 | AH14: 0.4997297921 | AI14: 0.4613083835 | AJ14: 0.4228869749 | AK14: 0.443 | AL14: 0.443 | AM14: 17.9465847 | AN14: =Z14*E14+($A$4-80)*AG14*$A$12/1000 -> 17.61058805 | AO14: =AA14*G14+($A$4-80)*AH14*$A$12/1000 -> 17.27456196 | AP14: 17.11017234 | AQ14: 16.93850276 | AR14: 16.14839798 | AS14: 15.45025295
B15: 57 | C15: 18.88026981 | D15: 18.88026981 | E15: 18.15177066 | F15: 18.15177066 | G15: 17.39291737 | H15: 17.39291737 | I15: 17.01349073 | J15: 17.01349073 | K15: 16.63406408 | L15: 16.63406408 | M15: 15.90556492 | N15: 15.90556492 | O15: 15.14671164 | P15: 15.14671164 | R15: 1.048903879 | S15: 1.008431703 | T15: 0.9662731872 | U15: 0.9451939292 | V15: 0.9241146712 | W15: 0.8836424958 | X15: 0.8414839798 | Y15: 1 | Z15: 1 | AA15: 1 | AB15: 1 | AC15: 1 | AD15: 1 | AE15: 1 | AF15: 0.443 | AG15: 0.443 | AH15: 0.443 | AI15: 0.443 | AJ15: 0.443 | AK15: 0.443 | AL15: 0.443 | AM15: 18.88026981 | AN15: =Z15*E15+($A$4-80)*AG15*$A$12/1000 -> 18.15177066 | AO15: =AA15*G15+($A$4-80)*AH15*$A$12/1000 -> 17.39291737 | AP15: 17.01349073 | AQ15: 16.63406408 | AR15: 15.90556492 | AS15: 15.14671164
A16: 2000 | B16: 72 | C16: 22.67453626 | D16: 11.86007825 | E16: 21.52107926 | F16: 11.59793925 | G16: 20.36762226 | H16: 11.33557335 | I16: 19.80607083 | J16: 11.21854605 | K16: 19.24451939 | L16: 11.09043274 | M16: 18.09106239 | N16: 10.82815619 | O16: 16.9376054 | P16: 10.56558802 | R16: 1.259696459 | S16: 1.195615514 | T16: 1.13153457 | U16: 1.100337268 | V16: 1.069139966 | W16: 1.005059022 | X16: 0.9409780776 | Y16: 0.5230571474 | Z16: 0.5389106705 | AA16: 0.5565486831 | AB16: 0.5664195665 | AC16: 0.5762904499 | AD16: 0.5985362251 | AE16: 0.6237946733 | AF16: 0.9 | AG16: 0.9 | AH16: 0.9 | AI16: 0.9 | AJ16: 0.9 | AK16: 0.9 | AL16: 0.9 | AM16: =Y16*C16+($A$4-80)*AF16*$A$16/1000 -> 11.86007825 | AN16: =Z16*E16+($A$4-80)*AG16*$A$16/1000 -> 11.59793925 | AO16: =AA16*G16+($A$4-80)*AH16*$A$16/1000 -> 11.33557335 | AP16: =AB16*I16+($A$4-80)*AI16*$A$16/1000 -> 11.21854605 | AQ16: =AC16*K16+($A$4-80)*AJ16*$A$16/1000 -> 11.09043274 | AR16: =AD16*M16+($A$4-80)*AK16*$A$16/1000 -> 10.82815619 | AS16: =AE16*O16+($A$4-80)*AL16*$A$16/1000 -> 10.56558802
B17: 67 | C17: 20.94435076 | D17: 15.86682194 | E17: 20.00337268 | F17: 15.27906475 | G17: 19.09274874 | H17: 14.71436837 | I17: 18.63743676 | J17: 14.43377542 | K17: 18.18212479 | L17: 14.14974732 | M17: 17.27150084 | N17: 13.58521357 | O17: 16.3608769 | P17: 13.0207818 | R17: 1.163575042 | S17: 1.111298482 | T17: 1.060708263 | U17: 1.035413153 | V17: 1.010118044 | W17: 0.9595278246 | X17: 0.9089376054 | Y17: 0.7575704838 | Z17: 0.7638244305 | AA17: 0.7706783648 | AB17: 0.7744506719 | AC17: 0.7782229791 | AD17: 0.7865682138 | AE17: 0.7958486503 | AF17: 0.9 | AG17: 0.9 | AH17: 0.9 | AI17: 0.9 | AJ17: 0.9 | AK17: 0.9 | AL17: 0.9 | AM17: =Y17*C17+($A$4-80)*AF17*$A$16/1000 -> 15.86682194 | AN17: =Z17*E17+($A$4-80)*AG17*$A$16/1000 -> 15.27906475 | AO17: =AA17*G17+($A$4-80)*AH17*$A$16/1000 -> 14.71436837 | AP17: =AB17*I17+($A$4-80)*AI17*$A$16/1000 -> 14.43377542 | AQ17: =AC17*K17+($A$4-80)*AJ17*$A$16/1000 -> 14.14974732 | AR17: =AD17*M17+($A$4-80)*AK17*$A$16/1000 -> 13.58521357 | AS17: =AE17*O17+($A$4-80)*AL17*$A$16/1000 -> 13.0207818
B18: 62 | C18: 19.0623946 | D18: 18.93483108 | E18: 18.51602024 | F18: 18.43096871 | G18: 17.96964587 | H18: 17.92711524 | I18: 17.68128162 | J18: 17.66035756 | K18: 17.39291737 | L18: 17.39291737 | M18: 16.846543 | N18: 16.846543 | O18: 16.30016863 | P18: 16.30016863 | R18: 1.059021922 | S18: 1.028667791 | T18: 0.9983136594 | U18: 0.9822934233 | V18: 0.9662731872 | W18: 0.9359190556 | X18: 0.9055649241 | Y18: 0.993308106 | Z18: 0.9954065981 | AA18: 0.9976331961 | AB18: 0.9988165981 | AC18: 1 | AD18: 1 | AE18: 1 | AF18: 0.4676569528 | AG18: 0.4599248487 | AH18: 0.4517207256 | AI18: 0.4473603628 | AJ18: 0.443 | AK18: 0.443 | AL18: 0.443 | AM18: 18.93483108 | AN18: =Z18*E18+($A$4-80)*AG18*$A$16/1000 -> 18.43096871 | AO18: =AA18*G18+($A$4-80)*AH18*$A$16/1000 -> 17.92711524 | AP18: 17.66035756 | AQ18: 17.39291737 | AR18: 16.846543 | AS18: 16.30016863
B19: 57 | C19: 19.45699831 | D19: 19.45699831 | E19: 18.66779089 | F19: 18.66779089 | G19: 17.87858347 | H19: 17.87858347 | I19: 17.49915683 | J19: 17.49915683 | K19: 17.11973019 | L19: 17.11973019 | M19: 16.33052277 | N19: 16.33052277 | O19: 15.57166948 | P19: 15.57166948 | R19: 1.080944351 | S19: 1.037099494 | T19: 0.9932546374 | U19: 0.9721753794 | V19: 0.9510961214 | W19: 0.9072512648 | X19: 0.8650927487 | Y19: 1 | Z19: 1 | AA19: 1 | AB19: 1 | AC19: 1 | AD19: 1 | AE19: 1 | AF19: 0.443 | AG19: 0.443 | AH19: 0.443 | AI19: 0.443 | AJ19: 0.443 | AK19: 0.443 | AL19: 0.443 | AM19: 19.45699831 | AN19: =Z19*E19+($A$4-80)*AG19*$A$16/1000 -> 18.66779089 | AO19: =AA19*G19+($A$4-80)*AH19*$A$16/1000 -> 17.87858347 | AP19: 17.49915683 | AQ19: 17.11973019 | AR19: 16.33052277 | AS19: 15.57166948

Sheet 4SCU16L_24 (hidden)
A2: 4SCU16L_24
A3: Evaporator Air | C3: Condenser Entering Air Temperature ˚F
A4: 80 | B4: °F DB | C4: 65 | E4: 75 | G4: 85 | I4: 90 | K4: 95 | M4: 105 | O4: 115
A5: CFM | B5: EWB† ˚F | C5: Capacity Mbtuh | E5: Capacity Mbtuh | G5: Capacity Mbtuh | I5: Capacity Mbtuh | K5: Capacity Mbtuh | M5: Capacity Mbtuh | O5: Capacity Mbtuh
C6: Total | D6: Sens. | E6: Total | F6: Sens. | G6: Total | H6: Sens. | I6: Total | J6: Sens. | K6: Total | L6: Sens. | M6: Total | N6: Sens. | O6: Total | P6: Sens.
R7: Total Factors | Y7: Sens. % | AF7: IDB Adj | AM7: Sens Calc
A8: 600 | B8: 72 | C8: =R8*$K$13 -> 21.7752809 | D8: =IF(AM8>C8,C8,AM8) -> 10.59078296 | E8: =S8*$K$13 -> 20.69662921 | F8: =IF(AN8>E8,E8,AN8) -> 10.17618516 | G8: =T8*$K$13 -> 19.61797753 | H8: =IF(AO8>G8,G8,AO8) -> 9.761371497 | I8: =U8*$K$13 -> 19.11235955 | J8: =IF(AP8>I8,I8,AP8) -> 9.572490296 | K8: =V8*$K$13 -> 18.60674157 | L8: =IF(AQ8>K8,K8,AQ8) -> 9.380291607 | M8: =W8*$K$13 -> 17.52808989 | N8: =IF(AR8>M8,M8,AR8) -> 8.96542233 | O8: =X8*$K$13 -> 16.4494382 | P8: =IF(AS8>O8,O8,AS8) -> 8.55026056 | R8: 1.209737828 | S8: 1.149812734 | T8: 1.08988764 | U8: 1.061797753 | V8: 1.033707865 | W8: 0.9737827715 | X8: 0.9138576779 | Y8: 0.4863672256 | Z8: 0.4916832134 | AA8: 0.4975727739 | AB8: 0.5008534017 | AC8: 0.5041340296 | AD8: 0.511488838 | AE8: 0.5197904302 | AF8: =IF(Y8<0.9,0.9,Y8*-3.6846+4.1276) -> 0.9 | AG8: =IF(Z8<0.9,0.9,Z8*-3.6846+4.1276) -> 0.9 | AH8: 0.9 | AI8: 0.9 | AJ8: 0.9 | AK8: 0.9 | AL8: 0.9 | AM8: =Y8*C8+($A$4-80)*AF8*$A$8/1000 -> 10.59078296 | AN8: =Z8*E8+($A$4-80)*AG8*$A$8/1000 -> 10.17618516 | AO8: =AA8*G8+($A$4-80)*AH8*$A$8/1000 -> 9.761371497 | AP8: =AB8*I8+($A$4-80)*AI8*$A$8/1000 -> 9.572490296 | AQ8: =AC8*K8+($A$4-80)*AJ8*$A$8/1000 -> 9.380291607 | AR8: =AD8*M8+($A$4-80)*AK8*$A$8/1000 -> 8.96542233 | AS8: =AE8*O8+($A$4-80)*AL8*$A$8/1000 -> 8.55026056
B9: 67 | C9: 20.02247191 | D9: 13.08309102 | E9: 19.07865169 | F9: =IF(AN9>E9,E9,AN9) -> 12.64911704 | G9: 18.06741573 | H9: =IF(AO9>G9,G9,AO9) -> 12.17054774 | I9: 17.56179775 | J9: =IF(AP9>I9,I9,AP9) -> 11.93393762 | K9: =V9*$K$13 -> 17.05617978 | L9: =IF(AQ9>K9,K9,AQ9) -> 11.69133996 | M9: 16.11235955 | N9: =IF(AR9>M9,M9,AR9) -> 11.25848341 | O9: 15.1011236 | P9: =IF(AS9>O9,O9,AS9) -> 10.77862979 | R9: 1.112359551 | S9: 1.059925094 | T9: 1.003745318 | U9: 0.9756554307 | V9: 0.9475655431 | W9: 0.8951310861 | X9: 0.8389513109 | Y9: 0.6534203708 | Z9: 0.6629984785 | AA9: 0.6736186248 | AB9: 0.679539634 | AC9: 0.6854606431 | AD9: 0.6987482731 | AE9: 0.7137634313 | AF9: =IF(Y9<0.9,0.9,Y9*-3.6846+4.1276) -> 0.9 | AG9: 0.9 | AH9: 0.9 | AI9: 0.9 | AJ9: 0.9 | AK9: 0.9 | AL9: 0.9 | AM9: =Y9*C9+($A$4-80)*AF9*$A$8/1000 -> 13.08309102 | AN9: =Z9*E9+($A$4-80)*AG9*$A$8/1000 -> 12.64911704 | AO9: =AA9*G9+($A$4-80)*AH9*$A$8/1000 -> 12.17054774 | AP9: =AB9*I9+($A$4-80)*AI9*$A$8/1000 -> 11.93393762 | AQ9: =AC9*K9+($A$4-80)*AJ9*$A$8/1000 -> 11.69133996 | AR9: =AD9*M9+($A$4-80)*AK9*$A$8/1000 -> 11.25848341 | AS9: =AE9*O9+($A$4-80)*AL9*$A$8/1000 -> 10.77862979
B10: 62 | C10: 18.40449438 | D10: 15.42144831 | E10: 17.52808989 | F10: 15.00603341 | G10: 16.58426966 | H10: 14.5329793 | I10: 16.11235955 | J10: 14.30109713 | K10: =V10*$K$13 -> 15.64044944 | L10: 14.05857391 | M10: 14.76404494 | N10: 13.64487207 | O10: 13.82022472 | P10: 13.16887959 | R10: 1.02247191 | S10: 0.9737827715 | T10: 0.9213483146 | U10: 0.8951310861 | V10: 0.8689138577 | W10: 0.8202247191 | X10: 0.7677902622 | Y10: 0.8379175212 | Z10: 0.8561134446 | AA10: 0.8763110822 | AB10: 0.887585526 | AC10: 0.8988599699 | AD10: 0.9241960534 | AE10: 0.9528701495 | AF10: 0.9 | AG10: 0.9 | AH10: 0.9 | AI10: 0.9 | AJ10: 0.9 | AK10: 0.7223072218 | AL10: 0.6166546473 | AM10: 15.42144831 | AN10: =Z10*E10+($A$4-80)*AG10*$A$8/1000 -> 15.00603341 | AO10: =AA10*G10+($A$4-80)*AH10*$A$8/1000 -> 14.5329793 | AP10: 14.30109713 | AQ10: 14.05857391 | AR10: 13.64487207 | AS10: 13.16887959
